Workbook

Sheet Veiledning
B2: NV-GHG | E2: Versjon 2.2
E3: Oppdatert 21.09.2020
H4: Dette regnskapet er utarbeidet av:
H5: Navn: | I5: Ragnhild Stamer Ekerholt
H6: Firma: | I6: NIRAS Norge AS
H7: Stilling: | I7: Bærekraftsrådgiver
H8: E-post: | I8: raek@niras.com
H9: Telefon: | I9: 92872660
H10: Kvalitetssikrer: | I10: Julie Gade Gørbitz
B13: Introduksjon
B14: NV-GHG er et verktøy for å beregne klimagassutslipp fra veiprosjekter i en tidlig fase. Verktøyet er utviklet av NIRAS Norge AS for Nye Veier AS. Verktøyet har tre hovedformål: - Baseline (beregne baseline for nye prosjekter på det tidspunktet strekningen tildeles Nye Veier) - Budsjett (klimagassbudsjett for planlagt bygget løsning - for enkelte strekninger vil dette påkreves av entreprenør) - Resultat (beregning av klimagassutslipp fra ferdig bygget løsning - for enkelte strekninger vil dette påkreves av entreprenør) Verktøyet er ment å gi en god oversikt over de viktigste kildene til prosjektets totale klimagassutslipp, samt formidle utslippsdrivende prosesser og aktiviteter på en tydelig måte, slik at tiltak kan iverksettes der potensialet for utslippsreduksjoner er størst. Det er lagt stor vekt på at verktøyet skal være brukervennlig, både for byggherre, rådgiver og entreprenør. Det er derfor kun nødvendig å fylle inn data i fanen 'Prosjektbeskrivelse og inndata'. Dersom brukeren av verktøyet ønsker å legge inn prosjektspesifikke verdier ut over dette, kan dette gjøres i fanene 'Transport og energibehov', 'Beregningsfaktorer' og 'Utslippsfaktorer'. Alle faner der det er mulig å gjøre endringer har grønn farge. Blå faner inneholder resultater.
B26: De ulike fanene
B27: Prosjektbeskrivelse og inndata
B28: Her legges det inn informasjon om lengder, arealer og mengder for å kunne beregne klimagassutslipp i prosjektet. Verktøyet vil kunne estimere klimagassutslipp basert på informasjonen i denne fanen alene. I tabellen 'Om strekningen' legges det inn overordnet informasjon om strekningen som kreves for å kunne beregne samlede mengder. I tabellen 'Arealbruksendringer' fylles det inn prosentvis fordeling mellom de ulike arealtypene som beslaglegges i prosjektet. Summen av disse skal være 100 %. I tabellen 'Inndata' legges det inn mer detaljert informasjon om ulike konstruksjoner, massehåndtering, veityper, osv. Enheter velges fra nedtrekksmenyen.
B31: Resultat
B32: Resultatene er fremstilt i tabeller og grafisk i resultatfanen. Tallene hentes fra beregningsfanen.
B34: Sensitivitetsanalyse
B35: Sensitivitetsanalysen viser hvilke utslag en prosentvis endring i én eller flere innsatsfaktorer vil gi på totale utslipp. Sensitivitetsanalysen gir dermed et bilde på hvilke tiltak og endringer som vil ha størst effekt på det totale klimagassutslippet, både negativt og positivt.
B37: Beregninger
B38: Beregningsfanen samler all informasjon fra 'Prosjektbeskrivelse og inndata' og de ulike enhets- og faktorfanene. Her multipliseres mengder og aktiviteter med utslippsfaktorene slik at vi sitter igjen med klimagassutslipp knyttet til de ulike hoved- og underaktivitetene. Beregningsfanen skiller mellom byggefase og drift, slik at det fremkommer tydelig hvilke utslipp som er knyttet til byggeperioden (år 0) og hvilke som er knyttet til drift og vedlikehold gjennom hele analyseperioden. Verdier fra beregningsfanen benyttes videre i resultatfanen.
B41: 13 enhetsfaner for følgende kategorier: Hovedvei, Sidevei, Anleggsvei, Tunnel enkeltløp, Tunnel dobbeltløp, Betongbru, Stålbru, Kulvert, Vegetasjon og arealbeslag, Sprengning, Tillegg vei, Drift og vedlikehold, Reasfaltering
B42: Enhetsfanene bygger på informasjon fra beregningsfaktorfanene for å beregne mengder og energiforbruk for en gitt skalerbar enhet. For eksempel tar tunnelfanene utgangspunkt i valgt tunnelprofil for å beregne mengder og energibruk per meter, mens veifanene beregner per kvadratmeter slik at disse endres dynamisk med endret veibredde. Enhetsfanene inkluderer materialer, transportavstander og anleggsarbeid. Verdier fra enhetsfanene benyttes videre i beregningsfanen.
B45: Transport og energibehov
B46: Fanen samler alle beregningsfaktorer knyttet til transport, slik som arbeidshastigheter for ulike maskiner, transportavstander og energiforbruk. Alle faktorer kan tilpasses prosjektet ved å legge inn prosjektspesifikke verdier - husk å legge inn dokumentasjon i kolonnen 'Dokumentasjon prosjektspesifikke verdier'! Beregningene leser alltid verdier fra kolonnen 'Verdi benyttet i beregninger', som er linket opp mot kolonnen for standardverdi og prosjektspesifikk verdi. Standardverdiene hentes dersom cellen for prosjektspesifikke verdier står tom. Dersom det legges inn en prosjektspesifikk verdi vil denne overstyre standardverdien. Det er i tillegg mulig å skille mellom ulike brensler ved å endre prosentandeler på henholdsvis fossil diesel, biodiesel og elektrisk/hydrogen for de ulike maskintypene. Merk at effektforbruk må fylles inn dersom det benyttes elektriske maskiner.
B50: Utslippsfaktorer
B51: Fanen gir en oversik over alle utslippsfaktorer benyttet i prosjektet. Utslippsfaktorfanen blir brukt av beregningsfanen, der faktorene multipliseres med mengder for å gi et samlet resultat, fremstilt i resultatfanen. Alle standard utslippsfaktorer er ment å representere bransjestandard for hvert materiale, men på grunn av ulike produksjonsmetoder og -steder vil dette variere mellom produsenter og materialer innenfor samme materialgruppe. Faktorene kan derfor tilpasses prosjektet ved å legge inn prosjektspesifikke verdier - husk å legge inn dokumentasjon i kolonnen 'Dokumentasjon prosjektspesifikke verdier'! Vær oppmerksom på enheten til utslippsfaktorene ved bruk av prosjektspesifikke verdier. Dersom enheten til en utslippsfaktorer er i kg CO2e/kg og du ønsker å benytte en utslippsfaktor med enhet kg CO2e/m3, må denne omregnes til kg CO2/kg vha. massetettheten til det gitte materialet (se i beregningsfaktorfanen). Formel for omgjøring er som følger: Utslippsfaktor [kg CO2e/kg] = utslippsfaktor [kg CO2e/m3] / massetetthet [kg/m3]. Beregningene leser alltid verdier fra kolonnen 'Verdi benyttet i beregninger', som er linket opp mot kolonnen for standardverdi og prosjektspesifikk verdi. Standardverdiene hentes dersom cellen for prosjektspesifikke verdier står tom. Dersom det legges inn prosjektspesifikk verdi vil denne overskrive standardverdien. Dersom det benyttes prosjektspesifikke utslippsfaktorer skal disse dokumenteres med en gyldig EPD.
B58: Beregningsfaktorer
B59: Fanen samler alle beregningsfaktorer som ikke er knyttet til transport, slik som massetettheter, materialtykkelser, levetider, osv. Alle faktorer kan tilpasses prosjektet ved å legge inn prosjektspesifikke verdier - husk å legge inn dokumentasjon i kolonnen 'Dokumentasjon prosjektspesifikke verdier'! Beregningene leser alltid verdier fra kolonnen 'Verdi benyttet i beregninger', som er linket opp mot kolonnen for standardverdi og prosjektspesifikk verdi. Standardverdiene hentes dersom cellen for prosjektspesifikke verdier står tom. Dersom det legges inn prosjektspesifikk verdi vil denne overskrive standardverdien.
B63: Enheter
B64: Følgende enheter benyttes i regneverktøyet:
B66: Forkortelse | C66: Betydning | D66: Kategori | E66: Kommentar
B67: km | C67: Kilometer | D67: Avstand
B68: m | C68: Meter | D68: Avstand
B69: h | C69: Time | D69: Tid
B70: t | C70: Tonn | D70: Vekt
B71: kg | C71: Kilogram | D71: Vekt
B72: tkm | C72: Tonnkilometer | D72: Transportarbeid | E72: Én tonnkilometer tilsvarer å frakte ett tonn last én kilometer
B73: L | C73: Liter | D73: Volum
B74: m3 | C74: Kubikkmeter | D74: Volum
B75: m2 | C75: Kvadratmeter | D75: Areal
B76: kWh | C76: Kilowattimer | D76: Energi | E76: Elektrisk energi
B77: kW | C77: Kilowatt | D77: Effekt | E77: Elektrisk effekt
B78: stk | C78: Stykk | D78: Mengde

Sheet Prosjektbeskrivelse og inndata
B2: Om strekningen | J2: Inndata
B3: Prosjektinformasjon | C3: Mengde | D3: Beskrivelse | G3: Kommentar | J3: Kalkylepost (fra anslagsrapport) | K3: Beskrivelse | L3: Mengde | M3: Definert enhet (velges fra nedtrekksmeny) | N3: Kommentar
B4: Lengde hovedstrekning [m] | C4: =F35 -> 4744.4 | D4: Summen av hovedvei, tunnel og bru | J4: Forberedende tiltak og generelle kostnader
B5: Gjennomsnittlig bredde på anleggsbelte [m] | C5: =L24/(L23+L22+L5) -> 39.63636364 | D5: Til beregning av vegetasjonsrydding | J5: 13 | K5: Anleggsveier | L5: 200 | M5: Anleggsvei (m)
B6: Antall enkeltløpstunneler | C6: 0 | D6: Til beregning av tunnelportaler
B7: Antall dobbeltløpstunneler | C7: 0 | D7: Til beregning av tunnelportaler | J7: Sprengning og masseflytting
B8: Antall kulverter | C8: 3 | D8: Til beregning av anleggsarbeid | J8: 22 | K8: Sprengning i dagen | L8: 165000 | M8: Sprengning i dagen (m3)
B9: Gjennomsnittsbredde hovedvei | C9: 7.5 | J9: 25 | K9: Masseflytting av jord | L9: 70000 | M9: Jordmasser til linja (m3)
B10: Gjennomsnittsbredde sidevei | C10: 4.5 | J10: 25 | K10: Masseflytting av jord | L10: 30000 | M10: Jordmasser til deponi (m3)
B11: Gjennomsnittsbredde anleggsvei | C11: 6.5 | J11: 26 | K11: Masseflytting av sprengt stein | L11: 125000 | M11: Sprengstein til linja (m3)
B12: Gjennomsnittsbredde betongbruer | C12: 8.5 | J12: 26 | K12: Masseflytting av sprengt stein | L12: 45000 | M12: Sprengstein til linja (m3)
B13: Gjennomsnittsbredde stålbruer
B14: Analyseperiode [år] | C14: 60 | D14: Standard 60 år | J14: Konstruksjon
B15: ÅDT | C15: 3850 | D15: Gjennomsnittlig ÅDT, opprinnelig | G15: Hentet fra SVVs "Vegkart" | K15: Hammeren | L15: 29.4 | M15: Betongbru (m) | N15: Dimensjoner (LxB) = 29,4 x 8,5 m = 249,9 m2
B16: Delta ÅDT | D16: Endring i ÅDT fra opprinnelig strekning | K16: Dalandsbekken | L16: 15 | M16: Betongbru (m) | N16: Dimensjoner (LxB) = 15 x 8,5 m = 139,4 m2
B17: Belysning hovedvei | C17: Ja | D17: Er hovedvei belyst | K17: Kulvert ca pr.1680 | L17: 90 | M17: Betongkulvert (m2) | N17: GS-kulvert med lengde 30 m
B18: Belysning sidevei | C18: Ja | D18: Er sidevei belyst | K18: Kulvert ca pr.2970 | L18: 60 | M18: Betongkulvert (m2) | N18: GS-kulvert med lengde 20 m
K19: Kulvert ca pr.3470 | L19: 75 | M19: Betongkulvert (m2) | N19: GS-kulvert med lengde 25 m
B20: Arealbruksendringer
B21: Totalt arealbeslag [m2] | C21: =E35*C5 -> 186290.9091 | J21: Annet
K22: Hovedvei (Fv. 416) | L22: 4700 | M22: Hovedvei (m)
B23: Naturtype | C23: Andel [%] | D23: Kommentar | K23: Sidevei | L23: 600 | M23: Sidevei (m)
B24: Skog - lav bonitet | K24: Arealbeslag | L24: 218000 | M24: Fjerning av vegetasjonsdekke (m2)
B25: Skog - middels bonitet | C25: 0.5
B26: Skog - høy bonitet
B27: Myr
B28: Jordbruksareal | C28: 0.1
B29: Utbygd areal | C29: 0.4
B30: Sum | C30: =SUM(C24:C29) -> 1 | D30: Må være 100 %! | V30: Fjerning av vegetasjonsdekke (m2) | W30: m2
B31: Dersom boniteten er ukjent skal skogarealer føres på 'middels bonitet' | V31: Sprengning i dagen (m3) | W31: m3
V32: Sprengning tunnel (m3) | W32: m3
B33: Prosentfordeling mellom tunnel, bru og vei i dagen på hovedstrekning | V33: Jordmasser til linja (m3) | W33: m3
C34: Tunnel | D34: Bru | E34: Vei i dagen | F34: Totalt | V34: Jordmasser til deponi (m3) | W34: m3
B35: Lengde [m] | C35: 0 | D35: =L15+L16 -> 44.4 | E35: =L22 -> 4700 | F35: =C35+D35+E35 -> 4744.4 | V35: Sprengstein til linja (m3) | W35: m3
B36: Andel [%] | C36: =IFERROR(C35/C4,0) -> 0 | D36: =IFERROR(D35/C4,0) -> 0.009358401484 | E36: =IFERROR(E35/(C4),0) -> 0.9906415985 | F36: =C36+D36+E36 -> 1 | V36: Sprengstein til deponi (m3) | W36: m3
V37: Sprengstein til linja via pukkverk (m3) | W37: m3
V38: Hovedvei (m) | W38: m
V39: Sidevei (m) | W39: m
V40: Anleggsvei (m) | W40: m
V41: Betongbru (m) | W41: m2
V42: Stålbru (m) | W42: m2
V43: Tunnel enkeltløp (m) | W43: m
V44: Tunnel dobbeltløp (m) | W44: m
V45: Betongkulvert (m2) | W45: m2
V49: Belysning valg
V50: Ja
V51: Nei

Sheet Beregningsfaktorer
B2: Størrelse | C2: Enhet | D2: Verdi benyttet i beregninger | E2: Standard-verdi | F2: Prosjekt-spesifikk verdi | G2: Kommentar | H2: Dokumentasjon standardverdi | I2: Evt. lenke dokumentasjon standardverdi | J2: Dokumentasjon prosjektspesifikk verdi | K2: Evt. lenke dokumentasjon prosjektsesifikk verdi
B3: Massetettheter
B4: Betong | C4: kg/m3 | D4: =IF(F4="",E4,F4) -> 2400 | E4: 2400 | H4: Norsk betongforening Publikasjon 37: Lavkarbonbetong (2015)
B5: Stål, armeringsstål | C5: kg/m3 | D5: 7850 | E5: 7850 | H5: "Metode for beregning av energiforbruk og klimagassutslipp for vegprosjekter", Hammervold (2009) s. 8, Engineering Toolbox | I5: https://www.engineeringtoolbox.com/metal-alloys-densities-d_50.html
B6: Skjelettasfalt | C6: kg/m3 | D6: 2500 | E6: 2500 | H6: "Metode for beregning av energiforbruk og klimagassutslipp for vegprosjekter", Hammervold (2009) s. 34
B7: Asfaltgrusbetong | C7: kg/m3 | D7: 2500 | E7: 2500 | H7: "Metode for beregning av energiforbruk og klimagassutslipp for vegprosjekter", Hammervold (2009) s. 34
B8: Asfaltgrus | C8: kg/m3 | D8: 2400 | E8: 2400 | H8: Klimamodul EFFEKT 6.74
B9: Pukk/grus frostsikring | C9: kg/m3 | D9: 1550 | E9: 1550 | H9: Anbefalt verdi i samkjøringsprosjekt, snitt av minimums- og maksimumsverdi (1,4-1,7) i EPDer
B10: Pukk/grus forsterkningslag | C10: kg/m3 | D10: 1550 | E10: 1550 | H10: Anbefalt verdi i samkjøringsprosjekt, snitt av minimums- og maksimumsverdi (1,4-1,7) i EPDer
B11: XPS | C11: kg/m3 | D11: 35 | E11: 35 | H11: VegLCA (kommunikasjon med leverandører)
B12: XPS-/betongelement til frostsikring i tunnel | C12: kg/m3 | D12: 1808.75 | E12: 1808.75 | H12: EPD XPS-/betongelement Ølen betong
B13: Topeka | C13: kg/m3 | D13: 2500 | E13: 2500 | H13: "Metode for beregning av energiforbruk og klimagassutslipp for vegprosjekter", Hammervold (2009) s. 34, bruker samme som asfaltbetong
B14: Jord, grus, leire fra vegetasjonsrydding | C14: kg/m3 | D14: 1300 | E14: 1300 | H14: "Metode for beregning av energiforbruk og klimagassutslipp for vegprosjekter", Hammervold (2009) s. 32
B15: Myr fra vegetasjonsrydding | C15: kg/m3 | D15: 150 | E15: 150 | H15: Utredning myr, Hadsel kommune (Asplan Viak, 2017)
B16: Fast fjell | C16: kg/m3 | D16: 2650 | E16: 2650 | H16: "Metode for beregning av energiforbruk og klimagassutslipp for vegprosjekter", Hammervold (2009) s. 32
B17: Masser fra grøfterensk | C17: kg/m3 | D17: 1300 | E17: 1300 | H17: "Metode for beregning av energiforbruk og klimagassutslipp for vegprosjekter", Hammervold (2009) s. 32, antar samme type masser som fra vegetasjonsrydding
B18: Materialtykkelser/-mengder
B19: Slitelag tykkelse | C19: m | D19: =IF(F19="",E19,F19) -> 0.045 | E19: 0.045 | H19: Statens Vegvesen håndbok N200
B20: Bindlag tykkelse | C20: m | D20: =IF(F20="",E20,F20) -> 0.035 | E20: 0.035 | H20: Statens Vegvesen håndbok N200
B21: Bærelag tykkelse | C21: m | D21: 0.13 | E21: 0.13 | H21: Statens Vegvesen håndbok N200
B22: Forsterkningslag tykkelse | C22: m | D22: 0.45 | E22: 0.45 | H22: Statens Vegvesen håndbok N200
B23: Frostsikringslag vei tykkelse | C23: m | D23: 1.74 | E23: 1.74 | H23: Statens Vegvesen håndbok N200
B24: Topeka tykkelse | C24: m | D24: 0.012 | E24: 0.012 | H24: Statens Vegvesen håndbok R762
B25: Frostsikringselement tunnel tykkelse | C25: m | D25: 0.2 | E25: 0.2 | H25: EPD XPS-/betongelement Ølen betong
B26: Betongtykkelse til betongbru | C26: m | D26: =IF(F26="",E26,F26) -> 1.29 | E26: 1.29 | H26: "Metode for beregning av energiforbruk og klimagassutslipp for vegprosjekter", Hammervold (2009) s. 47, gjennomsnitt for samtlige betongbruer, ikke vektet etter areal av bru
B27: Betongtykkelse til stålbru | C27: m | D27: =IF(F27="",E27,F27) -> 0.743 | E27: 0.743 | H27: "Metode for beregning av energiforbruk og klimagassutslipp for vegprosjekter", Hammervold (2009) s. 47, gjennomsnitt for samtlige stålbruer, ikke vektet etter areal av bru
B28: Armeringsstål til betongbru | C28: kg/m2 | D28: =IF(F28="",E28,F28) -> 231 | E28: 231 | H28: "Metode for beregning av energiforbruk og klimagassutslipp for vegprosjekter", Hammervold (2009) s. 47, gjennomsnitt for samtlige betongbruer, ikke vektet etter areal av bru
B29: Armeringsstål til stålbru | C29: kg/m2 | D29: 125 | E29: 125 | H29: "Metode for beregning av energiforbruk og klimagassutslipp for vegprosjekter", Hammervold (2009) s. 47, gjennomsnitt for samtlige stålbruer, ikke vektet etter areal av bru
B30: Konstruksjonsstål til betongbru | C30: kg/m2 | D30: 0 | E30: 0 | H30: "Metode for beregning av energiforbruk og klimagassutslipp for vegprosjekter", Hammervold (2009) s. 47, gjennomsnitt for samtlige betongbruer, ikke vektet etter areal av bru
B31: Konstruksjonsstål til stålbru | C31: kg/m2 | D31: 219 | E31: 219 | H31: "Metode for beregning av energiforbruk og klimagassutslipp for vegprosjekter", Hammervold (2009) s. 47, gjennomsnitt for samtlige stålbruer, ikke vektet etter areal av bru
B32: Sikringsbolter til tunnel | C32: kg/m | D32: 44 | E32: 44 | H32: "Metode for beregning av energiforbruk og klimagassutslipp for vegprosjekter", Hammervold (2009) s. 8 i vedlegg 1
B33: Sprengstoff til sprengning i dagen | C33: kg/fm3 | D33: 1 | E33: 1 | G33: EFFEKT og Metoderapport oppgir ikke kilden de har brukt, og verdien bør derfor sokumenteres bedre i samtlige verktøy | H33: "Metode for beregning av energiforbruk og klimagassutslipp for vegprosjekter", Hammervold (2009) og dokumentasjon EFFEKT 2015 (SVV Rapport 358)
B34: Sprengstoff til sprengning tunnel | C34: kg/fm3 | D34: 2.2 | E34: 2.2 | G34: EFFEKT og Metoderapport oppgir ikke kilden de har brukt, og verdien bør derfor sokumenteres bedre i samtlige verktøy | H34: "Metode for beregning av energiforbruk og klimagassutslipp for vegprosjekter", Hammervold (2009) og dokumentasjon EFFEKT 2015 (SVV Rapport 358)
B35: Kulverter
B36: Betongtykkelse kulvertelementer | C36: m | D36: =IF(F36="",E36,F36) -> 0.24 | E36: 0.24 | H36: Prefabrikkerte kulvertelementer, Statens vegvesen | I36: https://www.vegvesen.no/fag/teknologi/bruer/bruprosjektering/prefabrikkerte-kulvertelementer/_attachment/1361322?_ts=15d081de438&fast_title=Grunnlag%2C+beregningsforutsetninger+og+eksempel.pdf
B37: Høyde på kulverter | C37: m | D37: =IF(F37="",E37,F37) -> 3.2 | E37: 3.2 | H37: Prefabrikkerte kulvertelementer, Statens vegvesen | I37: https://www.vegvesen.no/fag/teknologi/bruer/bruprosjektering/prefabrikkerte-kulvertelementer/_attachment/1361322?_ts=15d081de438&fast_title=Grunnlag%2C+beregningsforutsetninger+og+eksempel.pdf
B38: Forholdstall mellom betong og armering | C38: kg/kg | D38: 13 | E38: 13 | H38: Tar utgangspunkt i "Metode for beregning av energiforbruk og klimagassutslipp for vegprosjekter", Hammervold (2009), s. 8 i Vedlegg 1, der andelen betong er 13 ganger høyere enn andelen armering for samme volum.
B39: Arbeidshastighet tårnkran | C39: h/stk | D39: =IF(F39="",E39,F39) -> 18 | E39: 18 | H39: NIRAS' erfaringstall
B40: Tunneler | M40: Tunnelprofil | N40: Teoretisk sprengningsprofil | P40: Normalprofil | R40: Veibredder
B41: Tunnelprofil enkeltløp | C41: - | D41: =IF(F41="",E41,F41) -> 10.5 | E41: 10.5 | H41: Typisk tunnelprofil | N41: Areal [m2] | O41: Buelengde [m] | P41: Areal [m2] | Q41: Buelengde [m] | R41: Kjørebane [m] | S41: Skulder [m]
B42: Tunnelprofil dobbeltløp | C42: - | D42: =IF(F42="",E42,F42) -> 9.5 | E42: 9.5 | H42: Typisk tunnelprofil | M42: 4 | N42: 20.32 | O42: 12.13 | P42: 13.57 | Q42: 9.85 | R42: 3 | S42: 1
B43: Betongmengde per portal enkeltløp | C43: m3/stk | D43: 357.6140684 | E43: =VLOOKUP(D41,M42:O52,3,FALSE)/O46*340 -> 357.6140684 | H43: "Metode for beregning av energiforbruk og klimagassutslipp for vegprosjekter", Hammervold (2009), s. 8 i Vedlegg 1. | M43: 5.5 | N43: 39.1 | O43: 17.12 | P43: 29.72 | Q43: 14.55 | R43: 3.5 | S43: 2
B44: Betongmengde per portal dobbeltløp | C44: m3/stk | D44: 340 | E44: =VLOOKUP(D42,M42:O52,3,FALSE)/O46*340 -> 340 | H44: "Metode for beregning av energiforbruk og klimagassutslipp for vegprosjekter", Hammervold (2009), s. 8 i Vedlegg 1. | M44: 7.5 | N44: 51.56 | O44: 18.88 | P44: 40.46 | Q44: 16.3 | R44: 5 | S44: 2.5
B45: Armering per portal enkeltløp | C45: kg/stk | D45: 65211.97719 | E45: =VLOOKUP(D41,M42:O52,3,FALSE)/O46*62000 -> 65211.97719 | H45: "Metode for beregning av energiforbruk og klimagassutslipp for vegprosjekter", Hammervold (2009), s. 8 i Vedlegg 1. | M45: 8.5 | N45: 61.92 | O45: 20.56 | P45: 49.66 | Q45: 17.99 | R45: 6.5 | S45: 2
B46: Armering per portal dobbeltløp | C46: kg/stk | D46: 62000 | E46: =VLOOKUP(D42,M42:O52,3,FALSE)/O46*62000 -> 62000 | H46: Metode for beregning av energiforbruk og klimagassutslipp for vegprosjekter, Hammervold (2009), s. 8 i Vedlegg 1. | M46: 9.5 | N46: 66.62 | O46: 21.04 | P46: 53.61 | Q46: 18.46 | R46: 7 | S46: 2.5
B47: Andel under sjø for enkeltløpstunnel | C47: % | D47: =IF(F47="",E47,F47) -> 0 | E47: 0 | G47: For beregning av strømforbruk vifter og pumper | H47: - | M47: 10.5 | N47: 74.59 | O47: 22.13 | P47: 60.64 | Q47: 19.55 | R47: 8 | S47: 2.5
B48: Andel under sjø for dobbeltløpstunnel | C48: % | D48: =IF(F48="",E48,F48) -> 0 | E48: 0 | G48: For beregning av strømforbruk vifter og pumper | H48: - | M48: 11.5 | N48: 85.92 | O48: 23.75 | P48: 70.89 | Q48: 21.18 | R48: 9.5 | S48: 2
B49: Drift- og vedlikeholdsintervaller | M49: 12.5 | N49: 91.32 | O49: 24.32 | P49: 75.49 | Q49: 21.73 | R49: 10 | S49: 2.5
B50: Utskiftningsintervall reasfaltering | C50: år | D50: =IF(F50="",E50,F50) -> 7 | E50: 7 | H50: NIRAS' erfaringstall | M50: 13 | N50: 95.69 | O50: 24.86 | P50: 79.39 | Q50: 22.28 | R50: 10.5 | S50: 2.5
B51: Utskiftningsintervall autovern | C51: år | D51: 30 | E51: 30 | H51: Håndbok N101 Rekkverk og vegens sideområder (2014) s. 63 | M51: 13.5 | N51: 100.52 | O51: 25.46 | P51: 83.73 | Q51: 22.88 | R51: 11 | S51: 2.5
B52: Utskiftningsintervall lyktestolper | C52: år | D52: 30 | E52: 30 | H52: Håndbok V124 (2014) tabell 4.5 s. 51 | M52: 14 | N52: 104.58 | O52: 25.96 | P52: 87.35 | Q52: 23.88 | R52: 11.5 | S52: 2.5
B53: Driftsintervall kantklipp | C53: år | D53: 1 | E53: 1 | H53: NIRAS' erfaringstall.
B54: Driftsintervall grøfterensk | C54: år | D54: 3 | E54: 3 | H54: NIRAS' erfaringstall.
B55: Driftsintervall feiing | C55: år | D55: 1 | E55: 1 | H55: NIRAS' erfaringstall.
B56: Driftsintervall salting | C56: år | D56: 1 | E56: 1 | H56: NIRAS' erfaringstall.
B57: Driftsintervall brøyting | C57: år | D57: 1 | E57: 1 | H57: NIRAS' erfaringstall.
B58: Reasfaltering, drift og vedlikehold
B59: Andel til reasfaltering | C59: % | D59: =IF(F59="",E59,F59) -> 0.6 | E59: 0.6 | H59: NIRAS' erfaringstall
B60: Elforbruk belysning i dagen | C60: kWh/(stk*år) | D60: =IF(F60="",E60,F60) -> 1600 | E60: 1600 | H60: Samkjøringsprosjekt. Basert på Håndbok V124 - teknisk planlegging av veg- og tunnelbelysning. Forbruk: 400 W, 4100 brenntimer/år. Konservativt, mest representativt for høy ÅDT.
B61: Elforbruk belysning i tunnel | C61: kWh/(lm*år) | D61: =IF(F61="",E61,F61) -> 34 | E61: 34 | H61: Antar likt som for vei i dagen basert på at det er det som gjøres i "Metode for beregning av energiforbruk og klimagassutslipp for vegprosjekter", Hammervold (2009) og dokumentasjon for EFFEKT 6.6
B62: Elforbruk viftedrift oversjøisk enkeltløpstunnel | C62: kWh/(ÅDT*km*år) | D62: =IF(F62="",E62,F62) -> 3.7 | E62: 3.7 | G62: Bruker samme formel som tunnel dobbeltløp | H62: "Metode for beregning av energiforbruk og klimagassutslipp for vegprosjekter", Hammervold (2009) s. 46
B63: Elforbruk viftedrift undersjøisk enkeltløpstunnel | C63: kWh/(ÅDT*km*år) | D63: 14.6 | E63: 14.6 | G63: Bruker samme formel som tunnel dobbeltløp | H63: "Metode for beregning av energiforbruk og klimagassutslipp for vegprosjekter", Hammervold (2009) s. 46
B64: Elforbruk viftedrift oversjøisk dobbeltløpstunnel | C64: kWh/(ÅDT*km*år) | D64: 3.7 | E64: 3.7 | H64: "Metode for beregning av energiforbruk og klimagassutslipp for vegprosjekter", Hammervold (2009) s. 46
B65: Elforbruk viftedrift undersjøisk dobbeltløpstunnel | C65: kWh/(ÅDT*km*år) | D65: 14.6 | E65: 14.6 | H65: "Metode for beregning av energiforbruk og klimagassutslipp for vegprosjekter", Hammervold (2009) s. 46
B66: Elforbruk pumpedrift oversjøisk tunnel | C66: kWh/(m*år) | D66: 0 | E66: 0 | G66: Per tunnelløp | H66: "Metode for beregning av energiforbruk og klimagassutslipp for vegprosjekter", Hammervold (2009) s. 45/46
B67: Elforbruk pumpedrift undersjøisk tunnel | C67: kWh/(m*år) | D67: 18 | E67: 18 | G67: Per tunnelløp | H67: "Metode for beregning av energiforbruk og klimagassutslipp for vegprosjekter", Hammervold (2009) s. 45/46
B68: Saltforbruk | C68: tonn/(km*år) | D68: =IF(F68="",E68,F68) -> 10.5 | E68: 10.5 | H68: Mengderapportering vinteren 2018/2019, SVV rapport 362. Landsgjennomsnitt for riksvei
B69: Km brøyting per km vei per år | C69: km/(km*år) | D69: =IF(F69="",E69,F69) -> 724.7 | E69: 724.7 | H69: Mengderapportering vinteren 2018/2019, SVV rapport 362. Landsgjennomsnitt for riksvei
B70: Km salting per km vei per år for tofelt | C70: km/(km*år) | D70: =IF(F70="",E70,F70) -> 100 | E70: 100 | G70: Salter to felt per tur | H70: NIRAS' erfaringstall.
B71: Renset volum ved grøfterensk | C71: m3/m | D71: =IF(F71="",E71,F71) -> 0.133 | E71: 0.133 | H71: NIRAS' erfaringstall.
B72: Annet
B73: Lyktestolper inkludert fundament | C73: kg/stk | D73: =IF(F73="",E73,F73) -> 227 | E73: 227 | H73: Produsentinformasjon fra Vik Ørsta AS. Produktkatalog 2020 s. 17 og s. 44
B74: Antall lyktestolper per belysningsrekke per km hovedvei | C74: stk/km | D74: =IF('Prosjektbeskrivelse og inndata'!C17="Nei",0,IF(F74="",E74,F74)) -> 21.25 | E74: 21.25 | H74: Kilde belysningsklasse: Håndbok V124 (2014) tabell 3.2, s. 25. Kilde historisk effektforbruk: Håndbok 264 (2008) tabell 7.1 s. 66
B75: Antall lyktestolper per belysningsrekke per km sidevei | C75: stk/km | D75: =IF('Prosjektbeskrivelse og inndata'!C18="Nei",0,IF(F75="",E75,F75)) -> 21.25 | E75: 21.25 | H75: Kilde belysningsklasse: Håndbok V124 (2014) tabell 3.2, s. 25. Kilde historisk effektforbruk: Håndbok 264 (2008) tabell 7.1 s. 66
B76: Autovern | C76: kg/m | D76: =IF(F76="",E76,F76) -> 16.5 | E76: 16.5 | G76: Stålet har krav til fasthet, men gjenvinningsgrad og leverandør kan variere da de handler inn stål i bulk på et stort stålmarked. Ikke noe "finere" kvalitet på stålet til rekkverk enn stålet på autovern. For firefeltsvei må rekkverkmengden ganges med 4. | H76: Forutsetter styrkeklasse H1 ihht. tabell 3.1 og rundskriv om rekkverk 110 km/t. Forenkler til å beregne med samme rekkverkstandard på bruer. Tar utgangspunkt i Vik Ørsta W3 siderekkverk, med vekt 12,5 kg/m + 16 kg per stolpe. jf telefonsamtale representant Ørsta Vik desember 2016. Rekkverket Vik EP H1 CC4 har stolpeavstand på 4 m -> Samlet vekt blir 12,5 + 16/4 = 16,5 kg/m.
B77: Antall kjørefelt enkeltløpstunnel | C77: stk | D77: 2 | E77: 2 | H77: NIRAS' erfaringstall.
B78: Antall kjørefelt dobbeltløpstunnel | C78: stk | D78: 4 | E78: 4 | H78: NIRAS' erfaringstall.
B79: Antall kjørefelt hovedvei | C79: stk | D79: 4 | E79: 4 | H79: NIRAS' erfaringstall.
B80: Antall kjørefelt sidevei | C80: stk | D80: 2 | E80: 2 | H80: NIRAS' erfaringstall.
B81: Antall belysningsrekker hovedvei | C81: stk | D81: 2 | E81: 2 | H81: NIRAS' erfaringstall.
B82: Antall belysningsrekker sidevei | C82: stk | D82: 1 | E82: 1 | H82: NIRAS' erfaringstall.
B83: Antall autovern hovedvei | C83: stk | D83: 4 | E83: 4 | H83: NIRAS' erfaringstall.
B84: Antall autovern sidevei | C84: stk | D84: 2 | E84: 2 | H84: NIRAS' erfaringstall.
B85: Antall grøfter hovedvei | C85: stk | D85: 3 | E85: 3 | H85: NIRAS' erfaringstall.
B86: Antall grøfter sidevei | C86: stk | D86: 2 | E86: 2 | H86: NIRAS' erfaringstall.
B87: Antall veimerkinger hovedvei | C87: stk | D87: 5 | E87: 5 | H87: NIRAS' erfaringstall.
B88: Antall veimerkinger sidevei | C88: stk | D88: 3 | E88: 3 | H88: NIRAS' erfaringstall.
B89: Tykkelse på vegetasjonslag som fjernes | C89: m | D89: 0.3 | E89: 0.3 | H89: NIRAS' erfaringstall.

Sheet Transport og energibehov
B2: Størrelse | C2: Enhet | D2: Verdi benyttet i beregninger | E2: Standardverdi | F2: Prosjekt-spesifikk verdi | G2: Enhet | H2: Verdi benyttet i beregninger | I2: Standardverdi | J2: Prosjekt-spesifikk verdi | K2: Enhet | L2: Andel el/ hydrogen | M2: Andel biodiesel | N2: Andel diesel | O2: Kommentar | P2: Dokumentasjon standardverdi | Q2: Dokumentasjon prosjektspesifikke verdier | R2: Evt. lenke for dokumentasjon
B3: Transportavstand materialer [tur/retur]
B4: Transport i linja | C4: km | D4: =IF(F4="",E4,F4) -> 0.5 | E4: 1 | F4: 0.5 | O4: Disse verdiene er meget generelle og det anbefales å benytte prosjektspesifikke verdier så langt det er mulig | P4: Estimert basert på erfaringstall | Q4: Inndata fra Stian Blindheim, mottatt den 22.10.20
B5: Transport til deponi/lager | C5: km | D5: =IF(F5="",E5,F5) -> 5 | E5: 15 | F5: 5 | P5: Estimert basert på erfaringstall
B6: Transport til pukkverk | C6: km | D6: 15 | E6: 15 | P6: Estimert basert på erfaringstall
B7: Asfaltbetong (Agb) | C7: km | D7: 30 | E7: 30 | P7: Estimert basert på erfaringstall
B8: Asfaltert grus (Ag) | C8: km | D8: 30 | E8: 30 | P8: Estimert basert på erfaringstall
B9: Kult til frost- og forsterkningslag | C9: km | D9: 15 | E9: 15 | P9: Estimert basert på erfaringstall
B10: Betong | C10: km | D10: 40 | E10: 40 | P10: Estimert basert på erfaringstall
B11: Stål | C11: km | D11: 400 | E11: 400 | P11: Estimert basert på erfaringstall
B12: Armeringsstål | C12: km | D12: 400 | E12: 400 | P12: Estimert basert på erfaringstall
B13: Fuktsikring bru (Topeka) | C13: km | D13: 70 | E13: 70 | P13: Estimert basert på erfaringstall
B14: Frostsikringselementer tunnel | C14: km | D14: 70 | E14: 70 | P14: Estimert basert på erfaringstall
B15: Salt | C15: km | D15: 500 | E15: 500 | P15: Samme verdi som VegLCA. Løselig basert på typiske land for import av salt. SaltImportøren importerer hovedsakelig fra Europa og Middelhavsområdet, CG Rieber fra Tyskland, Nederland og Israel og Mesta fra blant annet Tunisia, Italia, Danmark og Marokko. | R15: SaltImport: https://produktguiden.veier24.no/products/62-saltimport-asCG Rieber: https://www.gcrieber-salt.no/markeder/veivedlikehold/ Mesta: https://www.miljoklagenemnda.no/assets/files/Sak_2014_2_mesta.pdf
B16: Energiforbruk og -kilder massetransport | C16: Diesel (liter pr. km /lastens størrelse i tonn) | G16: Elektrisitet (kWh pr. km /lastens størrelse i tonn) | K16: Fordeling mellom brensler
B17: Massetransport i linja | C17: L/tkm | D17: =IF(F17="",E17,F17) -> 0.02 | E17: 0.02 | G17: kWh/tkm | H17: =IF(J17="",0,J17) -> 0 | I17: Ingen standardverdi | K17: % | L17: 0 | M17: 0.07 | N17: =1-L17-M17 -> 0.93 | O17: Forutsatt lastekapasitet 30 tonn og forbruk 0,6 L/km. Dersom ikke annet er oppgitt, benytt fordelingen 93 % fossil diesel, 7 % biodiesel | P17: NIRAS' erfaringstall.
B18: Massetransport til deponi/lager | C18: L/tkm | D18: =IF(F18="",E18,F18) -> 0.02 | E18: 0.02 | G18: kWh/tkm | H18: =IF(J18="",0,J18) -> 0 | I18: Ingen standardverdi | K18: % | L18: 0 | M18: 0.07 | N18: =1-L18-M18 -> 0.93 | O18: Forutsatt lastekapasitet 30 tonn og forbruk 0,6 L/km. Dersom ikke annet er oppgitt, benytt fordelingen 93 % fossil diesel, 7 % biodiesel | P18: NIRAS' erfaringstall.
B19: Massetransport til pukkverk | C19: L/tkm | D19: 0.02 | E19: 0.02 | G19: kWh/tkm | H19: 0 | I19: Ingen standardverdi | K19: % | L19: 0 | M19: 0.07 | N19: 0.93 | O19: Forutsatt lastekapasitet 30 tonn og forbruk 0,6 L/km. Dersom ikke annet er oppgitt, benytt fordelingen 93 % fossil diesel, 7 % biodiesel | P19: NIRAS' erfaringstall.
B20: Asfaltbetong (Agb) | C20: L/tkm | D20: 0.02 | E20: 0.02 | G20: kWh/tkm | H20: 0 | I20: Ingen standardverdi | K20: % | L20: 0 | M20: 0.07 | N20: 0.93 | O20: Forutsatt lastekapasitet 30 tonn og forbruk 0,6 L/km. Dersom ikke annet er oppgitt, benytt fordelingen 93 % fossil diesel, 7 % biodiesel | P20: NIRAS' erfaringstall.
B21: Asfaltert grus (Ag) | C21: L/tkm | D21: =IF(F21="",E21,F21) -> 0.02 | E21: 0.02 | G21: kWh/tkm | H21: 0 | I21: Ingen standardverdi | K21: % | L21: 0 | M21: 0.07 | N21: 0.93 | O21: Forutsatt lastekapasitet 30 tonn og forbruk 0,6 L/km. Dersom ikke annet er oppgitt, benytt fordelingen 93 % fossil diesel, 7 % biodiesel | P21: NIRAS' erfaringstall.
B22: Kult til frost- og forsterkningslag | C22: L/tkm | D22: 0.02 | E22: 0.02 | G22: kWh/tkm | H22: =IF(J22="",0,J22) -> 0 | I22: Ingen standardverdi | K22: % | L22: 0 | M22: 0.07 | N22: 0.93 | O22: Forutsatt lastekapasitet 30 tonn og forbruk 0,6 L/km. Dersom ikke annet er oppgitt, benytt fordelingen 93 % fossil diesel, 7 % biodiesel | P22: NIRAS' erfaringstall.
B23: Energiforbruk og -kilder materialtransport | C23: Diesel (liter pr. km /lastens størrelse i tonn) | G23: Elektrisitet (kWh pr. km /lastens størrelse i tonn) | K23: Fordeling mellom brensler
B24: Betong | C24: L/tkm | D24: =IF(F24="",E24,F24) -> 0.02 | E24: 0.02 | G24: kWh/tkm | H24: =IF(J24="",0,J24) -> 0 | I24: Ingen standardverdi | K24: % | L24: 0 | M24: 0.07 | N24: 0.93 | O24: Forutsatt lastekapasitet 30 tonn og forbruk 0,6 L/km. Dersom ikke annet er oppgitt, benytt fordelingen 93 % fossil diesel, 7 % biodiesel | P24: NIRAS' erfaringstall.
B25: Stål | C25: L/tkm | D25: =IF(F25="",E25,F25) -> 0.02 | E25: 0.02 | G25: kWh/tkm | H25: =IF(J25="",0,J25) -> 0 | I25: Ingen standardverdi | K25: % | L25: 0 | M25: 0.07 | N25: 0.93 | O25: Forutsatt lastekapasitet 30 tonn og forbruk 0,6 L/km. Dersom ikke annet er oppgitt, benytt fordelingen 93 % fossil diesel, 7 % biodiesel | P25: NIRAS' erfaringstall.
B26: Armeringsstål | C26: L/tkm | D26: =IF(F26="",E26,F26) -> 0.02 | E26: 0.02 | G26: kWh/tkm | H26: 0 | I26: Ingen standardverdi | K26: % | L26: 0 | M26: 0.07 | N26: 0.93 | O26: Forutsatt lastekapasitet 30 tonn og forbruk 0,6 L/km. Dersom ikke annet er oppgitt, benytt fordelingen 93 % fossil diesel, 7 % biodiesel | P26: NIRAS' erfaringstall.
B27: Topeka | C27: L/tkm | D27: =IF(F27="",E27,F27) -> 0.02 | E27: 0.02 | G27: kWh/tkm | H27: 0 | I27: Ingen standardverdi | K27: % | L27: 0 | M27: 0.07 | N27: 0.93 | O27: Forutsatt lastekapasitet 30 tonn og forbruk 0,6 L/km. Dersom ikke annet er oppgitt, benytt fordelingen 93 % fossil diesel, 7 % biodiesel | P27: NIRAS' erfaringstall.
B28: Frostsikringselementer tunnel | C28: L/tkm | D28: 0.02 | E28: 0.02 | G28: kWh/tkm | H28: 0 | I28: Ingen standardverdi | K28: % | L28: 0 | M28: 0.07 | N28: 0.93 | O28: Forutsatt lastekapasitet 30 tonn og forbruk 0,6 L/km. Dersom ikke annet er oppgitt, benytt fordelingen 93 % fossil diesel, 7 % biodiesel | P28: NIRAS' erfaringstall.
B29: Transport av andre masser/materialer med lastebil | C29: L/tkm | D29: 0.02 | E29: =0.6/30 -> 0.02 | G29: kWh/tkm | H29: =IF(J29="",0,J29) -> 0 | I29: Ingen standardverdi | K29: % | L29: 0 | M29: 0.07 | N29: =1-L29-M29 -> 0.93 | O29: Forutsatt lastekapasitet 30 tonn og forbruk 0,6 L/km. Dersom ikke annet er oppgitt, benytt fordelingen 93 % fossil diesel, 7 % biodiesel | P29: NIRAS' erfaringstall.
B30: Energiforbruk og -kilder anleggsarbeid | C30: Diesel | G30: Elektrisitet | K30: Fordeling mellom brensler
B31: Energiforbruk veivals | C31: L/h | D31: =IF(F31="",E31,F31) -> 3 | E31: 3 | G31: kW | H31: =IF(J31="",0,J31) -> 0 | I31: Ingen standardverdi | K31: % | L31: 0 | M31: 0.07 | N31: =1-M31-L31 -> 0.93 | O31: Dersom ikke annet er oppgitt, benytt fordelingen 93 % fossil diesel, 7 % biodiesel | P31: NIRAS' erfaringstall.
B32: Energiforbruk traktor | C32: L/h | D32: 5 | E32: 5 | G32: kW | H32: =IF(J32="",0,J32) -> 0 | I32: Ingen standardverdi | K32: % | L32: 0 | M32: 0.07 | N32: =1-M32-L32 -> 0.93 | O32: Dersom ikke annet er oppgitt, benytt fordelingen 93 % fossil diesel, 7 % biodiesel | P32: NIRAS' erfaringstall.
B33: Energiforbruk asfaltutlegger | C33: L/h | D33: 3 | E33: 3 | G33: kW | H33: 0 | I33: Ingen standardverdi | K33: % | L33: 0 | M33: 0.07 | N33: 0.93 | O33: Dersom ikke annet er oppgitt, benytt fordelingen 93 % fossil diesel, 7 % biodiesel | P33: NIRAS' erfaringstall.
B34: Energiforbruk gravemaskin | C34: L/h | D34: 20 | E34: 20 | G34: kW | H34: 0 | I34: Ingen standardverdi | K34: % | L34: 0 | M34: 0.07 | N34: 0.93 | O34: Dersom ikke annet er oppgitt, benytt fordelingen 93 % fossil diesel, 7 % biodiesel | P34: NIRAS' erfaringstall.
B35: Energiforbruk grovknuser | C35: L/h | D35: 25 | E35: 25 | G35: kW | H35: 0 | I35: Ingen standardverdi | K35: % | L35: 0 | M35: 0.07 | N35: 0.93 | O35: Dersom ikke annet er oppgitt, benytt fordelingen 93 % fossil diesel, 7 % biodiesel | P35: NIRAS' erfaringstall.
B36: Energiforbruk finknuser | C36: L/h | D36: =IF(F36="",E36,F36) -> 25 | E36: 25 | G36: kW | H36: 0 | I36: Ingen standardverdi | K36: % | L36: 0 | M36: 0.07 | N36: 0.93 | O36: Dersom ikke annet er oppgitt, benytt fordelingen 93 % fossil diesel, 7 % biodiesel | P36: NIRAS' erfaringstall.
B37: Energiforbruk tårnkran til bru og kulvert | C37: L/h | D37: =IF(F37="",0,F37) -> 0 | E37: Ingen standardverdi | G37: kW | H37: =IF(J37="",I37,J37) -> 48.6 | I37: 48.6 | K37: % | L37: 1 | M37: 0 | N37: =1-M37-L37 -> 0 | O37: Dersom ikke annet er oppgitt, benytt 100 % el | P37: Datablad Potain MDT 178 - 54 kVA. Antar PF 0,9.
B38: Energiforbruk veimerking | C38: L/m | D38: =IF(F38="",E38,F38) -> 0.0059 | E38: 0.0059 | G38: kW | H38: =IF(J38="",0,J38) -> 0 | I38: Ingen standardverdi | K38: % | L38: 0 | M38: 0.07 | N38: 0.93 | O38: Dersom ikke annet er oppgitt, benytt fordelingen 93 % fossil diesel, 7 % biodiesel | P38: NIRAS' erfaringstall.
B39: Energiforbruk etablering av grøft | C39: L/m | D39: 40 | E39: 40 | G39: kWh/m | H39: 0 | I39: Ingen standardverdi | K39: % | L39: 0 | M39: 0.07 | N39: 0.93 | O39: Dersom ikke annet er oppgitt, benytt 100 % el | P39: Straume, Krogsæter, NOTAT: Utredning og kravspesifikasjon til EFFEKT 6.6, Del 3: Videreutvikling av Klimamodulen. Lukket grøft til drenering "Grave grøfteprofil, nedsetting kummer, planering for rør i grøft og stikkrenner, omfylling og gjenfylling. 1 maskintime pr meter grøft"
B40: Energiforbruk anleggsarbeid autovern | C40: L/m | D40: 0.4 | E40: 0.4 | G40: kWh/m | H40: =IF(J40="",0,J40) -> 0 | I40: Ingen standardverdi | K40: % | L40: 0 | M40: 0.07 | N40: 0.93 | O40: Dersom ikke annet er oppgitt, benytt fordelingen 93 % fossil diesel, 7 % biodiesel | P40: Antar at aggregat bakpå en lastebil bruker 4 L/t på utsetting av autovern, og at det legges 80 m autovern per dag for fire-felts vei. Én dag defineres som 8 timer. Da får man 32 liter diesel/dag. 32 liter diesel per dag / 80 m autovern per dag => 0,4 liter diesel/m. Tallet er verifisert av Marianne Gjerde i Arvid Gjerde AS, som i mailkommunikasjon den 14.04.20 sier at deres pelerigg bruker 0,42 liter pr meter montert rekkverk i snitt på ett år.
B41: Energiforbruk hjullaster/traktor til kantklipp | C41: L/h | D41: 7.5 | E41: 7.5 | G41: kW | H41: =IF(J41="",0,J41) -> 0 | I41: Ingen standardverdi | K41: % | L41: 0 | M41: 0.07 | N41: =1-M41-L41 -> 0.93 | O41: Verdi burde verifiseres med flere kilder. Dersom ikke annet er oppgitt, benytt fordelingen 93 % fossil diesel, 7 % biodiesel | P41: NIRAS' erfaringstall.
B42: Energiforbruk hjullaster/traktor til feiing | C42: L/h | D42: =IF(F42="",E42,F42) -> 7.5 | E42: 7.5 | G42: kW | H42: =IF(J42="",0,J42) -> 0 | I42: Ingen standardverdi | K42: % | L42: 0 | M42: 0.07 | N42: =1-M42-L42 -> 0.93 | O42: Verdi burde verifiseres med flere kilder. Forbruk er per felt. Dersom ikke annet er oppgitt, benytt fordelingen 93 % fossil diesel, 7 % biodiesel. | P42: NIRAS' erfaringstall.
B43: Energiforbruk saltbil | C43: L/km | D43: 0.64 | E43: 0.64 | G43: kWh/km | H43: =IF(J43="",0,J43) -> 0 | I43: Ingen standardverdi | K43: % | L43: 0 | M43: 0.07 | N43: =1-M43-L43 -> 0.93 | O43: Forbruk er per to felt. Dersom ikke annet er oppgitt, benytt fordelingen 93 % fossil diesel, 7 % biodiesel | P43: Gjennomsnitt for vindervedlikeholdskjøretøy fra "Life cycle assessment of winter road maintenance", Vignisdottir et. Al, The International Journal of Life Cycle Assessment (2020)
B44: Energiforbruk brøytebil | C44: L/km | D44: 0.64 | E44: 0.64 | G44: kWh/km | H44: =IF(J44="",0,J44) -> 0 | I44: Ingen standardverdi | K44: % | L44: 0 | M44: 0.07 | N44: =1-M44-L44 -> 0.93 | O44: Forbruk er per brøyterunde. Dersom ikke annet er oppgitt, benytt fordelingen 93 % fossil diesel, 7 % biodiesel | P44: Gjennomsnitt for vindervedlikeholdskjøretøy fra "Life cycle assessment of winter road maintenance", Vignisdottir et. Al, The International Journal of Life Cycle Assessment (2020)
B45: Arbeidshastighet anleggsmaskiner
B46: Arbeidshastighet veivals | C46: t/h | D46: =IF(F46="",E46,F46) -> 75 | E46: 75 | O46: Faktoren er satt for å få ca. samme dieselforbruk som i VegLCA: 0,04 L/m2 asfalt lagt. | P46: Samkjøringsprosjektet mellom NV-GHG og VegLCA
B47: Arbeidshastighet traktor | C47: t/h | D47: 300 | E47: 300 | P47: NIRAS' erfaringstall.
B48: Arbeidshastighet asfaltutlegger | C48: t/h | D48: 3.75 | E48: 3.75 | O48: Faktoren er satt for å få ca. samme dieselforbruk som i VegLCA: 0,8 L/tonn asfalt lagt. | P48: Samkjøringsprosjektet mellom NV-GHG og VegLCA
B49: Arbeidshastighet gravemaskin | C49: t/h | D49: 150 | E49: 150 | P49: NIRAS' erfaringstall.
B50: Arbeidshastighet grovknuser | C50: t/h | D50: 125 | E50: 125 | P50: NIRAS' erfaringstall.
B51: Arbeidshastighet finknuser | C51: t/h | D51: 250 | E51: 250 | P51: NIRAS' erfaringstall.
B52: Arbeidshastighet kran første 400 m2 av bru | C52: m2/h | D52: 1.666666667 | E52: =400/240 -> 1.666666667 | O52: Verdi burde verifiseres med flere kilder. Store variasjoner avhengig av brutype, fundamenteringsforhold (geologi) og bruens størrelse. Faktoren kan sannsynligvis variere med pluss/minus 60 % avhengig av forholdene | P52: NIRAS' erfaringstall.
B53: Arbeidshastighet kran resterende del av bru | C53: m2/h | D53: 3.333333333 | E53: =400/120 -> 3.333333333 | O53: Verdi burde verifiseres med flere kilder. Store variasjoner avhengig av brutype, fundamenteringsforhold (geologi) og bruens størrelse. Faktoren kan sannsynligvis variere med pluss/minus 60 % avhengig av forholdene | P53: NIRAS' erfaringstall.
B54: Arbeidshastighet kran kulvert | C54: h/stk | D54: 18 | E54: 18 | O54: For en prefabrikert elementkulvert ca. 10 timer. For en plasstøpt ca 25 timer. Bruker 18 timer som et gjennomsnitt. Verdi burde verifiseres med flere kilder. | P54: NIRAS' erfaringstall.
B55: Arbeidshastighet gravemaskin grøfterensk | C55: m/h | D55: 300 | E55: 300 | P55: NIRAS' erfaringstall.
B56: Arbeidshastighet traktor/hjullaster feiing | C56: m/h | D56: 2000 | E56: 2000 | P56: NIRAS' erfaringstall.
B57: Arbeidshastighet traktor/hjullaster kantklipp | C57: m/h | D57: 7500 | E57: =1000/(8/60) -> 7500 | P57: Arbeidshastighet er gjennomsnitt av verdier oppgitt av Maskinimportøren den 15.04.20, som sier deres traktor til kantklipping bruker ca. 8 min på å klippe 1-1,25 m kant i 1 km

Sheet Utslippsfaktorer
B2: Innsatsfaktor | C2: Enhet | D2: Utslippsfaktor brukt i beregninger | E2: Standard utslippsfaktor | F2: Prosjektspesifikk utslippsfaktor | G2: Kommentar | H2: Dokumentasjon standardverdi | I2: Dokumentasjon prosjektspesifikk verdi
B3: Materialer
B4: Aluminium | C4: kg CO2e/kg | D4: =IF(F4="",E4,F4) -> - | E4: - | G4: Brukes ikke i denne versjonen
B5: Armeringsstål | C5: kg CO2e/kg | D5: =IF(F5="",E5,F5) -> 0.6186 | E5: 0.6186 | H5: Gjennomsnitt av tre EPD'er på det norske markedet; NEPD-2084-939-EN (A1-A4), NEPD-2083-939-EN (A1-A4) og NEPD-2082-939-EN (A1-A4)
B6: Asfaltgrusbetong (Agb) | C6: kg CO2e/kg | D6: 0.0512 | E6: 0.0512 | H6: NEPD-1390-456-NO (A1-A3). Bransjegjennomsnitt, EPD utarbeidet av EBA (Entreprenørforeningen Bygg og Anlegg) v/Lemminkainen Norge AS, Skanska Asfalt AS, Peab Asfalt AS, NCC Industry og Veidekke Industri AS
B7: Skjelettasfalt (Ska) | C7: kg CO2e/kg | D7: =IF(F7="",E7,F7) -> 0.0657 | E7: 0.0657 | H7: NEPD-1391-456-NO (A1-A3). Bransjegjennomsnitt, EPD utarbeidet av EBA (Entreprenørforeningen Bygg og Anlegg) v/Lemminkainen Norge AS, Skanska Asfalt AS, Peab Asfalt AS, NCC Industry og Veidekke Industri AS
B8: Asfaltgrus (Ag) | C8: kg CO2e/kg | D8: 0.0488 | E8: 0.0488 | H8: NEPD-1489-456-NO (A1-A3). Bransjegjennomsnitt, EPD utarbeidet av EBA (Entreprenørforeningen Bygg og Anlegg) v/Lemminkainen Norge AS, Skanska Asfalt AS, Peab Asfalt AS, NCC Industry og Veidekke Industri AS
B9: Topeka | C9: kg CO2e/kg | D9: =IF(F9="",E9,F9) -> 0.184 | E9: 0.184 | H9: Antatt likt som støpeasfalt; 'Mastic asphalt' hentet fra Ecoinvent v3 med nordisk el-mix 2012-2016 i produksjon. Som VegLCA.
B10: Betong | C10: kg CO2e/kg | D10: 0.1375 | E10: 0.1375 | G10: Baseline: =410/2400 | H10: NB 37 (2019). Bransjereferanse for B35. NB 37 sier at ved omgjøring fra kg/kg til kg/m3 skal densiteten 2400 kg/m3 brukes.
B11: PE-skum | C11: kg CO2e/kg | D11: - | E11: - | G11: Brukes ikke i denne versjonen
B12: Salt | C12: kg CO2e/kg | D12: 0.179 | E12: 0.179 | H12: EcoInvent; "Sodium chloride, powder {RER} | production | Conseq, U"
B13: Sprøytebetong | C13: kg CO2e/kg | D13: 0.2524 | E13: 0.2524 | H13: NEPD-1509-512-EN (A1-A4).
B14: Stål | C14: kg CO2e/kg | D14: 2.1235 | E14: 2.1235 | H14: Gjennomsnitt av tre EPD'er på det norske markedet; NEPD-1914-839-EN (A1-A4), NEPD-1915-839-EN (A1-A4) og NEPD-1928-851-SE (A1-A4)
B15: XPS | C15: kg CO2e/kg | D15: 3.711 | E15: 3.711 | H15: NEPD-396-274-NO (A1-A4). Sundolitt, Brødrene Sunde AS. 33mm tykkelse
B16: XPS/betongelement | C16: kg CO2e/m2 | D16: 66.815 | E16: 66.815 | H16: NEPD-351-243-NO (A1-A4). Elementene består av 150mm betong og 50mm XPS kpa isolasjon, til sammen 200mm tykkelse.
B17: Energi
B18: Biodiesel (WTT) | C18: kg CO2e/liter | D18: 1.92 | E18: 1.92 | H18: NS-EN 16258:2012. Tabell A.1 Biodiesel "well to tank"
B19: Fossil diesel forbrenning (TTW) | C19: kg CO2e/liter | D19: 2.67 | E19: 2.67 | H19: NS-EN 16258:2012. Tabell A.1 Diesel "tank to wheel"
B20: Fossil diesel (WTW) | C20: kg CO2e/liter | D20: 3.24 | E20: 3.24 | H20: NS-EN 16258-2012. Tabell A.1 Diesel "well to wheel"
B21: Sprengstoff (CTG) | C21: kg CO2e/kg | D21: 2.678 | E21: 2.678 | H21: NEPD-1591-615-EN (A1-A4).
B22: Sprengstoff detonering | C22: kg CO2e/kg | D22: 0.152 | E22: 0.152 | H22: NEPD-1591-615-EN (A5-2).
B23: Elektrisitet anleggsfase, norsk miks | C23: kg CO2e/kWh | D23: =IF(F23="",E23,F23) -> 0.02638 | E23: 0.02638 | H23: NS 3720:2018. Utslipp for år 2020 er estimert med utgangspunkt i utslipp for 2015 der det antas at den årlige reduksjonen er lineær frem mot 2050.
B24: Elektrisitet 55 år, europeisk miks | C24: kg CO2e/kWh | D24: =IF(F24="",E24,F24) -> 0.136 | E24: 0.136 | H24: NS 3720:2018. Estimerte utslipp i år 2075.
B25: Arealbruk
B26: Skog - lav bonitet | C26: kg CO2e/m2 | D26: =IF(F26="",E26,F26) -> 60.4 | E26: =12+48.4 -> 60.4 | H26: "Metode for beregning av CO2-utslipp knyttet til arealbeslag ved vegbygging" (Asplan Viak, 2015). Tabell 3
B27: Skog - middels bonitet | C27: kg CO2e/m2 | D27: =IF(F27="",E27,F27) -> 68.7 | E27: =20.3+48.4 -> 68.7 | H27: "Metode for beregning av CO2-utslipp knyttet til arealbeslag ved vegbygging" (Asplan Viak, 2015). Tabell 3
B28: Skog - høy bonitet | C28: kg CO2e/m2 | D28: =IF(F28="",E28,F28) -> 80.3 | E28: =31.9+48.4 -> 80.3 | H28: "Metode for beregning av CO2-utslipp knyttet til arealbeslag ved vegbygging" (Asplan Viak, 2015). Tabell 3
B29: Myr | C29: kg CO2e/m2 | D29: =IF(F29="",E29,F29) -> 201.9 | E29: =201.9 -> 201.9 | H29: "Metode for beregning av CO2-utslipp knyttet til arealbeslag ved vegbygging" (Asplan Viak, 2015). Tabell 3
B30: Jordbruksareal | C30: kg CO2e/m2 | D30: =IF(F30="",E30,F30) -> 55.1 | E30: =55.1 -> 55.1 | H30: "Metode for beregning av CO2-utslipp knyttet til arealbeslag ved vegbygging" (Asplan Viak, 2015). Tabell 3

Sheet Resultat
B3: Tabell 1: Utslipp over livsløpet i tonn CO2e
B4: Kategori | C4: Totalt over analyseperiode | D4: År i livsløpet
D5: 0 | E5: 1 | F5: 2 | G5: 3 | H5: 4 | I5: 5 | J5: 6 | K5: 7 | L5: 8 | M5: 9 | N5: 10 | O5: 11 | P5: 12 | Q5: 13 | R5: 14 | S5: 15 | T5: 16 | U5: 17 | V5: 18 | W5: 19 | X5: 20 | Y5: 21 | Z5: 22 | AA5: 23 | AB5: 24 | AC5: 25 | AD5: 26 | AE5: 27 | AF5: 28 | AG5: 29 | AH5: 30 | AI5: 31 | AJ5: 32 | AK5: 33 | AL5: 34 | AM5: 35 | AN5: 36 | AO5: 37 | AP5: 38 | AQ5: 39 | AR5: 40 | AS5: 41 | AT5: 42 | AU5: 43 | AV5: 44 | AW5: 45 | AX5: 46 | AY5: 47 | AZ5: 48 | BA5: 49 | BB5: 50 | BC5: 51 | BD5: 52 | BE5: 53 | BF5: 54 | BG5: 55 | BH5: 56 | BI5: 57 | BJ5: 58 | BK5: 59 | BL5: 60
B6: Byggefase | C6: =SUMIF($D$5:$BL$5,"<=" & 'Prosjektbeskrivelse og inndata'!$C$14,D6:BL6) -> 5216.771707 | D6: =IFERROR(SUMIF(Beregninger!G:G,"År 0",Beregninger!M:M),"Ikke definert") -> 5216.771707 | E6: 0 | F6: 0 | G6: 0 | H6: 0 | I6: 0 | J6: 0 | K6: 0 | L6: 0 | M6: 0 | N6: 0 | O6: 0 | P6: 0 | Q6: 0 | R6: 0 | S6: 0 | T6: 0 | U6: 0 | V6: 0 | W6: 0 | X6: 0 | Y6: 0 | Z6: 0 | AA6: 0 | AB6: 0 | AC6: 0 | AD6: 0 | AE6: 0 | AF6: 0 | AG6: 0 | AH6: 0 | AI6: 0 | AJ6: 0 | AK6: 0 | AL6: 0 | AM6: 0 | AN6: 0 | AO6: 0 | AP6: 0 | AQ6: 0 | AR6: 0 | AS6: 0 | AT6: 0 | AU6: 0 | AV6: 0 | AW6: 0 | AX6: 0 | AY6: 0 | AZ6: 0 | BA6: 0 | BB6: 0 | BC6: 0 | BD6: 0 | BE6: 0 | BF6: 0 | BG6: 0 | BH6: 0 | BI6: 0 | BJ6: 0 | BK6: 0 | BL6: 0
B7: Arealbruk | C7: =SUMIF($D$5:$BL$5,"<=" & 'Prosjektbeskrivelse og inndata'!$C$14,D7:BL7) -> 7425.555636 | D7: =C147 -> 7425.555636 | E7: 0 | F7: 0 | G7: 0 | H7: 0 | I7: 0 | J7: 0 | K7: 0 | L7: 0 | M7: 0 | N7: 0 | O7: 0 | P7: 0 | Q7: 0 | R7: 0 | S7: 0 | T7: 0 | U7: 0 | V7: 0 | W7: 0 | X7: 0 | Y7: 0 | Z7: 0 | AA7: 0 | AB7: 0 | AC7: 0 | AD7: 0 | AE7: 0 | AF7: 0 | AG7: 0 | AH7: 0 | AI7: 0 | AJ7: 0 | AK7: 0 | AL7: 0 | AM7: 0 | AN7: 0 | AO7: 0 | AP7: 0 | AQ7: 0 | AR7: 0 | AS7: 0 | AT7: 0 | AU7: 0 | AV7: 0 | AW7: 0 | AX7: 0 | AY7: 0 | AZ7: 0 | BA7: 0 | BB7: 0 | BC7: 0 | BD7: 0 | BE7: 0 | BF7: 0 | BG7: 0 | BH7: 0 | BI7: 0 | BJ7: 0 | BK7: 0 | BL7: 0
B8: Drift | C8: =SUMIF($D$5:$BL$5,"<=" & 'Prosjektbeskrivelse og inndata'!$C$14,D8:BL8) -> 4195.819886 | D8: 0 | E8: =SUMIFS(Beregninger!O$126:O$311,Beregninger!$H$126:$H$311,Resultat!$B8) -> 68.58259522 | F8: =SUMIFS(Beregninger!P$126:P$311,Beregninger!$H$126:$H$311,Resultat!$B8) -> 68.58259522 | G8: =SUMIFS(Beregninger!Q$126:Q$311,Beregninger!$H$126:$H$311,Resultat!$B8) -> 72.62580388 | H8: =SUMIFS(Beregninger!R$126:R$311,Beregninger!$H$126:$H$311,Resultat!$B8) -> 68.58259522 | I8: =SUMIFS(Beregninger!S$126:S$311,Beregninger!$H$126:$H$311,Resultat!$B8) -> 68.58259522 | J8: =SUMIFS(Beregninger!T$126:T$311,Beregninger!$H$126:$H$311,Resultat!$B8) -> 72.62580388 | K8: =SUMIFS(Beregninger!U$126:U$311,Beregninger!$H$126:$H$311,Resultat!$B8) -> 68.58259522 | L8: =SUMIFS(Beregninger!V$126:V$311,Beregninger!$H$126:$H$311,Resultat!$B8) -> 68.58259522 | M8: =SUMIFS(Beregninger!W$126:W$311,Beregninger!$H$126:$H$311,Resultat!$B8) -> 72.62580388 | N8: =SUMIFS(Beregninger!X$126:X$311,Beregninger!$H$126:$H$311,Resultat!$B8) -> 68.58259522 | O8: =SUMIFS(Beregninger!Y$126:Y$311,Beregninger!$H$126:$H$311,Resultat!$B8) -> 68.58259522 | P8: =SUMIFS(Beregninger!Z$126:Z$311,Beregninger!$H$126:$H$311,Resultat!$B8) -> 72.62580388 | Q8: =SUMIFS(Beregninger!AA$126:AA$311,Beregninger!$H$126:$H$311,Resultat!$B8) -> 68.58259522 | R8: =SUMIFS(Beregninger!AB$126:AB$311,Beregninger!$H$126:$H$311,Resultat!$B8) -> 68.58259522 | S8: =SUMIFS(Beregninger!AC$126:AC$311,Beregninger!$H$126:$H$311,Resultat!$B8) -> 72.62580388 | T8: =SUMIFS(Beregninger!AD$126:AD$311,Beregninger!$H$126:$H$311,Resultat!$B8) -> 68.58259522 | U8: =SUMIFS(Beregninger!AE$126:AE$311,Beregninger!$H$126:$H$311,Resultat!$B8) -> 68.58259522 | V8: =SUMIFS(Beregninger!AF$126:AF$311,Beregninger!$H$126:$H$311,Resultat!$B8) -> 72.62580388 | W8: =SUMIFS(Beregninger!AG$126:AG$311,Beregninger!$H$126:$H$311,Resultat!$B8) -> 68.58259522 | X8: =SUMIFS(Beregninger!AH$126:AH$311,Beregninger!$H$126:$H$311,Resultat!$B8) -> 68.58259522 | Y8: =SUMIFS(Beregninger!AI$126:AI$311,Beregninger!$H$126:$H$311,Resultat!$B8) -> 72.62580388 | Z8: =SUMIFS(Beregninger!AJ$126:AJ$311,Beregninger!$H$126:$H$311,Resultat!$B8) -> 68.58259522 | AA8: =SUMIFS(Beregninger!AK$126:AK$311,Beregninger!$H$126:$H$311,Resultat!$B8) -> 68.58259522 | AB8: =SUMIFS(Beregninger!AL$126:AL$311,Beregninger!$H$126:$H$311,Resultat!$B8) -> 72.62580388 | AC8: =SUMIFS(Beregninger!AM$126:AM$311,Beregninger!$H$126:$H$311,Resultat!$B8) -> 68.58259522 | AD8: =SUMIFS(Beregninger!AN$126:AN$311,Beregninger!$H$126:$H$311,Resultat!$B8) -> 68.58259522 | AE8: =SUMIFS(Beregninger!AO$126:AO$311,Beregninger!$H$126:$H$311,Resultat!$B8) -> 72.62580388 | AF8: =SUMIFS(Beregninger!AP$126:AP$311,Beregninger!$H$126:$H$311,Resultat!$B8) -> 68.58259522 | AG8: =SUMIFS(Beregninger!AQ$126:AQ$311,Beregninger!$H$126:$H$311,Resultat!$B8) -> 68.58259522 | AH8: =SUMIFS(Beregninger!AR$126:AR$311,Beregninger!$H$126:$H$311,Resultat!$B8) -> 72.62580388 | AI8: =SUMIFS(Beregninger!AS$126:AS$311,Beregninger!$H$126:$H$311,Resultat!$B8) -> 68.58259522 | AJ8: =SUMIFS(Beregninger!AT$126:AT$311,Beregninger!$H$126:$H$311,Resultat!$B8) -> 68.58259522 | AK8: =SUMIFS(Beregninger!AU$126:AU$311,Beregninger!$H$126:$H$311,Resultat!$B8) -> 72.62580388 | AL8: =SUMIFS(Beregninger!AV$126:AV$311,Beregninger!$H$126:$H$311,Resultat!$B8) -> 68.58259522 | AM8: =SUMIFS(Beregninger!AW$126:AW$311,Beregninger!$H$126:$H$311,Resultat!$B8) -> 68.58259522 | AN8: =SUMIFS(Beregninger!AX$126:AX$311,Beregninger!$H$126:$H$311,Resultat!$B8) -> 72.62580388 | AO8: =SUMIFS(Beregninger!AY$126:AY$311,Beregninger!$H$126:$H$311,Resultat!$B8) -> 68.58259522 | AP8: =SUMIFS(Beregninger!AZ$126:AZ$311,Beregninger!$H$126:$H$311,Resultat!$B8) -> 68.58259522 | AQ8: =SUMIFS(Beregninger!BA$126:BA$311,Beregninger!$H$126:$H$311,Resultat!$B8) -> 72.62580388 | AR8: =SUMIFS(Beregninger!BB$126:BB$311,Beregninger!$H$126:$H$311,Resultat!$B8) -> 68.58259522 | AS8: =SUMIFS(Beregninger!BC$126:BC$311,Beregninger!$H$126:$H$311,Resultat!$B8) -> 68.58259522 | AT8: =SUMIFS(Beregninger!BD$126:BD$311,Beregninger!$H$126:$H$311,Resultat!$B8) -> 72.62580388 | AU8: =SUMIFS(Beregninger!BE$126:BE$311,Beregninger!$H$126:$H$311,Resultat!$B8) -> 68.58259522 | AV8: =SUMIFS(Beregninger!BF$126:BF$311,Beregninger!$H$126:$H$311,Resultat!$B8) -> 68.58259522 | AW8: =SUMIFS(Beregninger!BG$126:BG$311,Beregninger!$H$126:$H$311,Resultat!$B8) -> 72.62580388 | AX8: =SUMIFS(Beregninger!BH$126:BH$311,Beregninger!$H$126:$H$311,Resultat!$B8) -> 68.58259522 | AY8: =SUMIFS(Beregninger!BI$126:BI$311,Beregninger!$H$126:$H$311,Resultat!$B8) -> 68.58259522 | AZ8: =SUMIFS(Beregninger!BJ$126:BJ$311,Beregninger!$H$126:$H$311,Resultat!$B8) -> 72.62580388 | BA8: =SUMIFS(Beregninger!BK$126:BK$311,Beregninger!$H$126:$H$311,Resultat!$B8) -> 68.58259522 | BB8: =SUMIFS(Beregninger!BL$126:BL$311,Beregninger!$H$126:$H$311,Resultat!$B8) -> 68.58259522 | BC8: =SUMIFS(Beregninger!BM$126:BM$311,Beregninger!$H$126:$H$311,Resultat!$B8) -> 72.62580388 | BD8: =SUMIFS(Beregninger!BN$126:BN$311,Beregninger!$H$126:$H$311,Resultat!$B8) -> 68.58259522 | BE8: =SUMIFS(Beregninger!BO$126:BO$311,Beregninger!$H$126:$H$311,Resultat!$B8) -> 68.58259522 | BF8: =SUMIFS(Beregninger!BP$126:BP$311,Beregninger!$H$126:$H$311,Resultat!$B8) -> 72.62580388 | BG8: =SUMIFS(Beregninger!BQ$126:BQ$311,Beregninger!$H$126:$H$311,Resultat!$B8) -> 68.58259522 | BH8: =SUMIFS(Beregninger!BR$126:BR$311,Beregninger!$H$126:$H$311,Resultat!$B8) -> 68.58259522 | BI8: =SUMIFS(Beregninger!BS$126:BS$311,Beregninger!$H$126:$H$311,Resultat!$B8) -> 72.62580388 | BJ8: =SUMIFS(Beregninger!BT$126:BT$311,Beregninger!$H$126:$H$311,Resultat!$B8) -> 68.58259522 | BK8: =SUMIFS(Beregninger!BU$126:BU$311,Beregninger!$H$126:$H$311,Resultat!$B8) -> 68.58259522 | BL8: =SUMIFS(Beregninger!BV$126:BV$311,Beregninger!$H$126:$H$311,Resultat!$B8) -> 72.62580388
B9: Vedlikehold | C9: =SUMIF($D$5:$BL$5,"<=" & 'Prosjektbeskrivelse og inndata'!$C$14,D9:BL9) -> 1656.623975 | D9: 0 | E9: =SUMIFS(Beregninger!O$126:O$311,Beregninger!$H$126:$H$311,Resultat!$B9) -> 0 | F9: =SUMIFS(Beregninger!P$126:P$311,Beregninger!$H$126:$H$311,Resultat!$B9) -> 0 | G9: =SUMIFS(Beregninger!Q$126:Q$311,Beregninger!$H$126:$H$311,Resultat!$B9) -> 0 | H9: =SUMIFS(Beregninger!R$126:R$311,Beregninger!$H$126:$H$311,Resultat!$B9) -> 0 | I9: =SUMIFS(Beregninger!S$126:S$311,Beregninger!$H$126:$H$311,Resultat!$B9) -> 0 | J9: =SUMIFS(Beregninger!T$126:T$311,Beregninger!$H$126:$H$311,Resultat!$B9) -> 0 | K9: =SUMIFS(Beregninger!U$126:U$311,Beregninger!$H$126:$H$311,Resultat!$B9) -> 0 | L9: =SUMIFS(Beregninger!V$126:V$311,Beregninger!$H$126:$H$311,Resultat!$B9) -> 0 | M9: =SUMIFS(Beregninger!W$126:W$311,Beregninger!$H$126:$H$311,Resultat!$B9) -> 0 | N9: =SUMIFS(Beregninger!X$126:X$311,Beregninger!$H$126:$H$311,Resultat!$B9) -> 0 | O9: =SUMIFS(Beregninger!Y$126:Y$311,Beregninger!$H$126:$H$311,Resultat!$B9) -> 0 | P9: =SUMIFS(Beregninger!Z$126:Z$311,Beregninger!$H$126:$H$311,Resultat!$B9) -> 0 | Q9: =SUMIFS(Beregninger!AA$126:AA$311,Beregninger!$H$126:$H$311,Resultat!$B9) -> 0 | R9: =SUMIFS(Beregninger!AB$126:AB$311,Beregninger!$H$126:$H$311,Resultat!$B9) -> 0 | S9: =SUMIFS(Beregninger!AC$126:AC$311,Beregninger!$H$126:$H$311,Resultat!$B9) -> 0 | T9: =SUMIFS(Beregninger!AD$126:AD$311,Beregninger!$H$126:$H$311,Resultat!$B9) -> 0 | U9: =SUMIFS(Beregninger!AE$126:AE$311,Beregninger!$H$126:$H$311,Resultat!$B9) -> 0 | V9: =SUMIFS(Beregninger!AF$126:AF$311,Beregninger!$H$126:$H$311,Resultat!$B9) -> 0 | W9: =SUMIFS(Beregninger!AG$126:AG$311,Beregninger!$H$126:$H$311,Resultat!$B9) -> 0 | X9: =SUMIFS(Beregninger!AH$126:AH$311,Beregninger!$H$126:$H$311,Resultat!$B9) -> 0 | Y9: =SUMIFS(Beregninger!AI$126:AI$311,Beregninger!$H$126:$H$311,Resultat!$B9) -> 0 | Z9: =SUMIFS(Beregninger!AJ$126:AJ$311,Beregninger!$H$126:$H$311,Resultat!$B9) -> 0 | AA9: =SUMIFS(Beregninger!AK$126:AK$311,Beregninger!$H$126:$H$311,Resultat!$B9) -> 0 | AB9: =SUMIFS(Beregninger!AL$126:AL$311,Beregninger!$H$126:$H$311,Resultat!$B9) -> 0 | AC9: =SUMIFS(Beregninger!AM$126:AM$311,Beregninger!$H$126:$H$311,Resultat!$B9) -> 0 | AD9: =SUMIFS(Beregninger!AN$126:AN$311,Beregninger!$H$126:$H$311,Resultat!$B9) -> 0 | AE9: =SUMIFS(Beregninger!AO$126:AO$311,Beregninger!$H$126:$H$311,Resultat!$B9) -> 0 | AF9: =SUMIFS(Beregninger!AP$126:AP$311,Beregninger!$H$126:$H$311,Resultat!$B9) -> 0 | AG9: =SUMIFS(Beregninger!AQ$126:AQ$311,Beregninger!$H$126:$H$311,Resultat!$B9) -> 0 | AH9: =SUMIFS(Beregninger!AR$126:AR$311,Beregninger!$H$126:$H$311,Resultat!$B9) -> 828.3119874 | AI9: =SUMIFS(Beregninger!AS$126:AS$311,Beregninger!$H$126:$H$311,Resultat!$B9) -> 0 | AJ9: =SUMIFS(Beregninger!AT$126:AT$311,Beregninger!$H$126:$H$311,Resultat!$B9) -> 0 | AK9: =SUMIFS(Beregninger!AU$126:AU$311,Beregninger!$H$126:$H$311,Resultat!$B9) -> 0 | AL9: =SUMIFS(Beregninger!AV$126:AV$311,Beregninger!$H$126:$H$311,Resultat!$B9) -> 0 | AM9: =SUMIFS(Beregninger!AW$126:AW$311,Beregninger!$H$126:$H$311,Resultat!$B9) -> 0 | AN9: =SUMIFS(Beregninger!AX$126:AX$311,Beregninger!$H$126:$H$311,Resultat!$B9) -> 0 | AO9: =SUMIFS(Beregninger!AY$126:AY$311,Beregninger!$H$126:$H$311,Resultat!$B9) -> 0 | AP9: =SUMIFS(Beregninger!AZ$126:AZ$311,Beregninger!$H$126:$H$311,Resultat!$B9) -> 0 | AQ9: =SUMIFS(Beregninger!BA$126:BA$311,Beregninger!$H$126:$H$311,Resultat!$B9) -> 0 | AR9: =SUMIFS(Beregninger!BB$126:BB$311,Beregninger!$H$126:$H$311,Resultat!$B9) -> 0 | AS9: =SUMIFS(Beregninger!BC$126:BC$311,Beregninger!$H$126:$H$311,Resultat!$B9) -> 0 | AT9: =SUMIFS(Beregninger!BD$126:BD$311,Beregninger!$H$126:$H$311,Resultat!$B9) -> 0 | AU9: =SUMIFS(Beregninger!BE$126:BE$311,Beregninger!$H$126:$H$311,Resultat!$B9) -> 0 | AV9: =SUMIFS(Beregninger!BF$126:BF$311,Beregninger!$H$126:$H$311,Resultat!$B9) -> 0 | AW9: =SUMIFS(Beregninger!BG$126:BG$311,Beregninger!$H$126:$H$311,Resultat!$B9) -> 0 | AX9: =SUMIFS(Beregninger!BH$126:BH$311,Beregninger!$H$126:$H$311,Resultat!$B9) -> 0 | AY9: =SUMIFS(Beregninger!BI$126:BI$311,Beregninger!$H$126:$H$311,Resultat!$B9) -> 0 | AZ9: =SUMIFS(Beregninger!BJ$126:BJ$311,Beregninger!$H$126:$H$311,Resultat!$B9) -> 0 | BA9: =SUMIFS(Beregninger!BK$126:BK$311,Beregninger!$H$126:$H$311,Resultat!$B9) -> 0 | BB9: =SUMIFS(Beregninger!BL$126:BL$311,Beregninger!$H$126:$H$311,Resultat!$B9) -> 0 | BC9: =SUMIFS(Beregninger!BM$126:BM$311,Beregninger!$H$126:$H$311,Resultat!$B9) -> 0 | BD9: =SUMIFS(Beregninger!BN$126:BN$311,Beregninger!$H$126:$H$311,Resultat!$B9) -> 0 | BE9: =SUMIFS(Beregninger!BO$126:BO$311,Beregninger!$H$126:$H$311,Resultat!$B9) -> 0 | BF9: =SUMIFS(Beregninger!BP$126:BP$311,Beregninger!$H$126:$H$311,Resultat!$B9) -> 0 | BG9: =SUMIFS(Beregninger!BQ$126:BQ$311,Beregninger!$H$126:$H$311,Resultat!$B9) -> 0 | BH9: =SUMIFS(Beregninger!BR$126:BR$311,Beregninger!$H$126:$H$311,Resultat!$B9) -> 0 | BI9: =SUMIFS(Beregninger!BS$126:BS$311,Beregninger!$H$126:$H$311,Resultat!$B9) -> 0 | BJ9: =SUMIFS(Beregninger!BT$126:BT$311,Beregninger!$H$126:$H$311,Resultat!$B9) -> 0 | BK9: =SUMIFS(Beregninger!BU$126:BU$311,Beregninger!$H$126:$H$311,Resultat!$B9) -> 0 | BL9: =SUMIFS(Beregninger!BV$126:BV$311,Beregninger!$H$126:$H$311,Resultat!$B9) -> 828.3119874
B10: Reasfaltering | C10: =SUMIF($D$5:$BL$5,"<=" & 'Prosjektbeskrivelse og inndata'!$C$14,D10:BL10) -> 1380.479159 | D10: 0 | E10: =SUMIFS(Beregninger!O$126:O$311,Beregninger!$H$126:$H$311,Resultat!$B10) -> 0 | F10: =SUMIFS(Beregninger!P$126:P$311,Beregninger!$H$126:$H$311,Resultat!$B10) -> 0 | G10: =SUMIFS(Beregninger!Q$126:Q$311,Beregninger!$H$126:$H$311,Resultat!$B10) -> 0 | H10: =SUMIFS(Beregninger!R$126:R$311,Beregninger!$H$126:$H$311,Resultat!$B10) -> 0 | I10: =SUMIFS(Beregninger!S$126:S$311,Beregninger!$H$126:$H$311,Resultat!$B10) -> 0 | J10: =SUMIFS(Beregninger!T$126:T$311,Beregninger!$H$126:$H$311,Resultat!$B10) -> 0 | K10: =SUMIFS(Beregninger!U$126:U$311,Beregninger!$H$126:$H$311,Resultat!$B10) -> 172.5598948 | L10: =SUMIFS(Beregninger!V$126:V$311,Beregninger!$H$126:$H$311,Resultat!$B10) -> 0 | M10: =SUMIFS(Beregninger!W$126:W$311,Beregninger!$H$126:$H$311,Resultat!$B10) -> 0 | N10: =SUMIFS(Beregninger!X$126:X$311,Beregninger!$H$126:$H$311,Resultat!$B10) -> 0 | O10: =SUMIFS(Beregninger!Y$126:Y$311,Beregninger!$H$126:$H$311,Resultat!$B10) -> 0 | P10: =SUMIFS(Beregninger!Z$126:Z$311,Beregninger!$H$126:$H$311,Resultat!$B10) -> 0 | Q10: =SUMIFS(Beregninger!AA$126:AA$311,Beregninger!$H$126:$H$311,Resultat!$B10) -> 0 | R10: =SUMIFS(Beregninger!AB$126:AB$311,Beregninger!$H$126:$H$311,Resultat!$B10) -> 172.5598948 | S10: =SUMIFS(Beregninger!AC$126:AC$311,Beregninger!$H$126:$H$311,Resultat!$B10) -> 0 | T10: =SUMIFS(Beregninger!AD$126:AD$311,Beregninger!$H$126:$H$311,Resultat!$B10) -> 0 | U10: =SUMIFS(Beregninger!AE$126:AE$311,Beregninger!$H$126:$H$311,Resultat!$B10) -> 0 | V10: =SUMIFS(Beregninger!AF$126:AF$311,Beregninger!$H$126:$H$311,Resultat!$B10) -> 0 | W10: =SUMIFS(Beregninger!AG$126:AG$311,Beregninger!$H$126:$H$311,Resultat!$B10) -> 0 | X10: =SUMIFS(Beregninger!AH$126:AH$311,Beregninger!$H$126:$H$311,Resultat!$B10) -> 0 | Y10: =SUMIFS(Beregninger!AI$126:AI$311,Beregninger!$H$126:$H$311,Resultat!$B10) -> 172.5598948 | Z10: =SUMIFS(Beregninger!AJ$126:AJ$311,Beregninger!$H$126:$H$311,Resultat!$B10) -> 0 | AA10: =SUMIFS(Beregninger!AK$126:AK$311,Beregninger!$H$126:$H$311,Resultat!$B10) -> 0 | AB10: =SUMIFS(Beregninger!AL$126:AL$311,Beregninger!$H$126:$H$311,Resultat!$B10) -> 0 | AC10: =SUMIFS(Beregninger!AM$126:AM$311,Beregninger!$H$126:$H$311,Resultat!$B10) -> 0 | AD10: =SUMIFS(Beregninger!AN$126:AN$311,Beregninger!$H$126:$H$311,Resultat!$B10) -> 0 | AE10: =SUMIFS(Beregninger!AO$126:AO$311,Beregninger!$H$126:$H$311,Resultat!$B10) -> 0 | AF10: =SUMIFS(Beregninger!AP$126:AP$311,Beregninger!$H$126:$H$311,Resultat!$B10) -> 172.5598948 | AG10: =SUMIFS(Beregninger!AQ$126:AQ$311,Beregninger!$H$126:$H$311,Resultat!$B10) -> 0 | AH10: =SUMIFS(Beregninger!AR$126:AR$311,Beregninger!$H$126:$H$311,Resultat!$B10) -> 0 | AI10: =SUMIFS(Beregninger!AS$126:AS$311,Beregninger!$H$126:$H$311,Resultat!$B10) -> 0 | AJ10: =SUMIFS(Beregninger!AT$126:AT$311,Beregninger!$H$126:$H$311,Resultat!$B10) -> 0 | AK10: =SUMIFS(Beregninger!AU$126:AU$311,Beregninger!$H$126:$H$311,Resultat!$B10) -> 0 | AL10: =SUMIFS(Beregninger!AV$126:AV$311,Beregninger!$H$126:$H$311,Resultat!$B10) -> 0 | AM10: =SUMIFS(Beregninger!AW$126:AW$311,Beregninger!$H$126:$H$311,Resultat!$B10) -> 172.5598948 | AN10: =SUMIFS(Beregninger!AX$126:AX$311,Beregninger!$H$126:$H$311,Resultat!$B10) -> 0 | AO10: =SUMIFS(Beregninger!AY$126:AY$311,Beregninger!$H$126:$H$311,Resultat!$B10) -> 0 | AP10: =SUMIFS(Beregninger!AZ$126:AZ$311,Beregninger!$H$126:$H$311,Resultat!$B10) -> 0 | AQ10: =SUMIFS(Beregninger!BA$126:BA$311,Beregninger!$H$126:$H$311,Resultat!$B10) -> 0 | AR10: =SUMIFS(Beregninger!BB$126:BB$311,Beregninger!$H$126:$H$311,Resultat!$B10) -> 0 | AS10: =SUMIFS(Beregninger!BC$126:BC$311,Beregninger!$H$126:$H$311,Resultat!$B10) -> 0 | AT10: =SUMIFS(Beregninger!BD$126:BD$311,Beregninger!$H$126:$H$311,Resultat!$B10) -> 172.5598948 | AU10: =SUMIFS(Beregninger!BE$126:BE$311,Beregninger!$H$126:$H$311,Resultat!$B10) -> 0 | AV10: =SUMIFS(Beregninger!BF$126:BF$311,Beregninger!$H$126:$H$311,Resultat!$B10) -> 0 | AW10: =SUMIFS(Beregninger!BG$126:BG$311,Beregninger!$H$126:$H$311,Resultat!$B10) -> 0 | AX10: =SUMIFS(Beregninger!BH$126:BH$311,Beregninger!$H$126:$H$311,Resultat!$B10) -> 0 | AY10: =SUMIFS(Beregninger!BI$126:BI$311,Beregninger!$H$126:$H$311,Resultat!$B10) -> 0 | AZ10: =SUMIFS(Beregninger!BJ$126:BJ$311,Beregninger!$H$126:$H$311,Resultat!$B10) -> 0 | BA10: =SUMIFS(Beregninger!BK$126:BK$311,Beregninger!$H$126:$H$311,Resultat!$B10) -> 172.5598948 | BB10: =SUMIFS(Beregninger!BL$126:BL$311,Beregninger!$H$126:$H$311,Resultat!$B10) -> 0 | BC10: =SUMIFS(Beregninger!BM$126:BM$311,Beregninger!$H$126:$H$311,Resultat!$B10) -> 0 | BD10: =SUMIFS(Beregninger!BN$126:BN$311,Beregninger!$H$126:$H$311,Resultat!$B10) -> 0 | BE10: =SUMIFS(Beregninger!BO$126:BO$311,Beregninger!$H$126:$H$311,Resultat!$B10) -> 0 | BF10: =SUMIFS(Beregninger!BP$126:BP$311,Beregninger!$H$126:$H$311,Resultat!$B10) -> 0 | BG10: =SUMIFS(Beregninger!BQ$126:BQ$311,Beregninger!$H$126:$H$311,Resultat!$B10) -> 0 | BH10: =SUMIFS(Beregninger!BR$126:BR$311,Beregninger!$H$126:$H$311,Resultat!$B10) -> 172.5598948 | BI10: =SUMIFS(Beregninger!BS$126:BS$311,Beregninger!$H$126:$H$311,Resultat!$B10) -> 0 | BJ10: =SUMIFS(Beregninger!BT$126:BT$311,Beregninger!$H$126:$H$311,Resultat!$B10) -> 0 | BK10: =SUMIFS(Beregninger!BU$126:BU$311,Beregninger!$H$126:$H$311,Resultat!$B10) -> 0 | BL10: =SUMIFS(Beregninger!BV$126:BV$311,Beregninger!$H$126:$H$311,Resultat!$B10) -> 0
B11: Totalt | C11: =SUMIF($D$5:$BL$5,"<=" & 'Prosjektbeskrivelse og inndata'!$C$14,D11:BL11) -> 19875.25036 | D11: =SUM(D6:D10) -> 12642.32734 | E11: 68.58259522 | F11: 68.58259522 | G11: 72.62580388 | H11: 68.58259522 | I11: 68.58259522 | J11: 72.62580388 | K11: 241.1424901 | L11: 68.58259522 | M11: 72.62580388 | N11: 68.58259522 | O11: 68.58259522 | P11: 72.62580388 | Q11: 68.58259522 | R11: 241.1424901 | S11: 72.62580388 | T11: 68.58259522 | U11: 68.58259522 | V11: 72.62580388 | W11: 68.58259522 | X11: 68.58259522 | Y11: 245.1856987 | Z11: 68.58259522 | AA11: 68.58259522 | AB11: 72.62580388 | AC11: 68.58259522 | AD11: 68.58259522 | AE11: 72.62580388 | AF11: 241.1424901 | AG11: 68.58259522 | AH11: 900.9377913 | AI11: 68.58259522 | AJ11: =SUM(AJ6:AJ10) -> 68.58259522 | AK11: 72.62580388 | AL11: 68.58259522 | AM11: 241.1424901 | AN11: 72.62580388 | AO11: 68.58259522 | AP11: 68.58259522 | AQ11: 72.62580388 | AR11: 68.58259522 | AS11: 68.58259522 | AT11: 245.1856987 | AU11: 68.58259522 | AV11: 68.58259522 | AW11: 72.62580388 | AX11: 68.58259522 | AY11: 68.58259522 | AZ11: 72.62580388 | BA11: 241.1424901 | BB11: 68.58259522 | BC11: 72.62580388 | BD11: 68.58259522 | BE11: 68.58259522 | BF11: 72.62580388 | BG11: 68.58259522 | BH11: 241.1424901 | BI11: 72.62580388 | BJ11: 68.58259522 | BK11: 68.58259522 | BL11: 900.9377913
B38: Tabell 2: Utslipp fordelt på fysiske enheter og fase (i tonn CO2e)
B39: Kategori | C39: Betong | D39: Stål | E39: Armeringsstål | F39: Asfalt | G39: Frostsikring tunnel | H39: Sprengning | I39: Diesel | J39: Salt | K39: Elektrisitet | L39: Arealbruk | M39: Total
B40: Vei i dagen | C40: =SUMIFS(Beregninger!M:M,Beregninger!H:H,B40,Beregninger!I:I,Resultat!C39) -> 0 | D40: =SUMIFS(Beregninger!M:M,Beregninger!H:H,Resultat!B40,Beregninger!I:I,D39) -> 803.1873312 | E40: =SUMIFS(Beregninger!M:M,Beregninger!H:H,Resultat!B40,Beregninger!I:I,E39) -> 0 | F40: =SUMIFS(Beregninger!M:M,Beregninger!H:H,Resultat!B40,Beregninger!I:I,F39) -> 1088.4378 | G40: =SUMIFS(Beregninger!M:M,Beregninger!H:H,Resultat!B40,Beregninger!I:I,G39) -> 0 | H40: =SUMIFS(Beregninger!M:M,Beregninger!H:H,Resultat!B40,Beregninger!I:I,H39) -> 466.95 | I40: =SUMIFS(Beregninger!M:M,Beregninger!H:H,B40,Beregninger!I:I,I39)+SUMIFS(Beregninger!M:M,Beregninger!H:H,B40,Beregninger!I:I,Beregninger!I5) -> 2495.226614 | J40: =SUMIFS(Beregninger!M:M,Beregninger!H:H,Resultat!B40,Beregninger!I:I,J39) -> 0 | K40: =SUMIFS(Beregninger!M:M,Beregninger!H:H,Resultat!B40,Beregninger!I:I,K39) -> 0 | L40: =C147 -> 7425.555636 | M40: =SUM(C40:L40) -> 12279.35738
B41: Tunnel | C41: =SUMIFS(Beregninger!M:M,Beregninger!H:H,B41,Beregninger!I:I,Resultat!C39) -> 0 | D41: =SUMIFS(Beregninger!M:M,Beregninger!H:H,B41,Beregninger!I:I,D39) -> 0 | E41: =SUMIFS(Beregninger!M:M,Beregninger!H:H,B41,Beregninger!I:I,Resultat!E39) -> 0 | F41: =SUMIFS(Beregninger!M:M,Beregninger!H:H,B41,Beregninger!I:I,F39) -> 0 | G41: =SUMIFS(Beregninger!M:M,Beregninger!H:H,B41,Beregninger!I:I,G39) -> 0 | H41: =SUMIFS(Beregninger!M:M,Beregninger!H:H,B41,Beregninger!I:I,H39) -> 0 | I41: =SUMIFS(Beregninger!M:M,Beregninger!H:H,B41,Beregninger!I:I,I39)+SUMIFS(Beregninger!M:M,Beregninger!H:H,B41,Beregninger!I:I,Beregninger!I5) -> 0 | J41: =SUMIFS(Beregninger!M:M,Beregninger!H:H,B41,Beregninger!I:I,J39) -> 0 | K41: =SUMIFS(Beregninger!M:M,Beregninger!H:H,B41,Beregninger!I:I,K39) -> 0 | L41: 0 | M41: =SUM(C41:L41) -> 0
B42: Bru | C42: =SUMIFS(Beregninger!M:M,Beregninger!H:H,B42,Beregninger!I:I,Resultat!C39) -> 160.65918 | D42: =SUMIFS(Beregninger!M:M,Beregninger!H:H,B42,Beregninger!I:I,D39) -> 7.132303502 | E42: =SUMIFS(Beregninger!M:M,Beregninger!H:H,B42,Beregninger!I:I,E39) -> 53.92917684 | F42: =SUMIFS(Beregninger!M:M,Beregninger!H:H,B42,Beregninger!I:I,F39) -> 7.042284 | G42: =SUMIFS(Beregninger!M:M,Beregninger!H:H,B42,Beregninger!I:I,G39) -> 0 | H42: =SUMIFS(Beregninger!M:M,Beregninger!H:H,B42,Beregninger!I:I,H39) -> 0 | I42: =SUMIFS(Beregninger!M:M,Beregninger!H:H,B42,Beregninger!I:I,I39)+SUMIFS(Beregninger!M:M,Beregninger!H:H,B42,Beregninger!I:I,Beregninger!I5) -> 6.403204014 | J42: =SUMIFS(Beregninger!M:M,Beregninger!H:H,B42,Beregninger!I:I,J39) -> 0 | K42: =SUMIFS(Beregninger!M:M,Beregninger!H:H,B42,Beregninger!I:I,K39) -> 0 | L42: 0 | M42: 235.1661484
B43: Kulvert | C43: =SUMIFS(Beregninger!M:M,Beregninger!H:H,B43,Beregninger!I:I,C39) -> 92.664 | D43: =SUMIFS(Beregninger!M:M,Beregninger!H:H,B43,Beregninger!I:I,D39) -> 0 | E43: =SUMIFS(Beregninger!M:M,Beregninger!H:H,B43,Beregninger!I:I,E39) -> 32.068224 | F43: =SUMIFS(Beregninger!M:M,Beregninger!H:H,B43,Beregninger!I:I,F39) -> 0 | G43: =SUMIFS(Beregninger!M:M,Beregninger!H:H,B43,Beregninger!I:I,G39) -> 0 | H43: =SUMIFS(Beregninger!M:M,Beregninger!H:H,B43,Beregninger!I:I,H39) -> 0 | I43: =SUMIFS(Beregninger!M:M,Beregninger!H:H,B43,Beregninger!I:I,I39)+SUMIFS(Beregninger!M:M,Beregninger!H:H,B43,Beregninger!I:I,Beregninger!I5) -> 3.002357146 | J43: =SUMIFS(Beregninger!M:M,Beregninger!H:H,B43,Beregninger!I:I,J39) -> 0 | K43: =SUMIFS(Beregninger!M:M,Beregninger!H:H,B43,Beregninger!I:I,K39) -> 0.069231672 | L43: 0 | M43: 127.8038128
B44: Byggefase | C44: =SUM(C40:C43) -> 253.32318 | D44: =SUM(D40:D43) -> 810.3196348 | E44: =SUM(E40:E43) -> 85.99740084 | F44: 1095.480084 | G44: 0 | H44: 466.95 | I44: 2504.632175 | J44: 0 | K44: 0.069231672 | L44: 0 | M44: =SUM(C44:L44) -> 5216.771707
B45: Arealbruk | C45: 0 | D45: 0 | E45: 0 | F45: 0 | G45: 0 | H45: 0 | I45: 0 | J45: 0 | K45: 0 | L45: =SUM(L40:L43) -> 7425.555636 | M45: =SUM(C45:L45) -> 7425.555636
B46: Byggefase med arealbruk | C46: =SUM(C40:C43) -> 253.32318 | D46: 810.3196348 | E46: 85.99740084 | F46: 1095.480084 | G46: 0 | H46: 466.95 | I46: 2504.632175 | J46: 0 | K46: 0.069231672 | L46: 7425.555636 | M46: =SUM(C46:L46) -> 12642.32734
B47: Drift og vedlikehold totalt | C47: =SUMIF(Beregninger!$I$126:$I$311,Resultat!C39,Beregninger!$N$126:$N$311) -> 0 | D47: =SUMIF(Beregninger!$I$126:$I$311,Resultat!D39,Beregninger!$N$126:$N$311) -> 1620.63927 | E47: =SUMIF(Beregninger!$I$126:$I$311,Resultat!E39,Beregninger!$N$126:$N$311) -> 0 | F47: =SUMIF(Beregninger!$I$126:$I$311,Resultat!F39,Beregninger!$N$126:$N$311) -> 1338.638497 | G47: =SUMIF(Beregninger!$I$126:$I$311,Resultat!G39,Beregninger!$N$126:$N$311) -> 0 | H47: =SUMIF(Beregninger!$I$126:$I$311,Resultat!H39,Beregninger!$N$126:$N$311) -> 0 | I47: =SUMIF(Beregninger!$I$126:$I$311,I39,Beregninger!$N$126:$N$311)+SUMIF(Beregninger!$I$126:$I$311,Beregninger!I128,Beregninger!$N$126:$N$311) -> 871.9205932 | J47: =SUMIF(Beregninger!$I$126:$I$311,Resultat!J39,Beregninger!$N$126:$N$311) -> 602.687988 | K47: =SUMIF(Beregninger!$I$126:$I$311,Resultat!K39,Beregninger!$N$126:$N$311) -> 2799.036672 | L47: =SUMIF(Beregninger!$I$126:$I$311,Resultat!L39,Beregninger!$N$126:$N$311) -> 0 | M47: 7232.92302
B48: Totalt | C48: =SUM(C46:C47) -> 253.32318 | D48: 2430.958904 | E48: 85.99740084 | F48: 2434.118581 | G48: 0 | H48: 466.95 | I48: 3376.552768 | J48: 602.687988 | K48: 2799.105904 | L48: 7425.555636 | M48: 19875.25036
B49: Prosent av byggefase | C49: =IFERROR(C44/M44,"Ikke relevant") -> 0.04855937623 | D49: =IFERROR(D44/M44,"Ikke relevant") -> 0.1553297097 | E49: =IFERROR(E44/M44,"Ikke relevant") -> 0.01648479283 | F49: =IFERROR(F44/M44,"Ikke relevant") -> 0.209991954 | G49: =IFERROR(G44/M44,"Ikke relevant") -> 0 | H49: =IFERROR(H44/M44,"Ikke relevant") -> 0.0895093798 | I49: =IFERROR(I44/M44,"Ikke relevant") -> 0.4801115165 | J49: =IFERROR(J44/M44,"Ikke relevant") -> 0 | K49: =IFERROR(K44/M44,"Ikke relevant") -> 1.327097981e-05 | L49: =IFERROR(L44/M44,"Ikke relevant") -> 0 | M49: =IFERROR(SUM(C49:L49),"Ikke relevant") -> 1
B50: Prosent av d&v-fase | C50: =IFERROR(C47/M47,"Ikke relevant") -> 0 | D50: =IFERROR(D47/M47,"Ikke relevant") -> 0.224064222 | E50: =IFERROR(E47/M47,"Ikke relevant") -> 0 | F50: =IFERROR(F47/M47,"Ikke relevant") -> 0.1850757285 | G50: =IFERROR(G47/M47,"Ikke relevant") -> 0 | H50: =IFERROR(H47/M47,"Ikke relevant") -> 0 | I50: =IFERROR(I47/M47,"Ikke relevant") -> 0.1205488557 | J50: =IFERROR(J47/M47,"Ikke relevant") -> 0.08332564668 | K50: =IFERROR(K47/M47,"Ikke relevant") -> 0.3869855471 | L50: =IFERROR(L47/M47,"Ikke relevant") -> 0 | M50: =IFERROR(SUM(C50:L50),"Ikke relevant") -> 1
E71: NB! Dersom enkelte innsatsfaktorer er så små at de ikke vises i prosentfordelingen, fjern disse fra figur ved å velge 'select data'.
B97: Tabell 3: Direkte utslipp knyttet til diesel og sprengning (i tonn CO2e)
B98: Byggefase | E98: Drift- og vedlikeholdsfase
B99: Fjerning av vegetasjon | E99: Drift
B100: Fjerning av vegetasjonsdekke | D100: =(Beregninger!M4)/Utslippsfaktorer!D20*Utslippsfaktorer!D19 -> 56.2968432 | E100: Kantklipp | H100: =((Beregninger!M133+Beregninger!M174)*ROUNDDOWN('Prosjektbeskrivelse og inndata'!C14/Beregningsfaktorer!D53,0))/Utslippsfaktorer!D20*Utslippsfaktorer!D19 -> 2.2794858
B101: Anleggsarbeid knyttet til sprengning | D101: =(Beregninger!M9+Beregninger!M14)/Utslippsfaktorer!D20*Utslippsfaktorer!D19 -> 144.76473 | E101: Grøfterensk og jordtransport | H101: =((Beregninger!M136+Beregninger!M139+Beregninger!M177+Beregninger!M180)*ROUNDDOWN('Prosjektbeskrivelse og inndata'!C14/Beregningsfaktorer!D54,0))/Utslippsfaktorer!D20*Utslippsfaktorer!D19 -> 63.79267649
B102: Sum fjerning av vegetasjon | D102: =SUM(D100:D101) -> 201.0615732 | E102: Feiing | H102: =((Beregninger!M142+Beregninger!M183+Beregninger!M215+Beregninger!M247+Beregninger!M279+Beregninger!M299)*ROUNDDOWN('Prosjektbeskrivelse og inndata'!C14/Beregningsfaktorer!D55,0))/Utslippsfaktorer!D20*Utslippsfaktorer!D19 -> 11.27317468
B103: Transport av materialer | E103: Salting og salttransport | H103: =((Beregninger!M145+Beregninger!M149+Beregninger!M186+Beregninger!M190+Beregninger!M218+Beregninger!M222+Beregninger!M250+Beregninger!M254)*ROUNDDOWN('Prosjektbeskrivelse og inndata'!C14/Beregningsfaktorer!D56,0))/Utslippsfaktorer!D20*Utslippsfaktorer!D19 -> 179.803039
B104: Materialer til vei i dagen | D104: =(Beregninger!M37+Beregninger!M48+Beregninger!M55)/Utslippsfaktorer!D20*Utslippsfaktorer!D19 -> 37.74194053 | E104: Brøyting | H104: =((Beregninger!M152+Beregninger!M193+Beregninger!M225+Beregninger!M257)*ROUNDDOWN('Prosjektbeskrivelse og inndata'!C14/Beregningsfaktorer!D57,0))/Utslippsfaktorer!D20*Utslippsfaktorer!D19 -> 369.3028429
B105: Materialer til bru | D105: =(Beregninger!M68+Beregninger!M82)/Utslippsfaktorer!D20*Utslippsfaktorer!D19 -> 4.271399598 | E105: Sum drift | H105: =SUM(H100:H104) -> 626.4512189
B106: Materialer til tunnel | D106: =(Beregninger!M96+Beregninger!M110)/Utslippsfaktorer!D20*Utslippsfaktorer!D19 -> 0 | E106: Vedlikehold
B107: Materialer til kulvert | D107: =(Beregninger!M118)/Utslippsfaktorer!D20*Utslippsfaktorer!D19 -> 2.368519834 | E107: Utskiftning og transport av lyktestolper | H107: =((Beregninger!M163+Beregninger!M204+Beregninger!M236+Beregninger!M268)*ROUNDDOWN('Prosjektbeskrivelse og inndata'!C14/Beregningsfaktorer!D52,0))/Utslippsfaktorer!D20*Utslippsfaktorer!D19 -> 1.933474714
B108: Sum transport av materialer | D108: =SUM(D104:D107) -> 44.38185996 | E108: Utskiftning og transport av autovern | H108: =((Beregninger!M156+Beregninger!M159+Beregninger!M197+Beregninger!M200+Beregninger!M229+Beregninger!M232+Beregninger!M261+Beregninger!M264+Beregninger!M283+Beregninger!M286+Beregninger!M303+Beregninger!M306)*ROUNDDOWN('Prosjektbeskrivelse og inndata'!C14/Beregningsfaktorer!D51,0))/Utslippsfaktorer!D20*Utslippsfaktorer!D19 -> 26.45438324
B109: Transport av masser | E109: Sum vedlikehold | H109: =SUM(H107:H108) -> 28.38785795
B110: Jordmasser til linja | D110: =(Beregninger!M17)/Utslippsfaktorer!D20*Utslippsfaktorer!D19 -> 0.6778863 | E110: Reasfaltering
B111: Jordmasser deponi | D111: =(Beregninger!M20)/Utslippsfaktorer!D20*Utslippsfaktorer!D19 -> 2.905227 | E111: Utskiftning og transport av asfalt | H111: =((Beregninger!M127+Beregninger!M130+Beregninger!M168+Beregninger!M171+Beregninger!M209+Beregninger!M212+Beregninger!M241+Beregninger!M244+Beregninger!M273+Beregninger!M276+Beregninger!M293+Beregninger!M296)*ROUNDDOWN('Prosjektbeskrivelse og inndata'!C14/Beregningsfaktorer!D50,0))/Utslippsfaktorer!D20*Utslippsfaktorer!D19 -> 33.00754437
B112: Sprengstein til linja | D112: =(Beregninger!M23)/Utslippsfaktorer!D20*Utslippsfaktorer!D19 -> 11.1863655 | E112: Sum reasfaltering | H112: =H111 -> 33.00754437
B113: Sprengstein til deponi | D113: =(Beregninger!M26)/Utslippsfaktorer!D20*Utslippsfaktorer!D19 -> 0 | E113: Sum drift- og vedlikeholdsfase | H113: =H105+H109+H112 -> 687.8466212
B114: Sprengstein til linja via pukkverk | D114: =(Beregninger!M29)/Utslippsfaktorer!D20*Utslippsfaktorer!D19 -> 0
B115: Sum transport av masser | D115: =SUM(D110:D114) -> 14.7694788
B116: Anleggsarbeid
B117: Anleggsarbeid vei i dagen | D117: =(Beregninger!M40+Beregninger!M51+Beregninger!M58)/Utslippsfaktorer!D20*Utslippsfaktorer!D19 -> 1714.878274
B118: Anleggsarbeid bru | D118: =(Beregninger!M71+Beregninger!M85)/Utslippsfaktorer!D20*Utslippsfaktorer!D19 -> 0.7800033405
B119: Anleggsarbeid tunnel | D119: =(Beregninger!M99+Beregninger!M113)/Utslippsfaktorer!D20*Utslippsfaktorer!D19 -> 0
B120: Anleggsarbeid kulvert | D120: =(Beregninger!M121)/Utslippsfaktorer!D20*Utslippsfaktorer!D19 -> 0
B121: Sum anleggsarbeid | D121: =SUM(D117:D120) -> 1715.658277
B122: Sprengning
B123: Sprengning i dagen | D123: =Beregninger!M8 -> 25.08
B124: Sprengning tunnel | D124: =Beregninger!M13 -> 0
B125: Sum sprengning | D125: =SUM(D123:D124) -> 25.08
B126: Sum byggefase | D126: =D102+D108+D115+D121+D125 -> 2000.951189 | E126: Direkte utslipp fra bygging, drift og vedlikehold | H126: =D126+H113 -> 2688.79781
B131: Tabell 4: Andel direkte utslipp av totale utslipp
B132: Andel av byggefase | D132: =IFERROR(D126/M44,"Ikke relevant") -> 0.3835611948
B133: Andel av drift- og vedlikeholdsfase | D133: =IFERROR(H113/M47,"Ikke relevant") -> 0.09509939748
B134: Andel direkte utslipp | D134: =IFERROR(H126/M48,"Ikke relevant") -> 0.1352837203
B135: Andel indirekte utslipp | D135: =IFERROR(1-D134,"Ikke relevant") -> 0.8647162797
B139: Tabell 6: Utslipp fra arealbruksendringer
B140: Arealtype | C140: tonn CO2e
B141: Skog - lav bonitet | C141: =(('Prosjektbeskrivelse og inndata'!C21*'Prosjektbeskrivelse og inndata'!C24)*Utslippsfaktorer!D26)/1000 -> 0
B142: Skog - middels bonitet | C142: =(('Prosjektbeskrivelse og inndata'!C21*'Prosjektbeskrivelse og inndata'!C25)*Utslippsfaktorer!D27)/1000 -> 6399.092727
B143: Skog - høy bonitet | C143: =(('Prosjektbeskrivelse og inndata'!C21*'Prosjektbeskrivelse og inndata'!C26)*Utslippsfaktorer!D28)/1000 -> 0
B144: Myr | C144: =(('Prosjektbeskrivelse og inndata'!C21*'Prosjektbeskrivelse og inndata'!C27)*Utslippsfaktorer!D29)/1000 -> 0
B145: Jordbruksareal | C145: =(('Prosjektbeskrivelse og inndata'!C21*'Prosjektbeskrivelse og inndata'!C28)*Utslippsfaktorer!D30)/1000 -> 1026.462909
B146: Utbygd areal | C146: -
B147: Sum | C147: =SUM(C141:C146) -> 7425.555636
B148: Utbygd areal settes lik 0
H153: Tabell 5: Direkte utslipp i ikke-kvotepliktig sektor
H154: Byggefase | K154: =D102+D108+D115+D121 -> 1975.871189
H155: Drift- og vedlikeholdsfase | K155: =H105+H109+H112 -> 687.8466212
H156: Sum bygge- og drift og vedlikeholdsfase | K156: =SUM(K154:K155) -> 2663.71781
H157: I denne sammenhengen er dette summen av direkte utslipp minus direkte utslipp fra sprengning.

Sheet Sensitivitetsanalyse
B3: Sensitivitetsanalyse
F4: Prosentvis endring: | H4: 0.1
B6: Opprinnelige utslipp | F6: Økning | J6: Reduksjon
B7: Innsatsfaktorer | D7: Opprinnelige utslipp [tonn CO2e] | F7: Utslipp etter økning [tonn CO2e] | G7: Ny total [tonn CO2e] | H7: Økning i total [%] | J7: Utslipp etter reduksjon [tonn CO2e] | K7: Ny total [tonn CO2e] | L7: Reduksjon i total [%]
B8: Utslipp byggefase
B9: Betong | D9: =Resultat!C44 -> 253.32318 | F9: =D9*(1+H4) -> 278.655498 | G9: =F9+SUM(D9:D18)-D9 -> 5242.104025 | H9: =(G9/Resultat!M44)-1 -> 0.004855937623 | J9: =D9*(1-H4) -> 227.990862 | K9: =J9+SUM(D9:D18)-D9 -> 5191.439389 | L9: =(K9/Resultat!M44)-1 -> -0.004855937623
B10: Stål | D10: =Resultat!D44 -> 810.3196348 | F10: =D10*(1+H4) -> 891.3515982 | G10: =F10+SUM(D9:D18)-D10 -> 5297.80367 | H10: =(G10/Resultat!M44)-1 -> 0.01553297097 | J10: =D10*(1-H4) -> 729.2876713 | K10: =J10+SUM(D9:D18)-D10 -> 5135.739743 | L10: =(K10/Resultat!M44)-1 -> -0.01553297097
B11: Armeringsstål | D11: =Resultat!E44 -> 85.99740084 | F11: =D11*(1+H4) -> 94.59714092 | G11: =F11+SUM(D9:D18)-D11 -> 5225.371447 | H11: =(G11/Resultat!M44)-1 -> 0.001648479283 | J11: =D11*(1-H4) -> 77.39766076 | K11: =J11+SUM(D9:D18)-D11 -> 5208.171966 | L11: =(K11/Resultat!M44)-1 -> -0.001648479283
B12: Asfalt | D12: =Resultat!F44 -> 1095.480084 | F12: =D12*(1+H4) -> 1205.028092 | G12: =F12+SUM(D9:D18)-D12 -> 5326.319715 | H12: =(G12/Resultat!M44)-1 -> 0.0209991954 | J12: =D12*(1-H4) -> 985.9320756 | K12: =J12+SUM(D9:D18)-D12 -> 5107.223698 | L12: =(K12/Resultat!M44)-1 -> -0.0209991954
B13: Frostsikring tunnel | D13: =Resultat!G44 -> 0 | F13: =D13*(1+H4) -> 0 | G13: =F13+SUM(D9:D18)-D13 -> 5216.771707 | H13: =(G13/Resultat!M44)-1 -> 0 | J13: =D13*(1-H4) -> 0 | K13: =J13+SUM(D9:D18)-D13 -> 5216.771707 | L13: =(K13/Resultat!M44)-1 -> 0
B14: Sprengning | D14: =Resultat!H44 -> 466.95 | F14: =D14*(1+H4) -> 513.645 | G14: =F14+SUM(D9:D18)-D14 -> 5263.466707 | H14: =(G14/Resultat!M44)-1 -> 0.00895093798 | J14: =D14*(1-H4) -> 420.255 | K14: =J14+SUM(D9:D18)-D14 -> 5170.076707 | L14: =(K14/Resultat!M44)-1 -> -0.00895093798
B15: Diesel | D15: =Resultat!I44 -> 2504.632175 | F15: =D15*(1+H4) -> 2755.095393 | G15: =F15+SUM(D9:D18)-D15 -> 5467.234924 | H15: =(G15/Resultat!M44)-1 -> 0.04801115165 | J15: =D15*(1-H4) -> 2254.168958 | K15: =J15+SUM(D9:D18)-D15 -> 4966.308489 | L15: =(K15/Resultat!M44)-1 -> -0.04801115165
B16: Salt | D16: =Resultat!J44 -> 0 | F16: =D16*(1+H4) -> 0 | G16: =F16+SUM(D9:D18)-D16 -> 5216.771707 | H16: =(G16/Resultat!M44)-1 -> 0 | J16: =D16*(1-H4) -> 0 | K16: =J16+SUM(D9:D18)-D16 -> 5216.771707 | L16: =(K16/Resultat!M44)-1 -> 0
B17: Elektrisitet | D17: =Resultat!K44 -> 0.069231672 | F17: =D17*(1+H4) -> 0.0761548392 | G17: =F17+SUM(D9:D18)-D17 -> 5216.77863 | H17: =(G17/Resultat!M44)-1 -> 1.327097981e-06 | J17: =D17*(1-H4) -> 0.0623085048 | K17: =J17+SUM(D9:D18)-D17 -> 5216.764783 | L17: =(K17/Resultat!M44)-1 -> -1.327097981e-06
B18: Arealbruk | D18: =Resultat!L44 -> 0 | F18: =D18*(1+H4) -> 0 | G18: =F18+SUM(D9:D18)-D18 -> 5216.771707 | H18: =(G18/Resultat!M44)-1 -> 0 | J18: =D18*(1-H4) -> 0 | K18: =J18+SUM(D9:D18)-D18 -> 5216.771707 | L18: =(K18/Resultat!M44)-1 -> 0
B19: Utslipp driftsfase
B20: Betong | D20: =Resultat!C47 -> 0 | F20: =D20*(1+H4) -> 0 | G20: =F20+SUM(D20:D28)-D20 -> 7232.92302 | H20: =(G20/Resultat!M47)-1 -> 0 | J20: =D20*(1-H4) -> 0 | K20: =J20+SUM(D20:D28)-D20 -> 7232.92302 | L20: =(K20/Resultat!M47)-1 -> 0
B21: Stål | D21: =Resultat!D47 -> 1620.63927 | F21: =D21*(1+H4) -> 1782.703196 | G21: =F21+SUM(D20:D28)-D21 -> 7394.986947 | H21: =(G21/Resultat!M47)-1 -> 0.0224064222 | J21: =D21*(1-H4) -> 1458.575343 | K21: =J21+SUM(D20:D28)-D21 -> 7070.859093 | L21: =(K21/Resultat!M47)-1 -> -0.0224064222
B22: Armeringsstål | D22: =Resultat!E47 -> 0 | F22: =D22*(1+H4) -> 0 | G22: =F22+SUM(D20:D28)-D22 -> 7232.92302 | H22: =(G22/Resultat!M47)-1 -> 0 | J22: =D22*(1-H4) -> 0 | K22: =J22+SUM(D20:D28)-D22 -> 7232.92302 | L22: =(K22/Resultat!M47)-1 -> 0
B23: Asfalt | D23: =Resultat!F47 -> 1338.638497 | F23: =D23*(1+H4) -> 1472.502347 | G23: =F23+SUM(D20:D28)-D23 -> 7366.78687 | H23: =(G23/Resultat!M47)-1 -> 0.01850757285 | J23: =D23*(1-H4) -> 1204.774647 | K23: =J23+SUM(D20:D28)-D23 -> 7099.05917 | L23: =(K23/Resultat!M47)-1 -> -0.01850757285
B24: Frostsikring tunnel | D24: =Resultat!G47 -> 0 | F24: =D24*(1+H4) -> 0 | G24: =F24+SUM(D20:D28)-D24 -> 7232.92302 | H24: =(G24/Resultat!M47)-1 -> 0 | J24: =D24*(1-H4) -> 0 | K24: =J24+SUM(D20:D28)-D24 -> 7232.92302 | L24: =(K24/Resultat!M47)-1 -> 0
B25: Sprengning | D25: =Resultat!H47 -> 0 | F25: =D25*(1+H4) -> 0 | G25: =F25+SUM(D20:D28)-D25 -> 7232.92302 | H25: =(G25/Resultat!M47)-1 -> 0 | J25: =D25*(1-H4) -> 0 | K25: =J25+SUM(D20:D28)-D25 -> 7232.92302 | L25: =(K25/Resultat!M47)-1 -> 0
B26: Diesel | D26: =Resultat!I47 -> 871.9205932 | F26: =D26*(1+H4) -> 959.1126525 | G26: =F26+SUM(D20:D28)-D26 -> 7320.115079 | H26: =(G26/Resultat!M47)-1 -> 0.01205488557 | J26: =D26*(1-H4) -> 784.7285339 | K26: =J26+SUM(D20:D28)-D26 -> 7145.730961 | L26: =(K26/Resultat!M47)-1 -> -0.01205488557
B27: Salt | D27: =Resultat!J47 -> 602.687988 | F27: =D27*(1+H4) -> 662.9567868 | G27: =F27+SUM(D20:D28)-D27 -> 7293.191819 | H27: =(G27/Resultat!M47)-1 -> 0.008332564668 | J27: =D27*(1-H4) -> 542.4191892 | K27: =J27+SUM(D20:D28)-D27 -> 7172.654221 | L27: =(K27/Resultat!M47)-1 -> -0.008332564668
B28: Elektrisitet | D28: =Resultat!K47 -> 2799.036672 | F28: =D28*(1+H4) -> 3078.940339 | G28: =F28+SUM(D20:D28)-D28 -> 7512.826687 | H28: =(G28/Resultat!M47)-1 -> 0.03869855471 | J28: =D28*(1-H4) -> 2519.133005 | K28: =J28+SUM(D20:D28)-D28 -> 6953.019353 | L28: =(K28/Resultat!M47)-1 -> -0.03869855471

Sheet Beregninger
B1: Definert enhet | C1: Summert fra inndata | D1: Fysisk faktor input | E1: Summert output | F1: Fysisk enhet output | G1: Livsløp | H1: Element | I1: Innsatstype | J1: Tag utslippsfaktor | K1: Utslippsfaktor | L1: Enhet | M1: Tonn CO2e
A2: Byggefase
B4: Fjerning av vegetasjonsdekke (m2) | C4: =SUMIF('Prosjektbeskrivelse og inndata'!$M:$M,B4,'Prosjektbeskrivelse og inndata'!$L:$L) -> 218000 | D4: Anleggsarbeid diesel | E4: =C4*'Vegetasjon og arealbeslag'!F11 -> 21084.96 | F4: liter diesel | G4: År 0 | H4: Vei i dagen | I4: Diesel | J4: =Utslippsfaktorer!B20 -> Fossil diesel (WTW) | K4: =SUMIF(Utslippsfaktorer!B:B,Beregninger!J4,Utslippsfaktorer!D:D) -> 3.24 | L4: =VLOOKUP(J4,Utslippsfaktorer!B:C,2,FALSE) -> kg CO2e/liter | M4: =(E4*K4)/1000 -> 68.3152704
D5: Anleggsarbeid biodiesel | E5: =C4*'Vegetasjon og arealbeslag'!G11 -> 1587.04 | F5: liter biodiesel | G5: År 0 | H5: Vei i dagen | I5: Biodiesel | J5: =Utslippsfaktorer!B18 -> Biodiesel (WTT) | K5: =SUMIF(Utslippsfaktorer!B:B,Beregninger!J5,Utslippsfaktorer!D:D) -> 1.92 | L5: =VLOOKUP(J5,Utslippsfaktorer!B:C,2,FALSE) -> kg CO2e/liter | M5: =(E5*K5)/1000 -> 3.0471168
D6: Anleggsarbeid elektrisk/hydrogen | E6: =C4*'Vegetasjon og arealbeslag'!H11 -> 0 | F6: kWh | G6: År 0 | H6: Vei i dagen | I6: Elektrisitet | J6: =Utslippsfaktorer!B23 -> Elektrisitet anleggsfase, norsk miks | K6: =SUMIF(Utslippsfaktorer!B:B,Beregninger!J6,Utslippsfaktorer!D:D) -> 0.02638 | L6: =VLOOKUP(J6,Utslippsfaktorer!B:C,2,FALSE) -> kg CO2e/kWh | M6: =(E6*K6)/1000 -> 0
B7: Sprengning i dagen (m3) | C7: =SUMIF('Prosjektbeskrivelse og inndata'!$M:$M,B7,'Prosjektbeskrivelse og inndata'!$L:$L) -> 165000 | D7: Sprengstoff (indirekte utslipp) | E7: =C7*Sprengning!D6 -> 165000 | F7: kg tovex | G7: År 0 | H7: Vei i dagen | I7: Sprengning | J7: =Utslippsfaktorer!B21 -> Sprengstoff (CTG) | K7: =SUMIF(Utslippsfaktorer!B:B,Beregninger!J7,Utslippsfaktorer!D:D) -> 2.678 | L7: =VLOOKUP(J7,Utslippsfaktorer!B:C,2,FALSE) -> kg CO2e/kg | M7: 441.87
D8: Sprengstoff (direkte utslipp) | E8: =C7*Sprengning!D6 -> 165000 | F8: kg tovex | G8: År 0 | H8: Vei i dagen | I8: Sprengning | J8: =Utslippsfaktorer!B22 -> Sprengstoff detonering | K8: =SUMIF(Utslippsfaktorer!B:B,Beregninger!J8,Utslippsfaktorer!D:D) -> 0.152 | L8: =VLOOKUP(J8,Utslippsfaktorer!B:C,2,FALSE) -> kg CO2e/kg | M8: 25.08
D9: Anleggsarbeid diesel | E9: =C7*Sprengning!D15 -> 54219 | F9: liter diesel | G9: År 0 | H9: Vei i dagen | I9: Diesel | J9: =Utslippsfaktorer!B20 -> Fossil diesel (WTW) | K9: =SUMIF(Utslippsfaktorer!B:B,Beregninger!J9,Utslippsfaktorer!D:D) -> 3.24 | L9: =VLOOKUP(J9,Utslippsfaktorer!B:C,2,FALSE) -> kg CO2e/liter | M9: 175.66956
D10: Anleggsarbeid biodiesel | E10: =C7*Sprengning!E15 -> 4081 | F10: liter biodiesel | G10: År 0 | H10: Vei i dagen | I10: Biodiesel | J10: =Utslippsfaktorer!B18 -> Biodiesel (WTT) | K10: =SUMIF(Utslippsfaktorer!B:B,Beregninger!J10,Utslippsfaktorer!D:D) -> 1.92 | L10: =VLOOKUP(J10,Utslippsfaktorer!B:C,2,FALSE) -> kg CO2e/liter | M10: 7.83552
D11: Anleggsarbeid elektrisk/hydrogen | E11: =C7*Sprengning!F15 -> 0 | F11: kWh | G11: År 0 | H11: Vei i dagen | I11: Elektrisitet | J11: =Utslippsfaktorer!B23 -> Elektrisitet anleggsfase, norsk miks | K11: =SUMIF(Utslippsfaktorer!B:B,Beregninger!J11,Utslippsfaktorer!D:D) -> 0.02638 | L11: =VLOOKUP(J11,Utslippsfaktorer!B:C,2,FALSE) -> kg CO2e/kWh | M11: 0
B12: Sprengning tunnel (m3) | C12: =SUMIF('Prosjektbeskrivelse og inndata'!$M:$M,B12,'Prosjektbeskrivelse og inndata'!$L:$L) -> 0 | D12: Sprengstoff (indirekte utslipp) | E12: =C12*Sprengning!D5 -> 0 | F12: kg tovex | G12: År 0 | H12: Tunnel | I12: Sprengning | J12: =Utslippsfaktorer!B21 -> Sprengstoff (CTG) | K12: =SUMIF(Utslippsfaktorer!B:B,Beregninger!J12,Utslippsfaktorer!D:D) -> 2.678 | L12: =VLOOKUP(J12,Utslippsfaktorer!B:C,2,FALSE) -> kg CO2e/kg | M12: 0
D13: Sprengstoff (direkte utslipp) | E13: =C12*Sprengning!D5 -> 0 | F13: kg tovex | G13: År 0 | H13: Tunnel | I13: Sprengning | J13: =Utslippsfaktorer!B22 -> Sprengstoff detonering | K13: =SUMIF(Utslippsfaktorer!B:B,Beregninger!J13,Utslippsfaktorer!D:D) -> 0.152 | L13: =VLOOKUP(J13,Utslippsfaktorer!B:C,2,FALSE) -> kg CO2e/kg | M13: 0
D14: Anleggsarbeid diesel | E14: =C12*Sprengning!D15 -> 0 | F14: liter diesel | G14: År 0 | H14: Tunnel | I14: Diesel | J14: =Utslippsfaktorer!B20 -> Fossil diesel (WTW) | K14: =SUMIF(Utslippsfaktorer!B:B,Beregninger!J14,Utslippsfaktorer!D:D) -> 3.24 | L14: =VLOOKUP(J14,Utslippsfaktorer!B:C,2,FALSE) -> kg CO2e/liter | M14: 0
D15: Anleggsarbeid biodiesel | E15: =C12*Sprengning!E15 -> 0 | F15: liter biodiesel | G15: År 0 | H15: Tunnel | I15: Biodiesel | J15: =Utslippsfaktorer!B18 -> Biodiesel (WTT) | K15: =SUMIF(Utslippsfaktorer!B:B,Beregninger!J15,Utslippsfaktorer!D:D) -> 1.92 | L15: =VLOOKUP(J15,Utslippsfaktorer!B:C,2,FALSE) -> kg CO2e/liter | M15: 0
D16: Anleggsarbeid elektrisk/hydrogen | E16: =C12*Sprengning!F15 -> 0 | F16: kWh | G16: År 0 | H16: Tunnel | I16: Elektrisitet | J16: =Utslippsfaktorer!B23 -> Elektrisitet anleggsfase, norsk miks | K16: =SUMIF(Utslippsfaktorer!B:B,Beregninger!J16,Utslippsfaktorer!D:D) -> 0.02638 | L16: =VLOOKUP(J16,Utslippsfaktorer!B:C,2,FALSE) -> kg CO2e/kWh | M16: 0
B17: Jordmasser til linja (m3) | C17: =SUMIF('Prosjektbeskrivelse og inndata'!$M:$M,B17,'Prosjektbeskrivelse og inndata'!$L:$L) -> 70000 | D17: Transport diesel | E17: =C17*'Vegetasjon og arealbeslag'!F5 -> 253.89 | F17: liter diesel | G17: År 0 | H17: Vei i dagen | I17: Diesel | J17: =Utslippsfaktorer!B20 -> Fossil diesel (WTW) | K17: =SUMIF(Utslippsfaktorer!B:B,Beregninger!J17,Utslippsfaktorer!D:D) -> 3.24 | L17: =VLOOKUP(J17,Utslippsfaktorer!B:C,2,FALSE) -> kg CO2e/liter | M17: 0.8226036
D18: Transport biodiesel | E18: =C17*'Vegetasjon og arealbeslag'!G5 -> 19.11 | F18: liter biodiesel | G18: År 0 | H18: Vei i dagen | I18: Biodiesel | J18: =Utslippsfaktorer!B18 -> Biodiesel (WTT) | K18: =SUMIF(Utslippsfaktorer!B:B,Beregninger!J18,Utslippsfaktorer!D:D) -> 1.92 | L18: =VLOOKUP(J18,Utslippsfaktorer!B:C,2,FALSE) -> kg CO2e/liter | M18: 0.0366912
D19: Transport elektrisk/hydrogen | E19: =C17*'Vegetasjon og arealbeslag'!H5 -> 0 | F19: kWh | G19: År 0 | H19: Vei i dagen | I19: Elektrisitet | J19: =Utslippsfaktorer!B23 -> Elektrisitet anleggsfase, norsk miks | K19: =SUMIF(Utslippsfaktorer!B:B,Beregninger!J19,Utslippsfaktorer!D:D) -> 0.02638 | L19: =VLOOKUP(J19,Utslippsfaktorer!B:C,2,FALSE) -> kg CO2e/kWh | M19: 0
B20: Jordmasser til deponi (m3) | C20: =SUMIF('Prosjektbeskrivelse og inndata'!$M:$M,B20,'Prosjektbeskrivelse og inndata'!$L:$L) -> 30000 | D20: Transport diesel | E20: =C20*'Vegetasjon og arealbeslag'!F6 -> 1088.1 | F20: liter diesel | G20: År 0 | H20: Vei i dagen | I20: Diesel | J20: =Utslippsfaktorer!B20 -> Fossil diesel (WTW) | K20: =SUMIF(Utslippsfaktorer!B:B,Beregninger!J20,Utslippsfaktorer!D:D) -> 3.24 | L20: =VLOOKUP(J20,Utslippsfaktorer!B:C,2,FALSE) -> kg CO2e/liter | M20: 3.525444
D21: Transport biodiesel | E21: =C20*'Vegetasjon og arealbeslag'!G6 -> 81.9 | F21: liter biodiesel | G21: År 0 | H21: Vei i dagen | I21: Biodiesel | J21: =Utslippsfaktorer!B18 -> Biodiesel (WTT) | K21: =SUMIF(Utslippsfaktorer!B:B,Beregninger!J21,Utslippsfaktorer!D:D) -> 1.92 | L21: =VLOOKUP(J21,Utslippsfaktorer!B:C,2,FALSE) -> kg CO2e/liter | M21: 0.157248
D22: Transport elektrisk/hydrogen | E22: =C20*'Vegetasjon og arealbeslag'!H6 -> 0 | F22: kWh | G22: År 0 | H22: Vei i dagen | I22: Elektrisitet | J22: =Utslippsfaktorer!B23 -> Elektrisitet anleggsfase, norsk miks | K22: =SUMIF(Utslippsfaktorer!B:B,Beregninger!J22,Utslippsfaktorer!D:D) -> 0.02638 | L22: =VLOOKUP(J22,Utslippsfaktorer!B:C,2,FALSE) -> kg CO2e/kWh | M22: 0
B23: Sprengstein til linja (m3) | C23: =SUMIF('Prosjektbeskrivelse og inndata'!$M:$M,B23,'Prosjektbeskrivelse og inndata'!$L:$L) -> 170000 | D23: Transport diesel | E23: =C23*Sprengning!F7 -> 4189.65 | F23: liter diesel | G23: År 0 | H23: Vei i dagen | I23: Diesel | J23: =Utslippsfaktorer!B20 -> Fossil diesel (WTW) | K23: =SUMIF(Utslippsfaktorer!B:B,Beregninger!J23,Utslippsfaktorer!D:D) -> 3.24 | L23: =VLOOKUP(J23,Utslippsfaktorer!B:C,2,FALSE) -> kg CO2e/liter | M23: 13.574466
D24: Transport biodiesel | E24: =C23*Sprengning!G7 -> 315.35 | F24: liter biodiesel | G24: År 0 | H24: Vei i dagen | I24: Biodiesel | J24: =Utslippsfaktorer!B18 -> Biodiesel (WTT) | K24: =SUMIF(Utslippsfaktorer!B:B,Beregninger!J24,Utslippsfaktorer!D:D) -> 1.92 | L24: =VLOOKUP(J24,Utslippsfaktorer!B:C,2,FALSE) -> kg CO2e/liter | M24: 0.605472
D25: Transport elektrisk/hydrogen | E25: =C23*Sprengning!H7 -> 0 | F25: kWh | G25: År 0 | H25: Vei i dagen | I25: Elektrisitet | J25: =Utslippsfaktorer!B23 -> Elektrisitet anleggsfase, norsk miks | K25: =SUMIF(Utslippsfaktorer!B:B,Beregninger!J25,Utslippsfaktorer!D:D) -> 0.02638 | L25: =VLOOKUP(J25,Utslippsfaktorer!B:C,2,FALSE) -> kg CO2e/kWh | M25: 0
B26: Sprengstein til deponi (m3) | C26: =SUMIF('Prosjektbeskrivelse og inndata'!$M:$M,B26,'Prosjektbeskrivelse og inndata'!$L:$L) -> 0 | D26: Transport diesel | E26: =C26*Sprengning!F8 -> 0 | F26: liter diesel | G26: År 0 | H26: Vei i dagen | I26: Diesel | J26: =Utslippsfaktorer!B20 -> Fossil diesel (WTW) | K26: =SUMIF(Utslippsfaktorer!B:B,Beregninger!J26,Utslippsfaktorer!D:D) -> 3.24 | L26: =VLOOKUP(J26,Utslippsfaktorer!B:C,2,FALSE) -> kg CO2e/liter | M26: 0
D27: Transport biodiesel | E27: =C26*Sprengning!G8 -> 0 | F27: liter biodiesel | G27: År 0 | H27: Vei i dagen | I27: Biodiesel | J27: =Utslippsfaktorer!B18 -> Biodiesel (WTT) | K27: =SUMIF(Utslippsfaktorer!B:B,Beregninger!J27,Utslippsfaktorer!D:D) -> 1.92 | L27: =VLOOKUP(J27,Utslippsfaktorer!B:C,2,FALSE) -> kg CO2e/liter | M27: 0
D28: Transport elektrisk/hydrogen | E28: =C26*Sprengning!H8 -> 0 | F28: kWh | G28: År 0 | H28: Vei i dagen | I28: Elektrisitet | J28: =Utslippsfaktorer!B23 -> Elektrisitet anleggsfase, norsk miks | K28: =SUMIF(Utslippsfaktorer!B:B,Beregninger!J28,Utslippsfaktorer!D:D) -> 0.02638 | L28: =VLOOKUP(J28,Utslippsfaktorer!B:C,2,FALSE) -> kg CO2e/kWh | M28: 0
B29: Sprengstein til linja via pukkverk (m3) | C29: =SUMIF('Prosjektbeskrivelse og inndata'!$M:$M,B29,'Prosjektbeskrivelse og inndata'!$L:$L) -> 0 | D29: Transport diesel | E29: =C29*Sprengning!F9 -> 0 | F29: liter diesel | G29: År 0 | H29: Vei i dagen | I29: Diesel | J29: =Utslippsfaktorer!B20 -> Fossil diesel (WTW) | K29: =SUMIF(Utslippsfaktorer!B:B,Beregninger!J29,Utslippsfaktorer!D:D) -> 3.24 | L29: =VLOOKUP(J29,Utslippsfaktorer!B:C,2,FALSE) -> kg CO2e/liter | M29: 0
D30: Transport biodiesel | E30: =C29*Sprengning!G9 -> 0 | F30: liter biodiesel | G30: År 0 | H30: Vei i dagen | I30: Biodiesel | J30: =Utslippsfaktorer!B18 -> Biodiesel (WTT) | K30: =SUMIF(Utslippsfaktorer!B:B,Beregninger!J30,Utslippsfaktorer!D:D) -> 1.92 | L30: =VLOOKUP(J30,Utslippsfaktorer!B:C,2,FALSE) -> kg CO2e/liter | M30: 0
D31: Transport elektrisk/hydrogen | E31: =C29*Sprengning!H9 -> 0 | F31: kWh | G31: År 0 | H31: Vei i dagen | I31: Elektrisitet | J31: =Utslippsfaktorer!B23 -> Elektrisitet anleggsfase, norsk miks | K31: =SUMIF(Utslippsfaktorer!B:B,Beregninger!J31,Utslippsfaktorer!D:D) -> 0.02638 | L31: =VLOOKUP(J31,Utslippsfaktorer!B:C,2,FALSE) -> kg CO2e/kWh | M31: 0
B32: Hovedvei (m) | C32: =SUMIF('Prosjektbeskrivelse og inndata'!$M:$M,B32,'Prosjektbeskrivelse og inndata'!$L:$L) -> 4700 | D32: Slitelag skjelettasfalt (Ska) | E32: =C32*Hovedvei!D5*'Prosjektbeskrivelse og inndata'!C9 -> 3965625 | F32: kg skjelettasfalt | G32: År 0 | H32: Vei i dagen | I32: Asfalt | J32: =Utslippsfaktorer!B7 -> Skjelettasfalt (Ska) | K32: =SUMIF(Utslippsfaktorer!B:B,Beregninger!J32,Utslippsfaktorer!D:D) -> 0.0657 | L32: =VLOOKUP(J32,Utslippsfaktorer!B:C,2,FALSE) -> kg CO2e/kg | M32: =(E32*K32)/1000 -> 260.5415625
D33: Bindlag skjelettasfalt (Ska) | E33: =C32*Hovedvei!D6*'Prosjektbeskrivelse og inndata'!C9 -> 3084375 | F33: kg skjelettasfalt | G33: År 0 | H33: Vei i dagen | I33: Asfalt | J33: =Utslippsfaktorer!B7 -> Skjelettasfalt (Ska) | K33: =SUMIF(Utslippsfaktorer!B:B,Beregninger!J33,Utslippsfaktorer!D:D) -> 0.0657 | L33: =VLOOKUP(J33,Utslippsfaktorer!B:C,2,FALSE) -> kg CO2e/kg | M33: 202.6434375
D34: Bærelag asfaltgrus (Ag) | E34: =C32*Hovedvei!D7*'Prosjektbeskrivelse og inndata'!C9 -> 10998000 | F34: kg asfaltgrus | G34: År 0 | H34: Vei i dagen | I34: Asfalt | J34: =Utslippsfaktorer!B8 -> Asfaltgrus (Ag) | K34: =SUMIF(Utslippsfaktorer!B:B,Beregninger!J34,Utslippsfaktorer!D:D) -> 0.0488 | L34: =VLOOKUP(J34,Utslippsfaktorer!B:C,2,FALSE) -> kg CO2e/kg | M34: 536.7024
D35: Lyktestolper | E35: =C32*'Tillegg vei'!D5*Beregningsfaktorer!D81 -> 45343.25 | F35: kg stål | G35: År 0 | H35: Vei i dagen | I35: Stål | J35: =Utslippsfaktorer!B14 -> Stål | K35: =SUMIF(Utslippsfaktorer!B:B,Beregninger!J35,Utslippsfaktorer!D:D) -> 2.1235 | L35: =VLOOKUP(J35,Utslippsfaktorer!B:C,2,FALSE) -> kg CO2e/kg | M35: 96.28639138
D36: Autovern/rekkverk | E36: =C32*'Tillegg vei'!D7*Beregningsfaktorer!D83 -> 310200 | F36: kg stål | G36: År 0 | H36: Vei i dagen | I36: Stål | J36: =Utslippsfaktorer!B14 -> Stål | K36: =SUMIF(Utslippsfaktorer!B:B,Beregninger!J36,Utslippsfaktorer!D:D) -> 2.1235 | L36: =VLOOKUP(J36,Utslippsfaktorer!B:C,2,FALSE) -> kg CO2e/kg | M36: 658.7097
D37: Transport diesel | E37: =C32*(((SUM(Hovedvei!E5:E7)*'Prosjektbeskrivelse og inndata'!C9)+(('Tillegg vei'!E5*Beregningsfaktorer!D81)+('Tillegg vei'!E7*Beregningsfaktorer!D83)))) -> 12716.02578 | F37: liter diesel | G37: År 0 | H37: Vei i dagen | I37: Diesel | J37: =Utslippsfaktorer!B20 -> Fossil diesel (WTW) | K37: =SUMIF(Utslippsfaktorer!B:B,Beregninger!J37,Utslippsfaktorer!D:D) -> 3.24 | L37: =VLOOKUP(J37,Utslippsfaktorer!B:C,2,FALSE) -> kg CO2e/liter | M37: 41.19992353
D38: Transport biodiesel | E38: =C32*(((SUM(Hovedvei!F5:F7)*'Prosjektbeskrivelse og inndata'!C9)+(('Tillegg vei'!F5*Beregningsfaktorer!D81)+('Tillegg vei'!F7*Beregningsfaktorer!D83)))) -> 957.12022 | F38: liter biodiesel | G38: År 0 | H38: Vei i dagen | I38: Biodiesel | J38: =Utslippsfaktorer!B18 -> Biodiesel (WTT) | K38: =SUMIF(Utslippsfaktorer!B:B,Beregninger!J38,Utslippsfaktorer!D:D) -> 1.92 | L38: =VLOOKUP(J38,Utslippsfaktorer!B:C,2,FALSE) -> kg CO2e/liter | M38: 1.837670822
D39: Transport elektrisk/hydrogen | E39: =C32*(((SUM(Hovedvei!G5:G7)*'Prosjektbeskrivelse og inndata'!C9)+(('Tillegg vei'!G5*Beregningsfaktorer!D81)+('Tillegg vei'!G7*Beregningsfaktorer!D83)))) -> 0 | F39: kWh | G39: År 0 | H39: Vei i dagen | I39: Elektrisitet | J39: =Utslippsfaktorer!B23 -> Elektrisitet anleggsfase, norsk miks | K39: =SUMIF(Utslippsfaktorer!B:B,Beregninger!J39,Utslippsfaktorer!D:D) -> 0.02638 | L39: =VLOOKUP(J39,Utslippsfaktorer!B:C,2,FALSE) -> kg CO2e/kWh | M39: 0
D40: Anleggsarbeid diesel | E40: =C32*(((SUM(Hovedvei!E15:E28)*'Prosjektbeskrivelse og inndata'!C9)+(('Tillegg vei'!D12*Beregningsfaktorer!D83)+('Tillegg vei'!D13*Beregningsfaktorer!D87)+('Tillegg vei'!D14*Beregningsfaktorer!D85)))) -> 591956.2251 | F40: liter diesel | G40: År 0 | H40: Vei i dagen | I40: Diesel | J40: =Utslippsfaktorer!B20 -> Fossil diesel (WTW) | K40: =SUMIF(Utslippsfaktorer!B:B,Beregninger!J40,Utslippsfaktorer!D:D) -> 3.24 | L40: =VLOOKUP(J40,Utslippsfaktorer!B:C,2,FALSE) -> kg CO2e/liter | M40: 1917.938169
D41: Anleggsarbeid biodiesel | E41: =C32*(((SUM(Hovedvei!F15:F28)*'Prosjektbeskrivelse og inndata'!C9)+(('Tillegg vei'!E12*Beregningsfaktorer!D83)+('Tillegg vei'!E13*Beregningsfaktorer!D87)+('Tillegg vei'!E14*Beregningsfaktorer!D85)))) -> 44555.8449 | F41: liter biodiesel | G41: År 0 | H41: Vei i dagen | I41: Biodiesel | J41: =Utslippsfaktorer!B18 -> Biodiesel (WTT) | K41: =SUMIF(Utslippsfaktorer!B:B,Beregninger!J41,Utslippsfaktorer!D:D) -> 1.92 | L41: =VLOOKUP(J41,Utslippsfaktorer!B:C,2,FALSE) -> kg CO2e/liter | M41: 85.54722221
D42: Anleggsarbeid elektrisk/hydrogen | E42: =C32*(((SUM(Hovedvei!G15:G28)*'Prosjektbeskrivelse og inndata'!C9)+(('Tillegg vei'!F12*Beregningsfaktorer!D83)+('Tillegg vei'!F13*Beregningsfaktorer!D87)+('Tillegg vei'!F14*Beregningsfaktorer!D85)))) -> 0 | F42: kWh | G42: År 0 | H42: Vei i dagen | I42: Elektrisitet | J42: =Utslippsfaktorer!B23 -> Elektrisitet anleggsfase, norsk miks | K42: =SUMIF(Utslippsfaktorer!B:B,Beregninger!J42,Utslippsfaktorer!D:D) -> 0.02638 | L42: =VLOOKUP(J42,Utslippsfaktorer!B:C,2,FALSE) -> kg CO2e/kWh | M42: 0
B43: Sidevei (m) | C43: =SUMIF('Prosjektbeskrivelse og inndata'!$M:$M,B43,'Prosjektbeskrivelse og inndata'!$L:$L) -> 600 | D43: Slitelag asfaltgrusbetong (Agb) | E43: =C43*Sidevei!D5*'Prosjektbeskrivelse og inndata'!C10 -> 303750 | F43: kg asfaltgrusbetong | G43: År 0 | H43: Vei i dagen | I43: Asfalt | J43: =Utslippsfaktorer!B6 -> Asfaltgrusbetong (Agb) | K43: =SUMIF(Utslippsfaktorer!B:B,Beregninger!J43,Utslippsfaktorer!D:D) -> 0.0512 | L43: =VLOOKUP(J43,Utslippsfaktorer!B:C,2,FALSE) -> kg CO2e/kg | M43: 15.552
D44: Bindlag asfaltgrusbetong (Agb) | E44: =C43*Sidevei!D6*'Prosjektbeskrivelse og inndata'!C10 -> 236250 | F44: kg asfaltgrusbetong | G44: År 0 | H44: Vei i dagen | I44: Asfalt | J44: =Utslippsfaktorer!B6 -> Asfaltgrusbetong (Agb) | K44: =SUMIF(Utslippsfaktorer!B:B,Beregninger!J44,Utslippsfaktorer!D:D) -> 0.0512 | L44: =VLOOKUP(J44,Utslippsfaktorer!B:C,2,FALSE) -> kg CO2e/kg | M44: 12.096
D45: Bærelag asfaltgrus (Ag) | E45: =C43*Sidevei!D7*'Prosjektbeskrivelse og inndata'!C10 -> 842400 | F45: kg asfaltgrus | G45: År 0 | H45: Vei i dagen | I45: Asfalt | J45: =Utslippsfaktorer!B8 -> Asfaltgrus (Ag) | K45: =SUMIF(Utslippsfaktorer!B:B,Beregninger!J45,Utslippsfaktorer!D:D) -> 0.0488 | L45: =VLOOKUP(J45,Utslippsfaktorer!B:C,2,FALSE) -> kg CO2e/kg | M45: 41.10912
D46: Lyktestolper | E46: =C43*'Tillegg vei'!D6*Beregningsfaktorer!D82 -> 2894.25 | F46: kg stål | G46: År 0 | H46: Vei i dagen | I46: Stål | J46: =Utslippsfaktorer!B14 -> Stål | K46: =SUMIF(Utslippsfaktorer!B:B,Beregninger!J46,Utslippsfaktorer!D:D) -> 2.1235 | L46: =VLOOKUP(J46,Utslippsfaktorer!B:C,2,FALSE) -> kg CO2e/kg | M46: 6.145939875
D47: Autovern/rekkverk | E47: =C43*'Tillegg vei'!D7*Beregningsfaktorer!D84 -> 19800 | F47: kg stål | G47: År 0 | H47: Vei i dagen | I47: Stål | J47: =Utslippsfaktorer!B14 -> Stål | K47: =SUMIF(Utslippsfaktorer!B:B,Beregninger!J47,Utslippsfaktorer!D:D) -> 2.1235 | L47: =VLOOKUP(J47,Utslippsfaktorer!B:C,2,FALSE) -> kg CO2e/kg | M47: 42.0453
D48: Transport diesel | E48: =C43*(((SUM(Sidevei!E5:E7)*'Prosjektbeskrivelse og inndata'!C10)+(('Tillegg vei'!E6*Beregningsfaktorer!D82)+('Tillegg vei'!E7*Beregningsfaktorer!D84)))) -> 940.22442 | F48: liter diesel | G48: År 0 | H48: Vei i dagen | I48: Diesel | J48: =Utslippsfaktorer!B20 -> Fossil diesel (WTW) | K48: =SUMIF(Utslippsfaktorer!B:B,Beregninger!J48,Utslippsfaktorer!D:D) -> 3.24 | L48: =VLOOKUP(J48,Utslippsfaktorer!B:C,2,FALSE) -> kg CO2e/liter | M48: 3.046327121
D49: Transport biodiesel | E49: =C43*(((SUM(Sidevei!F5:F7)*'Prosjektbeskrivelse og inndata'!C10)+(('Tillegg vei'!F6*Beregningsfaktorer!D82)+('Tillegg vei'!F7*Beregningsfaktorer!D84)))) -> 70.76958 | F49: liter biodiesel | G49: År 0 | H49: Vei i dagen | I49: Biodiesel | J49: =Utslippsfaktorer!B18 -> Biodiesel (WTT) | K49: =SUMIF(Utslippsfaktorer!B:B,Beregninger!J49,Utslippsfaktorer!D:D) -> 1.92 | L49: =VLOOKUP(J49,Utslippsfaktorer!B:C,2,FALSE) -> kg CO2e/liter | M49: 0.1358775936
D50: Transport elektrisk/hydrogen | E50: =C43*(((SUM(Sidevei!G5:G7)*'Prosjektbeskrivelse og inndata'!C10)+(('Tillegg vei'!G6*Beregningsfaktorer!D82)+('Tillegg vei'!G7*Beregningsfaktorer!D84)))) -> 0 | F50: kWh | G50: År 0 | H50: Vei i dagen | I50: Elektrisitet | J50: =Utslippsfaktorer!B23 -> Elektrisitet anleggsfase, norsk miks | K50: =SUMIF(Utslippsfaktorer!B:B,Beregninger!J50,Utslippsfaktorer!D:D) -> 0.02638 | L50: =VLOOKUP(J50,Utslippsfaktorer!B:C,2,FALSE) -> kg CO2e/kWh | M50: 0
D51: Anleggsarbeid diesel | E51: =C43*(((SUM(Sidevei!E15:E28)*'Prosjektbeskrivelse og inndata'!C10)+(('Tillegg vei'!D12*Beregningsfaktorer!D84)+('Tillegg vei'!D13*Beregningsfaktorer!D88)+('Tillegg vei'!D14*Beregningsfaktorer!D86)))) -> 49716.04788 | F51: liter diesel | G51: År 0 | H51: Vei i dagen | I51: Diesel | J51: =Utslippsfaktorer!B20 -> Fossil diesel (WTW) | K51: =SUMIF(Utslippsfaktorer!B:B,Beregninger!J51,Utslippsfaktorer!D:D) -> 3.24 | L51: =VLOOKUP(J51,Utslippsfaktorer!B:C,2,FALSE) -> kg CO2e/liter | M51: 161.0799951
D52: Anleggsarbeid biodiesel | E52: =C43*(((SUM(Sidevei!F15:F28)*'Prosjektbeskrivelse og inndata'!C10)+(('Tillegg vei'!E12*Beregningsfaktorer!D84)+('Tillegg vei'!E13*Beregningsfaktorer!D88)+('Tillegg vei'!E14*Beregningsfaktorer!D86)))) -> 3742.06812 | F52: liter biodiesel | G52: År 0 | H52: Vei i dagen | I52: Biodiesel | J52: =Utslippsfaktorer!B18 -> Biodiesel (WTT) | K52: =SUMIF(Utslippsfaktorer!B:B,Beregninger!J52,Utslippsfaktorer!D:D) -> 1.92 | L52: =VLOOKUP(J52,Utslippsfaktorer!B:C,2,FALSE) -> kg CO2e/liter | M52: 7.18477079
D53: Anleggsarbeid elektrisk/hydrogen | E53: =C43*(((SUM(Sidevei!G15:G28)*'Prosjektbeskrivelse og inndata'!C10)+(('Tillegg vei'!F12*Beregningsfaktorer!D84)+('Tillegg vei'!F13*Beregningsfaktorer!D88)+('Tillegg vei'!F14*Beregningsfaktorer!D86)))) -> 0 | F53: kWh | G53: År 0 | H53: Vei i dagen | I53: Elektrisitet | J53: =Utslippsfaktorer!B23 -> Elektrisitet anleggsfase, norsk miks | K53: =SUMIF(Utslippsfaktorer!B:B,Beregninger!J53,Utslippsfaktorer!D:D) -> 0.02638 | L53: =VLOOKUP(J53,Utslippsfaktorer!B:C,2,FALSE) -> kg CO2e/kWh | M53: 0
B54: Anleggsvei (m) | C54: =SUMIF('Prosjektbeskrivelse og inndata'!$M:$M,B54,'Prosjektbeskrivelse og inndata'!$L:$L) -> 200 | D54: Bærelag asfaltgrus (Ag) | E54: =C54*Anleggsvei!D5*'Prosjektbeskrivelse og inndata'!C11 -> 405600 | F54: kg asfaltgrus | G54: År 0 | H54: Vei i dagen | I54: Asfalt | J54: =Utslippsfaktorer!B8 -> Asfaltgrus (Ag) | K54: =SUMIF(Utslippsfaktorer!B:B,Beregninger!J54,Utslippsfaktorer!D:D) -> 0.0488 | L54: =VLOOKUP(J54,Utslippsfaktorer!B:C,2,FALSE) -> kg CO2e/kg | M54: 19.79328
D55: Transport diesel | E55: =C54*(SUM(Anleggsvei!E5:E6)*'Prosjektbeskrivelse og inndata'!C11) -> 479.30805 | F55: liter diesel | G55: År 0 | H55: Vei i dagen | I55: Diesel | J55: =Utslippsfaktorer!B20 -> Fossil diesel (WTW) | K55: =SUMIF(Utslippsfaktorer!B:B,Beregninger!J55,Utslippsfaktorer!D:D) -> 3.24 | L55: =VLOOKUP(J55,Utslippsfaktorer!B:C,2,FALSE) -> kg CO2e/liter | M55: 1.552958082
D56: Transport biodiesel | E56: =C54*(SUM(Anleggsvei!F5:F6)*'Prosjektbeskrivelse og inndata'!C11) -> 36.07695 | F56: liter biodiesel | G56: År 0 | H56: Vei i dagen | I56: Biodiesel | J56: =Utslippsfaktorer!B18 -> Biodiesel (WTT) | K56: =SUMIF(Utslippsfaktorer!B:B,Beregninger!J56,Utslippsfaktorer!D:D) -> 1.92 | L56: =VLOOKUP(J56,Utslippsfaktorer!B:C,2,FALSE) -> kg CO2e/liter | M56: 0.069267744
D57: Transport elektrisk/hydrogen | E57: =C54*(SUM(Anleggsvei!G5:G6)*'Prosjektbeskrivelse og inndata'!C11) -> 0 | F57: kWh | G57: År 0 | H57: Vei i dagen | I57: Elektrisitet | J57: =Utslippsfaktorer!B23 -> Elektrisitet anleggsfase, norsk miks | K57: =SUMIF(Utslippsfaktorer!B:B,Beregninger!J57,Utslippsfaktorer!D:D) -> 0.02638 | L57: =VLOOKUP(J57,Utslippsfaktorer!B:C,2,FALSE) -> kg CO2e/kWh | M57: 0
D58: Anleggsarbeid diesel | E58: =C54*(SUM(Anleggsvei!E12:E16)*'Prosjektbeskrivelse og inndata'!C11) -> 604.23402 | F58: liter diesel | G58: År 0 | H58: Vei i dagen | I58: Diesel | J58: =Utslippsfaktorer!B20 -> Fossil diesel (WTW) | K58: =SUMIF(Utslippsfaktorer!B:B,Beregninger!J58,Utslippsfaktorer!D:D) -> 3.24 | L58: =VLOOKUP(J58,Utslippsfaktorer!B:C,2,FALSE) -> kg CO2e/liter | M58: 1.957718225
D59: Anleggsarbeid biodiesel | E59: =C54*(SUM(Anleggsvei!F12:F16)*'Prosjektbeskrivelse og inndata'!C11) -> 45.47998 | F59: liter biodiesel | G59: År 0 | H59: Vei i dagen | I59: Biodiesel | J59: =Utslippsfaktorer!B18 -> Biodiesel (WTT) | K59: =SUMIF(Utslippsfaktorer!B:B,Beregninger!J59,Utslippsfaktorer!D:D) -> 1.92 | L59: =VLOOKUP(J59,Utslippsfaktorer!B:C,2,FALSE) -> kg CO2e/liter | M59: 0.0873215616
D60: Anleggsarbeid elektrisk/hydrogen | E60: =C54*(SUM(Anleggsvei!G12:G16)*'Prosjektbeskrivelse og inndata'!C11) -> 0 | F60: kWh | G60: År 0 | H60: Vei i dagen | I60: Elektrisitet | J60: =Utslippsfaktorer!B23 -> Elektrisitet anleggsfase, norsk miks | K60: =SUMIF(Utslippsfaktorer!B:B,Beregninger!J60,Utslippsfaktorer!D:D) -> 0.02638 | L60: =VLOOKUP(J60,Utslippsfaktorer!B:C,2,FALSE) -> kg CO2e/kWh | M60: 0
B61: Betongbru (m) | C61: =SUMIF('Prosjektbeskrivelse og inndata'!$M:$M,B61,'Prosjektbeskrivelse og inndata'!$L:$L) -> 44.4 | D61: Betong | E61: =C61*Betongbru!E5*'Prosjektbeskrivelse og inndata'!C12 -> 1168430.4 | F61: kg betong | G61: År 0 | H61: Bru | I61: Betong | J61: =Utslippsfaktorer!B10 -> Betong | K61: =SUMIF(Utslippsfaktorer!B:B,Beregninger!J61,Utslippsfaktorer!D:D) -> 0.1375 | L61: =VLOOKUP(J61,Utslippsfaktorer!B:C,2,FALSE) -> kg CO2e/kg | M61: 160.65918
D62: Armeringsstål | E62: =C61*Betongbru!E6*'Prosjektbeskrivelse og inndata'!C12 -> 87179.4 | F62: kg armeringsstål | G62: År 0 | H62: Bru | I62: Armeringsstål | J62: =Utslippsfaktorer!B5 -> Armeringsstål | K62: =SUMIF(Utslippsfaktorer!B:B,Beregninger!J62,Utslippsfaktorer!D:D) -> 0.6186 | L62: =VLOOKUP(J62,Utslippsfaktorer!B:C,2,FALSE) -> kg CO2e/kg | M62: 53.92917684
D63: Slitelag skjelettasfalt (Ska) | E63: =C61*Betongbru!E7*'Prosjektbeskrivelse og inndata'!C12 -> 42457.5 | F63: kg skjelettasfalt | G63: År 0 | H63: Bru | I63: Asfalt | J63: =Utslippsfaktorer!B7 -> Skjelettasfalt (Ska) | K63: =SUMIF(Utslippsfaktorer!B:B,Beregninger!J63,Utslippsfaktorer!D:D) -> 0.0657 | L63: =VLOOKUP(J63,Utslippsfaktorer!B:C,2,FALSE) -> kg CO2e/kg | M63: 2.78945775
D64: Bindlag skjelettasfalt (Ska) | E64: =C61*Betongbru!E8*'Prosjektbeskrivelse og inndata'!C12 -> 33022.5 | F64: kg skjelettasfalt | G64: År 0 | H64: Bru | I64: Asfalt | J64: =Utslippsfaktorer!B7 -> Skjelettasfalt (Ska) | K64: =SUMIF(Utslippsfaktorer!B:B,Beregninger!J64,Utslippsfaktorer!D:D) -> 0.0657 | L64: =VLOOKUP(J64,Utslippsfaktorer!B:C,2,FALSE) -> kg CO2e/kg | M64: 2.16957825
D65: Fuktisolering (Topeka) | E65: =C61*Betongbru!E9*'Prosjektbeskrivelse og inndata'!C12 -> 11322 | F65: kg topeka | G65: År 0 | H65: Bru | I65: Asfalt | J65: =Utslippsfaktorer!B9 -> Topeka | K65: =SUMIF(Utslippsfaktorer!B:B,Beregninger!J65,Utslippsfaktorer!D:D) -> 0.184 | L65: =VLOOKUP(J65,Utslippsfaktorer!B:C,2,FALSE) -> kg CO2e/kg | M65: 2.083248
D66: Lyktestolper | E66: =C61*'Tillegg vei'!D5*Beregningsfaktorer!D81 -> 428.349 | F66: kg stål | G66: År 0 | H66: Bru | I66: Stål | J66: =Utslippsfaktorer!B14 -> Stål | K66: =SUMIF(Utslippsfaktorer!B:B,Beregninger!J66,Utslippsfaktorer!D:D) -> 2.1235 | L66: =VLOOKUP(J66,Utslippsfaktorer!B:C,2,FALSE) -> kg CO2e/kg | M66: 0.9095991015
D67: Autovern/rekkverk | E67: =C61*'Tillegg vei'!D7*Beregningsfaktorer!D83 -> 2930.4 | F67: kg stål | G67: År 0 | H67: Bru | I67: Stål | J67: =Utslippsfaktorer!B14 -> Stål | K67: =SUMIF(Utslippsfaktorer!B:B,Beregninger!J67,Utslippsfaktorer!D:D) -> 2.1235 | L67: =VLOOKUP(J67,Utslippsfaktorer!B:C,2,FALSE) -> kg CO2e/kg | M67: 6.2227044
D68: Transport diesel | E68: =C61*(((SUM(Betongbru!F5:F9)*'Prosjektbeskrivelse og inndata'!C12)+(('Tillegg vei'!E5*Beregningsfaktorer!D81)+('Tillegg vei'!E7*Beregningsfaktorer!D83)))) -> 1599.77513 | F68: liter diesel | G68: År 0 | H68: Bru | I68: Diesel | J68: =Utslippsfaktorer!B20 -> Fossil diesel (WTW) | K68: =SUMIF(Utslippsfaktorer!B:B,Beregninger!J68,Utslippsfaktorer!D:D) -> 3.24 | L68: =VLOOKUP(J68,Utslippsfaktorer!B:C,2,FALSE) -> kg CO2e/liter | M68: 5.183271422
D69: Transport biodiesel | E69: =C61*(((SUM(Betongbru!G5:G9)*'Prosjektbeskrivelse og inndata'!C12)+(('Tillegg vei'!F5*Beregningsfaktorer!D81)+('Tillegg vei'!F7*Beregningsfaktorer!D83)))) -> 120.4131818 | F69: liter biodiesel | G69: År 0 | H69: Bru | I69: Biodiesel | J69: =Utslippsfaktorer!B18 -> Biodiesel (WTT) | K69: =SUMIF(Utslippsfaktorer!B:B,Beregninger!J69,Utslippsfaktorer!D:D) -> 1.92 | L69: =VLOOKUP(J69,Utslippsfaktorer!B:C,2,FALSE) -> kg CO2e/liter | M69: 0.2311933091
D70: Transport elektrisk/hydrogen | E70: =C61*(((SUM(Betongbru!H5:H9)*'Prosjektbeskrivelse og inndata'!C12)+(('Tillegg vei'!G5*Beregningsfaktorer!D81)+('Tillegg vei'!G7*Beregningsfaktorer!D83)))) -> 0 | F70: kWh | G70: År 0 | H70: Bru | I70: Elektrisitet | J70: =Utslippsfaktorer!B23 -> Elektrisitet anleggsfase, norsk miks | K70: =SUMIF(Utslippsfaktorer!B:B,Beregninger!J70,Utslippsfaktorer!D:D) -> 0.02638 | L70: =VLOOKUP(J70,Utslippsfaktorer!B:C,2,FALSE) -> kg CO2e/kWh | M70: =(E70*K70)/1000 -> 0
D71: Anleggsarbeid diesel | E71: =C61*(((SUM(Betongbru!E17:E26)*'Prosjektbeskrivelse og inndata'!C12)+(('Tillegg vei'!D12*Beregningsfaktorer!D83)+('Tillegg vei'!D13*Beregningsfaktorer!D87)))) -> 292.1360826 | F71: liter diesel | G71: År 0 | H71: Bru | I71: Diesel | J71: =Utslippsfaktorer!B20 -> Fossil diesel (WTW) | K71: =SUMIF(Utslippsfaktorer!B:B,Beregninger!J71,Utslippsfaktorer!D:D) -> 3.24 | L71: =VLOOKUP(J71,Utslippsfaktorer!B:C,2,FALSE) -> kg CO2e/liter | M71: 0.9465209076
D72: Anleggsarbeid biodiesel | E72: =C61*(((SUM(Betongbru!F17:F26)*'Prosjektbeskrivelse og inndata'!C12)+(('Tillegg vei'!E12*Beregningsfaktorer!D83)+('Tillegg vei'!E13*Beregningsfaktorer!D87)))) -> 21.9887374 | F72: liter biodiesel | G72: År 0 | H72: Bru | I72: Biodiesel | J72: =Utslippsfaktorer!B18 -> Biodiesel (WTT) | K72: =SUMIF(Utslippsfaktorer!B:B,Beregninger!J72,Utslippsfaktorer!D:D) -> 1.92 | L72: =VLOOKUP(J72,Utslippsfaktorer!B:C,2,FALSE) -> kg CO2e/liter | M72: 0.04221837581
D73: Anleggsarbeid elektrisk/hydrogen | E73: =C61*(((SUM(Betongbru!G17:G26)*'Prosjektbeskrivelse og inndata'!C12)+(('Tillegg vei'!F12*Beregningsfaktorer!D83)+('Tillegg vei'!F13*Beregningsfaktorer!D87)))) -> 0 | F73: kWh | G73: År 0 | H73: Bru | I73: Elektrisitet | J73: =Utslippsfaktorer!B23 -> Elektrisitet anleggsfase, norsk miks | K73: =SUMIF(Utslippsfaktorer!B:B,Beregninger!J73,Utslippsfaktorer!D:D) -> 0.02638 | L73: =VLOOKUP(J73,Utslippsfaktorer!B:C,2,FALSE) -> kg CO2e/kWh | M73: 0
B74: Stålbru (m) | C74: =SUMIF('Prosjektbeskrivelse og inndata'!$M:$M,B74,'Prosjektbeskrivelse og inndata'!$L:$L) -> 0 | D74: Betong | E74: =C74*Stålbru!E5*'Prosjektbeskrivelse og inndata'!C13 -> 0 | F74: kg betong | G74: År 0 | H74: Bru | I74: Betong | J74: =Utslippsfaktorer!B10 -> Betong | K74: =SUMIF(Utslippsfaktorer!B:B,Beregninger!J74,Utslippsfaktorer!D:D) -> 0.1375 | L74: =VLOOKUP(J74,Utslippsfaktorer!B:C,2,FALSE) -> kg CO2e/kg | M74: 0
D75: Armeringsstål | E75: =C74*Stålbru!E6*'Prosjektbeskrivelse og inndata'!C13 -> 0 | F75: kg armeringsstål | G75: År 0 | H75: Bru | I75: Armeringsstål | J75: =Utslippsfaktorer!B5 -> Armeringsstål | K75: =SUMIF(Utslippsfaktorer!B:B,Beregninger!J75,Utslippsfaktorer!D:D) -> 0.6186 | L75: =VLOOKUP(J75,Utslippsfaktorer!B:C,2,FALSE) -> kg CO2e/kg | M75: 0
D76: Konstruksjonsstål | E76: =C74*Stålbru!E7*'Prosjektbeskrivelse og inndata'!C13 -> 0 | F76: kg stål | G76: År 0 | H76: Bru | I76: Stål | J76: =Utslippsfaktorer!B14 -> Stål | K76: =SUMIF(Utslippsfaktorer!B:B,Beregninger!J76,Utslippsfaktorer!D:D) -> 2.1235 | L76: =VLOOKUP(J76,Utslippsfaktorer!B:C,2,FALSE) -> kg CO2e/kg | M76: 0
D77: Slitelag skjelettasfalt (Ska) | E77: =C74*Stålbru!E8*'Prosjektbeskrivelse og inndata'!C13 -> 0 | F77: kg skjelettasfalt | G77: År 0 | H77: Bru | I77: Asfalt | J77: =Utslippsfaktorer!B7 -> Skjelettasfalt (Ska) | K77: =SUMIF(Utslippsfaktorer!B:B,Beregninger!J77,Utslippsfaktorer!D:D) -> 0.0657 | L77: =VLOOKUP(J77,Utslippsfaktorer!B:C,2,FALSE) -> kg CO2e/kg | M77: 0
D78: Bindlag skjelettasfalt (Ska) | E78: =C74*Stålbru!E9*'Prosjektbeskrivelse og inndata'!C13 -> 0 | F78: kg skjelettasfalt | G78: År 0 | H78: Bru | I78: Asfalt | J78: =Utslippsfaktorer!B7 -> Skjelettasfalt (Ska) | K78: =SUMIF(Utslippsfaktorer!B:B,Beregninger!J78,Utslippsfaktorer!D:D) -> 0.0657 | L78: =VLOOKUP(J78,Utslippsfaktorer!B:C,2,FALSE) -> kg CO2e/kg | M78: 0
D79: Fuktisolering (Topeka) | E79: =C74*Stålbru!E10*'Prosjektbeskrivelse og inndata'!C13 -> 0 | F79: kg topeka | G79: År 0 | H79: Bru | I79: Asfalt | J79: =Utslippsfaktorer!B9 -> Topeka | K79: =SUMIF(Utslippsfaktorer!B:B,Beregninger!J79,Utslippsfaktorer!D:D) -> 0.184 | L79: =VLOOKUP(J79,Utslippsfaktorer!B:C,2,FALSE) -> kg CO2e/kg | M79: 0
D80: Lyktestolper | E80: =C74*'Tillegg vei'!D5*Beregningsfaktorer!D81 -> 0 | F80: kg stål | G80: År 0 | H80: Bru | I80: Stål | J80: =Utslippsfaktorer!B14 -> Stål | K80: =SUMIF(Utslippsfaktorer!B:B,Beregninger!J80,Utslippsfaktorer!D:D) -> 2.1235 | L80: =VLOOKUP(J80,Utslippsfaktorer!B:C,2,FALSE) -> kg CO2e/kg | M80: 0
D81: Autovern/rekkverk | E81: =C74*'Tillegg vei'!D7*Beregningsfaktorer!D83 -> 0 | F81: kg stål | G81: År 0 | H81: Bru | I81: Stål | J81: =Utslippsfaktorer!B14 -> Stål | K81: =SUMIF(Utslippsfaktorer!B:B,Beregninger!J81,Utslippsfaktorer!D:D) -> 2.1235 | L81: =VLOOKUP(J81,Utslippsfaktorer!B:C,2,FALSE) -> kg CO2e/kg | M81: 0
D82: Transport diesel | E82: =C74*(((SUM(Stålbru!F5:F10)*'Prosjektbeskrivelse og inndata'!C13)+(('Tillegg vei'!E5*Beregningsfaktorer!D81)+('Tillegg vei'!E7*Beregningsfaktorer!D83)))) -> 0 | F82: liter diesel | G82: År 0 | H82: Bru | I82: Diesel | J82: =Utslippsfaktorer!B20 -> Fossil diesel (WTW) | K82: =SUMIF(Utslippsfaktorer!B:B,Beregninger!J82,Utslippsfaktorer!D:D) -> 3.24 | L82: =VLOOKUP(J82,Utslippsfaktorer!B:C,2,FALSE) -> kg CO2e/liter | M82: 0
D83: Transport biodiesel | E83: =C74*(((SUM(Stålbru!G5:G10)*'Prosjektbeskrivelse og inndata'!C13)+(('Tillegg vei'!F5*Beregningsfaktorer!D81)+('Tillegg vei'!F7*Beregningsfaktorer!D83)))) -> 0 | F83: liter biodiesel | G83: År 0 | H83: Bru | I83: Biodiesel | J83: =Utslippsfaktorer!B18 -> Biodiesel (WTT) | K83: =SUMIF(Utslippsfaktorer!B:B,Beregninger!J83,Utslippsfaktorer!D:D) -> 1.92 | L83: =VLOOKUP(J83,Utslippsfaktorer!B:C,2,FALSE) -> kg CO2e/liter | M83: 0
D84: Transport elektrisk/hydrogen | E84: =C74*(((SUM(Stålbru!H5:H10)*'Prosjektbeskrivelse og inndata'!C13)+(('Tillegg vei'!G5*Beregningsfaktorer!D81)+('Tillegg vei'!G7*Beregningsfaktorer!D83)))) -> 0 | F84: kWh | G84: År 0 | H84: Bru | I84: Elektrisitet | J84: =Utslippsfaktorer!B23 -> Elektrisitet anleggsfase, norsk miks | K84: =SUMIF(Utslippsfaktorer!B:B,Beregninger!J84,Utslippsfaktorer!D:D) -> 0.02638 | L84: =VLOOKUP(J84,Utslippsfaktorer!B:C,2,FALSE) -> kg CO2e/kWh | M84: 0
D85: Anleggsarbeid diesel | E85: =C74*(((SUM(Stålbru!E18:E27)*'Prosjektbeskrivelse og inndata'!C13)+(('Tillegg vei'!D12*Beregningsfaktorer!D83)+('Tillegg vei'!D13*Beregningsfaktorer!D87)))) -> 0 | F85: liter diesel | G85: År 0 | H85: Bru | I85: Diesel | J85: =Utslippsfaktorer!B20 -> Fossil diesel (WTW) | K85: =SUMIF(Utslippsfaktorer!B:B,Beregninger!J85,Utslippsfaktorer!D:D) -> 3.24 | L85: =VLOOKUP(J85,Utslippsfaktorer!B:C,2,FALSE) -> kg CO2e/liter | M85: 0
D86: Anleggsarbeid biodiesel | E86: =C74*(((SUM(Stålbru!F18:F27)*'Prosjektbeskrivelse og inndata'!C13)+(('Tillegg vei'!E12*Beregningsfaktorer!D83)+('Tillegg vei'!E13*Beregningsfaktorer!D87)))) -> 0 | F86: liter biodiesel | G86: År 0 | H86: Bru | I86: Biodiesel | J86: =Utslippsfaktorer!B18 -> Biodiesel (WTT) | K86: =SUMIF(Utslippsfaktorer!B:B,Beregninger!J86,Utslippsfaktorer!D:D) -> 1.92 | L86: =VLOOKUP(J86,Utslippsfaktorer!B:C,2,FALSE) -> kg CO2e/liter | M86: 0
D87: Anleggsarbeid elektrisk/hydrogen | E87: =C74*(((SUM(Stålbru!G16:G27)*'Prosjektbeskrivelse og inndata'!C13)+(('Tillegg vei'!F12*Beregningsfaktorer!D83)+('Tillegg vei'!F13*Beregningsfaktorer!D87)))) -> 0 | F87: kWh | G87: År 0 | H87: Bru | I87: Elektrisitet | J87: =Utslippsfaktorer!B23 -> Elektrisitet anleggsfase, norsk miks | K87: =SUMIF(Utslippsfaktorer!B:B,Beregninger!J87,Utslippsfaktorer!D:D) -> 0.02638 | L87: =VLOOKUP(J87,Utslippsfaktorer!B:C,2,FALSE) -> kg CO2e/kWh | M87: 0
B88: Tunnel enkeltløp (m) | C88: =SUMIF('Prosjektbeskrivelse og inndata'!$M:$M,B88,'Prosjektbeskrivelse og inndata'!$L:$L) -> 0 | D88: Betong | E88: =C88*'Tunnel enkeltløp'!F10 -> 0 | F88: kg betong | G88: År 0 | H88: Tunnel | I88: Betong | J88: =Utslippsfaktorer!B10 -> Betong | K88: =SUMIF(Utslippsfaktorer!B:B,Beregninger!J88,Utslippsfaktorer!D:D) -> 0.1375 | L88: =VLOOKUP(J88,Utslippsfaktorer!B:C,2,FALSE) -> kg CO2e/kg | M88: 0
D89: Armeringsstål | E89: =C88*'Tunnel enkeltløp'!F11 -> 0 | F89: kg armeringsstål | G89: År 0 | H89: Tunnel | I89: Armeringsstål | J89: =Utslippsfaktorer!B5 -> Armeringsstål | K89: =SUMIF(Utslippsfaktorer!B:B,Beregninger!J89,Utslippsfaktorer!D:D) -> 0.6186 | L89: =VLOOKUP(J89,Utslippsfaktorer!B:C,2,FALSE) -> kg CO2e/kg | M89: 0
D90: Sikringsbolter | E90: =C88*'Tunnel enkeltløp'!F12 -> 0 | F90: kg stål | G90: År 0 | H90: Tunnel | I90: Stål | J90: =Utslippsfaktorer!B14 -> Stål | K90: =SUMIF(Utslippsfaktorer!B:B,Beregninger!J90,Utslippsfaktorer!D:D) -> 2.1235 | L90: =VLOOKUP(J90,Utslippsfaktorer!B:C,2,FALSE) -> kg CO2e/kg | M90: 0
D91: Frostsikring | E91: =C88*'Tunnel enkeltløp'!G13 -> 0 | F91: m2 isolasjon | G91: År 0 | H91: Tunnel | I91: Frostsikring tunnel | J91: =Utslippsfaktorer!B16 -> XPS/betongelement | K91: =SUMIF(Utslippsfaktorer!B:B,Beregninger!J91,Utslippsfaktorer!D:D) -> 66.815 | L91: =VLOOKUP(J91,Utslippsfaktorer!B:C,2,FALSE) -> kg CO2e/m2 | M91: =(E91*K91)/1000 -> 0
D92: Slitelag skjelettasfalt (Ska) | E92: =C88*'Tunnel enkeltløp'!F14 -> 0 | F92: kg skjelettasfalt | G92: År 0 | H92: Tunnel | I92: Asfalt | J92: =Utslippsfaktorer!B7 -> Skjelettasfalt (Ska) | K92: =SUMIF(Utslippsfaktorer!B:B,Beregninger!J92,Utslippsfaktorer!D:D) -> 0.0657 | L92: =VLOOKUP(J92,Utslippsfaktorer!B:C,2,FALSE) -> kg CO2e/kg | M92: 0
D93: Bindlag skjelettasfalt (Ska) | E93: =C88*'Tunnel enkeltløp'!F15 -> 0 | F93: kg skjelettasfalt | G93: År 0 | H93: Tunnel | I93: Asfalt | J93: =Utslippsfaktorer!B7 -> Skjelettasfalt (Ska) | K93: =SUMIF(Utslippsfaktorer!B:B,Beregninger!J93,Utslippsfaktorer!D:D) -> 0.0657 | L93: =VLOOKUP(J93,Utslippsfaktorer!B:C,2,FALSE) -> kg CO2e/kg | M93: 0
D94: Bærelag asfaltgrus (Ag) | E94: =C88*'Tunnel enkeltløp'!F16 -> 0 | F94: kg asfaltgrus | G94: År 0 | H94: Tunnel | I94: Asfalt | J94: =Utslippsfaktorer!B8 -> Asfaltgrus (Ag) | K94: =SUMIF(Utslippsfaktorer!B:B,Beregninger!J94,Utslippsfaktorer!D:D) -> 0.0488 | L94: =VLOOKUP(J94,Utslippsfaktorer!B:C,2,FALSE) -> kg CO2e/kg | M94: 0
D95: Autovern/rekkverk | E95: =C88*'Tillegg vei'!D7*Beregningsfaktorer!D83 -> 0 | F95: kg stål | G95: År 0 | H95: Tunnel | I95: Stål | J95: =Utslippsfaktorer!B14 -> Stål | K95: =SUMIF(Utslippsfaktorer!B:B,Beregninger!J95,Utslippsfaktorer!D:D) -> 2.1235 | L95: =VLOOKUP(J95,Utslippsfaktorer!B:C,2,FALSE) -> kg CO2e/kg | M95: 0
D96: Transport diesel | E96: =C88*(((SUM('Tunnel enkeltløp'!H10:H18))+('Tillegg vei'!E7*Beregningsfaktorer!D83))) -> 0 | F96: liter diesel | G96: År 0 | H96: Tunnel | I96: Diesel | J96: =Utslippsfaktorer!B20 -> Fossil diesel (WTW) | K96: =SUMIF(Utslippsfaktorer!B:B,Beregninger!J96,Utslippsfaktorer!D:D) -> 3.24 | L96: =VLOOKUP(J96,Utslippsfaktorer!B:C,2,FALSE) -> kg CO2e/liter | M96: 0
D97: Transport biodiesel | E97: =C88*(((SUM('Tunnel enkeltløp'!I10:I18))+('Tillegg vei'!F7*Beregningsfaktorer!D83))) -> 0 | F97: liter biodiesel | G97: År 0 | H97: Tunnel | I97: Biodiesel | J97: =Utslippsfaktorer!B18 -> Biodiesel (WTT) | K97: =SUMIF(Utslippsfaktorer!B:B,Beregninger!J97,Utslippsfaktorer!D:D) -> 1.92 | L97: =VLOOKUP(J97,Utslippsfaktorer!B:C,2,FALSE) -> kg CO2e/liter | M97: 0
D98: Transport elektrisk/hydrogen | E98: =C88*(((SUM('Tunnel enkeltløp'!J10:J18))+('Tillegg vei'!G7*Beregningsfaktorer!D83))) -> 0 | F98: kWh | G98: År 0 | H98: Tunnel | I98: Elektrisitet | J98: =Utslippsfaktorer!B23 -> Elektrisitet anleggsfase, norsk miks | K98: =SUMIF(Utslippsfaktorer!B:B,Beregninger!J98,Utslippsfaktorer!D:D) -> 0.02638 | L98: =VLOOKUP(J98,Utslippsfaktorer!B:C,2,FALSE) -> kg CO2e/kWh | M98: 0
D99: Anleggsarbeid diesel | E99: =C88*(((SUM('Tunnel enkeltløp'!E24:E37))+(('Tillegg vei'!D12*Beregningsfaktorer!D83)+('Tillegg vei'!D13*Beregningsfaktorer!D87)))) -> 0 | F99: liter diesel | G99: År 0 | H99: Tunnel | I99: Diesel | J99: =Utslippsfaktorer!B20 -> Fossil diesel (WTW) | K99: =SUMIF(Utslippsfaktorer!B:B,Beregninger!J99,Utslippsfaktorer!D:D) -> 3.24 | L99: =VLOOKUP(J99,Utslippsfaktorer!B:C,2,FALSE) -> kg CO2e/liter | M99: 0
D100: Anleggsarbeid biodiesel | E100: =C88*(((SUM('Tunnel enkeltløp'!F24:F37))+(('Tillegg vei'!E12*Beregningsfaktorer!D83)+('Tillegg vei'!E13*Beregningsfaktorer!D87)))) -> 0 | F100: liter biodiesel | G100: År 0 | H100: Tunnel | I100: Biodiesel | J100: =Utslippsfaktorer!B18 -> Biodiesel (WTT) | K100: =SUMIF(Utslippsfaktorer!B:B,Beregninger!J100,Utslippsfaktorer!D:D) -> 1.92 | L100: =VLOOKUP(J100,Utslippsfaktorer!B:C,2,FALSE) -> kg CO2e/liter | M100: 0
D101: Anleggsarbeid elektrisk/hydrogen | E101: =C88*(((SUM('Tunnel enkeltløp'!G24:G37))+(('Tillegg vei'!F12*Beregningsfaktorer!D83)+('Tillegg vei'!F13*Beregningsfaktorer!D87)))) -> 0 | F101: kWh | G101: År 0 | H101: Tunnel | I101: Elektrisitet | J101: =Utslippsfaktorer!B23 -> Elektrisitet anleggsfase, norsk miks | K101: =SUMIF(Utslippsfaktorer!B:B,Beregninger!J101,Utslippsfaktorer!D:D) -> 0.02638 | L101: =VLOOKUP(J101,Utslippsfaktorer!B:C,2,FALSE) -> kg CO2e/kWh | M101: 0
B102: Tunnel dobbeltløp (m) | C102: =SUMIF('Prosjektbeskrivelse og inndata'!$M:$M,B102,'Prosjektbeskrivelse og inndata'!$L:$L) -> 0 | D102: Betong | E102: =C102*'Tunnel dobbeltløp'!F10*2 -> 0 | F102: kg betong | G102: År 0 | H102: Tunnel | I102: Betong | J102: =Utslippsfaktorer!B10 -> Betong | K102: =SUMIF(Utslippsfaktorer!B:B,Beregninger!J102,Utslippsfaktorer!D:D) -> 0.1375 | L102: =VLOOKUP(J102,Utslippsfaktorer!B:C,2,FALSE) -> kg CO2e/kg | M102: 0
D103: Armeringsstål | E103: =C102*'Tunnel dobbeltløp'!F11*2 -> 0 | F103: kg armeringsstål | G103: År 0 | H103: Tunnel | I103: Armeringsstål | J103: =Utslippsfaktorer!B5 -> Armeringsstål | K103: =SUMIF(Utslippsfaktorer!B:B,Beregninger!J103,Utslippsfaktorer!D:D) -> 0.6186 | L103: =VLOOKUP(J103,Utslippsfaktorer!B:C,2,FALSE) -> kg CO2e/kg | M103: 0
D104: Sikringsbolter | E104: =C102*'Tunnel dobbeltløp'!F12*2 -> 0 | F104: kg stål | G104: År 0 | H104: Tunnel | I104: Stål | J104: =Utslippsfaktorer!B14 -> Stål | K104: =SUMIF(Utslippsfaktorer!B:B,Beregninger!J104,Utslippsfaktorer!D:D) -> 2.1235 | L104: =VLOOKUP(J104,Utslippsfaktorer!B:C,2,FALSE) -> kg CO2e/kg | M104: 0
D105: Frostsikring | E105: =C102*'Tunnel dobbeltløp'!G13 -> 0 | F105: m2 isolasjon | G105: År 0 | H105: Tunnel | I105: Frostsikring tunnel | J105: =Utslippsfaktorer!B16 -> XPS/betongelement | K105: =SUMIF(Utslippsfaktorer!B:B,Beregninger!J105,Utslippsfaktorer!D:D) -> 66.815 | L105: =VLOOKUP(J105,Utslippsfaktorer!B:C,2,FALSE) -> kg CO2e/m2 | M105: 0
D106: Slitelag skjelettasfalt (Ska) | E106: =C102*'Tunnel dobbeltløp'!F14*2 -> 0 | F106: kg skjelettasfalt | G106: År 0 | H106: Tunnel | I106: Asfalt | J106: =Utslippsfaktorer!B7 -> Skjelettasfalt (Ska) | K106: =SUMIF(Utslippsfaktorer!B:B,Beregninger!J106,Utslippsfaktorer!D:D) -> 0.0657 | L106: =VLOOKUP(J106,Utslippsfaktorer!B:C,2,FALSE) -> kg CO2e/kg | M106: 0
D107: Bindlag skjelettasfalt (Ska) | E107: =C102*'Tunnel dobbeltløp'!F15*2 -> 0 | F107: kg skjelettasfalt | G107: År 0 | H107: Tunnel | I107: Asfalt | J107: =Utslippsfaktorer!B7 -> Skjelettasfalt (Ska) | K107: =SUMIF(Utslippsfaktorer!B:B,Beregninger!J107,Utslippsfaktorer!D:D) -> 0.0657 | L107: =VLOOKUP(J107,Utslippsfaktorer!B:C,2,FALSE) -> kg CO2e/kg | M107: 0
D108: Bærelag asfaltgrus (Ag) | E108: =C102*'Tunnel dobbeltløp'!F16*2 -> 0 | F108: kg asfaltgrus | G108: År 0 | H108: Tunnel | I108: Asfalt | J108: =Utslippsfaktorer!B8 -> Asfaltgrus (Ag) | K108: =SUMIF(Utslippsfaktorer!B:B,Beregninger!J108,Utslippsfaktorer!D:D) -> 0.0488 | L108: =VLOOKUP(J108,Utslippsfaktorer!B:C,2,FALSE) -> kg CO2e/kg | M108: 0
D109: Autovern/rekkverk | E109: =C102*'Tillegg vei'!D7*Beregningsfaktorer!D84*2 -> 0 | F109: kg stål | G109: År 0 | H109: Tunnel | I109: Stål | J109: =Utslippsfaktorer!B14 -> Stål | K109: =SUMIF(Utslippsfaktorer!B:B,Beregninger!J109,Utslippsfaktorer!D:D) -> 2.1235 | L109: =VLOOKUP(J109,Utslippsfaktorer!B:C,2,FALSE) -> kg CO2e/kg | M109: 0
D110: Transport diesel | E110: =C102*(((SUM('Tunnel dobbeltløp'!H10:H18))+('Tillegg vei'!E7*Beregningsfaktorer!D84)))*2 -> 0 | F110: liter diesel | G110: År 0 | H110: Tunnel | I110: Diesel | J110: =Utslippsfaktorer!B20 -> Fossil diesel (WTW) | K110: =SUMIF(Utslippsfaktorer!B:B,Beregninger!J110,Utslippsfaktorer!D:D) -> 3.24 | L110: =VLOOKUP(J110,Utslippsfaktorer!B:C,2,FALSE) -> kg CO2e/liter | M110: 0
D111: Transport biodiesel | E111: =C102*(((SUM('Tunnel dobbeltløp'!I10:I18))+('Tillegg vei'!F7*Beregningsfaktorer!D84)))*2 -> 0 | F111: liter biodiesel | G111: År 0 | H111: Tunnel | I111: Biodiesel | J111: =Utslippsfaktorer!B18 -> Biodiesel (WTT) | K111: =SUMIF(Utslippsfaktorer!B:B,Beregninger!J111,Utslippsfaktorer!D:D) -> 1.92 | L111: =VLOOKUP(J111,Utslippsfaktorer!B:C,2,FALSE) -> kg CO2e/liter | M111: 0
D112: Transport elektrisk/hydrogen | E112: =C102*(((SUM('Tunnel dobbeltløp'!J10:J18))+('Tillegg vei'!G7*Beregningsfaktorer!D84)))*2 -> 0 | F112: kWh | G112: År 0 | H112: Tunnel | I112: Elektrisitet | J112: =Utslippsfaktorer!B23 -> Elektrisitet anleggsfase, norsk miks | K112: =SUMIF(Utslippsfaktorer!B:B,Beregninger!J112,Utslippsfaktorer!D:D) -> 0.02638 | L112: =VLOOKUP(J112,Utslippsfaktorer!B:C,2,FALSE) -> kg CO2e/kWh | M112: 0
D113: Anleggsarbeid diesel | E113: =C102*(((SUM('Tunnel dobbeltløp'!E24:E37))+(('Tillegg vei'!D12*Beregningsfaktorer!D84)+('Tillegg vei'!D13*Beregningsfaktorer!D88))))*2 -> 0 | F113: liter diesel | G113: År 0 | H113: Tunnel | I113: Diesel | J113: =Utslippsfaktorer!B20 -> Fossil diesel (WTW) | K113: =SUMIF(Utslippsfaktorer!B:B,Beregninger!J113,Utslippsfaktorer!D:D) -> 3.24 | L113: =VLOOKUP(J113,Utslippsfaktorer!B:C,2,FALSE) -> kg CO2e/liter | M113: 0
D114: Anleggsarbeid biodiesel | E114: =C102*(((SUM('Tunnel dobbeltløp'!F24:F37))+(('Tillegg vei'!E12*Beregningsfaktorer!D84)+('Tillegg vei'!E13*Beregningsfaktorer!D88))))*2 -> 0 | F114: liter biodiesel | G114: År 0 | H114: Tunnel | I114: Biodiesel | J114: =Utslippsfaktorer!B18 -> Biodiesel (WTT) | K114: =SUMIF(Utslippsfaktorer!B:B,Beregninger!J114,Utslippsfaktorer!D:D) -> 1.92 | L114: =VLOOKUP(J114,Utslippsfaktorer!B:C,2,FALSE) -> kg CO2e/liter | M114: 0
D115: Anleggsarbeid elektrisk/hydrogen | E115: =C102*(((SUM('Tunnel dobbeltløp'!G24:G37))+(('Tillegg vei'!F12*Beregningsfaktorer!D84)+('Tillegg vei'!F13*Beregningsfaktorer!D88))))*2 -> 0 | F115: kWh | G115: År 0 | H115: Tunnel | I115: Elektrisitet | J115: =Utslippsfaktorer!B23 -> Elektrisitet anleggsfase, norsk miks | K115: =SUMIF(Utslippsfaktorer!B:B,Beregninger!J115,Utslippsfaktorer!D:D) -> 0.02638 | L115: =VLOOKUP(J115,Utslippsfaktorer!B:C,2,FALSE) -> kg CO2e/kWh | M115: 0
B116: Betongkulvert (m2) | C116: =SUMIF('Prosjektbeskrivelse og inndata'!$M:$M,B116,'Prosjektbeskrivelse og inndata'!$L:$L) -> 225 | D116: Betong | E116: =C116*Kulvert!E5 -> 673920 | F116: kg betong | G116: År 0 | H116: Kulvert | I116: Betong | J116: =Utslippsfaktorer!B10 -> Betong | K116: =SUMIF(Utslippsfaktorer!B:B,Beregninger!J116,Utslippsfaktorer!D:D) -> 0.1375 | L116: =VLOOKUP(J116,Utslippsfaktorer!B:C,2,FALSE) -> kg CO2e/kg | M116: 92.664
D117: Armeringsstål | E117: =C116*Kulvert!E6 -> 51840 | F117: kg armeringsstål | G117: År 0 | H117: Kulvert | I117: Armeringsstål | J117: =Utslippsfaktorer!B5 -> Armeringsstål | K117: =SUMIF(Utslippsfaktorer!B:B,Beregninger!J117,Utslippsfaktorer!D:D) -> 0.6186 | L117: =VLOOKUP(J117,Utslippsfaktorer!B:C,2,FALSE) -> kg CO2e/kg | M117: 32.068224
D118: Transport diesel | E118: =C116*(SUM(Kulvert!F5:F6)) -> 887.08608 | F118: liter diesel | G118: År 0 | H118: Kulvert | I118: Diesel | J118: =Utslippsfaktorer!B20 -> Fossil diesel (WTW) | K118: =SUMIF(Utslippsfaktorer!B:B,Beregninger!J118,Utslippsfaktorer!D:D) -> 3.24 | L118: =VLOOKUP(J118,Utslippsfaktorer!B:C,2,FALSE) -> kg CO2e/liter | M118: 2.874158899
D119: Transport biodiesel | E119: =C116*(SUM(Kulvert!G5:G6)) -> 66.76992 | F119: liter biodiesel | G119: År 0 | H119: Kulvert | I119: Biodiesel | J119: =Utslippsfaktorer!B18 -> Biodiesel (WTT) | K119: =SUMIF(Utslippsfaktorer!B:B,Beregninger!J119,Utslippsfaktorer!D:D) -> 1.92 | L119: =VLOOKUP(J119,Utslippsfaktorer!B:C,2,FALSE) -> kg CO2e/liter | M119: 0.1281982464
D120: Transport elektrisk/hydrogen | E120: =C116*(SUM(Kulvert!H5:H6)) -> 0 | F120: kWh | G120: År 0 | H120: Kulvert | I120: Elektrisitet | J120: =Utslippsfaktorer!B23 -> Elektrisitet anleggsfase, norsk miks | K120: =SUMIF(Utslippsfaktorer!B:B,Beregninger!J120,Utslippsfaktorer!D:D) -> 0.02638 | L120: =VLOOKUP(J120,Utslippsfaktorer!B:C,2,FALSE) -> kg CO2e/kWh | M120: 0
D121: Anleggsarbeid diesel | F121: liter diesel | G121: År 0 | H121: Kulvert | I121: Diesel | J121: =Utslippsfaktorer!B20 -> Fossil diesel (WTW) | K121: =SUMIF(Utslippsfaktorer!B:B,Beregninger!J121,Utslippsfaktorer!D:D) -> 3.24 | L121: =VLOOKUP(J121,Utslippsfaktorer!B:C,2,FALSE) -> kg CO2e/liter | M121: 0
D122: Anleggsarbeid biodiesel | F122: liter biodiesel | G122: År 0 | H122: Kulvert | I122: Biodiesel | J122: =Utslippsfaktorer!B18 -> Biodiesel (WTT) | K122: =SUMIF(Utslippsfaktorer!B:B,Beregninger!J122,Utslippsfaktorer!D:D) -> 1.92 | L122: =VLOOKUP(J122,Utslippsfaktorer!B:C,2,FALSE) -> kg CO2e/liter | M122: 0
D123: Anleggsarbeid elektrisk/hydrogen | E123: ='Prosjektbeskrivelse og inndata'!C8*Kulvert!G11 -> 2624.4 | F123: kWh | G123: År 0 | H123: Kulvert | I123: Elektrisitet | J123: =Utslippsfaktorer!B23 -> Elektrisitet anleggsfase, norsk miks | K123: =SUMIF(Utslippsfaktorer!B:B,Beregninger!J123,Utslippsfaktorer!D:D) -> 0.02638 | L123: =VLOOKUP(J123,Utslippsfaktorer!B:C,2,FALSE) -> kg CO2e/kWh | M123: 0.069231672
A124: Drift- og vedlikeholdsfase | G124: Drifts-intervall [år] | N124: Sum analyse-periode | O124: Verdi i år
O125: 1 | P125: 2 | Q125: 3 | R125: 4 | S125: 5 | T125: 6 | U125: 7 | V125: 8 | W125: 9 | X125: 10 | Y125: 11 | Z125: 12 | AA125: 13 | AB125: 14 | AC125: 15 | AD125: 16 | AE125: 17 | AF125: 18 | AG125: 19 | AH125: 20 | AI125: 21 | AJ125: 22 | AK125: 23 | AL125: 24 | AM125: 25 | AN125: 26 | AO125: 27 | AP125: 28 | AQ125: 29 | AR125: 30 | AS125: 31 | AT125: 32 | AU125: 33 | AV125: 34 | AW125: 35 | AX125: 36 | AY125: 37 | AZ125: 38 | BA125: 39 | BB125: 40 | BC125: 41 | BD125: 42 | BE125: 43 | BF125: 44 | BG125: 45 | BH125: 46 | BI125: 47 | BJ125: 48 | BK125: 49 | BL125: 50 | BM125: 51 | BN125: 52 | BO125: 53 | BP125: 54 | BQ125: 55 | BR125: 56 | BS125: 57 | BT125: 58 | BU125: 59 | BV125: 60
B126: Drift hovedvei (m) | C126: =SUMIF('Prosjektbeskrivelse og inndata'!$M:$M,B32,'Prosjektbeskrivelse og inndata'!$L:$L) -> 4700 | D126: Asfalt til reasfaltering | E126: =C126*'Prosjektbeskrivelse og inndata'!C9*Reasfaltering!D8 -> 2379375 | F126: kg skjelettasfalt | G126: =Beregningsfaktorer!D50 -> 7 | H126: Reasfaltering | I126: Asfalt | J126: =Utslippsfaktorer!B7 -> Skjelettasfalt (Ska) | K126: =SUMIF(Utslippsfaktorer!B:B,Beregninger!J126,Utslippsfaktorer!D:D) -> 0.0657 | L126: =VLOOKUP(J126,Utslippsfaktorer!B:C,2,FALSE) -> kg CO2e/kg | M126: =(E126*K126)/1000 -> 156.3249375 | N126: =SUMIF($O$125:$BV$125,"<=" & 'Prosjektbeskrivelse og inndata'!$C$14,O126:BL126) -> 1250.5995 | O126: =IF(MOD(O$125,$G126)=0,$M126,"") ->  | U126: 156.3249375 | Y126: =IF(MOD(Y$125,$G126)=0,$M126,"") ->  | AB126: 156.3249375 | AI126: =IF(MOD(AI$125,$G126)=0,$M126,"") -> 156.3249375 | AP126: 156.3249375 | AS126: =IF(MOD(AS$125,$G126)=0,$M126,"") ->  | AW126: 156.3249375 | BC126: =IF(MOD(BC$125,$G126)=0,$M126,"") ->  | BD126: 156.3249375 | BK126: 156.3249375 | BM126: =IF(MOD(BM$125,$G126)=0,$M126,"") ->  | BR126: 156.3249375
D127: Transport av asfalt diesel | E127: =C126*'Prosjektbeskrivelse og inndata'!C9*Reasfaltering!E8 -> 663.845625 | F127: liter diesel | G127: =Beregningsfaktorer!D50 -> 7 | H127: Reasfaltering | I127: Diesel | J127: =Utslippsfaktorer!B20 -> Fossil diesel (WTW) | K127: =SUMIF(Utslippsfaktorer!B:B,Beregninger!J127,Utslippsfaktorer!D:D) -> 3.24 | L127: =VLOOKUP(J127,Utslippsfaktorer!B:C,2,FALSE) -> kg CO2e/liter | M127: =(E127*K127)/1000 -> 2.150859825 | N127: =SUMIF($O$125:$BV$125,"<=" & 'Prosjektbeskrivelse og inndata'!$C$14,O127:BL127) -> 17.2068786 | U127: 2.150859825 | AB127: 2.150859825 | AI127: 2.150859825 | AP127: 2.150859825 | AW127: 2.150859825 | BD127: 2.150859825 | BK127: 2.150859825 | BR127: 2.150859825
D128: Transport av asfalt biodiesel | E128: =C126*'Prosjektbeskrivelse og inndata'!C9*Reasfaltering!F8 -> 49.966875 | F128: liter biodiesel | G128: =Beregningsfaktorer!D50 -> 7 | H128: Reasfaltering | I128: Biodiesel | J128: =Utslippsfaktorer!B18 -> Biodiesel (WTT) | K128: =SUMIF(Utslippsfaktorer!B:B,Beregninger!J128,Utslippsfaktorer!D:D) -> 1.92 | L128: =VLOOKUP(J128,Utslippsfaktorer!B:C,2,FALSE) -> kg CO2e/liter | M128: 0.0959364 | N128: =SUMIF($O$125:$BV$125,"<=" & 'Prosjektbeskrivelse og inndata'!$C$14,O128:BL128) -> 0.7674912 | U128: 0.0959364 | AB128: 0.0959364 | AI128: 0.0959364 | AP128: 0.0959364 | AW128: 0.0959364 | BD128: 0.0959364 | BK128: 0.0959364 | BR128: 0.0959364
D129: Transport av asfalt elektrisk/hydrogen | E129: =C126*'Prosjektbeskrivelse og inndata'!C9*Reasfaltering!G8 -> 0 | F129: kWh | G129: =Beregningsfaktorer!D50 -> 7 | H129: Reasfaltering | I129: Elektrisitet | J129: =Utslippsfaktorer!B24 -> Elektrisitet 55 år, europeisk miks | K129: =SUMIF(Utslippsfaktorer!B:B,Beregninger!J129,Utslippsfaktorer!D:D) -> 0.136 | L129: =VLOOKUP(J129,Utslippsfaktorer!B:C,2,FALSE) -> kg CO2e/kWh | M129: 0 | N129: =SUMIF($O$125:$BV$125,"<=" & 'Prosjektbeskrivelse og inndata'!$C$14,O129:BL129) -> 0 | U129: 0 | AB129: 0 | AI129: 0 | AP129: 0 | AW129: 0 | BD129: 0 | BK129: 0 | BR129: 0
D130: Reasfaltering diesel | E130: =C126*'Prosjektbeskrivelse og inndata'!C9*Reasfaltering!E8 -> 663.845625 | F130: liter diesel | G130: =Beregningsfaktorer!D50 -> 7 | H130: Reasfaltering | I130: Diesel | J130: =Utslippsfaktorer!B20 -> Fossil diesel (WTW) | K130: =SUMIF(Utslippsfaktorer!B:B,Beregninger!J130,Utslippsfaktorer!D:D) -> 3.24 | L130: =VLOOKUP(J130,Utslippsfaktorer!B:C,2,FALSE) -> kg CO2e/liter | M130: 2.150859825 | N130: =SUMIF($O$125:$BV$125,"<=" & 'Prosjektbeskrivelse og inndata'!$C$14,O130:BL130) -> 17.2068786 | U130: 2.150859825 | AB130: 2.150859825 | AI130: 2.150859825 | AP130: 2.150859825 | AW130: 2.150859825 | BD130: 2.150859825 | BK130: 2.150859825 | BR130: 2.150859825
D131: Reasfaltering biodiesel | E131: =C126*'Prosjektbeskrivelse og inndata'!C9*Reasfaltering!F8 -> 49.966875 | F131: liter biodiesel | G131: =Beregningsfaktorer!D50 -> 7 | H131: Reasfaltering | I131: Biodiesel | J131: =Utslippsfaktorer!B18 -> Biodiesel (WTT) | K131: =SUMIF(Utslippsfaktorer!B:B,Beregninger!J131,Utslippsfaktorer!D:D) -> 1.92 | L131: =VLOOKUP(J131,Utslippsfaktorer!B:C,2,FALSE) -> kg CO2e/liter | M131: 0.0959364 | N131: =SUMIF($O$125:$BV$125,"<=" & 'Prosjektbeskrivelse og inndata'!$C$14,O131:BL131) -> 0.7674912 | U131: 0.0959364 | AB131: 0.0959364 | AI131: 0.0959364 | AP131: 0.0959364 | AW131: 0.0959364 | BD131: 0.0959364 | BK131: 0.0959364 | BR131: 0.0959364
D132: Reasfaltering elektrisk/hydrogen | E132: =C126*'Prosjektbeskrivelse og inndata'!C9*Reasfaltering!G8 -> 0 | F132: kWh | G132: =Beregningsfaktorer!D50 -> 7 | H132: Reasfaltering | I132: Elektrisitet | J132: =Utslippsfaktorer!B24 -> Elektrisitet 55 år, europeisk miks | K132: =SUMIF(Utslippsfaktorer!B:B,Beregninger!J132,Utslippsfaktorer!D:D) -> 0.136 | L132: =VLOOKUP(J132,Utslippsfaktorer!B:C,2,FALSE) -> kg CO2e/kWh | M132: 0 | N132: =SUMIF($O$125:$BV$125,"<=" & 'Prosjektbeskrivelse og inndata'!$C$14,O132:BL132) -> 0 | U132: 0 | AB132: 0 | AI132: 0 | AP132: 0 | AW132: 0 | BD132: 0 | BK132: 0 | BR132: 0
D133: Kantklipp diesel | E133: =C126*'Drift og vedlikehold'!E24*Beregningsfaktorer!D85 -> 13.113 | F133: liter diesel | G133: 1 | H133: Drift | I133: Diesel | J133: =Utslippsfaktorer!B20 -> Fossil diesel (WTW) | K133: =SUMIF(Utslippsfaktorer!B:B,Beregninger!J133,Utslippsfaktorer!D:D) -> 3.24 | L133: =VLOOKUP(J133,Utslippsfaktorer!B:C,2,FALSE) -> kg CO2e/liter | M133: 0.04248612 | N133: =SUMIF($O$125:$BV$125,"<=" & 'Prosjektbeskrivelse og inndata'!$C$14,O133:BL133) -> 2.5491672 | O133: 0.04248612 | P133: 0.04248612 | Q133: 0.04248612 | R133: 0.04248612 | S133: 0.04248612 | T133: 0.04248612 | U133: 0.04248612 | V133: 0.04248612 | W133: 0.04248612 | X133: 0.04248612 | Y133: 0.04248612 | Z133: 0.04248612 | AA133: 0.04248612 | AB133: 0.04248612 | AC133: 0.04248612 | AD133: 0.04248612 | AE133: 0.04248612 | AF133: 0.04248612 | AG133: 0.04248612 | AH133: 0.04248612 | AI133: 0.04248612 | AJ133: 0.04248612 | AK133: 0.04248612 | AL133: 0.04248612 | AM133: 0.04248612 | AN133: 0.04248612 | AO133: 0.04248612 | AP133: 0.04248612 | AQ133: 0.04248612 | AR133: 0.04248612 | AS133: 0.04248612 | AT133: 0.04248612 | AU133: 0.04248612 | AV133: 0.04248612 | AW133: 0.04248612 | AX133: 0.04248612 | AY133: 0.04248612 | AZ133: 0.04248612 | BA133: 0.04248612 | BB133: 0.04248612 | BC133: 0.04248612 | BD133: 0.04248612 | BE133: 0.04248612 | BF133: 0.04248612 | BG133: 0.04248612 | BH133: 0.04248612 | BI133: 0.04248612 | BJ133: 0.04248612 | BK133: 0.04248612 | BL133: 0.04248612 | BM133: 0.04248612 | BN133: 0.04248612 | BO133: 0.04248612 | BP133: 0.04248612 | BQ133: 0.04248612 | BR133: 0.04248612 | BS133: 0.04248612 | BT133: 0.04248612 | BU133: 0.04248612 | BV133: 0.04248612
D134: Kantklipp biodiesel | E134: =C126*'Drift og vedlikehold'!F24*Beregningsfaktorer!D85 -> 0.987 | F134: liter biodiesel | G134: 1 | H134: Drift | I134: Biodiesel | J134: =Utslippsfaktorer!B18 -> Biodiesel (WTT) | K134: =SUMIF(Utslippsfaktorer!B:B,Beregninger!J134,Utslippsfaktorer!D:D) -> 1.92 | L134: =VLOOKUP(J134,Utslippsfaktorer!B:C,2,FALSE) -> kg CO2e/liter | M134: 0.00189504 | N134: =SUMIF($O$125:$BV$125,"<=" & 'Prosjektbeskrivelse og inndata'!$C$14,O134:BL134) -> 0.1137024 | O134: 0.00189504 | P134: 0.00189504 | Q134: 0.00189504 | R134: 0.00189504 | S134: 0.00189504 | T134: 0.00189504 | U134: 0.00189504 | V134: 0.00189504 | W134: 0.00189504 | X134: 0.00189504 | Y134: 0.00189504 | Z134: 0.00189504 | AA134: 0.00189504 | AB134: 0.00189504 | AC134: 0.00189504 | AD134: 0.00189504 | AE134: 0.00189504 | AF134: 0.00189504 | AG134: 0.00189504 | AH134: 0.00189504 | AI134: 0.00189504 | AJ134: 0.00189504 | AK134: 0.00189504 | AL134: 0.00189504 | AM134: 0.00189504 | AN134: 0.00189504 | AO134: 0.00189504 | AP134: 0.00189504 | AQ134: 0.00189504 | AR134: 0.00189504 | AS134: 0.00189504 | AT134: 0.00189504 | AU134: 0.00189504 | AV134: 0.00189504 | AW134: 0.00189504 | AX134: 0.00189504 | AY134: 0.00189504 | AZ134: 0.00189504 | BA134: 0.00189504 | BB134: 0.00189504 | BC134: 0.00189504 | BD134: 0.00189504 | BE134: 0.00189504 | BF134: 0.00189504 | BG134: 0.00189504 | BH134: 0.00189504 | BI134: 0.00189504 | BJ134: 0.00189504 | BK134: 0.00189504 | BL134: 0.00189504 | BM134: 0.00189504 | BN134: 0.00189504 | BO134: 0.00189504 | BP134: 0.00189504 | BQ134: 0.00189504 | BR134: 0.00189504 | BS134: 0.00189504 | BT134: 0.00189504 | BU134: 0.00189504 | BV134: 0.00189504
D135: Kantklipp elektrisk/hydrogen | E135: =C126*'Drift og vedlikehold'!G24*Beregningsfaktorer!D85 -> 0 | F135: kWh | G135: 1 | H135: Drift | I135: Elektrisitet | J135: =Utslippsfaktorer!B24 -> Elektrisitet 55 år, europeisk miks | K135: =SUMIF(Utslippsfaktorer!B:B,Beregninger!J135,Utslippsfaktorer!D:D) -> 0.136 | L135: =VLOOKUP(J135,Utslippsfaktorer!B:C,2,FALSE) -> kg CO2e/kWh | M135: 0 | N135: =SUMIF($O$125:$BV$125,"<=" & 'Prosjektbeskrivelse og inndata'!$C$14,O135:BL135) -> 0 | O135: 0 | P135: 0 | Q135: 0 | R135: 0 | S135: 0 | T135: 0 | U135: 0 | V135: 0 | W135: 0 | X135: 0 | Y135: 0 | Z135: 0 | AA135: 0 | AB135: 0 | AC135: 0 | AD135: 0 | AE135: 0 | AF135: 0 | AG135: 0 | AH135: 0 | AI135: 0 | AJ135: 0 | AK135: 0 | AL135: 0 | AM135: 0 | AN135: 0 | AO135: 0 | AP135: 0 | AQ135: 0 | AR135: 0 | AS135: 0 | AT135: 0 | AU135: 0 | AV135: 0 | AW135: 0 | AX135: 0 | AY135: 0 | AZ135: 0 | BA135: 0 | BB135: 0 | BC135: 0 | BD135: 0 | BE135: 0 | BF135: 0 | BG135: 0 | BH135: 0 | BI135: 0 | BJ135: 0 | BK135: 0 | BL135: 0 | BM135: 0 | BN135: 0 | BO135: 0 | BP135: 0 | BQ135: 0 | BR135: 0 | BS135: 0 | BT135: 0 | BU135: 0 | BV135: 0
D136: Grøfterensk diesel | E136: =C126*'Drift og vedlikehold'!E25*Beregningsfaktorer!D85 -> 874.2 | F136: liter diesel | G136: =Beregningsfaktorer!D54 -> 3 | H136: Drift | I136: Diesel | J136: =Utslippsfaktorer!B20 -> Fossil diesel (WTW) | K136: =SUMIF(Utslippsfaktorer!B:B,Beregninger!J136,Utslippsfaktorer!D:D) -> 3.24 | L136: =VLOOKUP(J136,Utslippsfaktorer!B:C,2,FALSE) -> kg CO2e/liter | M136: 2.832408 | N136: =SUMIF($O$125:$BV$125,"<=" & 'Prosjektbeskrivelse og inndata'!$C$14,O136:BL136) -> 56.64816 | O136: =IF(MOD(O$125,$G136)=0,$M136,"") ->  | Q136: 2.832408 | T136: 2.832408 | W136: 2.832408 | Y136: =IF(MOD(Y$125,$G136)=0,$M136,"") ->  | Z136: 2.832408 | AC136: 2.832408 | AF136: 2.832408 | AI136: =IF(MOD(AI$125,$G136)=0,$M136,"") -> 2.832408 | AL136: 2.832408 | AO136: 2.832408 | AR136: 2.832408 | AS136: =IF(MOD(AS$125,$G136)=0,$M136,"") ->  | AU136: 2.832408 | AX136: 2.832408 | BA136: 2.832408 | BC136: =IF(MOD(BC$125,$G136)=0,$M136,"") ->  | BD136: 2.832408 | BG136: 2.832408 | BJ136: 2.832408 | BM136: =IF(MOD(BM$125,$G136)=0,$M136,"") -> 2.832408 | BP136: 2.832408 | BS136: 2.832408 | BV136: 2.832408
D137: Grøfterensk biodiesel | E137: =C126*'Drift og vedlikehold'!F25*Beregningsfaktorer!D85 -> 65.8 | F137: liter biodiesel | G137: =Beregningsfaktorer!D54 -> 3 | H137: Drift | I137: Biodiesel | J137: =Utslippsfaktorer!B18 -> Biodiesel (WTT) | K137: =SUMIF(Utslippsfaktorer!B:B,Beregninger!J137,Utslippsfaktorer!D:D) -> 1.92 | L137: =VLOOKUP(J137,Utslippsfaktorer!B:C,2,FALSE) -> kg CO2e/liter | M137: 0.126336 | N137: =SUMIF($O$125:$BV$125,"<=" & 'Prosjektbeskrivelse og inndata'!$C$14,O137:BL137) -> 2.52672 | Q137: 0.126336 | T137: 0.126336 | W137: 0.126336 | Z137: 0.126336 | AC137: 0.126336 | AF137: 0.126336 | AI137: 0.126336 | AL137: 0.126336 | AO137: 0.126336 | AR137: 0.126336 | AU137: 0.126336 | AX137: 0.126336 | BA137: 0.126336 | BD137: 0.126336 | BG137: 0.126336 | BJ137: 0.126336 | BM137: 0.126336 | BP137: 0.126336 | BS137: 0.126336 | BV137: 0.126336
D138: Grøfterensk elektrisk/hydrogen | E138: =C126*'Drift og vedlikehold'!G25*Beregningsfaktorer!D85 -> 0 | F138: kWh | G138: =Beregningsfaktorer!D54 -> 3 | H138: Drift | I138: Elektrisitet | J138: =Utslippsfaktorer!B24 -> Elektrisitet 55 år, europeisk miks | K138: =SUMIF(Utslippsfaktorer!B:B,Beregninger!J138,Utslippsfaktorer!D:D) -> 0.136 | L138: =VLOOKUP(J138,Utslippsfaktorer!B:C,2,FALSE) -> kg CO2e/kWh | M138: 0 | N138: =SUMIF($O$125:$BV$125,"<=" & 'Prosjektbeskrivelse og inndata'!$C$14,O138:BL138) -> 0 | Q138: 0 | T138: 0 | W138: 0 | Z138: 0 | AC138: 0 | AF138: 0 | AI138: 0 | AL138: 0 | AO138: 0 | AR138: 0 | AU138: 0 | AX138: 0 | BA138: 0 | BD138: 0 | BG138: 0 | BJ138: 0 | BM138: 0 | BP138: 0 | BS138: 0 | BV138: 0
D139: Transport jordmasser grøfterensk diesel | E139: =C126*'Drift og vedlikehold'!F15*Beregningsfaktorer!D85 -> 226.72377 | F139: liter diesel | G139: =Beregningsfaktorer!D54 -> 3 | H139: Drift | I139: Diesel | J139: =Utslippsfaktorer!B20 -> Fossil diesel (WTW) | K139: =SUMIF(Utslippsfaktorer!B:B,Beregninger!J139,Utslippsfaktorer!D:D) -> 3.24 | L139: =VLOOKUP(J139,Utslippsfaktorer!B:C,2,FALSE) -> kg CO2e/liter | M139: 0.7345850148 | N139: =SUMIF($O$125:$BV$125,"<=" & 'Prosjektbeskrivelse og inndata'!$C$14,O139:BL139) -> 14.6917003 | Q139: 0.7345850148 | T139: 0.7345850148 | W139: 0.7345850148 | Z139: 0.7345850148 | AC139: 0.7345850148 | AF139: 0.7345850148 | AI139: 0.7345850148 | AL139: 0.7345850148 | AO139: 0.7345850148 | AR139: 0.7345850148 | AU139: 0.7345850148 | AX139: 0.7345850148 | BA139: 0.7345850148 | BD139: 0.7345850148 | BG139: 0.7345850148 | BJ139: 0.7345850148 | BM139: 0.7345850148 | BP139: 0.7345850148 | BS139: 0.7345850148 | BV139: 0.7345850148
D140: Transport jordmasser grøfterensk biodiesel | E140: =C126*'Drift og vedlikehold'!G15*Beregningsfaktorer!D85 -> 17.06523 | F140: liter biodiesel | G140: =Beregningsfaktorer!D54 -> 3 | H140: Drift | I140: Biodiesel | J140: =Utslippsfaktorer!B18 -> Biodiesel (WTT) | K140: =SUMIF(Utslippsfaktorer!B:B,Beregninger!J140,Utslippsfaktorer!D:D) -> 1.92 | L140: =VLOOKUP(J140,Utslippsfaktorer!B:C,2,FALSE) -> kg CO2e/liter | M140: 0.0327652416 | N140: =SUMIF($O$125:$BV$125,"<=" & 'Prosjektbeskrivelse og inndata'!$C$14,O140:BL140) -> 0.655304832 | Q140: 0.0327652416 | T140: 0.0327652416 | W140: 0.0327652416 | Z140: 0.0327652416 | AC140: 0.0327652416 | AF140: 0.0327652416 | AI140: 0.0327652416 | AL140: 0.0327652416 | AO140: 0.0327652416 | AR140: 0.0327652416 | AU140: 0.0327652416 | AX140: 0.0327652416 | BA140: 0.0327652416 | BD140: 0.0327652416 | BG140: 0.0327652416 | BJ140: 0.0327652416 | BM140: 0.0327652416 | BP140: 0.0327652416 | BS140: 0.0327652416 | BV140: 0.0327652416
D141: Transport jordmasser grøfterensk elektrisk/hydrogen | E141: =C126*'Drift og vedlikehold'!H15*Beregningsfaktorer!D85 -> 0 | F141: kWh | G141: =Beregningsfaktorer!D54 -> 3 | H141: Drift | I141: Elektrisitet | J141: =Utslippsfaktorer!B24 -> Elektrisitet 55 år, europeisk miks | K141: =SUMIF(Utslippsfaktorer!B:B,Beregninger!J141,Utslippsfaktorer!D:D) -> 0.136 | L141: =VLOOKUP(J141,Utslippsfaktorer!B:C,2,FALSE) -> kg CO2e/kWh | M141: 0 | N141: =SUMIF($O$125:$BV$125,"<=" & 'Prosjektbeskrivelse og inndata'!$C$14,O141:BL141) -> 0 | Q141: 0 | T141: 0 | W141: 0 | Z141: 0 | AC141: 0 | AF141: 0 | AI141: 0 | AL141: 0 | AO141: 0 | AR141: 0 | AU141: 0 | AX141: 0 | BA141: 0 | BD141: 0 | BG141: 0 | BJ141: 0 | BM141: 0 | BP141: 0 | BS141: 0 | BV141: 0
D142: Feiing diesel | E142: =C126*'Drift og vedlikehold'!E26*Beregningsfaktorer!D79 -> 65.565 | F142: liter diesel | G142: 1 | H142: Drift | I142: Diesel | J142: =Utslippsfaktorer!B20 -> Fossil diesel (WTW) | K142: =SUMIF(Utslippsfaktorer!B:B,Beregninger!J142,Utslippsfaktorer!D:D) -> 3.24 | L142: =VLOOKUP(J142,Utslippsfaktorer!B:C,2,FALSE) -> kg CO2e/liter | M142: 0.2124306 | N142: =SUMIF($O$125:$BV$125,"<=" & 'Prosjektbeskrivelse og inndata'!$C$14,O142:BL142) -> 12.745836 | O142: 0.2124306 | P142: 0.2124306 | Q142: 0.2124306 | R142: 0.2124306 | S142: 0.2124306 | T142: 0.2124306 | U142: 0.2124306 | V142: 0.2124306 | W142: 0.2124306 | X142: 0.2124306 | Y142: 0.2124306 | Z142: 0.2124306 | AA142: 0.2124306 | AB142: 0.2124306 | AC142: 0.2124306 | AD142: 0.2124306 | AE142: 0.2124306 | AF142: 0.2124306 | AG142: 0.2124306 | AH142: 0.2124306 | AI142: 0.2124306 | AJ142: 0.2124306 | AK142: 0.2124306 | AL142: 0.2124306 | AM142: 0.2124306 | AN142: 0.2124306 | AO142: 0.2124306 | AP142: 0.2124306 | AQ142: 0.2124306 | AR142: 0.2124306 | AS142: 0.2124306 | AT142: 0.2124306 | AU142: 0.2124306 | AV142: 0.2124306 | AW142: 0.2124306 | AX142: 0.2124306 | AY142: 0.2124306 | AZ142: 0.2124306 | BA142: 0.2124306 | BB142: 0.2124306 | BC142: 0.2124306 | BD142: 0.2124306 | BE142: 0.2124306 | BF142: 0.2124306 | BG142: 0.2124306 | BH142: 0.2124306 | BI142: 0.2124306 | BJ142: 0.2124306 | BK142: 0.2124306 | BL142: 0.2124306 | BM142: 0.2124306 | BN142: 0.2124306 | BO142: 0.2124306 | BP142: 0.2124306 | BQ142: 0.2124306 | BR142: 0.2124306 | BS142: 0.2124306 | BT142: 0.2124306 | BU142: 0.2124306 | BV142: 0.2124306
D143: Feiing biodiesel | E143: =C126*'Drift og vedlikehold'!F26*Beregningsfaktorer!D79 -> 4.935 | F143: liter biodiesel | G143: 1 | H143: Drift | I143: Biodiesel | J143: =Utslippsfaktorer!B18 -> Biodiesel (WTT) | K143: =SUMIF(Utslippsfaktorer!B:B,Beregninger!J143,Utslippsfaktorer!D:D) -> 1.92 | L143: =VLOOKUP(J143,Utslippsfaktorer!B:C,2,FALSE) -> kg CO2e/liter | M143: 0.0094752 | N143: =SUMIF($O$125:$BV$125,"<=" & 'Prosjektbeskrivelse og inndata'!$C$14,O143:BL143) -> 0.568512 | O143: 0.0094752 | P143: 0.0094752 | Q143: 0.0094752 | R143: 0.0094752 | S143: 0.0094752 | T143: 0.0094752 | U143: 0.0094752 | V143: 0.0094752 | W143: 0.0094752 | X143: 0.0094752 | Y143: 0.0094752 | Z143: 0.0094752 | AA143: 0.0094752 | AB143: 0.0094752 | AC143: 0.0094752 | AD143: 0.0094752 | AE143: 0.0094752 | AF143: 0.0094752 | AG143: 0.0094752 | AH143: 0.0094752 | AI143: 0.0094752 | AJ143: 0.0094752 | AK143: 0.0094752 | AL143: 0.0094752 | AM143: 0.0094752 | AN143: 0.0094752 | AO143: 0.0094752 | AP143: 0.0094752 | AQ143: 0.0094752 | AR143: 0.0094752 | AS143: 0.0094752 | AT143: 0.0094752 | AU143: 0.0094752 | AV143: 0.0094752 | AW143: 0.0094752 | AX143: 0.0094752 | AY143: 0.0094752 | AZ143: 0.0094752 | BA143: 0.0094752 | BB143: 0.0094752 | BC143: 0.0094752 | BD143: 0.0094752 | BE143: 0.0094752 | BF143: 0.0094752 | BG143: 0.0094752 | BH143: 0.0094752 | BI143: 0.0094752 | BJ143: 0.0094752 | BK143: 0.0094752 | BL143: 0.0094752 | BM143: 0.0094752 | BN143: 0.0094752 | BO143: 0.0094752 | BP143: 0.0094752 | BQ143: 0.0094752 | BR143: 0.0094752 | BS143: 0.0094752 | BT143: 0.0094752 | BU143: 0.0094752 | BV143: 0.0094752
D144: Feiing elektrisk/hydrogen | E144: =C126*'Drift og vedlikehold'!G26*Beregningsfaktorer!D79 -> 0 | F144: kWh | G144: 1 | H144: Drift | I144: Elektrisitet | J144: =Utslippsfaktorer!B24 -> Elektrisitet 55 år, europeisk miks | K144: =SUMIF(Utslippsfaktorer!B:B,Beregninger!J144,Utslippsfaktorer!D:D) -> 0.136 | L144: =VLOOKUP(J144,Utslippsfaktorer!B:C,2,FALSE) -> kg CO2e/kWh | M144: 0 | N144: =SUMIF($O$125:$BV$125,"<=" & 'Prosjektbeskrivelse og inndata'!$C$14,O144:BL144) -> 0 | O144: 0 | P144: 0 | Q144: 0 | R144: 0 | S144: 0 | T144: 0 | U144: 0 | V144: 0 | W144: 0 | X144: 0 | Y144: 0 | Z144: 0 | AA144: 0 | AB144: 0 | AC144: 0 | AD144: 0 | AE144: 0 | AF144: 0 | AG144: 0 | AH144: 0 | AI144: 0 | AJ144: 0 | AK144: 0 | AL144: 0 | AM144: 0 | AN144: 0 | AO144: 0 | AP144: 0 | AQ144: 0 | AR144: 0 | AS144: 0 | AT144: 0 | AU144: 0 | AV144: 0 | AW144: 0 | AX144: 0 | AY144: 0 | AZ144: 0 | BA144: 0 | BB144: 0 | BC144: 0 | BD144: 0 | BE144: 0 | BF144: 0 | BG144: 0 | BH144: 0 | BI144: 0 | BJ144: 0 | BK144: 0 | BL144: 0 | BM144: 0 | BN144: 0 | BO144: 0 | BP144: 0 | BQ144: 0 | BR144: 0 | BS144: 0 | BT144: 0 | BU144: 0 | BV144: 0
D145: Salting diesel | E145: =C126*'Drift og vedlikehold'!E27*(Beregningsfaktorer!D79/2) -> 559.488 | F145: liter diesel | G145: 1 | H145: Drift | I145: Diesel | J145: =Utslippsfaktorer!B20 -> Fossil diesel (WTW) | K145: =SUMIF(Utslippsfaktorer!B:B,Beregninger!J145,Utslippsfaktorer!D:D) -> 3.24 | L145: =VLOOKUP(J145,Utslippsfaktorer!B:C,2,FALSE) -> kg CO2e/liter | M145: 1.81274112 | N145: =SUMIF($O$125:$BV$125,"<=" & 'Prosjektbeskrivelse og inndata'!$C$14,O145:BL145) -> 108.7644672 | O145: 1.81274112 | P145: 1.81274112 | Q145: 1.81274112 | R145: 1.81274112 | S145: 1.81274112 | T145: 1.81274112 | U145: 1.81274112 | V145: 1.81274112 | W145: 1.81274112 | X145: 1.81274112 | Y145: 1.81274112 | Z145: 1.81274112 | AA145: 1.81274112 | AB145: 1.81274112 | AC145: 1.81274112 | AD145: 1.81274112 | AE145: 1.81274112 | AF145: 1.81274112 | AG145: 1.81274112 | AH145: 1.81274112 | AI145: 1.81274112 | AJ145: 1.81274112 | AK145: 1.81274112 | AL145: 1.81274112 | AM145: 1.81274112 | AN145: 1.81274112 | AO145: 1.81274112 | AP145: 1.81274112 | AQ145: 1.81274112 | AR145: 1.81274112 | AS145: 1.81274112 | AT145: 1.81274112 | AU145: 1.81274112 | AV145: 1.81274112 | AW145: 1.81274112 | AX145: 1.81274112 | AY145: 1.81274112 | AZ145: 1.81274112 | BA145: 1.81274112 | BB145: 1.81274112 | BC145: 1.81274112 | BD145: 1.81274112 | BE145: 1.81274112 | BF145: 1.81274112 | BG145: 1.81274112 | BH145: 1.81274112 | BI145: 1.81274112 | BJ145: 1.81274112 | BK145: 1.81274112 | BL145: 1.81274112 | BM145: 1.81274112 | BN145: 1.81274112 | BO145: 1.81274112 | BP145: 1.81274112 | BQ145: 1.81274112 | BR145: 1.81274112 | BS145: 1.81274112 | BT145: 1.81274112 | BU145: 1.81274112 | BV145: 1.81274112
D146: Salting biodiesel | E146: =C126*'Drift og vedlikehold'!F27*(Beregningsfaktorer!D79/2) -> 42.112 | F146: liter biodiesel | G146: 1 | H146: Drift | I146: Biodiesel | J146: =Utslippsfaktorer!B18 -> Biodiesel (WTT) | K146: =SUMIF(Utslippsfaktorer!B:B,Beregninger!J146,Utslippsfaktorer!D:D) -> 1.92 | L146: =VLOOKUP(J146,Utslippsfaktorer!B:C,2,FALSE) -> kg CO2e/liter | M146: 0.08085504 | N146: =SUMIF($O$125:$BV$125,"<=" & 'Prosjektbeskrivelse og inndata'!$C$14,O146:BL146) -> 4.8513024 | O146: =IF(MOD(O$125,$G146)=0,$M146,"") -> 0.08085504 | P146: 0.08085504 | Q146: 0.08085504 | R146: 0.08085504 | S146: 0.08085504 | T146: 0.08085504 | U146: 0.08085504 | V146: 0.08085504 | W146: 0.08085504 | X146: 0.08085504 | Y146: =IF(MOD(Y$125,$G146)=0,$M146,"") -> 0.08085504 | Z146: 0.08085504 | AA146: 0.08085504 | AB146: 0.08085504 | AC146: 0.08085504 | AD146: 0.08085504 | AE146: 0.08085504 | AF146: 0.08085504 | AG146: 0.08085504 | AH146: 0.08085504 | AI146: =IF(MOD(AI$125,$G146)=0,$M146,"") -> 0.08085504 | AJ146: 0.08085504 | AK146: 0.08085504 | AL146: 0.08085504 | AM146: 0.08085504 | AN146: 0.08085504 | AO146: 0.08085504 | AP146: 0.08085504 | AQ146: 0.08085504 | AR146: 0.08085504 | AS146: =IF(MOD(AS$125,$G146)=0,$M146,"") -> 0.08085504 | AT146: 0.08085504 | AU146: 0.08085504 | AV146: 0.08085504 | AW146: 0.08085504 | AX146: 0.08085504 | AY146: 0.08085504 | AZ146: 0.08085504 | BA146: 0.08085504 | BB146: 0.08085504 | BC146: =IF(MOD(BC$125,$G146)=0,$M146,"") -> 0.08085504 | BD146: 0.08085504 | BE146: 0.08085504 | BF146: 0.08085504 | BG146: 0.08085504 | BH146: 0.08085504 | BI146: 0.08085504 | BJ146: 0.08085504 | BK146: 0.08085504 | BL146: 0.08085504 | BM146: =IF(MOD(BM$125,$G146)=0,$M146,"") -> 0.08085504 | BN146: 0.08085504 | BO146: 0.08085504 | BP146: 0.08085504 | BQ146: 0.08085504 | BR146: 0.08085504 | BS146: 0.08085504 | BT146: 0.08085504 | BU146: 0.08085504 | BV146: 0.08085504
D147: Salting elektrisk/hydrogen | E147: =C126*'Drift og vedlikehold'!G27*(Beregningsfaktorer!D79/2) -> 0 | F147: kWh | G147: 1 | H147: Drift | I147: Elektrisitet | J147: =Utslippsfaktorer!B24 -> Elektrisitet 55 år, europeisk miks | K147: =SUMIF(Utslippsfaktorer!B:B,Beregninger!J147,Utslippsfaktorer!D:D) -> 0.136 | L147: =VLOOKUP(J147,Utslippsfaktorer!B:C,2,FALSE) -> kg CO2e/kWh | M147: 0 | N147: =SUMIF($O$125:$BV$125,"<=" & 'Prosjektbeskrivelse og inndata'!$C$14,O147:BL147) -> 0 | O147: 0 | P147: 0 | Q147: 0 | R147: 0 | S147: 0 | T147: 0 | U147: 0 | V147: 0 | W147: 0 | X147: 0 | Y147: 0 | Z147: 0 | AA147: 0 | AB147: 0 | AC147: 0 | AD147: 0 | AE147: 0 | AF147: 0 | AG147: 0 | AH147: 0 | AI147: 0 | AJ147: 0 | AK147: 0 | AL147: 0 | AM147: 0 | AN147: 0 | AO147: 0 | AP147: 0 | AQ147: 0 | AR147: 0 | AS147: 0 | AT147: 0 | AU147: 0 | AV147: 0 | AW147: 0 | AX147: 0 | AY147: 0 | AZ147: 0 | BA147: 0 | BB147: 0 | BC147: 0 | BD147: 0 | BE147: 0 | BF147: 0 | BG147: 0 | BH147: 0 | BI147: 0 | BJ147: 0 | BK147: 0 | BL147: 0 | BM147: 0 | BN147: 0 | BO147: 0 | BP147: 0 | BQ147: 0 | BR147: 0 | BS147: 0 | BT147: 0 | BU147: 0 | BV147: 0
D148: Salt | E148: =C126*'Drift og vedlikehold'!E16 -> 49350 | F148: kg salt | G148: 1 | H148: Drift | I148: Salt | J148: =Utslippsfaktorer!B12 -> Salt | K148: =SUMIF(Utslippsfaktorer!B:B,Beregninger!J148,Utslippsfaktorer!D:D) -> 0.179 | L148: =VLOOKUP(J148,Utslippsfaktorer!B:C,2,FALSE) -> kg CO2e/kg | M148: 8.83365 | N148: =SUMIF($O$125:$BV$125,"<=" & 'Prosjektbeskrivelse og inndata'!$C$14,O148:BL148) -> 530.019 | O148: 8.83365 | P148: 8.83365 | Q148: 8.83365 | R148: 8.83365 | S148: 8.83365 | T148: 8.83365 | U148: 8.83365 | V148: 8.83365 | W148: 8.83365 | X148: 8.83365 | Y148: 8.83365 | Z148: 8.83365 | AA148: 8.83365 | AB148: 8.83365 | AC148: 8.83365 | AD148: 8.83365 | AE148: 8.83365 | AF148: 8.83365 | AG148: 8.83365 | AH148: 8.83365 | AI148: 8.83365 | AJ148: 8.83365 | AK148: 8.83365 | AL148: 8.83365 | AM148: 8.83365 | AN148: 8.83365 | AO148: 8.83365 | AP148: 8.83365 | AQ148: 8.83365 | AR148: 8.83365 | AS148: 8.83365 | AT148: 8.83365 | AU148: 8.83365 | AV148: 8.83365 | AW148: 8.83365 | AX148: 8.83365 | AY148: 8.83365 | AZ148: 8.83365 | BA148: 8.83365 | BB148: 8.83365 | BC148: 8.83365 | BD148: 8.83365 | BE148: 8.83365 | BF148: 8.83365 | BG148: 8.83365 | BH148: 8.83365 | BI148: 8.83365 | BJ148: 8.83365 | BK148: 8.83365 | BL148: 8.83365 | BM148: 8.83365 | BN148: 8.83365 | BO148: 8.83365 | BP148: 8.83365 | BQ148: 8.83365 | BR148: 8.83365 | BS148: 8.83365 | BT148: 8.83365 | BU148: 8.83365 | BV148: 8.83365
D149: Salttransport diesel | E149: =C126*'Drift og vedlikehold'!F16 -> 458.955 | F149: liter diesel | G149: 1 | H149: Drift | I149: Diesel | J149: =Utslippsfaktorer!B20 -> Fossil diesel (WTW) | K149: =SUMIF(Utslippsfaktorer!B:B,Beregninger!J149,Utslippsfaktorer!D:D) -> 3.24 | L149: =VLOOKUP(J149,Utslippsfaktorer!B:C,2,FALSE) -> kg CO2e/liter | M149: 1.4870142 | N149: =SUMIF($O$125:$BV$125,"<=" & 'Prosjektbeskrivelse og inndata'!$C$14,O149:BL149) -> 89.220852 | O149: 1.4870142 | P149: 1.4870142 | Q149: 1.4870142 | R149: 1.4870142 | S149: 1.4870142 | T149: 1.4870142 | U149: 1.4870142 | V149: 1.4870142 | W149: 1.4870142 | X149: 1.4870142 | Y149: 1.4870142 | Z149: 1.4870142 | AA149: 1.4870142 | AB149: 1.4870142 | AC149: 1.4870142 | AD149: 1.4870142 | AE149: 1.4870142 | AF149: 1.4870142 | AG149: 1.4870142 | AH149: 1.4870142 | AI149: 1.4870142 | AJ149: 1.4870142 | AK149: 1.4870142 | AL149: 1.4870142 | AM149: 1.4870142 | AN149: 1.4870142 | AO149: 1.4870142 | AP149: 1.4870142 | AQ149: 1.4870142 | AR149: 1.4870142 | AS149: 1.4870142 | AT149: 1.4870142 | AU149: 1.4870142 | AV149: 1.4870142 | AW149: 1.4870142 | AX149: 1.4870142 | AY149: 1.4870142 | AZ149: 1.4870142 | BA149: 1.4870142 | BB149: 1.4870142 | BC149: 1.4870142 | BD149: 1.4870142 | BE149: 1.4870142 | BF149: 1.4870142 | BG149: 1.4870142 | BH149: 1.4870142 | BI149: 1.4870142 | BJ149: 1.4870142 | BK149: 1.4870142 | BL149: 1.4870142 | BM149: 1.4870142 | BN149: 1.4870142 | BO149: 1.4870142 | BP149: 1.4870142 | BQ149: 1.4870142 | BR149: 1.4870142 | BS149: 1.4870142 | BT149: 1.4870142 | BU149: 1.4870142 | BV149: 1.4870142
D150: Salttransport biodiesel | E150: =C126*'Drift og vedlikehold'!G16 -> 34.545 | F150: liter biodiesel | G150: 1 | H150: Drift | I150: Biodiesel | J150: =Utslippsfaktorer!B18 -> Biodiesel (WTT) | K150: =SUMIF(Utslippsfaktorer!B:B,Beregninger!J150,Utslippsfaktorer!D:D) -> 1.92 | L150: =VLOOKUP(J150,Utslippsfaktorer!B:C,2,FALSE) -> kg CO2e/liter | M150: 0.0663264 | N150: =SUMIF($O$125:$BV$125,"<=" & 'Prosjektbeskrivelse og inndata'!$C$14,O150:BL150) -> 3.979584 | O150: 0.0663264 | P150: 0.0663264 | Q150: 0.0663264 | R150: 0.0663264 | S150: 0.0663264 | T150: 0.0663264 | U150: 0.0663264 | V150: 0.0663264 | W150: 0.0663264 | X150: 0.0663264 | Y150: 0.0663264 | Z150: 0.0663264 | AA150: 0.0663264 | AB150: 0.0663264 | AC150: 0.0663264 | AD150: 0.0663264 | AE150: 0.0663264 | AF150: 0.0663264 | AG150: 0.0663264 | AH150: 0.0663264 | AI150: 0.0663264 | AJ150: 0.0663264 | AK150: 0.0663264 | AL150: 0.0663264 | AM150: 0.0663264 | AN150: 0.0663264 | AO150: 0.0663264 | AP150: 0.0663264 | AQ150: 0.0663264 | AR150: 0.0663264 | AS150: 0.0663264 | AT150: 0.0663264 | AU150: 0.0663264 | AV150: 0.0663264 | AW150: 0.0663264 | AX150: 0.0663264 | AY150: 0.0663264 | AZ150: 0.0663264 | BA150: 0.0663264 | BB150: 0.0663264 | BC150: 0.0663264 | BD150: 0.0663264 | BE150: 0.0663264 | BF150: 0.0663264 | BG150: 0.0663264 | BH150: 0.0663264 | BI150: 0.0663264 | BJ150: 0.0663264 | BK150: 0.0663264 | BL150: 0.0663264 | BM150: 0.0663264 | BN150: 0.0663264 | BO150: 0.0663264 | BP150: 0.0663264 | BQ150: 0.0663264 | BR150: 0.0663264 | BS150: 0.0663264 | BT150: 0.0663264 | BU150: 0.0663264 | BV150: 0.0663264
D151: Salttransport elektrisk/hydrogen | E151: =C126*'Drift og vedlikehold'!H16 -> 0 | F151: kWh | G151: 1 | H151: Drift | I151: Elektrisitet | J151: =Utslippsfaktorer!B24 -> Elektrisitet 55 år, europeisk miks | K151: =SUMIF(Utslippsfaktorer!B:B,Beregninger!J151,Utslippsfaktorer!D:D) -> 0.136 | L151: =VLOOKUP(J151,Utslippsfaktorer!B:C,2,FALSE) -> kg CO2e/kWh | M151: 0 | N151: =SUMIF($O$125:$BV$125,"<=" & 'Prosjektbeskrivelse og inndata'!$C$14,O151:BL151) -> 0 | O151: 0 | P151: 0 | Q151: 0 | R151: 0 | S151: 0 | T151: 0 | U151: 0 | V151: 0 | W151: 0 | X151: 0 | Y151: 0 | Z151: 0 | AA151: 0 | AB151: 0 | AC151: 0 | AD151: 0 | AE151: 0 | AF151: 0 | AG151: 0 | AH151: 0 | AI151: 0 | AJ151: 0 | AK151: 0 | AL151: 0 | AM151: 0 | AN151: 0 | AO151: 0 | AP151: 0 | AQ151: 0 | AR151: 0 | AS151: 0 | AT151: 0 | AU151: 0 | AV151: 0 | AW151: 0 | AX151: 0 | AY151: 0 | AZ151: 0 | BA151: 0 | BB151: 0 | BC151: 0 | BD151: 0 | BE151: 0 | BF151: 0 | BG151: 0 | BH151: 0 | BI151: 0 | BJ151: 0 | BK151: 0 | BL151: 0 | BM151: 0 | BN151: 0 | BO151: 0 | BP151: 0 | BQ151: 0 | BR151: 0 | BS151: 0 | BT151: 0 | BU151: 0 | BV151: 0
D152: Brøyting diesel | E152: =C126*'Drift og vedlikehold'!E28 -> 2027.304768 | F152: liter diesel | G152: 1 | H152: Drift | I152: Diesel | J152: =Utslippsfaktorer!B20 -> Fossil diesel (WTW) | K152: =SUMIF(Utslippsfaktorer!B:B,Beregninger!J152,Utslippsfaktorer!D:D) -> 3.24 | L152: =VLOOKUP(J152,Utslippsfaktorer!B:C,2,FALSE) -> kg CO2e/liter | M152: 6.568467448 | N152: =SUMIF($O$125:$BV$125,"<=" & 'Prosjektbeskrivelse og inndata'!$C$14,O152:BL152) -> 394.1080469 | O152: 6.568467448 | P152: 6.568467448 | Q152: 6.568467448 | R152: 6.568467448 | S152: 6.568467448 | T152: 6.568467448 | U152: 6.568467448 | V152: 6.568467448 | W152: 6.568467448 | X152: 6.568467448 | Y152: 6.568467448 | Z152: 6.568467448 | AA152: 6.568467448 | AB152: 6.568467448 | AC152: 6.568467448 | AD152: 6.568467448 | AE152: 6.568467448 | AF152: 6.568467448 | AG152: 6.568467448 | AH152: 6.568467448 | AI152: 6.568467448 | AJ152: 6.568467448 | AK152: 6.568467448 | AL152: 6.568467448 | AM152: 6.568467448 | AN152: 6.568467448 | AO152: 6.568467448 | AP152: 6.568467448 | AQ152: 6.568467448 | AR152: 6.568467448 | AS152: 6.568467448 | AT152: 6.568467448 | AU152: 6.568467448 | AV152: 6.568467448 | AW152: 6.568467448 | AX152: 6.568467448 | AY152: 6.568467448 | AZ152: 6.568467448 | BA152: 6.568467448 | BB152: 6.568467448 | BC152: 6.568467448 | BD152: 6.568467448 | BE152: 6.568467448 | BF152: 6.568467448 | BG152: 6.568467448 | BH152: 6.568467448 | BI152: 6.568467448 | BJ152: 6.568467448 | BK152: 6.568467448 | BL152: 6.568467448 | BM152: 6.568467448 | BN152: 6.568467448 | BO152: 6.568467448 | BP152: 6.568467448 | BQ152: 6.568467448 | BR152: 6.568467448 | BS152: 6.568467448 | BT152: 6.568467448 | BU152: 6.568467448 | BV152: 6.568467448
D153: Brøyting biodiesel | E153: =C126*'Drift og vedlikehold'!F28 -> 152.592832 | F153: liter biodiesel | G153: 1 | H153: Drift | I153: Biodiesel | J153: =Utslippsfaktorer!B18 -> Biodiesel (WTT) | K153: =SUMIF(Utslippsfaktorer!B:B,Beregninger!J153,Utslippsfaktorer!D:D) -> 1.92 | L153: =VLOOKUP(J153,Utslippsfaktorer!B:C,2,FALSE) -> kg CO2e/liter | M153: 0.2929782374 | N153: =SUMIF($O$125:$BV$125,"<=" & 'Prosjektbeskrivelse og inndata'!$C$14,O153:BL153) -> 17.57869425 | O153: 0.2929782374 | P153: 0.2929782374 | Q153: 0.2929782374 | R153: 0.2929782374 | S153: 0.2929782374 | T153: 0.2929782374 | U153: 0.2929782374 | V153: 0.2929782374 | W153: 0.2929782374 | X153: 0.2929782374 | Y153: 0.2929782374 | Z153: 0.2929782374 | AA153: 0.2929782374 | AB153: 0.2929782374 | AC153: 0.2929782374 | AD153: 0.2929782374 | AE153: 0.2929782374 | AF153: 0.2929782374 | AG153: 0.2929782374 | AH153: 0.2929782374 | AI153: 0.2929782374 | AJ153: 0.2929782374 | AK153: 0.2929782374 | AL153: 0.2929782374 | AM153: 0.2929782374 | AN153: 0.2929782374 | AO153: 0.2929782374 | AP153: 0.2929782374 | AQ153: 0.2929782374 | AR153: 0.2929782374 | AS153: 0.2929782374 | AT153: 0.2929782374 | AU153: 0.2929782374 | AV153: 0.2929782374 | AW153: 0.2929782374 | AX153: 0.2929782374 | AY153: 0.2929782374 | AZ153: 0.2929782374 | BA153: 0.2929782374 | BB153: 0.2929782374 | BC153: 0.2929782374 | BD153: 0.2929782374 | BE153: 0.2929782374 | BF153: 0.2929782374 | BG153: 0.2929782374 | BH153: 0.2929782374 | BI153: 0.2929782374 | BJ153: 0.2929782374 | BK153: 0.2929782374 | BL153: 0.2929782374 | BM153: 0.2929782374 | BN153: 0.2929782374 | BO153: 0.2929782374 | BP153: 0.2929782374 | BQ153: 0.2929782374 | BR153: 0.2929782374 | BS153: 0.2929782374 | BT153: 0.2929782374 | BU153: 0.2929782374 | BV153: 0.2929782374
D154: Brøyting elektrisk/hydrogen | E154: =C126*'Drift og vedlikehold'!G28 -> 0 | F154: kWh | G154: 1 | H154: Drift | I154: Elektrisitet | J154: =Utslippsfaktorer!B24 -> Elektrisitet 55 år, europeisk miks | K154: =SUMIF(Utslippsfaktorer!B:B,Beregninger!J154,Utslippsfaktorer!D:D) -> 0.136 | L154: =VLOOKUP(J154,Utslippsfaktorer!B:C,2,FALSE) -> kg CO2e/kWh | M154: 0 | N154: =SUMIF($O$125:$BV$125,"<=" & 'Prosjektbeskrivelse og inndata'!$C$14,O154:BL154) -> 0 | O154: 0 | P154: 0 | Q154: 0 | R154: 0 | S154: 0 | T154: 0 | U154: 0 | V154: 0 | W154: 0 | X154: 0 | Y154: 0 | Z154: 0 | AA154: 0 | AB154: 0 | AC154: 0 | AD154: 0 | AE154: 0 | AF154: 0 | AG154: 0 | AH154: 0 | AI154: 0 | AJ154: 0 | AK154: 0 | AL154: 0 | AM154: 0 | AN154: 0 | AO154: 0 | AP154: 0 | AQ154: 0 | AR154: 0 | AS154: 0 | AT154: 0 | AU154: 0 | AV154: 0 | AW154: 0 | AX154: 0 | AY154: 0 | AZ154: 0 | BA154: 0 | BB154: 0 | BC154: 0 | BD154: 0 | BE154: 0 | BF154: 0 | BG154: 0 | BH154: 0 | BI154: 0 | BJ154: 0 | BK154: 0 | BL154: 0 | BM154: 0 | BN154: 0 | BO154: 0 | BP154: 0 | BQ154: 0 | BR154: 0 | BS154: 0 | BT154: 0 | BU154: 0 | BV154: 0
D155: Autovern | E155: =C126*'Tillegg vei'!D7*Beregningsfaktorer!D83 -> 310200 | F155: kg stål | G155: =Beregningsfaktorer!D51 -> 30 | H155: Vedlikehold | I155: Stål | J155: =Utslippsfaktorer!B14 -> Stål | K155: =SUMIF(Utslippsfaktorer!B:B,Beregninger!J155,Utslippsfaktorer!D:D) -> 2.1235 | L155: =VLOOKUP(J155,Utslippsfaktorer!B:C,2,FALSE) -> kg CO2e/kg | M155: 658.7097 | N155: =SUMIF($O$125:$BV$125,"<=" & 'Prosjektbeskrivelse og inndata'!$C$14,O155:BL155) -> 1317.4194 | AR155: 658.7097 | BV155: 658.7097
D156: Utskiftning autovern diesel | E156: =C126*'Tillegg vei'!E7*Beregningsfaktorer!D83 -> 2307.888 | F156: liter diesel | G156: =Beregningsfaktorer!D51 -> 30 | H156: Vedlikehold | I156: Diesel | J156: =Utslippsfaktorer!B20 -> Fossil diesel (WTW) | K156: =SUMIF(Utslippsfaktorer!B:B,Beregninger!J156,Utslippsfaktorer!D:D) -> 3.24 | L156: =VLOOKUP(J156,Utslippsfaktorer!B:C,2,FALSE) -> kg CO2e/liter | M156: 7.47755712 | N156: =SUMIF($O$125:$BV$125,"<=" & 'Prosjektbeskrivelse og inndata'!$C$14,O156:BL156) -> 14.95511424 | O156: =IF(MOD(O$125,$G156)=0,$M156,"") ->  | Y156: =IF(MOD(Y$125,$G156)=0,$M156,"") ->  | AI156: =IF(MOD(AI$125,$G156)=0,$M156,"") ->  | AR156: 7.47755712 | AS156: =IF(MOD(AS$125,$G156)=0,$M156,"") ->  | BC156: =IF(MOD(BC$125,$G156)=0,$M156,"") ->  | BM156: =IF(MOD(BM$125,$G156)=0,$M156,"") ->  | BV156: 7.47755712
D157: Utskiftning autovern biodiesel | E157: =C126*'Tillegg vei'!F7*Beregningsfaktorer!D83 -> 173.712 | F157: liter biodiesel | G157: =Beregningsfaktorer!D51 -> 30 | H157: Vedlikehold | I157: Biodiesel | J157: =Utslippsfaktorer!B18 -> Biodiesel (WTT) | K157: =SUMIF(Utslippsfaktorer!B:B,Beregninger!J157,Utslippsfaktorer!D:D) -> 1.92 | L157: =VLOOKUP(J157,Utslippsfaktorer!B:C,2,FALSE) -> kg CO2e/liter | M157: 0.33352704 | N157: =SUMIF($O$125:$BV$125,"<=" & 'Prosjektbeskrivelse og inndata'!$C$14,O157:BL157) -> 0.66705408 | AR157: 0.33352704 | BV157: 0.33352704
D158: Utskiftning autovern elektrisk/hydrogen | E158: =C126*'Tillegg vei'!G7*Beregningsfaktorer!D83 -> 0 | F158: kWh | G158: =Beregningsfaktorer!D51 -> 30 | H158: Vedlikehold | I158: Elektrisitet | J158: =Utslippsfaktorer!B24 -> Elektrisitet 55 år, europeisk miks | K158: =SUMIF(Utslippsfaktorer!B:B,Beregninger!J158,Utslippsfaktorer!D:D) -> 0.136 | L158: =VLOOKUP(J158,Utslippsfaktorer!B:C,2,FALSE) -> kg CO2e/kWh | M158: 0 | N158: =SUMIF($O$125:$BV$125,"<=" & 'Prosjektbeskrivelse og inndata'!$C$14,O158:BL158) -> 0 | AR158: 0 | BV158: 0
D159: Transport av autovern diesel | E159: =C126*'Drift og vedlikehold'!F19*Beregningsfaktorer!D83 -> 2307.888 | F159: liter diesel | G159: =Beregningsfaktorer!D51 -> 30 | H159: Vedlikehold | I159: Diesel | J159: =Utslippsfaktorer!B20 -> Fossil diesel (WTW) | K159: =SUMIF(Utslippsfaktorer!B:B,Beregninger!J159,Utslippsfaktorer!D:D) -> 3.24 | L159: =VLOOKUP(J159,Utslippsfaktorer!B:C,2,FALSE) -> kg CO2e/liter | M159: =(E159*K159)/1000 -> 7.47755712 | N159: =SUMIF($O$125:$BV$125,"<=" & 'Prosjektbeskrivelse og inndata'!$C$14,O159:BL159) -> 14.95511424 | AR159: 7.47755712 | BV159: 7.47755712
D160: Transport av autovern biodiesel | E160: =C126*'Drift og vedlikehold'!G19*Beregningsfaktorer!D83 -> 173.712 | F160: liter biodiesel | G160: =Beregningsfaktorer!D51 -> 30 | H160: Vedlikehold | I160: Biodiesel | J160: =Utslippsfaktorer!B18 -> Biodiesel (WTT) | K160: =SUMIF(Utslippsfaktorer!B:B,Beregninger!J160,Utslippsfaktorer!D:D) -> 1.92 | L160: =VLOOKUP(J160,Utslippsfaktorer!B:C,2,FALSE) -> kg CO2e/liter | M160: 0.33352704 | N160: =SUMIF($O$125:$BV$125,"<=" & 'Prosjektbeskrivelse og inndata'!$C$14,O160:BL160) -> 0.66705408 | AR160: 0.33352704 | BV160: 0.33352704
D161: Transport av autovern elektrisk/hydrogen | E161: =C126*'Drift og vedlikehold'!H19*Beregningsfaktorer!D83 -> 0 | F161: kWh | G161: =Beregningsfaktorer!D51 -> 30 | H161: Vedlikehold | I161: Elektrisitet | J161: =Utslippsfaktorer!B24 -> Elektrisitet 55 år, europeisk miks | K161: =SUMIF(Utslippsfaktorer!B:B,Beregninger!J161,Utslippsfaktorer!D:D) -> 0.136 | L161: =VLOOKUP(J161,Utslippsfaktorer!B:C,2,FALSE) -> kg CO2e/kWh | M161: 0 | N161: =SUMIF($O$125:$BV$125,"<=" & 'Prosjektbeskrivelse og inndata'!$C$14,O161:BL161) -> 0 | AR161: 0 | BV161: 0
D162: Lyktestolper | E162: =C126*'Tillegg vei'!D5*Beregningsfaktorer!D81 -> 45343.25 | F162: kg stål | G162: =Beregningsfaktorer!D52 -> 30 | H162: Vedlikehold | I162: Stål | J162: =Utslippsfaktorer!B14 -> Stål | K162: =SUMIF(Utslippsfaktorer!B:B,Beregninger!J162,Utslippsfaktorer!D:D) -> 2.1235 | L162: =VLOOKUP(J162,Utslippsfaktorer!B:C,2,FALSE) -> kg CO2e/kg | M162: 96.28639138 | N162: =SUMIF($O$125:$BV$125,"<=" & 'Prosjektbeskrivelse og inndata'!$C$14,O162:BL162) -> 192.5727828 | AR162: 96.28639138 | BV162: 96.28639138
D163: Transport av lyktestolper diesel | E163: =C126*'Drift og vedlikehold'!F17*Beregningsfaktorer!D81 -> 337.35378 | F163: liter diesel | G163: =Beregningsfaktorer!D52 -> 30 | H163: Vedlikehold | I163: Diesel | J163: =Utslippsfaktorer!B20 -> Fossil diesel (WTW) | K163: =SUMIF(Utslippsfaktorer!B:B,Beregninger!J163,Utslippsfaktorer!D:D) -> 3.24 | L163: =VLOOKUP(J163,Utslippsfaktorer!B:C,2,FALSE) -> kg CO2e/liter | M163: 1.093026247 | N163: =SUMIF($O$125:$BV$125,"<=" & 'Prosjektbeskrivelse og inndata'!$C$14,O163:BL163) -> 2.186052494 | AR163: 1.093026247 | BV163: 1.093026247
D164: Transport av lyktestolper biodiesel | E164: =C126*'Drift og vedlikehold'!G17*Beregningsfaktorer!D81 -> 25.39222 | F164: liter biodiesel | G164: =Beregningsfaktorer!D52 -> 30 | H164: Vedlikehold | I164: Biodiesel | J164: =Utslippsfaktorer!B18 -> Biodiesel (WTT) | K164: =SUMIF(Utslippsfaktorer!B:B,Beregninger!J164,Utslippsfaktorer!D:D) -> 1.92 | L164: =VLOOKUP(J164,Utslippsfaktorer!B:C,2,FALSE) -> kg CO2e/liter | M164: 0.0487530624 | N164: =SUMIF($O$125:$BV$125,"<=" & 'Prosjektbeskrivelse og inndata'!$C$14,O164:BL164) -> 0.0975061248 | AR164: 0.0487530624 | BV164: 0.0487530624
D165: Transport av lyktestolper elektrisk/hydrogen | E165: =C126*'Drift og vedlikehold'!H17*Beregningsfaktorer!D81 -> 0 | F165: kWh | G165: =Beregningsfaktorer!D52 -> 30 | H165: Vedlikehold | I165: Elektrisitet | J165: =Utslippsfaktorer!B24 -> Elektrisitet 55 år, europeisk miks | K165: =SUMIF(Utslippsfaktorer!B:B,Beregninger!J165,Utslippsfaktorer!D:D) -> 0.136 | L165: =VLOOKUP(J165,Utslippsfaktorer!B:C,2,FALSE) -> kg CO2e/kWh | M165: 0 | N165: =SUMIF($O$125:$BV$125,"<=" & 'Prosjektbeskrivelse og inndata'!$C$14,O165:BL165) -> 0 | AR165: 0 | BV165: 0
D166: Belysning vei i dagen | E166: =C126*'Drift og vedlikehold'!H8*Beregningsfaktorer!D81 -> 319600 | F166: kWh | G166: 1 | H166: Drift | I166: Elektrisitet | J166: =Utslippsfaktorer!B24 -> Elektrisitet 55 år, europeisk miks | K166: =SUMIF(Utslippsfaktorer!B:B,Beregninger!J166,Utslippsfaktorer!D:D) -> 0.136 | L166: =VLOOKUP(J166,Utslippsfaktorer!B:C,2,FALSE) -> kg CO2e/kWh | M166: 43.4656 | N166: =SUMIF($O$125:$BV$125,"<=" & 'Prosjektbeskrivelse og inndata'!$C$14,O166:BL166) -> 2607.936 | O166: =IF(MOD(O$125,$G166)=0,$M166,"") -> 43.4656 | P166: 43.4656 | Q166: 43.4656 | R166: 43.4656 | S166: 43.4656 | T166: 43.4656 | U166: 43.4656 | V166: 43.4656 | W166: 43.4656 | X166: 43.4656 | Y166: =IF(MOD(Y$125,$G166)=0,$M166,"") -> 43.4656 | Z166: 43.4656 | AA166: 43.4656 | AB166: 43.4656 | AC166: 43.4656 | AD166: 43.4656 | AE166: 43.4656 | AF166: 43.4656 | AG166: 43.4656 | AH166: 43.4656 | AI166: =IF(MOD(AI$125,$G166)=0,$M166,"") -> 43.4656 | AJ166: 43.4656 | AK166: 43.4656 | AL166: 43.4656 | AM166: 43.4656 | AN166: 43.4656 | AO166: 43.4656 | AP166: 43.4656 | AQ166: 43.4656 | AR166: 43.4656 | AS166: =IF(MOD(AS$125,$G166)=0,$M166,"") -> 43.4656 | AT166: 43.4656 | AU166: 43.4656 | AV166: 43.4656 | AW166: 43.4656 | AX166: 43.4656 | AY166: 43.4656 | AZ166: 43.4656 | BA166: 43.4656 | BB166: 43.4656 | BC166: =IF(MOD(BC$125,$G166)=0,$M166,"") -> 43.4656 | BD166: 43.4656 | BE166: 43.4656 | BF166: 43.4656 | BG166: 43.4656 | BH166: 43.4656 | BI166: 43.4656 | BJ166: 43.4656 | BK166: 43.4656 | BL166: 43.4656 | BM166: =IF(MOD(BM$125,$G166)=0,$M166,"") -> 43.4656 | BN166: 43.4656 | BO166: 43.4656 | BP166: 43.4656 | BQ166: 43.4656 | BR166: 43.4656 | BS166: 43.4656 | BT166: 43.4656 | BU166: 43.4656 | BV166: 43.4656
B167: Drift sidevei (m) | C167: =SUMIF('Prosjektbeskrivelse og inndata'!$M:$M,B43,'Prosjektbeskrivelse og inndata'!$L:$L) -> 600 | D167: Asfalt til reasfaltering | E167: =C167*'Prosjektbeskrivelse og inndata'!C10*Reasfaltering!D9 -> 182250 | F167: kg asfaltgrusbetong | G167: =Beregningsfaktorer!D50 -> 7 | H167: Reasfaltering | I167: Asfalt | J167: =Utslippsfaktorer!B6 -> Asfaltgrusbetong (Agb) | K167: =SUMIF(Utslippsfaktorer!B:B,Beregninger!J167,Utslippsfaktorer!D:D) -> 0.0512 | L167: =VLOOKUP(J167,Utslippsfaktorer!B:C,2,FALSE) -> kg CO2e/kg | M167: 9.3312 | N167: =SUMIF($O$125:$BV$125,"<=" & 'Prosjektbeskrivelse og inndata'!$C$14,O167:BL167) -> 74.6496 | U167: 9.3312 | AB167: 9.3312 | AI167: 9.3312 | AP167: 9.3312 | AW167: 9.3312 | BD167: 9.3312 | BK167: 9.3312 | BR167: 9.3312
D168: Transport av asfalt diesel | E168: =C167*'Prosjektbeskrivelse og inndata'!C10*Reasfaltering!E9 -> 101.6955 | F168: liter diesel | G168: =Beregningsfaktorer!D50 -> 7 | H168: Reasfaltering | I168: Diesel | J168: =Utslippsfaktorer!B20 -> Fossil diesel (WTW) | K168: =SUMIF(Utslippsfaktorer!B:B,Beregninger!J168,Utslippsfaktorer!D:D) -> 3.24 | L168: =VLOOKUP(J168,Utslippsfaktorer!B:C,2,FALSE) -> kg CO2e/liter | M168: 0.32949342 | N168: =SUMIF($O$125:$BV$125,"<=" & 'Prosjektbeskrivelse og inndata'!$C$14,O168:BL168) -> 2.63594736 | U168: 0.32949342 | AB168: 0.32949342 | AI168: 0.32949342 | AP168: 0.32949342 | AW168: 0.32949342 | BD168: 0.32949342 | BK168: 0.32949342 | BR168: 0.32949342
D169: Transport av asfalt biodiesel | E169: =C167*'Prosjektbeskrivelse og inndata'!C10*Reasfaltering!F9 -> 7.6545 | F169: liter biodiesel | G169: =Beregningsfaktorer!D50 -> 7 | H169: Reasfaltering | I169: Biodiesel | J169: =Utslippsfaktorer!B18 -> Biodiesel (WTT) | K169: =SUMIF(Utslippsfaktorer!B:B,Beregninger!J169,Utslippsfaktorer!D:D) -> 1.92 | L169: =VLOOKUP(J169,Utslippsfaktorer!B:C,2,FALSE) -> kg CO2e/liter | M169: 0.01469664 | N169: =SUMIF($O$125:$BV$125,"<=" & 'Prosjektbeskrivelse og inndata'!$C$14,O169:BL169) -> 0.11757312 | U169: 0.01469664 | AB169: 0.01469664 | AI169: 0.01469664 | AP169: 0.01469664 | AW169: 0.01469664 | BD169: 0.01469664 | BK169: 0.01469664 | BR169: 0.01469664
D170: Transport av asfalt elektrisk/hydrogen | E170: =C167*'Prosjektbeskrivelse og inndata'!C10*Reasfaltering!G9 -> 0 | F170: kWh | G170: =Beregningsfaktorer!D50 -> 7 | H170: Reasfaltering | I170: Elektrisitet | J170: =Utslippsfaktorer!B24 -> Elektrisitet 55 år, europeisk miks | K170: =SUMIF(Utslippsfaktorer!B:B,Beregninger!J170,Utslippsfaktorer!D:D) -> 0.136 | L170: =VLOOKUP(J170,Utslippsfaktorer!B:C,2,FALSE) -> kg CO2e/kWh | M170: 0 | N170: =SUMIF($O$125:$BV$125,"<=" & 'Prosjektbeskrivelse og inndata'!$C$14,O170:BL170) -> 0 | U170: 0 | AB170: 0 | AI170: 0 | AP170: 0 | AW170: 0 | BD170: 0 | BK170: 0 | BR170: 0
D171: Reasfaltering diesel | E171: =C167*'Prosjektbeskrivelse og inndata'!C10*Reasfaltering!E9 -> 101.6955 | F171: liter diesel | G171: =Beregningsfaktorer!D50 -> 7 | H171: Reasfaltering | I171: Diesel | J171: =Utslippsfaktorer!B20 -> Fossil diesel (WTW) | K171: =SUMIF(Utslippsfaktorer!B:B,Beregninger!J171,Utslippsfaktorer!D:D) -> 3.24 | L171: =VLOOKUP(J171,Utslippsfaktorer!B:C,2,FALSE) -> kg CO2e/liter | M171: 0.32949342 | N171: =SUMIF($O$125:$BV$125,"<=" & 'Prosjektbeskrivelse og inndata'!$C$14,O171:BL171) -> 2.63594736 | U171: 0.32949342 | AB171: 0.32949342 | AI171: 0.32949342 | AP171: 0.32949342 | AW171: 0.32949342 | BD171: 0.32949342 | BK171: 0.32949342 | BR171: 0.32949342
D172: Reasfaltering biodiesel | E172: =C167*'Prosjektbeskrivelse og inndata'!C10*Reasfaltering!F9 -> 7.6545 | F172: liter biodiesel | G172: =Beregningsfaktorer!D50 -> 7 | H172: Reasfaltering | I172: Biodiesel | J172: =Utslippsfaktorer!B18 -> Biodiesel (WTT) | K172: =SUMIF(Utslippsfaktorer!B:B,Beregninger!J172,Utslippsfaktorer!D:D) -> 1.92 | L172: =VLOOKUP(J172,Utslippsfaktorer!B:C,2,FALSE) -> kg CO2e/liter | M172: 0.01469664 | N172: =SUMIF($O$125:$BV$125,"<=" & 'Prosjektbeskrivelse og inndata'!$C$14,O172:BL172) -> 0.11757312 | U172: 0.01469664 | AB172: 0.01469664 | AI172: 0.01469664 | AP172: 0.01469664 | AW172: 0.01469664 | BD172: 0.01469664 | BK172: 0.01469664 | BR172: 0.01469664
D173: Reasfaltering elektrisk/hydrogen | E173: =C167*'Prosjektbeskrivelse og inndata'!C10*Reasfaltering!G9 -> 0 | F173: kWh | G173: =Beregningsfaktorer!D50 -> 7 | H173: Reasfaltering | I173: Elektrisitet | J173: =Utslippsfaktorer!B24 -> Elektrisitet 55 år, europeisk miks | K173: =SUMIF(Utslippsfaktorer!B:B,Beregninger!J173,Utslippsfaktorer!D:D) -> 0.136 | L173: =VLOOKUP(J173,Utslippsfaktorer!B:C,2,FALSE) -> kg CO2e/kWh | M173: 0 | N173: =SUMIF($O$125:$BV$125,"<=" & 'Prosjektbeskrivelse og inndata'!$C$14,O173:BL173) -> 0 | U173: 0 | AB173: 0 | AI173: 0 | AP173: 0 | AW173: 0 | BD173: 0 | BK173: 0 | BR173: 0
D174: Kantklipp diesel | E174: =C167*'Drift og vedlikehold'!E24*Beregningsfaktorer!D86 -> 1.116 | F174: liter diesel | G174: 1 | H174: Drift | I174: Diesel | J174: =Utslippsfaktorer!B20 -> Fossil diesel (WTW) | K174: =SUMIF(Utslippsfaktorer!B:B,Beregninger!J174,Utslippsfaktorer!D:D) -> 3.24 | L174: =VLOOKUP(J174,Utslippsfaktorer!B:C,2,FALSE) -> kg CO2e/liter | M174: 0.00361584 | N174: =SUMIF($O$125:$BV$125,"<=" & 'Prosjektbeskrivelse og inndata'!$C$14,O174:BL174) -> 0.2169504 | O174: 0.00361584 | P174: 0.00361584 | Q174: 0.00361584 | R174: 0.00361584 | S174: 0.00361584 | T174: 0.00361584 | U174: 0.00361584 | V174: 0.00361584 | W174: 0.00361584 | X174: 0.00361584 | Y174: 0.00361584 | Z174: 0.00361584 | AA174: 0.00361584 | AB174: 0.00361584 | AC174: 0.00361584 | AD174: 0.00361584 | AE174: 0.00361584 | AF174: 0.00361584 | AG174: 0.00361584 | AH174: 0.00361584 | AI174: 0.00361584 | AJ174: 0.00361584 | AK174: 0.00361584 | AL174: 0.00361584 | AM174: 0.00361584 | AN174: 0.00361584 | AO174: 0.00361584 | AP174: 0.00361584 | AQ174: 0.00361584 | AR174: 0.00361584 | AS174: 0.00361584 | AT174: 0.00361584 | AU174: 0.00361584 | AV174: 0.00361584 | AW174: 0.00361584 | AX174: 0.00361584 | AY174: 0.00361584 | AZ174: 0.00361584 | BA174: 0.00361584 | BB174: 0.00361584 | BC174: 0.00361584 | BD174: 0.00361584 | BE174: 0.00361584 | BF174: 0.00361584 | BG174: 0.00361584 | BH174: 0.00361584 | BI174: 0.00361584 | BJ174: 0.00361584 | BK174: 0.00361584 | BL174: 0.00361584 | BM174: 0.00361584 | BN174: 0.00361584 | BO174: 0.00361584 | BP174: 0.00361584 | BQ174: 0.00361584 | BR174: 0.00361584 | BS174: 0.00361584 | BT174: 0.00361584 | BU174: 0.00361584 | BV174: 0.00361584
D175: Kantklipp biodiesel | E175: =C167*'Drift og vedlikehold'!F24*Beregningsfaktorer!D86 -> 0.084 | F175: liter biodiesel | G175: 1 | H175: Drift | I175: Biodiesel | J175: =Utslippsfaktorer!B18 -> Biodiesel (WTT) | K175: =SUMIF(Utslippsfaktorer!B:B,Beregninger!J175,Utslippsfaktorer!D:D) -> 1.92 | L175: =VLOOKUP(J175,Utslippsfaktorer!B:C,2,FALSE) -> kg CO2e/liter | M175: 0.00016128 | N175: =SUMIF($O$125:$BV$125,"<=" & 'Prosjektbeskrivelse og inndata'!$C$14,O175:BL175) -> 0.0096768 | O175: 0.00016128 | P175: 0.00016128 | Q175: 0.00016128 | R175: 0.00016128 | S175: 0.00016128 | T175: 0.00016128 | U175: 0.00016128 | V175: 0.00016128 | W175: 0.00016128 | X175: 0.00016128 | Y175: 0.00016128 | Z175: 0.00016128 | AA175: 0.00016128 | AB175: 0.00016128 | AC175: 0.00016128 | AD175: 0.00016128 | AE175: 0.00016128 | AF175: 0.00016128 | AG175: 0.00016128 | AH175: 0.00016128 | AI175: 0.00016128 | AJ175: 0.00016128 | AK175: 0.00016128 | AL175: 0.00016128 | AM175: 0.00016128 | AN175: 0.00016128 | AO175: 0.00016128 | AP175: 0.00016128 | AQ175: 0.00016128 | AR175: 0.00016128 | AS175: 0.00016128 | AT175: 0.00016128 | AU175: 0.00016128 | AV175: 0.00016128 | AW175: 0.00016128 | AX175: 0.00016128 | AY175: 0.00016128 | AZ175: 0.00016128 | BA175: 0.00016128 | BB175: 0.00016128 | BC175: 0.00016128 | BD175: 0.00016128 | BE175: 0.00016128 | BF175: 0.00016128 | BG175: 0.00016128 | BH175: 0.00016128 | BI175: 0.00016128 | BJ175: 0.00016128 | BK175: 0.00016128 | BL175: 0.00016128 | BM175: 0.00016128 | BN175: 0.00016128 | BO175: 0.00016128 | BP175: 0.00016128 | BQ175: 0.00016128 | BR175: 0.00016128 | BS175: 0.00016128 | BT175: 0.00016128 | BU175: 0.00016128 | BV175: 0.00016128
D176: Kantklipp elektrisk/hydrogen | E176: =C167*'Drift og vedlikehold'!G24*Beregningsfaktorer!D86 -> 0 | F176: kWh | G176: 1 | H176: Drift | I176: Elektrisitet | J176: =Utslippsfaktorer!B24 -> Elektrisitet 55 år, europeisk miks | K176: =SUMIF(Utslippsfaktorer!B:B,Beregninger!J176,Utslippsfaktorer!D:D) -> 0.136 | L176: =VLOOKUP(J176,Utslippsfaktorer!B:C,2,FALSE) -> kg CO2e/kWh | M176: 0 | N176: =SUMIF($O$125:$BV$125,"<=" & 'Prosjektbeskrivelse og inndata'!$C$14,O176:BL176) -> 0 | O176: =IF(MOD(O$125,$G176)=0,$M176,"") -> 0 | P176: 0 | Q176: 0 | R176: 0 | S176: 0 | T176: 0 | U176: 0 | V176: 0 | W176: 0 | X176: 0 | Y176: =IF(MOD(Y$125,$G176)=0,$M176,"") -> 0 | Z176: 0 | AA176: 0 | AB176: 0 | AC176: 0 | AD176: 0 | AE176: 0 | AF176: 0 | AG176: 0 | AH176: 0 | AI176: =IF(MOD(AI$125,$G176)=0,$M176,"") -> 0 | AJ176: 0 | AK176: 0 | AL176: 0 | AM176: 0 | AN176: 0 | AO176: 0 | AP176: 0 | AQ176: 0 | AR176: 0 | AS176: =IF(MOD(AS$125,$G176)=0,$M176,"") -> 0 | AT176: 0 | AU176: 0 | AV176: 0 | AW176: 0 | AX176: 0 | AY176: 0 | AZ176: 0 | BA176: 0 | BB176: 0 | BC176: =IF(MOD(BC$125,$G176)=0,$M176,"") -> 0 | BD176: 0 | BE176: 0 | BF176: 0 | BG176: 0 | BH176: 0 | BI176: 0 | BJ176: 0 | BK176: 0 | BL176: 0 | BM176: =IF(MOD(BM$125,$G176)=0,$M176,"") -> 0 | BN176: 0 | BO176: 0 | BP176: 0 | BQ176: 0 | BR176: 0 | BS176: 0 | BT176: 0 | BU176: 0 | BV176: 0
D177: Grøfterensk diesel | E177: =C167*'Drift og vedlikehold'!E25*Beregningsfaktorer!D86 -> 74.4 | F177: liter diesel | G177: =Beregningsfaktorer!D54 -> 3 | H177: Drift | I177: Diesel | J177: =Utslippsfaktorer!B20 -> Fossil diesel (WTW) | K177: =SUMIF(Utslippsfaktorer!B:B,Beregninger!J177,Utslippsfaktorer!D:D) -> 3.24 | L177: =VLOOKUP(J177,Utslippsfaktorer!B:C,2,FALSE) -> kg CO2e/liter | M177: 0.241056 | N177: =SUMIF($O$125:$BV$125,"<=" & 'Prosjektbeskrivelse og inndata'!$C$14,O177:BL177) -> 4.82112 | Q177: 0.241056 | T177: 0.241056 | W177: 0.241056 | Z177: 0.241056 | AC177: 0.241056 | AF177: 0.241056 | AI177: 0.241056 | AL177: 0.241056 | AO177: 0.241056 | AR177: 0.241056 | AU177: 0.241056 | AX177: 0.241056 | BA177: 0.241056 | BD177: 0.241056 | BG177: 0.241056 | BJ177: 0.241056 | BM177: 0.241056 | BP177: 0.241056 | BS177: 0.241056 | BV177: 0.241056
D178: Grøfterensk biodiesel | E178: =C167*'Drift og vedlikehold'!F25*Beregningsfaktorer!D86 -> 5.6 | F178: liter biodiesel | G178: =Beregningsfaktorer!D54 -> 3 | H178: Drift | I178: Biodiesel | J178: =Utslippsfaktorer!B18 -> Biodiesel (WTT) | K178: =SUMIF(Utslippsfaktorer!B:B,Beregninger!J178,Utslippsfaktorer!D:D) -> 1.92 | L178: =VLOOKUP(J178,Utslippsfaktorer!B:C,2,FALSE) -> kg CO2e/liter | M178: 0.010752 | N178: =SUMIF($O$125:$BV$125,"<=" & 'Prosjektbeskrivelse og inndata'!$C$14,O178:BL178) -> 0.21504 | Q178: 0.010752 | T178: 0.010752 | W178: 0.010752 | Z178: 0.010752 | AC178: 0.010752 | AF178: 0.010752 | AI178: 0.010752 | AL178: 0.010752 | AO178: 0.010752 | AR178: 0.010752 | AU178: 0.010752 | AX178: 0.010752 | BA178: 0.010752 | BD178: 0.010752 | BG178: 0.010752 | BJ178: 0.010752 | BM178: 0.010752 | BP178: 0.010752 | BS178: 0.010752 | BV178: 0.010752
D179: Grøfterensk elektrisk/hydrogen | E179: =C167*'Drift og vedlikehold'!G25*Beregningsfaktorer!D86 -> 0 | F179: kWh | G179: =Beregningsfaktorer!D54 -> 3 | H179: Drift | I179: Elektrisitet | J179: =Utslippsfaktorer!B24 -> Elektrisitet 55 år, europeisk miks | K179: =SUMIF(Utslippsfaktorer!B:B,Beregninger!J179,Utslippsfaktorer!D:D) -> 0.136 | L179: =VLOOKUP(J179,Utslippsfaktorer!B:C,2,FALSE) -> kg CO2e/kWh | M179: 0 | N179: =SUMIF($O$125:$BV$125,"<=" & 'Prosjektbeskrivelse og inndata'!$C$14,O179:BL179) -> 0 | Q179: 0 | T179: 0 | W179: 0 | Z179: 0 | AC179: 0 | AF179: 0 | AI179: 0 | AL179: 0 | AO179: 0 | AR179: 0 | AU179: 0 | AX179: 0 | BA179: 0 | BD179: 0 | BG179: 0 | BJ179: 0 | BM179: 0 | BP179: 0 | BS179: 0 | BV179: 0
D180: Transport jordmasser grøfterensk diesel | E180: =C167*'Drift og vedlikehold'!F15*Beregningsfaktorer!D86 -> 19.29564 | F180: liter diesel | G180: =Beregningsfaktorer!D54 -> 3 | H180: Drift | I180: Diesel | J180: =Utslippsfaktorer!B20 -> Fossil diesel (WTW) | K180: =SUMIF(Utslippsfaktorer!B:B,Beregninger!J180,Utslippsfaktorer!D:D) -> 3.24 | L180: =VLOOKUP(J180,Utslippsfaktorer!B:C,2,FALSE) -> kg CO2e/liter | M180: 0.0625178736 | N180: =SUMIF($O$125:$BV$125,"<=" & 'Prosjektbeskrivelse og inndata'!$C$14,O180:BL180) -> 1.250357472 | Q180: 0.0625178736 | T180: 0.0625178736 | W180: 0.0625178736 | Z180: 0.0625178736 | AC180: 0.0625178736 | AF180: 0.0625178736 | AI180: 0.0625178736 | AL180: 0.0625178736 | AO180: 0.0625178736 | AR180: 0.0625178736 | AU180: 0.0625178736 | AX180: 0.0625178736 | BA180: 0.0625178736 | BD180: 0.0625178736 | BG180: 0.0625178736 | BJ180: 0.0625178736 | BM180: 0.0625178736 | BP180: 0.0625178736 | BS180: 0.0625178736 | BV180: 0.0625178736
D181: Transport jordmasser grøfterensk biodiesel | E181: =C167*'Drift og vedlikehold'!G15*Beregningsfaktorer!D86 -> 1.45236 | F181: liter biodiesel | G181: =Beregningsfaktorer!D54 -> 3 | H181: Drift | I181: Biodiesel | J181: =Utslippsfaktorer!B18 -> Biodiesel (WTT) | K181: =SUMIF(Utslippsfaktorer!B:B,Beregninger!J181,Utslippsfaktorer!D:D) -> 1.92 | L181: =VLOOKUP(J181,Utslippsfaktorer!B:C,2,FALSE) -> kg CO2e/liter | M181: 0.0027885312 | N181: =SUMIF($O$125:$BV$125,"<=" & 'Prosjektbeskrivelse og inndata'!$C$14,O181:BL181) -> 0.055770624 | Q181: 0.0027885312 | T181: 0.0027885312 | W181: 0.0027885312 | Z181: 0.0027885312 | AC181: 0.0027885312 | AF181: 0.0027885312 | AI181: 0.0027885312 | AL181: 0.0027885312 | AO181: 0.0027885312 | AR181: 0.0027885312 | AU181: 0.0027885312 | AX181: 0.0027885312 | BA181: 0.0027885312 | BD181: 0.0027885312 | BG181: 0.0027885312 | BJ181: 0.0027885312 | BM181: 0.0027885312 | BP181: 0.0027885312 | BS181: 0.0027885312 | BV181: 0.0027885312
D182: Transport jordmasser grøfterensk elektrisk/hydrogen | E182: =C167*'Drift og vedlikehold'!H15*Beregningsfaktorer!D86 -> 0 | F182: kWh | G182: =Beregningsfaktorer!D54 -> 3 | H182: Drift | I182: Elektrisitet | J182: =Utslippsfaktorer!B24 -> Elektrisitet 55 år, europeisk miks | K182: =SUMIF(Utslippsfaktorer!B:B,Beregninger!J182,Utslippsfaktorer!D:D) -> 0.136 | L182: =VLOOKUP(J182,Utslippsfaktorer!B:C,2,FALSE) -> kg CO2e/kWh | M182: 0 | N182: =SUMIF($O$125:$BV$125,"<=" & 'Prosjektbeskrivelse og inndata'!$C$14,O182:BL182) -> 0 | Q182: 0 | T182: 0 | W182: 0 | Z182: 0 | AC182: 0 | AF182: 0 | AI182: 0 | AL182: 0 | AO182: 0 | AR182: 0 | AU182: 0 | AX182: 0 | BA182: 0 | BD182: 0 | BG182: 0 | BJ182: 0 | BM182: 0 | BP182: 0 | BS182: 0 | BV182: 0
D183: Feiing diesel | E183: =C167*'Drift og vedlikehold'!E26*Beregningsfaktorer!D80 -> 4.185 | F183: liter diesel | G183: 1 | H183: Drift | I183: Diesel | J183: =Utslippsfaktorer!B20 -> Fossil diesel (WTW) | K183: =SUMIF(Utslippsfaktorer!B:B,Beregninger!J183,Utslippsfaktorer!D:D) -> 3.24 | L183: =VLOOKUP(J183,Utslippsfaktorer!B:C,2,FALSE) -> kg CO2e/liter | M183: 0.0135594 | N183: =SUMIF($O$125:$BV$125,"<=" & 'Prosjektbeskrivelse og inndata'!$C$14,O183:BL183) -> 0.813564 | O183: 0.0135594 | P183: 0.0135594 | Q183: 0.0135594 | R183: 0.0135594 | S183: 0.0135594 | T183: 0.0135594 | U183: 0.0135594 | V183: 0.0135594 | W183: 0.0135594 | X183: 0.0135594 | Y183: 0.0135594 | Z183: 0.0135594 | AA183: 0.0135594 | AB183: 0.0135594 | AC183: 0.0135594 | AD183: 0.0135594 | AE183: 0.0135594 | AF183: 0.0135594 | AG183: 0.0135594 | AH183: 0.0135594 | AI183: 0.0135594 | AJ183: 0.0135594 | AK183: 0.0135594 | AL183: 0.0135594 | AM183: 0.0135594 | AN183: 0.0135594 | AO183: 0.0135594 | AP183: 0.0135594 | AQ183: 0.0135594 | AR183: 0.0135594 | AS183: 0.0135594 | AT183: 0.0135594 | AU183: 0.0135594 | AV183: 0.0135594 | AW183: 0.0135594 | AX183: 0.0135594 | AY183: 0.0135594 | AZ183: 0.0135594 | BA183: 0.0135594 | BB183: 0.0135594 | BC183: 0.0135594 | BD183: 0.0135594 | BE183: 0.0135594 | BF183: 0.0135594 | BG183: 0.0135594 | BH183: 0.0135594 | BI183: 0.0135594 | BJ183: 0.0135594 | BK183: 0.0135594 | BL183: 0.0135594 | BM183: 0.0135594 | BN183: 0.0135594 | BO183: 0.0135594 | BP183: 0.0135594 | BQ183: 0.0135594 | BR183: 0.0135594 | BS183: 0.0135594 | BT183: 0.0135594 | BU183: 0.0135594 | BV183: 0.0135594
D184: Feiing biodiesel | E184: =C167*'Drift og vedlikehold'!F26*Beregningsfaktorer!D80 -> 0.315 | F184: liter biodiesel | G184: 1 | H184: Drift | I184: Biodiesel | J184: =Utslippsfaktorer!B18 -> Biodiesel (WTT) | K184: =SUMIF(Utslippsfaktorer!B:B,Beregninger!J184,Utslippsfaktorer!D:D) -> 1.92 | L184: =VLOOKUP(J184,Utslippsfaktorer!B:C,2,FALSE) -> kg CO2e/liter | M184: 0.0006048 | N184: =SUMIF($O$125:$BV$125,"<=" & 'Prosjektbeskrivelse og inndata'!$C$14,O184:BL184) -> 0.036288 | O184: 0.0006048 | P184: 0.0006048 | Q184: 0.0006048 | R184: 0.0006048 | S184: 0.0006048 | T184: 0.0006048 | U184: 0.0006048 | V184: 0.0006048 | W184: 0.0006048 | X184: 0.0006048 | Y184: 0.0006048 | Z184: 0.0006048 | AA184: 0.0006048 | AB184: 0.0006048 | AC184: 0.0006048 | AD184: 0.0006048 | AE184: 0.0006048 | AF184: 0.0006048 | AG184: 0.0006048 | AH184: 0.0006048 | AI184: 0.0006048 | AJ184: 0.0006048 | AK184: 0.0006048 | AL184: 0.0006048 | AM184: 0.0006048 | AN184: 0.0006048 | AO184: 0.0006048 | AP184: 0.0006048 | AQ184: 0.0006048 | AR184: 0.0006048 | AS184: 0.0006048 | AT184: 0.0006048 | AU184: 0.0006048 | AV184: 0.0006048 | AW184: 0.0006048 | AX184: 0.0006048 | AY184: 0.0006048 | AZ184: 0.0006048 | BA184: 0.0006048 | BB184: 0.0006048 | BC184: 0.0006048 | BD184: 0.0006048 | BE184: 0.0006048 | BF184: 0.0006048 | BG184: 0.0006048 | BH184: 0.0006048 | BI184: 0.0006048 | BJ184: 0.0006048 | BK184: 0.0006048 | BL184: 0.0006048 | BM184: 0.0006048 | BN184: 0.0006048 | BO184: 0.0006048 | BP184: 0.0006048 | BQ184: 0.0006048 | BR184: 0.0006048 | BS184: 0.0006048 | BT184: 0.0006048 | BU184: 0.0006048 | BV184: 0.0006048
D185: Feiing elektrisk/hydrogen | E185: =C167*'Drift og vedlikehold'!G26*Beregningsfaktorer!D80 -> 0 | F185: kWh | G185: 1 | H185: Drift | I185: Elektrisitet | J185: =Utslippsfaktorer!B24 -> Elektrisitet 55 år, europeisk miks | K185: =SUMIF(Utslippsfaktorer!B:B,Beregninger!J185,Utslippsfaktorer!D:D) -> 0.136 | L185: =VLOOKUP(J185,Utslippsfaktorer!B:C,2,FALSE) -> kg CO2e/kWh | M185: 0 | N185: =SUMIF($O$125:$BV$125,"<=" & 'Prosjektbeskrivelse og inndata'!$C$14,O185:BL185) -> 0 | O185: 0 | P185: 0 | Q185: 0 | R185: 0 | S185: 0 | T185: 0 | U185: 0 | V185: 0 | W185: 0 | X185: 0 | Y185: 0 | Z185: 0 | AA185: 0 | AB185: 0 | AC185: 0 | AD185: 0 | AE185: 0 | AF185: 0 | AG185: 0 | AH185: 0 | AI185: 0 | AJ185: 0 | AK185: 0 | AL185: 0 | AM185: 0 | AN185: 0 | AO185: 0 | AP185: 0 | AQ185: 0 | AR185: 0 | AS185: 0 | AT185: 0 | AU185: 0 | AV185: 0 | AW185: 0 | AX185: 0 | AY185: 0 | AZ185: 0 | BA185: 0 | BB185: 0 | BC185: 0 | BD185: 0 | BE185: 0 | BF185: 0 | BG185: 0 | BH185: 0 | BI185: 0 | BJ185: 0 | BK185: 0 | BL185: 0 | BM185: 0 | BN185: 0 | BO185: 0 | BP185: 0 | BQ185: 0 | BR185: 0 | BS185: 0 | BT185: 0 | BU185: 0 | BV185: 0
D186: Salting diesel | E186: =C167*'Drift og vedlikehold'!E27*(Beregningsfaktorer!D80/2) -> 35.712 | F186: liter diesel | G186: 1 | H186: Drift | I186: Diesel | J186: =Utslippsfaktorer!B20 -> Fossil diesel (WTW) | K186: =SUMIF(Utslippsfaktorer!B:B,Beregninger!J186,Utslippsfaktorer!D:D) -> 3.24 | L186: =VLOOKUP(J186,Utslippsfaktorer!B:C,2,FALSE) -> kg CO2e/liter | M186: 0.11570688 | N186: =SUMIF($O$125:$BV$125,"<=" & 'Prosjektbeskrivelse og inndata'!$C$14,O186:BL186) -> 6.9424128 | O186: =IF(MOD(O$125,$G186)=0,$M186,"") -> 0.11570688 | P186: 0.11570688 | Q186: 0.11570688 | R186: 0.11570688 | S186: 0.11570688 | T186: 0.11570688 | U186: 0.11570688 | V186: 0.11570688 | W186: 0.11570688 | X186: 0.11570688 | Y186: =IF(MOD(Y$125,$G186)=0,$M186,"") -> 0.11570688 | Z186: 0.11570688 | AA186: 0.11570688 | AB186: 0.11570688 | AC186: 0.11570688 | AD186: 0.11570688 | AE186: 0.11570688 | AF186: 0.11570688 | AG186: 0.11570688 | AH186: 0.11570688 | AI186: =IF(MOD(AI$125,$G186)=0,$M186,"") -> 0.11570688 | AJ186: 0.11570688 | AK186: 0.11570688 | AL186: 0.11570688 | AM186: 0.11570688 | AN186: 0.11570688 | AO186: 0.11570688 | AP186: 0.11570688 | AQ186: 0.11570688 | AR186: 0.11570688 | AS186: =IF(MOD(AS$125,$G186)=0,$M186,"") -> 0.11570688 | AT186: 0.11570688 | AU186: 0.11570688 | AV186: 0.11570688 | AW186: 0.11570688 | AX186: 0.11570688 | AY186: 0.11570688 | AZ186: 0.11570688 | BA186: 0.11570688 | BB186: 0.11570688 | BC186: =IF(MOD(BC$125,$G186)=0,$M186,"") -> 0.11570688 | BD186: 0.11570688 | BE186: 0.11570688 | BF186: 0.11570688 | BG186: 0.11570688 | BH186: 0.11570688 | BI186: 0.11570688 | BJ186: 0.11570688 | BK186: 0.11570688 | BL186: 0.11570688 | BM186: =IF(MOD(BM$125,$G186)=0,$M186,"") -> 0.11570688 | BN186: 0.11570688 | BO186: 0.11570688 | BP186: 0.11570688 | BQ186: 0.11570688 | BR186: 0.11570688 | BS186: 0.11570688 | BT186: 0.11570688 | BU186: 0.11570688 | BV186: 0.11570688
D187: Salting biodiesel | E187: =C167*'Drift og vedlikehold'!F27*(Beregningsfaktorer!D80/2) -> 2.688 | F187: liter biodiesel | G187: 1 | H187: Drift | I187: Biodiesel | J187: =Utslippsfaktorer!B18 -> Biodiesel (WTT) | K187: =SUMIF(Utslippsfaktorer!B:B,Beregninger!J187,Utslippsfaktorer!D:D) -> 1.92 | L187: =VLOOKUP(J187,Utslippsfaktorer!B:C,2,FALSE) -> kg CO2e/liter | M187: 0.00516096 | N187: =SUMIF($O$125:$BV$125,"<=" & 'Prosjektbeskrivelse og inndata'!$C$14,O187:BL187) -> 0.3096576 | O187: 0.00516096 | P187: 0.00516096 | Q187: 0.00516096 | R187: 0.00516096 | S187: 0.00516096 | T187: 0.00516096 | U187: 0.00516096 | V187: 0.00516096 | W187: 0.00516096 | X187: 0.00516096 | Y187: 0.00516096 | Z187: 0.00516096 | AA187: 0.00516096 | AB187: 0.00516096 | AC187: 0.00516096 | AD187: 0.00516096 | AE187: 0.00516096 | AF187: 0.00516096 | AG187: 0.00516096 | AH187: 0.00516096 | AI187: 0.00516096 | AJ187: 0.00516096 | AK187: 0.00516096 | AL187: 0.00516096 | AM187: 0.00516096 | AN187: 0.00516096 | AO187: 0.00516096 | AP187: 0.00516096 | AQ187: 0.00516096 | AR187: 0.00516096 | AS187: 0.00516096 | AT187: 0.00516096 | AU187: 0.00516096 | AV187: 0.00516096 | AW187: 0.00516096 | AX187: 0.00516096 | AY187: 0.00516096 | AZ187: 0.00516096 | BA187: 0.00516096 | BB187: 0.00516096 | BC187: 0.00516096 | BD187: 0.00516096 | BE187: 0.00516096 | BF187: 0.00516096 | BG187: 0.00516096 | BH187: 0.00516096 | BI187: 0.00516096 | BJ187: 0.00516096 | BK187: 0.00516096 | BL187: 0.00516096 | BM187: 0.00516096 | BN187: 0.00516096 | BO187: 0.00516096 | BP187: 0.00516096 | BQ187: 0.00516096 | BR187: 0.00516096 | BS187: 0.00516096 | BT187: 0.00516096 | BU187: 0.00516096 | BV187: 0.00516096
D188: Salting elektrisk/hydrogen | E188: =C167*'Drift og vedlikehold'!G27*(Beregningsfaktorer!D80/2) -> 0 | F188: kWh | G188: 1 | H188: Drift | I188: Elektrisitet | J188: =Utslippsfaktorer!B24 -> Elektrisitet 55 år, europeisk miks | K188: =SUMIF(Utslippsfaktorer!B:B,Beregninger!J188,Utslippsfaktorer!D:D) -> 0.136 | L188: =VLOOKUP(J188,Utslippsfaktorer!B:C,2,FALSE) -> kg CO2e/kWh | M188: 0 | N188: =SUMIF($O$125:$BV$125,"<=" & 'Prosjektbeskrivelse og inndata'!$C$14,O188:BL188) -> 0 | O188: 0 | P188: 0 | Q188: 0 | R188: 0 | S188: 0 | T188: 0 | U188: 0 | V188: 0 | W188: 0 | X188: 0 | Y188: 0 | Z188: 0 | AA188: 0 | AB188: 0 | AC188: 0 | AD188: 0 | AE188: 0 | AF188: 0 | AG188: 0 | AH188: 0 | AI188: 0 | AJ188: 0 | AK188: 0 | AL188: 0 | AM188: 0 | AN188: 0 | AO188: 0 | AP188: 0 | AQ188: 0 | AR188: 0 | AS188: 0 | AT188: 0 | AU188: 0 | AV188: 0 | AW188: 0 | AX188: 0 | AY188: 0 | AZ188: 0 | BA188: 0 | BB188: 0 | BC188: 0 | BD188: 0 | BE188: 0 | BF188: 0 | BG188: 0 | BH188: 0 | BI188: 0 | BJ188: 0 | BK188: 0 | BL188: 0 | BM188: 0 | BN188: 0 | BO188: 0 | BP188: 0 | BQ188: 0 | BR188: 0 | BS188: 0 | BT188: 0 | BU188: 0 | BV188: 0
D189: Salt | E189: =C167*'Drift og vedlikehold'!E16 -> 6300 | F189: kg salt | G189: 1 | H189: Drift | I189: Salt | J189: =Utslippsfaktorer!B12 -> Salt | K189: =SUMIF(Utslippsfaktorer!B:B,Beregninger!J189,Utslippsfaktorer!D:D) -> 0.179 | L189: =VLOOKUP(J189,Utslippsfaktorer!B:C,2,FALSE) -> kg CO2e/kg | M189: 1.1277 | N189: =SUMIF($O$125:$BV$125,"<=" & 'Prosjektbeskrivelse og inndata'!$C$14,O189:BL189) -> 67.662 | O189: 1.1277 | P189: 1.1277 | Q189: 1.1277 | R189: 1.1277 | S189: 1.1277 | T189: 1.1277 | U189: 1.1277 | V189: 1.1277 | W189: 1.1277 | X189: 1.1277 | Y189: 1.1277 | Z189: 1.1277 | AA189: 1.1277 | AB189: 1.1277 | AC189: 1.1277 | AD189: 1.1277 | AE189: 1.1277 | AF189: 1.1277 | AG189: 1.1277 | AH189: 1.1277 | AI189: 1.1277 | AJ189: 1.1277 | AK189: 1.1277 | AL189: 1.1277 | AM189: 1.1277 | AN189: 1.1277 | AO189: 1.1277 | AP189: 1.1277 | AQ189: 1.1277 | AR189: 1.1277 | AS189: 1.1277 | AT189: 1.1277 | AU189: 1.1277 | AV189: 1.1277 | AW189: 1.1277 | AX189: 1.1277 | AY189: 1.1277 | AZ189: 1.1277 | BA189: 1.1277 | BB189: 1.1277 | BC189: 1.1277 | BD189: 1.1277 | BE189: 1.1277 | BF189: 1.1277 | BG189: 1.1277 | BH189: 1.1277 | BI189: 1.1277 | BJ189: 1.1277 | BK189: 1.1277 | BL189: 1.1277 | BM189: 1.1277 | BN189: 1.1277 | BO189: 1.1277 | BP189: 1.1277 | BQ189: 1.1277 | BR189: 1.1277 | BS189: 1.1277 | BT189: 1.1277 | BU189: 1.1277 | BV189: 1.1277
D190: Salttransport diesel | E190: =C167*'Drift og vedlikehold'!F16 -> 58.59 | F190: liter diesel | G190: 1 | H190: Drift | I190: Diesel | J190: =Utslippsfaktorer!B20 -> Fossil diesel (WTW) | K190: =SUMIF(Utslippsfaktorer!B:B,Beregninger!J190,Utslippsfaktorer!D:D) -> 3.24 | L190: =VLOOKUP(J190,Utslippsfaktorer!B:C,2,FALSE) -> kg CO2e/liter | M190: 0.1898316 | N190: =SUMIF($O$125:$BV$125,"<=" & 'Prosjektbeskrivelse og inndata'!$C$14,O190:BL190) -> 11.389896 | O190: 0.1898316 | P190: 0.1898316 | Q190: 0.1898316 | R190: 0.1898316 | S190: 0.1898316 | T190: 0.1898316 | U190: 0.1898316 | V190: 0.1898316 | W190: 0.1898316 | X190: 0.1898316 | Y190: 0.1898316 | Z190: 0.1898316 | AA190: 0.1898316 | AB190: 0.1898316 | AC190: 0.1898316 | AD190: 0.1898316 | AE190: 0.1898316 | AF190: 0.1898316 | AG190: 0.1898316 | AH190: 0.1898316 | AI190: 0.1898316 | AJ190: 0.1898316 | AK190: 0.1898316 | AL190: 0.1898316 | AM190: 0.1898316 | AN190: 0.1898316 | AO190: 0.1898316 | AP190: 0.1898316 | AQ190: 0.1898316 | AR190: 0.1898316 | AS190: 0.1898316 | AT190: 0.1898316 | AU190: 0.1898316 | AV190: 0.1898316 | AW190: 0.1898316 | AX190: 0.1898316 | AY190: 0.1898316 | AZ190: 0.1898316 | BA190: 0.1898316 | BB190: 0.1898316 | BC190: 0.1898316 | BD190: 0.1898316 | BE190: 0.1898316 | BF190: 0.1898316 | BG190: 0.1898316 | BH190: 0.1898316 | BI190: 0.1898316 | BJ190: 0.1898316 | BK190: 0.1898316 | BL190: 0.1898316 | BM190: 0.1898316 | BN190: 0.1898316 | BO190: 0.1898316 | BP190: 0.1898316 | BQ190: 0.1898316 | BR190: 0.1898316 | BS190: 0.1898316 | BT190: 0.1898316 | BU190: 0.1898316 | BV190: 0.1898316
D191: Salttransport biodiesel | E191: =C167*'Drift og vedlikehold'!G16 -> 4.41 | F191: liter biodiesel | G191: 1 | H191: Drift | I191: Biodiesel | J191: =Utslippsfaktorer!B18 -> Biodiesel (WTT) | K191: =SUMIF(Utslippsfaktorer!B:B,Beregninger!J191,Utslippsfaktorer!D:D) -> 1.92 | L191: =VLOOKUP(J191,Utslippsfaktorer!B:C,2,FALSE) -> kg CO2e/liter | M191: 0.0084672 | N191: =SUMIF($O$125:$BV$125,"<=" & 'Prosjektbeskrivelse og inndata'!$C$14,O191:BL191) -> 0.508032 | O191: 0.0084672 | P191: 0.0084672 | Q191: 0.0084672 | R191: 0.0084672 | S191: 0.0084672 | T191: 0.0084672 | U191: 0.0084672 | V191: 0.0084672 | W191: 0.0084672 | X191: 0.0084672 | Y191: 0.0084672 | Z191: 0.0084672 | AA191: 0.0084672 | AB191: 0.0084672 | AC191: 0.0084672 | AD191: 0.0084672 | AE191: 0.0084672 | AF191: 0.0084672 | AG191: 0.0084672 | AH191: 0.0084672 | AI191: 0.0084672 | AJ191: 0.0084672 | AK191: 0.0084672 | AL191: 0.0084672 | AM191: 0.0084672 | AN191: 0.0084672 | AO191: 0.0084672 | AP191: 0.0084672 | AQ191: 0.0084672 | AR191: 0.0084672 | AS191: 0.0084672 | AT191: 0.0084672 | AU191: 0.0084672 | AV191: 0.0084672 | AW191: 0.0084672 | AX191: 0.0084672 | AY191: 0.0084672 | AZ191: 0.0084672 | BA191: 0.0084672 | BB191: 0.0084672 | BC191: 0.0084672 | BD191: 0.0084672 | BE191: 0.0084672 | BF191: 0.0084672 | BG191: 0.0084672 | BH191: 0.0084672 | BI191: 0.0084672 | BJ191: 0.0084672 | BK191: 0.0084672 | BL191: 0.0084672 | BM191: 0.0084672 | BN191: 0.0084672 | BO191: 0.0084672 | BP191: 0.0084672 | BQ191: 0.0084672 | BR191: 0.0084672 | BS191: 0.0084672 | BT191: 0.0084672 | BU191: 0.0084672 | BV191: 0.0084672
D192: Salttransport elektrisk/hydrogen | E192: =C167*'Drift og vedlikehold'!H16 -> 0 | F192: kWh | G192: 1 | H192: Drift | I192: Elektrisitet | J192: =Utslippsfaktorer!B24 -> Elektrisitet 55 år, europeisk miks | K192: =SUMIF(Utslippsfaktorer!B:B,Beregninger!J192,Utslippsfaktorer!D:D) -> 0.136 | L192: =VLOOKUP(J192,Utslippsfaktorer!B:C,2,FALSE) -> kg CO2e/kWh | M192: 0 | N192: =SUMIF($O$125:$BV$125,"<=" & 'Prosjektbeskrivelse og inndata'!$C$14,O192:BL192) -> 0 | O192: 0 | P192: 0 | Q192: 0 | R192: 0 | S192: 0 | T192: 0 | U192: 0 | V192: 0 | W192: 0 | X192: 0 | Y192: 0 | Z192: 0 | AA192: 0 | AB192: 0 | AC192: 0 | AD192: 0 | AE192: 0 | AF192: 0 | AG192: 0 | AH192: 0 | AI192: 0 | AJ192: 0 | AK192: 0 | AL192: 0 | AM192: 0 | AN192: 0 | AO192: 0 | AP192: 0 | AQ192: 0 | AR192: 0 | AS192: 0 | AT192: 0 | AU192: 0 | AV192: 0 | AW192: 0 | AX192: 0 | AY192: 0 | AZ192: 0 | BA192: 0 | BB192: 0 | BC192: 0 | BD192: 0 | BE192: 0 | BF192: 0 | BG192: 0 | BH192: 0 | BI192: 0 | BJ192: 0 | BK192: 0 | BL192: 0 | BM192: 0 | BN192: 0 | BO192: 0 | BP192: 0 | BQ192: 0 | BR192: 0 | BS192: 0 | BT192: 0 | BU192: 0 | BV192: 0
D193: Brøyting diesel | E193: =C167*'Drift og vedlikehold'!E28 -> 258.804864 | F193: liter diesel | G193: 1 | H193: Drift | I193: Diesel | J193: =Utslippsfaktorer!B20 -> Fossil diesel (WTW) | K193: =SUMIF(Utslippsfaktorer!B:B,Beregninger!J193,Utslippsfaktorer!D:D) -> 3.24 | L193: =VLOOKUP(J193,Utslippsfaktorer!B:C,2,FALSE) -> kg CO2e/liter | M193: 0.8385277594 | N193: =SUMIF($O$125:$BV$125,"<=" & 'Prosjektbeskrivelse og inndata'!$C$14,O193:BL193) -> 50.31166556 | O193: 0.8385277594 | P193: 0.8385277594 | Q193: 0.8385277594 | R193: 0.8385277594 | S193: 0.8385277594 | T193: 0.8385277594 | U193: 0.8385277594 | V193: 0.8385277594 | W193: 0.8385277594 | X193: 0.8385277594 | Y193: 0.8385277594 | Z193: 0.8385277594 | AA193: 0.8385277594 | AB193: 0.8385277594 | AC193: 0.8385277594 | AD193: 0.8385277594 | AE193: 0.8385277594 | AF193: 0.8385277594 | AG193: 0.8385277594 | AH193: 0.8385277594 | AI193: 0.8385277594 | AJ193: 0.8385277594 | AK193: 0.8385277594 | AL193: 0.8385277594 | AM193: 0.8385277594 | AN193: 0.8385277594 | AO193: 0.8385277594 | AP193: 0.8385277594 | AQ193: 0.8385277594 | AR193: 0.8385277594 | AS193: 0.8385277594 | AT193: 0.8385277594 | AU193: 0.8385277594 | AV193: 0.8385277594 | AW193: 0.8385277594 | AX193: 0.8385277594 | AY193: 0.8385277594 | AZ193: 0.8385277594 | BA193: 0.8385277594 | BB193: 0.8385277594 | BC193: 0.8385277594 | BD193: 0.8385277594 | BE193: 0.8385277594 | BF193: 0.8385277594 | BG193: 0.8385277594 | BH193: 0.8385277594 | BI193: 0.8385277594 | BJ193: 0.8385277594 | BK193: 0.8385277594 | BL193: 0.8385277594 | BM193: 0.8385277594 | BN193: 0.8385277594 | BO193: 0.8385277594 | BP193: 0.8385277594 | BQ193: 0.8385277594 | BR193: 0.8385277594 | BS193: 0.8385277594 | BT193: 0.8385277594 | BU193: 0.8385277594 | BV193: 0.8385277594
D194: Brøyting biodiesel | E194: =C167*'Drift og vedlikehold'!F28 -> 19.479936 | F194: liter biodiesel | G194: 1 | H194: Drift | I194: Biodiesel | J194: =Utslippsfaktorer!B18 -> Biodiesel (WTT) | K194: =SUMIF(Utslippsfaktorer!B:B,Beregninger!J194,Utslippsfaktorer!D:D) -> 1.92 | L194: =VLOOKUP(J194,Utslippsfaktorer!B:C,2,FALSE) -> kg CO2e/liter | M194: 0.03740147712 | N194: =SUMIF($O$125:$BV$125,"<=" & 'Prosjektbeskrivelse og inndata'!$C$14,O194:BL194) -> 2.244088627 | O194: 0.03740147712 | P194: 0.03740147712 | Q194: 0.03740147712 | R194: 0.03740147712 | S194: 0.03740147712 | T194: 0.03740147712 | U194: 0.03740147712 | V194: 0.03740147712 | W194: 0.03740147712 | X194: 0.03740147712 | Y194: 0.03740147712 | Z194: 0.03740147712 | AA194: 0.03740147712 | AB194: 0.03740147712 | AC194: 0.03740147712 | AD194: 0.03740147712 | AE194: 0.03740147712 | AF194: 0.03740147712 | AG194: 0.03740147712 | AH194: 0.03740147712 | AI194: 0.03740147712 | AJ194: 0.03740147712 | AK194: 0.03740147712 | AL194: 0.03740147712 | AM194: 0.03740147712 | AN194: 0.03740147712 | AO194: 0.03740147712 | AP194: 0.03740147712 | AQ194: 0.03740147712 | AR194: 0.03740147712 | AS194: 0.03740147712 | AT194: 0.03740147712 | AU194: 0.03740147712 | AV194: 0.03740147712 | AW194: 0.03740147712 | AX194: 0.03740147712 | AY194: 0.03740147712 | AZ194: 0.03740147712 | BA194: 0.03740147712 | BB194: 0.03740147712 | BC194: 0.03740147712 | BD194: 0.03740147712 | BE194: 0.03740147712 | BF194: 0.03740147712 | BG194: 0.03740147712 | BH194: 0.03740147712 | BI194: 0.03740147712 | BJ194: 0.03740147712 | BK194: 0.03740147712 | BL194: 0.03740147712 | BM194: 0.03740147712 | BN194: 0.03740147712 | BO194: 0.03740147712 | BP194: 0.03740147712 | BQ194: 0.03740147712 | BR194: 0.03740147712 | BS194: 0.03740147712 | BT194: 0.03740147712 | BU194: 0.03740147712 | BV194: 0.03740147712
D195: Brøyting elektrisk/hydrogen | E195: =C167*'Drift og vedlikehold'!G28 -> 0 | F195: kWh | G195: 1 | H195: Drift | I195: Elektrisitet | J195: =Utslippsfaktorer!B24 -> Elektrisitet 55 år, europeisk miks | K195: =SUMIF(Utslippsfaktorer!B:B,Beregninger!J195,Utslippsfaktorer!D:D) -> 0.136 | L195: =VLOOKUP(J195,Utslippsfaktorer!B:C,2,FALSE) -> kg CO2e/kWh | M195: 0 | N195: =SUMIF($O$125:$BV$125,"<=" & 'Prosjektbeskrivelse og inndata'!$C$14,O195:BL195) -> 0 | O195: 0 | P195: 0 | Q195: 0 | R195: 0 | S195: 0 | T195: 0 | U195: 0 | V195: 0 | W195: 0 | X195: 0 | Y195: 0 | Z195: 0 | AA195: 0 | AB195: 0 | AC195: 0 | AD195: 0 | AE195: 0 | AF195: 0 | AG195: 0 | AH195: 0 | AI195: 0 | AJ195: 0 | AK195: 0 | AL195: 0 | AM195: 0 | AN195: 0 | AO195: 0 | AP195: 0 | AQ195: 0 | AR195: 0 | AS195: 0 | AT195: 0 | AU195: 0 | AV195: 0 | AW195: 0 | AX195: 0 | AY195: 0 | AZ195: 0 | BA195: 0 | BB195: 0 | BC195: 0 | BD195: 0 | BE195: 0 | BF195: 0 | BG195: 0 | BH195: 0 | BI195: 0 | BJ195: 0 | BK195: 0 | BL195: 0 | BM195: 0 | BN195: 0 | BO195: 0 | BP195: 0 | BQ195: 0 | BR195: 0 | BS195: 0 | BT195: 0 | BU195: 0 | BV195: 0
D196: Autovern | E196: =C167*'Tillegg vei'!D7*Beregningsfaktorer!D84 -> 19800 | F196: kg stål | G196: =Beregningsfaktorer!D51 -> 30 | H196: Vedlikehold | I196: Stål | J196: =Utslippsfaktorer!B14 -> Stål | K196: =SUMIF(Utslippsfaktorer!B:B,Beregninger!J196,Utslippsfaktorer!D:D) -> 2.1235 | L196: =VLOOKUP(J196,Utslippsfaktorer!B:C,2,FALSE) -> kg CO2e/kg | M196: 42.0453 | N196: =SUMIF($O$125:$BV$125,"<=" & 'Prosjektbeskrivelse og inndata'!$C$14,O196:BL196) -> 84.0906 | O196: =IF(MOD(O$125,$G196)=0,$M196,"") ->  | Y196: =IF(MOD(Y$125,$G196)=0,$M196,"") ->  | AI196: =IF(MOD(AI$125,$G196)=0,$M196,"") ->  | AR196: 42.0453 | AS196: =IF(MOD(AS$125,$G196)=0,$M196,"") ->  | BC196: =IF(MOD(BC$125,$G196)=0,$M196,"") ->  | BM196: =IF(MOD(BM$125,$G196)=0,$M196,"") ->  | BV196: 42.0453
D197: Utskiftning autovern diesel | E197: =C167*'Tillegg vei'!E7*Beregningsfaktorer!D84 -> 147.312 | F197: liter diesel | G197: =Beregningsfaktorer!D51 -> 30 | H197: Vedlikehold | I197: Diesel | J197: =Utslippsfaktorer!B20 -> Fossil diesel (WTW) | K197: =SUMIF(Utslippsfaktorer!B:B,Beregninger!J197,Utslippsfaktorer!D:D) -> 3.24 | L197: =VLOOKUP(J197,Utslippsfaktorer!B:C,2,FALSE) -> kg CO2e/liter | M197: =(E197*K197)/1000 -> 0.47729088 | N197: =SUMIF($O$125:$BV$125,"<=" & 'Prosjektbeskrivelse og inndata'!$C$14,O197:BL197) -> 0.95458176 | AR197: 0.47729088 | BV197: 0.47729088
D198: Utskiftning autovern biodiesel | E198: =C167*'Tillegg vei'!F7*Beregningsfaktorer!D84 -> 11.088 | F198: liter biodiesel | G198: =Beregningsfaktorer!D51 -> 30 | H198: Vedlikehold | I198: Biodiesel | J198: =Utslippsfaktorer!B18 -> Biodiesel (WTT) | K198: =SUMIF(Utslippsfaktorer!B:B,Beregninger!J198,Utslippsfaktorer!D:D) -> 1.92 | L198: =VLOOKUP(J198,Utslippsfaktorer!B:C,2,FALSE) -> kg CO2e/liter | M198: 0.02128896 | N198: =SUMIF($O$125:$BV$125,"<=" & 'Prosjektbeskrivelse og inndata'!$C$14,O198:BL198) -> 0.04257792 | AR198: 0.02128896 | BV198: 0.02128896
D199: Utskiftning autovern elektrisk/hydrogen | E199: =C167*'Tillegg vei'!G7*Beregningsfaktorer!D84 -> 0 | F199: kWh | G199: =Beregningsfaktorer!D51 -> 30 | H199: Vedlikehold | I199: Elektrisitet | J199: =Utslippsfaktorer!B24 -> Elektrisitet 55 år, europeisk miks | K199: =SUMIF(Utslippsfaktorer!B:B,Beregninger!J199,Utslippsfaktorer!D:D) -> 0.136 | L199: =VLOOKUP(J199,Utslippsfaktorer!B:C,2,FALSE) -> kg CO2e/kWh | M199: 0 | N199: =SUMIF($O$125:$BV$125,"<=" & 'Prosjektbeskrivelse og inndata'!$C$14,O199:BL199) -> 0 | AR199: 0 | BV199: 0
D200: Transport av autovern diesel | E200: =C167*'Drift og vedlikehold'!F19*Beregningsfaktorer!D84 -> 147.312 | F200: liter diesel | G200: =Beregningsfaktorer!D51 -> 30 | H200: Vedlikehold | I200: Diesel | J200: =Utslippsfaktorer!B20 -> Fossil diesel (WTW) | K200: =SUMIF(Utslippsfaktorer!B:B,Beregninger!J200,Utslippsfaktorer!D:D) -> 3.24 | L200: =VLOOKUP(J200,Utslippsfaktorer!B:C,2,FALSE) -> kg CO2e/liter | M200: 0.47729088 | N200: =SUMIF($O$125:$BV$125,"<=" & 'Prosjektbeskrivelse og inndata'!$C$14,O200:BL200) -> 0.95458176 | AR200: 0.47729088 | BV200: 0.47729088
D201: Transport av autovern biodiesel | E201: =C167*'Drift og vedlikehold'!G19*Beregningsfaktorer!D84 -> 11.088 | F201: liter biodiesel | G201: =Beregningsfaktorer!D51 -> 30 | H201: Vedlikehold | I201: Biodiesel | J201: =Utslippsfaktorer!B18 -> Biodiesel (WTT) | K201: =SUMIF(Utslippsfaktorer!B:B,Beregninger!J201,Utslippsfaktorer!D:D) -> 1.92 | L201: =VLOOKUP(J201,Utslippsfaktorer!B:C,2,FALSE) -> kg CO2e/liter | M201: 0.02128896 | N201: =SUMIF($O$125:$BV$125,"<=" & 'Prosjektbeskrivelse og inndata'!$C$14,O201:BL201) -> 0.04257792 | AR201: 0.02128896 | BV201: 0.02128896
... 110 more rows

Sheet Drift og vedlikehold
B1: Drift og vedlikehold
B2: Bakgrunnsdata
B3: ÅDT | C3: ='Prosjektbeskrivelse og inndata'!C15 -> 3850
B5: Materialer, strømforbruk og transport
B6: Hovedkategori | C6: Underkategori | D6: Type innsatsfaktor | E6: Materialmengder | F6: Energiforbruk | J6: Kommentar
E7: Masse per veistrekning [kg/m] | F7: Mengde diesel [liter/m] | G7: Mengde bio [liter/m] | H7: Mengde el [kWh/m] | I7: Mengde el [kWh/(m*m)] | J7: Alle mengder i denne fanen er oppgitt per år. For vedlikehold som utføres med utskiftningsintervaller gjelder verdiene for de årene der det skjer vedlikehold. Anleggsvei er utelatt fra alle beregninger knyttet til drift.
B8: Kontinuerlig drift | C8: Belysning hovedvei i dagen | D8: Elektrisitet | H8: =Beregningsfaktorer!D60*Beregningsfaktorer!D74/1000 -> 34 | J8: Blir ganget med antall belysningsrekker og total lengde vei i dagen og bru for å finne samlet forbruk for strekning.
C9: Belysning sidevei i dagen | D9: Elektrisitet | H9: =Beregningsfaktorer!D60*Beregningsfaktorer!D75/1000 -> 34 | J9: Blir ganget med antall belysningsrekker og total lengde sidevei i dagen for å finne samlet forbruk for strekning.
C10: Belysning tunnel | D10: Elektrisitet | H10: =Beregningsfaktorer!D61 -> 34 | J10: Blir ganget med antall løp og tunnellengde for å finne forbruk for hver tunnel.
C11: Pumpedrift enkeltløpstunnel | D11: Elektrisitet | H11: =Beregningsfaktorer!D67*Beregningsfaktorer!D47+Beregningsfaktorer!D66*(1-Beregningsfaktorer!D47) -> 0 | J11: Blir ganget med total lengde enkeltløpstunnel for å finne samlet forbruk for strekning.
C12: Pumpedrift dobbeltløpstunnel | D12: Elektrisitet | H12: =Beregningsfaktorer!D67*2*Beregningsfaktorer!D48+Beregningsfaktorer!D66*2*(1-Beregningsfaktorer!D48) -> 0 | J12: Blir ganget med total lengde dobbeltløpstunnel for å finne samlet forbruk for strekning.
C13: Viftedrift enkeltløpstunnel | D13: Elektrisitet | H13: =Beregningsfaktorer!D47*Beregningsfaktorer!D63/1000*'Drift og vedlikehold'!C3+(1-Beregningsfaktorer!D47)*Beregningsfaktorer!D62/1000*'Drift og vedlikehold'!C3 -> 14.245 | J13: Blir ganget med total lengde enkelttløpstunnel for å finne samlet forbruk for strekningen. Formel fra Metoderapport s. 46
C14: Viftedrift dobbeltløpstunnel | D14: Elektrisitet | H14: =Beregningsfaktorer!D48*Beregningsfaktorer!D65/1000*'Drift og vedlikehold'!C3+(1-Beregningsfaktorer!D48)*Beregningsfaktorer!D64/1000*'Drift og vedlikehold'!C3 -> 14.245 | J14: Blir ganget med total lengde dobbeltløpstunnel for å finne samlet forbruk for strekningen. Formel fra Metoderapport s. 46
B15: Sesongdrift | C15: Grøfterensk | D15: Jordmasser/vegetasjon | E15: =Beregningsfaktorer!D17*Beregningsfaktorer!D71 -> 172.9 | F15: =E15/1000*'Transport og energibehov'!D5*'Transport og energibehov'!D29*'Transport og energibehov'!N29 -> 0.0160797 | G15: =E15/1000*'Transport og energibehov'!D5*'Transport og energibehov'!D29*'Transport og energibehov'!M29 -> 0.0012103 | H15: =E15/1000*'Transport og energibehov'!D5*'Transport og energibehov'!H29*'Transport og energibehov'!L29 -> 0 | J15: Driftsintervall med standardverdi 3 år (kan erstattes med prosjektspesifikk verdi i beregningsfaktorfane). Blir ganget med antall grøfter og total strekningslengde for å finne samlet forbruk for strekningen.
C16: Salt | D16: Salt | E16: =Beregningsfaktorer!D68*1000/1000 -> 10.5 | F16: =E16/1000*'Transport og energibehov'!D15*'Transport og energibehov'!D29*'Transport og energibehov'!N29 -> 0.09765 | G16: =E16/1000*'Transport og energibehov'!D15*'Transport og energibehov'!D29*'Transport og energibehov'!M29 -> 0.00735 | H16: =E16/1000*'Transport og energibehov'!D15*'Transport og energibehov'!H29*'Transport og energibehov'!L29 -> 0 | J16: Blir ganget med total strekningslengde for å finne samlet forbruk for strekningen.
B17: Vedlikehold | C17: Lyktestolper hovedvei og bru utskiftning | D17: Stål | E17: =Beregningsfaktorer!D73*Beregningsfaktorer!D74/1000 -> 4.82375 | F17: =(E17/1000)*'Transport og energibehov'!D25*'Transport og energibehov'!D11*'Transport og energibehov'!N25 -> 0.0358887 | G17: =(E17/1000)*'Transport og energibehov'!D25*'Transport og energibehov'!D11*'Transport og energibehov'!M25 -> 0.0027013 | H17: =(E17/1000)*'Transport og energibehov'!H24*'Transport og energibehov'!D11*'Transport og energibehov'!L25 -> 0 | J17: Utskiftningintervall gitt av levetid med standardverdi lik 30 år (kan erstattes med prosjektspesifikk verdi i beregningsfaktorfanen). Blir ganget med antall belysningsrekker og total lengde vei i dagen og bru for å finne samlet forbruk for strekningen.
C18: Lyktestolper sidevei utskiftning | D18: Stål | E18: =Beregningsfaktorer!D73*Beregningsfaktorer!D75/1000 -> 4.82375 | F18: =(E18/1000)*'Transport og energibehov'!D25*'Transport og energibehov'!D11*'Transport og energibehov'!N25 -> 0.0358887 | G18: =(E18/1000)*'Transport og energibehov'!D25*'Transport og energibehov'!D11*'Transport og energibehov'!M25 -> 0.0027013 | H18: =(E18/1000)*'Transport og energibehov'!H24*'Transport og energibehov'!D11*'Transport og energibehov'!L25 -> 0 | J18: Utskiftningintervall gitt av levetid med standardverdi lik 30 år (kan erstattes med prosjektspesifikk verdi i beregningsfaktorfanen). Blir ganget med antall belysningsrekker og total lengde sidevei i for å finne samlet forbruk for strekningen.
C19: Autovern/rekkverk utskiftning | D19: Stål | E19: =Beregningsfaktorer!D76 -> 16.5 | F19: =(E19/1000)*'Transport og energibehov'!D25*'Transport og energibehov'!D11*'Transport og energibehov'!N25 -> 0.12276 | G19: =(E19/1000)*'Transport og energibehov'!D25*'Transport og energibehov'!D11*'Transport og energibehov'!M25 -> 0.00924 | H19: =(E19/1000)*'Transport og energibehov'!H24*'Transport og energibehov'!D11*'Transport og energibehov'!L25 -> 0 | J19: Utskiftningintervall gitt av levetid med standardverdi lik 30 år (kan erstattes med prosjektspesifikk verdi i beregningsfaktorfanen). Blir ganget med antall rekkverk og total strekningslengde for å finne samlet forbruk for strekningen.
B21: Anleggsarbeid
B22: Hovedkategori | C22: Kategori | D22: Maskintype | E22: Energiforbruk | H22: Kommentar
E23: Mengde diesel [liter/m] | F23: Mengde bio [liter/m] | G23: Mengde el [kWh/m] | H23: Alle mengder i denne fanen er oppgitt per år. For vedlikehold som utføres med utskiftningsintervaller gjelder verdiene for de årene der det skjer vedlikehold. Anleggsvei er utelatt fra alle beregninger knyttet til drift.
B24: Sesongdrift | C24: Kantklipp | D24: Hjullaster/traktor | E24: ='Transport og energibehov'!D41/'Transport og energibehov'!D57*'Transport og energibehov'!N41 -> 0.00093 | F24: ='Transport og energibehov'!D41/'Transport og energibehov'!D57*'Transport og energibehov'!M41 -> 7e-05 | G24: ='Transport og energibehov'!H41/'Transport og energibehov'!D57*'Transport og energibehov'!L41 -> 0 | H24: Blir ganget med total lengde vei i dagen og antall grøfter for å finne samlet forbruk for strekningen.
C25: Grøfterensk | D25: Gravemaskin | E25: ='Transport og energibehov'!D34/'Transport og energibehov'!D55*'Transport og energibehov'!N34 -> 0.062 | F25: ='Transport og energibehov'!D34/'Transport og energibehov'!D55*'Transport og energibehov'!M34 -> 0.004666666667 | G25: ='Transport og energibehov'!H34/'Transport og energibehov'!D55*'Transport og energibehov'!L34 -> 0 | H25: Driftsintervall med standardverdi 3 år (kan erstattes med prosjektspesifikk verdi i beregningsfaktorfane). Blir ganget med antall grøfter og total strekningslengde for å finne samlet forbruk for strekningen.
C26: Feiing | D26: Hjullaster | E26: ='Transport og energibehov'!D42/'Transport og energibehov'!D56*'Transport og energibehov'!N42 -> 0.0034875 | F26: ='Transport og energibehov'!D42/'Transport og energibehov'!D56*'Transport og energibehov'!M42 -> 0.0002625 | G26: ='Transport og energibehov'!H42/'Transport og energibehov'!D56*'Transport og energibehov'!L42 -> 0 | H26: Blir ganget med strekningslengde og antall felt for å finne samlet forbruk for hver del av strekningen.
C27: Strøing av salt | D27: Saltbil (lastebil) | E27: ='Transport og energibehov'!D43/1000*Beregningsfaktorer!D70*'Transport og energibehov'!N43 -> 0.05952 | F27: ='Transport og energibehov'!D43/1000*Beregningsfaktorer!D70*'Transport og energibehov'!M43 -> 0.00448 | G27: ='Transport og energibehov'!H43/1000*Beregningsfaktorer!D70*'Transport og energibehov'!L43 -> 0 | H27: Blir ganget med total lengde vei i dagen og bru og halvparten av antall felt for å finne samlet forbruk for hver del av strekningen (antar at to og to felt saltes).
C28: Brøyting | D28: Brøytebil | E28: ='Transport og energibehov'!D44/1000*Beregningsfaktorer!D69*'Transport og energibehov'!N44 -> 0.43134144 | F28: ='Transport og energibehov'!D44/1000*Beregningsfaktorer!D69*'Transport og energibehov'!M44 -> 0.03246656 | G28: ='Transport og energibehov'!H44/1000*Beregningsfaktorer!D69*'Transport og energibehov'!L44 -> 0 | H28: Blir ganget med total lengde vei i dagen og bru for å finne samlet forbruk for hver del av strekningen.
B29: Vedlikehold | C29: Utskiftning av autovern/rekkverk | D29: Pelerigg/lastebil | E29: ='Transport og energibehov'!D40*'Transport og energibehov'!N40 -> 0.372 | F29: ='Transport og energibehov'!D40*'Transport og energibehov'!M40 -> 0.028 | G29: ='Transport og energibehov'!H40*'Transport og energibehov'!L40 -> 0 | H29: Utskiftningintervall gitt av levetid med standardverdi lik 30 år (kan erstattes med prosjektspesifikk verdi i beregningsfaktorfanen). Blir ganget med antall rekkverk og total strekningslengde for å finne samlet forbruk for strekningen.

Sheet Hovedvei
B2: Materialer og transport
B3: Kategori | C3: Materialmengder | E3: Transport | H3: Kommentar
C4: Volum per areal [m3/m2] | D4: Masse per areal [kg/m2] | E4: Mengde diesel [liter/m2] | F4: Mengde bio [liter/m2] | G4: Mengde el [kWh/m2]
B5: Slitelag (Ska) | C5: =Beregningsfaktorer!D19 -> 0.045 | D5: =C5*Beregningsfaktorer!D7 -> 112.5 | E5: =(D5/1000)*'Transport og energibehov'!D20*'Transport og energibehov'!D7*'Transport og energibehov'!N20 -> 0.062775 | F5: =(D5/1000)*'Transport og energibehov'!D20*'Transport og energibehov'!D7*'Transport og energibehov'!M20 -> 0.004725 | G5: =(D5/1000)*'Transport og energibehov'!H20*'Transport og energibehov'!D7*'Transport og energibehov'!L20 -> 0
B6: Bindlag (Agb) | C6: =Beregningsfaktorer!D20 -> 0.035 | D6: =C6*Beregningsfaktorer!D7 -> 87.5 | E6: =(D6/1000)*'Transport og energibehov'!D20*'Transport og energibehov'!D7*'Transport og energibehov'!N20 -> 0.048825 | F6: =(D6/1000)*'Transport og energibehov'!D20*'Transport og energibehov'!D7*'Transport og energibehov'!M20 -> 0.003675 | G6: =(D6/1000)*'Transport og energibehov'!H20*'Transport og energibehov'!D7*'Transport og energibehov'!L20 -> 0
B7: Bærelag (Ag) | C7: =Beregningsfaktorer!D21 -> 0.13 | D7: =C7*Beregningsfaktorer!D8 -> 312 | E7: =(D7/1000)*'Transport og energibehov'!D21*'Transport og energibehov'!D8*'Transport og energibehov'!N21 -> 0.174096 | F7: =(D7/1000)*'Transport og energibehov'!D21*'Transport og energibehov'!D8*'Transport og energibehov'!M21 -> 0.013104 | G7: =(D7/1000)*'Transport og energibehov'!H21*'Transport og energibehov'!D8*'Transport og energibehov'!L21 -> 0
B8: Forsterkningslag | C8: =Beregningsfaktorer!D22 -> 0.45 | D8: =C8*Beregningsfaktorer!D10 -> 697.5 | E8: =(D8/1000)*'Transport og energibehov'!D22*'Transport og energibehov'!D9*'Transport og energibehov'!N22 -> 0.1946025 | F8: =(D8/1000)*'Transport og energibehov'!D22*'Transport og energibehov'!D9*'Transport og energibehov'!M22 -> 0.0146475 | G8: =(D8/1000)*'Transport og energibehov'!H22*'Transport og energibehov'!D9*'Transport og energibehov'!L22 -> 0
B9: Frostsikringslag | C9: =Beregningsfaktorer!D23 -> 1.74 | D9: =C9*Beregningsfaktorer!D9 -> 2697 | E9: =(D9/1000)*'Transport og energibehov'!D22*'Transport og energibehov'!D9*'Transport og energibehov'!N22 -> 0.752463 | F9: =(D9/1000)*'Transport og energibehov'!D22*'Transport og energibehov'!D9*'Transport og energibehov'!M22 -> 0.056637 | G9: =(D9/1000)*'Transport og energibehov'!H22*'Transport og energibehov'!D9*'Transport og energibehov'!L22 -> 0
B12: Anleggsarbeid
B13: Kategori | C13: Maskintype | D13: Anleggsarbeid | H13: Kommentar
D14: Anleggsarbeid [m2/time] | E14: Mengde diesel [liter/m2] | F14: Mengde bio [liter/m2] | G14: Mengde el [kWh/m2]
B15: Slitelag | C15: Veivals | D15: =('Transport og energibehov'!D46*1000)/D5 -> 666.6666667 | E15: =('Transport og energibehov'!D31/D15)*'Transport og energibehov'!N31 -> 0.004185 | F15: =('Transport og energibehov'!D31/D15)*'Transport og energibehov'!M31 -> 0.000315 | G15: =('Transport og energibehov'!H31/D15)*'Transport og energibehov'!L31 -> 0
C16: Traktor | D16: =('Transport og energibehov'!D47*1000)/D5 -> 2666.666667 | E16: =('Transport og energibehov'!D32/D16)*'Transport og energibehov'!N32 -> 0.00174375 | F16: =('Transport og energibehov'!D32/D16)*'Transport og energibehov'!M32 -> 0.00013125 | G16: =('Transport og energibehov'!H32/D16)*'Transport og energibehov'!L32 -> 0
C17: Asfaltutlegger | D17: =('Transport og energibehov'!D48*1000)/D5 -> 33.33333333 | E17: =('Transport og energibehov'!D33/D17)*'Transport og energibehov'!N33 -> 0.0837 | F17: =('Transport og energibehov'!D33/D17)*'Transport og energibehov'!M33 -> 0.0063 | G17: =('Transport og energibehov'!H33/D17)*'Transport og energibehov'!L33 -> 0
B18: Bindlag | C18: Veivals | D18: =('Transport og energibehov'!D46*1000)/D6 -> 857.1428571 | E18: =('Transport og energibehov'!D31/D18)*'Transport og energibehov'!N31 -> 0.003255 | F18: =('Transport og energibehov'!D31/D18)*'Transport og energibehov'!M31 -> 0.000245 | G18: =('Transport og energibehov'!H31/D18)*'Transport og energibehov'!L31 -> 0
C19: Traktor | D19: =('Transport og energibehov'!D47*1000)/D6 -> 3428.571429 | E19: =('Transport og energibehov'!D32/D19)*'Transport og energibehov'!N32 -> 0.00135625 | F19: =('Transport og energibehov'!D32/D19)*'Transport og energibehov'!M32 -> 0.0001020833333 | G19: =('Transport og energibehov'!H32/D19)*'Transport og energibehov'!L32 -> 0
C20: Asfaltutlegger | D20: =('Transport og energibehov'!D48*1000)/D6 -> 42.85714286 | E20: =('Transport og energibehov'!D33/D20)*'Transport og energibehov'!N33 -> 0.0651 | F20: =('Transport og energibehov'!D33/D20)*'Transport og energibehov'!M33 -> 0.0049 | G20: =('Transport og energibehov'!H33/D20)*'Transport og energibehov'!L33 -> 0
B21: Bærelag | C21: Veivals | D21: =('Transport og energibehov'!D46*1000)/D7 -> 240.3846154 | E21: =('Transport og energibehov'!D31/D21)*'Transport og energibehov'!N31 -> 0.0116064 | F21: =('Transport og energibehov'!D31/D21)*'Transport og energibehov'!M31 -> 0.0008736 | G21: =('Transport og energibehov'!H31/D21)*'Transport og energibehov'!L31 -> 0
C22: Traktor | D22: =('Transport og energibehov'!D47*1000)/D7 -> 961.5384615 | E22: =('Transport og energibehov'!D32/D22)*'Transport og energibehov'!N32 -> 0.004836 | F22: =('Transport og energibehov'!D32/D22)*'Transport og energibehov'!M32 -> 0.000364 | G22: =('Transport og energibehov'!H32/D22)*'Transport og energibehov'!L32 -> 0
C23: Asfaltutlegger | D23: =('Transport og energibehov'!D48*1000)/D7 -> 12.01923077 | E23: =('Transport og energibehov'!D33/D23)*'Transport og energibehov'!N33 -> 0.232128 | F23: =('Transport og energibehov'!D33/D23)*'Transport og energibehov'!M33 -> 0.017472 | G23: =('Transport og energibehov'!H33/D23)*'Transport og energibehov'!L33 -> 0
B24: Forsterkningslag | C24: Gravemaskin | D24: =('Transport og energibehov'!D49*1000)/D8 -> 215.0537634 | E24: =('Transport og energibehov'!D34/D24)*'Transport og energibehov'!N34 -> 0.08649 | F24: =('Transport og energibehov'!D34/D24)*'Transport og energibehov'!M34 -> 0.00651 | G24: =('Transport og energibehov'!H34/D24)*'Transport og energibehov'!L34 -> 0
C25: Grovknuser | D25: =('Transport og energibehov'!D50*1000)/D8 -> 179.2114695 | E25: =('Transport og energibehov'!D35/D25)*'Transport og energibehov'!N35 -> 0.129735 | F25: =('Transport og energibehov'!D35/D25)*'Transport og energibehov'!M35 -> 0.009765 | G25: =('Transport og energibehov'!H35/D25)*'Transport og energibehov'!L35 -> 0
B26: Frostsikringslag | C26: Gravemaskin | D26: =('Transport og energibehov'!D49*1000)/D9 -> 55.61735261 | E26: =('Transport og energibehov'!D34/D26)*'Transport og energibehov'!N34 -> 0.334428 | F26: =('Transport og energibehov'!D34/D26)*'Transport og energibehov'!M34 -> 0.025172 | G26: =('Transport og energibehov'!H34/D26)*'Transport og energibehov'!L34 -> 0
C27: Grovknuser | D27: =('Transport og energibehov'!D50*1000)/D9 -> 46.34779385 | E27: =('Transport og energibehov'!D35/D27)*'Transport og energibehov'!N35 -> 0.501642 | F27: =('Transport og energibehov'!D35/D27)*'Transport og energibehov'!M35 -> 0.037758 | G27: =('Transport og energibehov'!H35/D27)*'Transport og energibehov'!L35 -> 0
C28: Finknuser | D28: =('Transport og energibehov'!D51*1000)/D9 -> 92.69558769 | E28: =('Transport og energibehov'!D36/D28)*'Transport og energibehov'!N36 -> 0.250821 | F28: =('Transport og energibehov'!D36/D28)*'Transport og energibehov'!M36 -> 0.018879 | G28: =('Transport og energibehov'!H36/D28)*'Transport og energibehov'!L36 -> 0

Sheet Sidevei
B2: Materialer og transport
B3: Kategori | C3: Materialmengder | E3: Transport | H3: Kommentar
C4: Volum per areal [m3/m2] | D4: Masse per areal [kg/m2] | E4: Mengde diesel [liter/m2] | F4: Mengde bio [liter/m2] | G4: Mengde el [kWh/m2]
B5: Slitelag (Agb) | C5: =Beregningsfaktorer!D19 -> 0.045 | D5: =C5*Beregningsfaktorer!D7 -> 112.5 | E5: =(D5/1000)*'Transport og energibehov'!D20*'Transport og energibehov'!D7*'Transport og energibehov'!N20 -> 0.062775 | F5: =(D5/1000)*'Transport og energibehov'!D20*'Transport og energibehov'!D7*'Transport og energibehov'!M20 -> 0.004725 | G5: =(D5/1000)*'Transport og energibehov'!H20*'Transport og energibehov'!D7*'Transport og energibehov'!L20 -> 0
B6: Bindlag (Agb) | C6: =Beregningsfaktorer!D20 -> 0.035 | D6: =C6*Beregningsfaktorer!D7 -> 87.5 | E6: =(D6/1000)*'Transport og energibehov'!D20*'Transport og energibehov'!D7*'Transport og energibehov'!N20 -> 0.048825 | F6: =(D6/1000)*'Transport og energibehov'!D20*'Transport og energibehov'!D7*'Transport og energibehov'!M20 -> 0.003675 | G6: =(D6/1000)*'Transport og energibehov'!H20*'Transport og energibehov'!D7*'Transport og energibehov'!L20 -> 0
B7: Bærelag (Ag) | C7: =Beregningsfaktorer!D21 -> 0.13 | D7: =C7*Beregningsfaktorer!D8 -> 312 | E7: =(D7/1000)*'Transport og energibehov'!D21*'Transport og energibehov'!D8*'Transport og energibehov'!N21 -> 0.174096 | F7: =(D7/1000)*'Transport og energibehov'!D21*'Transport og energibehov'!D8*'Transport og energibehov'!M21 -> 0.013104 | G7: =(D7/1000)*'Transport og energibehov'!H21*'Transport og energibehov'!D8*'Transport og energibehov'!L21 -> 0
B8: Forsterkningslag | C8: =Beregningsfaktorer!D22 -> 0.45 | D8: =C8*Beregningsfaktorer!D10 -> 697.5 | E8: =(D8/1000)*'Transport og energibehov'!D22*'Transport og energibehov'!D9*'Transport og energibehov'!N22 -> 0.1946025 | F8: =(D8/1000)*'Transport og energibehov'!D22*'Transport og energibehov'!D9*'Transport og energibehov'!M22 -> 0.0146475 | G8: =(D8/1000)*'Transport og energibehov'!H22*'Transport og energibehov'!D9*'Transport og energibehov'!L22 -> 0
B9: Frostsikringslag | C9: =Beregningsfaktorer!D23 -> 1.74 | D9: =C9*Beregningsfaktorer!D9 -> 2697 | E9: =(D9/1000)*'Transport og energibehov'!D22*'Transport og energibehov'!D9*'Transport og energibehov'!N22 -> 0.752463 | F9: =(D9/1000)*'Transport og energibehov'!D22*'Transport og energibehov'!D9*'Transport og energibehov'!M22 -> 0.056637 | G9: =(D9/1000)*'Transport og energibehov'!H22*'Transport og energibehov'!D9*'Transport og energibehov'!L22 -> 0
B12: Anleggsarbeid
B13: Kategori | C13: Maskintype | D13: Anleggsarbeid | H13: Kommentar
D14: Anleggsarbeid [m2/time] | E14: Mengde diesel [liter/m2] | F14: Mengde bio [liter/m2] | G14: Mengde el [kWh/m2]
B15: Slitelag | C15: Veivals | D15: =('Transport og energibehov'!D46*1000)/D5 -> 666.6666667 | E15: =('Transport og energibehov'!D31/D15)*'Transport og energibehov'!N31 -> 0.004185 | F15: =('Transport og energibehov'!D31/D15)*'Transport og energibehov'!M31 -> 0.000315 | G15: =('Transport og energibehov'!H31/D15)*'Transport og energibehov'!L31 -> 0
C16: Traktor | D16: =('Transport og energibehov'!D47*1000)/D5 -> 2666.666667 | E16: =('Transport og energibehov'!D32/D16)*'Transport og energibehov'!N32 -> 0.00174375 | F16: =('Transport og energibehov'!D32/D16)*'Transport og energibehov'!M32 -> 0.00013125 | G16: =('Transport og energibehov'!H32/D16)*'Transport og energibehov'!L32 -> 0
C17: Asfaltutlegger | D17: =('Transport og energibehov'!D48*1000)/D5 -> 33.33333333 | E17: =('Transport og energibehov'!D33/D17)*'Transport og energibehov'!N33 -> 0.0837 | F17: =('Transport og energibehov'!D33/D17)*'Transport og energibehov'!M33 -> 0.0063 | G17: =('Transport og energibehov'!H33/D17)*'Transport og energibehov'!L33 -> 0
B18: Bindlag | C18: Veivals | D18: =('Transport og energibehov'!D46*1000)/D6 -> 857.1428571 | E18: =('Transport og energibehov'!D31/D18)*'Transport og energibehov'!N31 -> 0.003255 | F18: =('Transport og energibehov'!D31/D18)*'Transport og energibehov'!M31 -> 0.000245 | G18: =('Transport og energibehov'!H31/D18)*'Transport og energibehov'!L31 -> 0
C19: Traktor | D19: =('Transport og energibehov'!D47*1000)/D6 -> 3428.571429 | E19: =('Transport og energibehov'!D32/D19)*'Transport og energibehov'!N32 -> 0.00135625 | F19: =('Transport og energibehov'!D32/D19)*'Transport og energibehov'!M32 -> 0.0001020833333 | G19: =('Transport og energibehov'!H32/D19)*'Transport og energibehov'!L32 -> 0
C20: Asfaltutlegger | D20: =('Transport og energibehov'!D48*1000)/D6 -> 42.85714286 | E20: =('Transport og energibehov'!D33/D20)*'Transport og energibehov'!N33 -> 0.0651 | F20: =('Transport og energibehov'!D33/D20)*'Transport og energibehov'!M33 -> 0.0049 | G20: =('Transport og energibehov'!H33/D20)*'Transport og energibehov'!L33 -> 0
B21: Bærelag | C21: Veivals | D21: =('Transport og energibehov'!D46*1000)/D7 -> 240.3846154 | E21: =('Transport og energibehov'!D31/D21)*'Transport og energibehov'!N31 -> 0.0116064 | F21: =('Transport og energibehov'!D31/D21)*'Transport og energibehov'!M31 -> 0.0008736 | G21: =('Transport og energibehov'!H31/D21)*'Transport og energibehov'!L31 -> 0
C22: Traktor | D22: =('Transport og energibehov'!D47*1000)/D7 -> 961.5384615 | E22: =('Transport og energibehov'!D32/D22)*'Transport og energibehov'!N32 -> 0.004836 | F22: =('Transport og energibehov'!D32/D22)*'Transport og energibehov'!M32 -> 0.000364 | G22: =('Transport og energibehov'!H32/D22)*'Transport og energibehov'!L32 -> 0
C23: Asfaltutlegger | D23: =('Transport og energibehov'!D48*1000)/D7 -> 12.01923077 | E23: =('Transport og energibehov'!D33/D23)*'Transport og energibehov'!N33 -> 0.232128 | F23: =('Transport og energibehov'!D33/D23)*'Transport og energibehov'!M33 -> 0.017472 | G23: =('Transport og energibehov'!H33/D23)*'Transport og energibehov'!L33 -> 0
B24: Forsterkningslag | C24: Gravemaskin | D24: =('Transport og energibehov'!D49*1000)/D8 -> 215.0537634 | E24: =('Transport og energibehov'!D34/D24)*'Transport og energibehov'!N34 -> 0.08649 | F24: =('Transport og energibehov'!D34/D24)*'Transport og energibehov'!M34 -> 0.00651 | G24: =('Transport og energibehov'!H34/D24)*'Transport og energibehov'!L34 -> 0
C25: Grovknuser | D25: =('Transport og energibehov'!D50*1000)/D8 -> 179.2114695 | E25: =('Transport og energibehov'!D35/D25)*'Transport og energibehov'!N35 -> 0.129735 | F25: =('Transport og energibehov'!D35/D25)*'Transport og energibehov'!M35 -> 0.009765 | G25: =('Transport og energibehov'!H35/D25)*'Transport og energibehov'!L35 -> 0
B26: Frostsikringslag | C26: Gravemaskin | D26: =('Transport og energibehov'!D49*1000)/D9 -> 55.61735261 | E26: =('Transport og energibehov'!D34/D26)*'Transport og energibehov'!N34 -> 0.334428 | F26: =('Transport og energibehov'!D34/D26)*'Transport og energibehov'!M34 -> 0.025172 | G26: =('Transport og energibehov'!H34/D26)*'Transport og energibehov'!L34 -> 0
C27: Grovknuser | D27: =('Transport og energibehov'!D50*1000)/D9 -> 46.34779385 | E27: =('Transport og energibehov'!D35/D27)*'Transport og energibehov'!N35 -> 0.501642 | F27: =('Transport og energibehov'!D35/D27)*'Transport og energibehov'!M35 -> 0.037758 | G27: =('Transport og energibehov'!H35/D27)*'Transport og energibehov'!L35 -> 0
C28: Finknuser | D28: =('Transport og energibehov'!D51*1000)/D9 -> 92.69558769 | E28: =('Transport og energibehov'!D36/D28)*'Transport og energibehov'!N36 -> 0.250821 | F28: =('Transport og energibehov'!D36/D28)*'Transport og energibehov'!M36 -> 0.018879 | G28: =('Transport og energibehov'!H36/D28)*'Transport og energibehov'!L36 -> 0

Sheet Anleggsvei
B2: Materialer og transport
B3: Kategori | C3: Materialmengder | E3: Transport | H3: Kommentar
C4: Volum per areal [m3/m2] | D4: Masse per areal [kg/m2] | E4: Mengde diesel [liter/m2] | F4: Mengde bio [liter/m2] | G4: Mengde el [kWh/m2]
B5: Bærelag (Ag) | C5: =Beregningsfaktorer!D21 -> 0.13 | D5: =C5*Beregningsfaktorer!D8 -> 312 | E5: =(D5/1000)*'Transport og energibehov'!D21*'Transport og energibehov'!D8*'Transport og energibehov'!N21 -> 0.174096 | F5: =(D5/1000)*'Transport og energibehov'!D21*'Transport og energibehov'!D8*'Transport og energibehov'!M21 -> 0.013104 | G5: =(D5/1000)*'Transport og energibehov'!H21*'Transport og energibehov'!D8*'Transport og energibehov'!L21 -> 0
B6: Forsterkningslag | C6: =Beregningsfaktorer!D22 -> 0.45 | D6: =C6*Beregningsfaktorer!D10 -> 697.5 | E6: =(D6/1000)*'Transport og energibehov'!D22*'Transport og energibehov'!D9*'Transport og energibehov'!N22 -> 0.1946025 | F6: =(D6/1000)*'Transport og energibehov'!D22*'Transport og energibehov'!D9*'Transport og energibehov'!M22 -> 0.0146475 | G6: =(D6/1000)*'Transport og energibehov'!H22*'Transport og energibehov'!D9*'Transport og energibehov'!L22 -> 0
B9: Anleggsarbeid
B10: Kategori | C10: Maskintype | D10: Anleggsarbeid | H10: Kommentar
D11: Anleggsarbeid [m2/time] | E11: Mengde diesel [liter/m2] | F11: Mengde bio [liter/m2] | G11: Mengde el [kWh/m2]
B12: Bærelag | C12: Veivals | D12: =('Transport og energibehov'!D46*1000)/D5 -> 240.3846154 | E12: =('Transport og energibehov'!D31/D12)*'Transport og energibehov'!N31 -> 0.0116064 | F12: =('Transport og energibehov'!D31/D12)*'Transport og energibehov'!M31 -> 0.0008736 | G12: =('Transport og energibehov'!H31/D12)*'Transport og energibehov'!L31 -> 0
C13: Traktor | D13: =('Transport og energibehov'!D47*1000)/D5 -> 961.5384615 | E13: =('Transport og energibehov'!D32/D13)*'Transport og energibehov'!N32 -> 0.004836 | F13: =('Transport og energibehov'!D32/D13)*'Transport og energibehov'!M32 -> 0.000364 | G13: =('Transport og energibehov'!H32/D13)*'Transport og energibehov'!L32 -> 0
C14: Asfaltutlegger | D14: =('Transport og energibehov'!D48*1000)/D5 -> 12.01923077 | E14: =('Transport og energibehov'!D33/D14)*'Transport og energibehov'!N33 -> 0.232128 | F14: =('Transport og energibehov'!D33/D14)*'Transport og energibehov'!M33 -> 0.017472 | G14: =('Transport og energibehov'!H33/D14)*'Transport og energibehov'!L33 -> 0
B15: Forsterkningslag | C15: Gravemaskin | D15: =('Transport og energibehov'!D49*1000)/D6 -> 215.0537634 | E15: =('Transport og energibehov'!D34/D15)*'Transport og energibehov'!N34 -> 0.08649 | F15: =('Transport og energibehov'!D34/D15)*'Transport og energibehov'!M34 -> 0.00651 | G15: =('Transport og energibehov'!H34/D15)*'Transport og energibehov'!L34 -> 0
C16: Grovknuser | D16: =('Transport og energibehov'!D50*1000)/D6 -> 179.2114695 | E16: =('Transport og energibehov'!D35/D16)*'Transport og energibehov'!N35 -> 0.129735 | F16: =('Transport og energibehov'!D35/D16)*'Transport og energibehov'!M35 -> 0.009765 | G16: =('Transport og energibehov'!H35/D16)*'Transport og energibehov'!L35 -> 0

Sheet Tillegg vei
B2: Materialer og transport
B3: Kategori | C3: Materialtype | D3: Materialmengder | E3: Energiforbruk | H3: Kommentar
D4: Masse per veistrekning [kg/m] | E4: Mengde diesel [liter/m] | F4: Mengde bio [liter/m] | G4: Mengde el [kWh/m]
B5: Lyktestolper hovedstrekning | C5: Stål | D5: =Beregningsfaktorer!D73*Beregningsfaktorer!D74/1000 -> 4.82375 | E5: =(D5/1000)*'Transport og energibehov'!D25*'Transport og energibehov'!D11*'Transport og energibehov'!N25 -> 0.0358887 | F5: =(D5/1000)*'Transport og energibehov'!D25*'Transport og energibehov'!D11*'Transport og energibehov'!M25 -> 0.0027013 | G5: =(D5/1000)*'Transport og energibehov'!H24*'Transport og energibehov'!D11*'Transport og energibehov'!L25 -> 0 | H5: Bare for hovedvei i dagen og bru. Per belysningsrekke.
B6: Lyktestolper sidevei | C6: Stål | D6: =Beregningsfaktorer!D73*Beregningsfaktorer!D75/1000 -> 4.82375 | E6: =(D6/1000)*'Transport og energibehov'!D25*'Transport og energibehov'!D11*'Transport og energibehov'!N25 -> 0.0358887 | F6: =(D6/1000)*'Transport og energibehov'!D25*'Transport og energibehov'!D11*'Transport og energibehov'!M25 -> 0.0027013 | G6: =(D6/1000)*'Transport og energibehov'!H24*'Transport og energibehov'!D11*'Transport og energibehov'!L25 -> 0 | H6: Bare for sidevei i dagen. Per belysningsrekke.
B7: Autovern/rekkverk | C7: Stål | D7: =Beregningsfaktorer!D76 -> 16.5 | E7: =(D7/1000)*'Transport og energibehov'!D25*'Transport og energibehov'!D11*'Transport og energibehov'!N25 -> 0.12276 | F7: =(D7/1000)*'Transport og energibehov'!D25*'Transport og energibehov'!D11*'Transport og energibehov'!M25 -> 0.00924 | G7: =(D7/1000)*'Transport og energibehov'!H24*'Transport og energibehov'!D11*'Transport og energibehov'!L25 -> 0
B9: Anleggsarbeid
B10: Kategori | C10: Maskintype | D10: Energiforbruk | G10: Kommentar
D11: Mengde diesel [liter/m] | E11: Mengde bio [liter/m] | F11: Mengde el [kWh/m]
B12: Montering av autovern/rekkverk | C12: Pelerigg/lastebil | D12: ='Transport og energibehov'!D40*'Transport og energibehov'!N40 -> 0.372 | E12: ='Transport og energibehov'!D40*'Transport og energibehov'!M40 -> 0.028 | F12: ='Transport og energibehov'!H40*'Transport og energibehov'!L40 -> 0 | G12: I beregning av klimagassutslipp antas det fire rekkverk på firefeltsvei og to rekkverk på tofeltsvei
B13: Veimerking | C13: Formerkebil (pickup) | D13: ='Transport og energibehov'!D38*'Transport og energibehov'!N38 -> 0.005487 | E13: ='Transport og energibehov'!D38*'Transport og energibehov'!M38 -> 0.000413 | F13: ='Transport og energibehov'!H38*'Transport og energibehov'!L38 -> 0
B14: Etablering av grøft | C14: Gravemaskin | D14: ='Transport og energibehov'!D39*'Transport og energibehov'!N39 -> 37.2 | E14: ='Transport og energibehov'!D39*'Transport og energibehov'!M39 -> 2.8 | F14: ='Transport og energibehov'!H39*'Transport og energibehov'!L39 -> 0

Sheet Tunnel enkeltløp
B1: Tunnel enkeltløp
B2: Bakgrunnsdata
B3: Samlet lengde enkeltløpstunneler [m] | C3: =Beregninger!C88 -> 0 | D3: (Hentes fra inndataark/beregninger)
B4: Antall enkeltløpstunneler | C4: ='Prosjektbeskrivelse og inndata'!C6 -> 0
B5: Tunnelprofil | C5: =Beregningsfaktorer!D41 -> 10.5
B7: Materialer og transport
B8: Kategori | C8: Materialtype | D8: Materialmengder | H8: Transport | K8: Kommentar
D9: Volum per areal [m3/m2] | E9: Masse per areal [kg/m2] | F9: Mengde material [kg/m] | G9: Mengde material [m2/m] | H9: Mengde diesel [liter/m] | I9: Mengde bio [liter/m] | J9: Mengde el [kWh/m]
B10: Konstruksjon | C10: Betongportal | D10: =IFERROR((Beregningsfaktorer!D43*2*C4)/(Beregningsfaktorer!D41*'Tunnel enkeltløp'!C3),0) -> 0 | E10: =D10*Beregningsfaktorer!D4 -> 0 | F10: =E10*Beregningsfaktorer!D41 -> 0 | H10: =(F10/1000)*'Transport og energibehov'!D24*'Transport og energibehov'!D10*'Transport og energibehov'!N24 -> 0 | I10: =(F10/1000)*'Transport og energibehov'!D24*'Transport og energibehov'!D10*'Transport og energibehov'!M24 -> 0 | J10: =(F10/1000)*'Transport og energibehov'!H24*'Transport og energibehov'!D10*'Transport og energibehov'!L24 -> 0
C11: Armering portal | E11: =IFERROR((Beregningsfaktorer!D45*2*C4)/(Beregningsfaktorer!D41*'Tunnel enkeltløp'!C3),0) -> 0 | F11: =E11*Beregningsfaktorer!D41 -> 0 | H11: =(F11/1000)*'Transport og energibehov'!D26*'Transport og energibehov'!D12*'Transport og energibehov'!N26 -> 0 | I11: =(F11/1000)*'Transport og energibehov'!D26*'Transport og energibehov'!D12*'Transport og energibehov'!M26 -> 0 | J11: =(F11/1000)*'Transport og energibehov'!H26*'Transport og energibehov'!D12*'Transport og energibehov'!L26 -> 0
C12: Sikringsbolter | E12: =Beregningsfaktorer!D32/Beregningsfaktorer!D41 -> 4.19047619 | F12: =Beregningsfaktorer!D32*(Beregningsfaktorer!D41/9.5) -> 48.63157895 | H12: =(F12/1000)*'Transport og energibehov'!D25*'Transport og energibehov'!D11*'Transport og energibehov'!N25 -> 0.3618189474 | I12: =(F12/1000)*'Transport og energibehov'!D25*'Transport og energibehov'!D11*'Transport og energibehov'!M25 -> 0.02723368421 | J12: =(F12/1000)*'Transport og energibehov'!H25*'Transport og energibehov'!D11*'Transport og energibehov'!L25 -> 0 | K12: Beregning hentet fra metoderapport
C13: Frostsikring hvelv | E13: =(VLOOKUP(C5,Beregningsfaktorer!M42:S52,3,FALSE)*Beregningsfaktorer!D12*Beregningsfaktorer!D25)/C5 -> 762.4311905 | F13: =E13*C5 -> 8005.5275 | G13: =VLOOKUP(C5,Beregningsfaktorer!M42:S52,3,FALSE) -> 22.13 | H13: =(F13/1000)*'Transport og energibehov'!D28*'Transport og energibehov'!D14*'Transport og energibehov'!N28 -> 10.4231968 | I13: =(F13/1000)*'Transport og energibehov'!D28*'Transport og energibehov'!D14*'Transport og energibehov'!M28 -> 0.784541695 | J13: =(F13/1000)*'Transport og energibehov'!D28*'Transport og energibehov'!D14*'Transport og energibehov'!L28 -> 0
B14: Veioverbygning | C14: Slitelag (Ska) | D14: =Beregningsfaktorer!D19 -> 0.045 | E14: =Beregningsfaktorer!D7*D14 -> 112.5 | F14: =E14*Beregningsfaktorer!D41 -> 1181.25 | H14: =(F14/1000)*'Transport og energibehov'!D20*'Transport og energibehov'!D7*'Transport og energibehov'!N20 -> 0.6591375 | I14: =(F14/1000)*'Transport og energibehov'!D20*'Transport og energibehov'!D7*'Transport og energibehov'!M20 -> 0.0496125 | J14: =(F14/1000)*'Transport og energibehov'!H20*'Transport og energibehov'!D7*'Transport og energibehov'!L20 -> 0
C15: Bindlag (Ska) | D15: =Beregningsfaktorer!D20 -> 0.035 | E15: =Beregningsfaktorer!D7*D15 -> 87.5 | F15: =E15*Beregningsfaktorer!D41 -> 918.75 | H15: =(F15/1000)*'Transport og energibehov'!D20*'Transport og energibehov'!D7*'Transport og energibehov'!N20 -> 0.5126625 | I15: =(F15/1000)*'Transport og energibehov'!D20*'Transport og energibehov'!D7*'Transport og energibehov'!M20 -> 0.0385875 | J15: =(F15/1000)*'Transport og energibehov'!H20*'Transport og energibehov'!D7*'Transport og energibehov'!L20 -> 0
C16: Bærelag (Ag) | D16: =Beregningsfaktorer!D21 -> 0.13 | E16: =Beregningsfaktorer!D8*D16 -> 312 | F16: =E16*Beregningsfaktorer!D41 -> 3276 | H16: =(F16/1000)*'Transport og energibehov'!D21*'Transport og energibehov'!D8*'Transport og energibehov'!N21 -> 1.828008 | I16: =(F16/1000)*'Transport og energibehov'!D21*'Transport og energibehov'!D8*'Transport og energibehov'!M21 -> 0.137592 | J16: =(F16/1000)*'Transport og energibehov'!H21*'Transport og energibehov'!D8*'Transport og energibehov'!L21 -> 0
C17: Forsterkningslag | D17: =Beregningsfaktorer!D22 -> 0.45 | E17: =Beregningsfaktorer!D10*D17 -> 697.5 | F17: =E17*Beregningsfaktorer!D41 -> 7323.75 | H17: =(F17/1000)*'Transport og energibehov'!D22*'Transport og energibehov'!D9*'Transport og energibehov'!N22 -> 2.04332625 | I17: =(F17/1000)*'Transport og energibehov'!D22*'Transport og energibehov'!D9*'Transport og energibehov'!M22 -> 0.15379875 | J17: =(F17/1000)*'Transport og energibehov'!H22*'Transport og energibehov'!D9*'Transport og energibehov'!L22 -> 0
C18: Frostsikringslag | D18: =Beregningsfaktorer!D23 -> 1.74 | E18: =Beregningsfaktorer!D9*D18 -> 2697 | F18: =E18*Beregningsfaktorer!D41 -> 28318.5 | H18: =(F18/1000)*'Transport og energibehov'!D22*'Transport og energibehov'!D9*'Transport og energibehov'!N22 -> 7.9008615 | I18: =(F18/1000)*'Transport og energibehov'!D22*'Transport og energibehov'!D9*'Transport og energibehov'!M22 -> 0.5946885 | J18: =(F18/1000)*'Transport og energibehov'!H22*'Transport og energibehov'!D9*'Transport og energibehov'!L22 -> 0
B21: Anleggsarbeid
B22: Kategori | C22: Maskintype | D22: Anleggsarbeid | H22: Kommentar
D23: Anleggsarbeid [m2/time] | E23: Mengde diesel [liter/m2] | F23: Mengde bio [liter/m2] | G23: Mengde el [kWh/m2]
B24: Slitelag | C24: Veivals | D24: =('Transport og energibehov'!D46*1000)/E14 -> 666.6666667 | E24: =('Transport og energibehov'!D31/D24)*'Transport og energibehov'!N31 -> 0.004185 | F24: =('Transport og energibehov'!D31/D24)*'Transport og energibehov'!M31 -> 0.000315 | G24: =('Transport og energibehov'!H31/D24)*'Transport og energibehov'!L31 -> 0
C25: Traktor | D25: =('Transport og energibehov'!D47*1000)/E14 -> 2666.666667 | E25: =('Transport og energibehov'!D32/D25)*'Transport og energibehov'!N32 -> 0.00174375 | F25: =('Transport og energibehov'!D32/D25)*'Transport og energibehov'!M32 -> 0.00013125 | G25: =('Transport og energibehov'!H32/D25)*'Transport og energibehov'!L32 -> 0
C26: Asfaltutlegger | D26: =('Transport og energibehov'!D48*1000)/E14 -> 33.33333333 | E26: =('Transport og energibehov'!D33/D26)*'Transport og energibehov'!N33 -> 0.0837 | F26: =('Transport og energibehov'!D33/D26)*'Transport og energibehov'!M33 -> 0.0063 | G26: =('Transport og energibehov'!H33/D26)*'Transport og energibehov'!L33 -> 0
B27: Bindlag | C27: Veivals | D27: =('Transport og energibehov'!D46*1000)/E15 -> 857.1428571 | E27: =('Transport og energibehov'!D31/D27)*'Transport og energibehov'!N31 -> 0.003255 | F27: =('Transport og energibehov'!D31/D27)*'Transport og energibehov'!M31 -> 0.000245 | G27: =('Transport og energibehov'!H31/D27)*'Transport og energibehov'!L31 -> 0
C28: Traktor | D28: =('Transport og energibehov'!D47*1000)/E15 -> 3428.571429 | E28: =('Transport og energibehov'!D32/D28)*'Transport og energibehov'!N32 -> 0.00135625 | F28: =('Transport og energibehov'!D32/D28)*'Transport og energibehov'!M32 -> 0.0001020833333 | G28: =('Transport og energibehov'!H32/D28)*'Transport og energibehov'!L32 -> 0
C29: Asfaltutlegger | D29: =('Transport og energibehov'!D48*1000)/E15 -> 42.85714286 | E29: =('Transport og energibehov'!D33/D29)*'Transport og energibehov'!N33 -> 0.0651 | F29: =('Transport og energibehov'!D33/D29)*'Transport og energibehov'!M33 -> 0.0049 | G29: =('Transport og energibehov'!H33/D29)*'Transport og energibehov'!L33 -> 0
B30: Bærelag | C30: Veivals | D30: =('Transport og energibehov'!D46*1000)/E16 -> 240.3846154 | E30: =('Transport og energibehov'!D31/D30)*'Transport og energibehov'!N31 -> 0.0116064 | F30: =('Transport og energibehov'!D31/D30)*'Transport og energibehov'!M31 -> 0.0008736 | G30: =('Transport og energibehov'!H31/D30)*'Transport og energibehov'!L31 -> 0
C31: Traktor | D31: =('Transport og energibehov'!D47*1000)/E16 -> 961.5384615 | E31: =('Transport og energibehov'!D32/D31)*'Transport og energibehov'!N32 -> 0.004836 | F31: =('Transport og energibehov'!D32/D31)*'Transport og energibehov'!M32 -> 0.000364 | G31: =('Transport og energibehov'!H32/D31)*'Transport og energibehov'!L32 -> 0
C32: Asfaltutlegger | D32: =('Transport og energibehov'!D48*1000)/E16 -> 12.01923077 | E32: =('Transport og energibehov'!D33/D32)*'Transport og energibehov'!N33 -> 0.232128 | F32: =('Transport og energibehov'!D33/D32)*'Transport og energibehov'!M33 -> 0.017472 | G32: =('Transport og energibehov'!H33/D32)*'Transport og energibehov'!L33 -> 0
B33: Forsterkningslag | C33: Gravemaskin | D33: =('Transport og energibehov'!D49*1000)/E17 -> 215.0537634 | E33: =('Transport og energibehov'!D34/D33)*'Transport og energibehov'!N34 -> 0.08649 | F33: =('Transport og energibehov'!D34/D33)*'Transport og energibehov'!M34 -> 0.00651 | G33: =('Transport og energibehov'!H34/D33)*'Transport og energibehov'!L34 -> 0
C34: Grovknuser | D34: =('Transport og energibehov'!D50*1000)/E17 -> 179.2114695 | E34: =('Transport og energibehov'!D35/D34)*'Transport og energibehov'!N35 -> 0.129735 | F34: =('Transport og energibehov'!D35/D34)*'Transport og energibehov'!M35 -> 0.009765 | G34: =('Transport og energibehov'!H35/D34)*'Transport og energibehov'!L35 -> 0
B35: Frostsikringslag | C35: Gravemaskin | D35: =('Transport og energibehov'!D49*1000)/E18 -> 55.61735261 | E35: =('Transport og energibehov'!D34/D35)*'Transport og energibehov'!N34 -> 0.334428 | F35: =('Transport og energibehov'!D34/D35)*'Transport og energibehov'!M34 -> 0.025172 | G35: =('Transport og energibehov'!H34/D35)*'Transport og energibehov'!L34 -> 0
C36: Grovknuser | D36: =('Transport og energibehov'!D50*1000)/E18 -> 46.34779385 | E36: =('Transport og energibehov'!D35/D36)*'Transport og energibehov'!N35 -> 0.501642 | F36: =('Transport og energibehov'!D35/D36)*'Transport og energibehov'!M35 -> 0.037758 | G36: =('Transport og energibehov'!H35/D36)*'Transport og energibehov'!L35 -> 0
C37: Finknuser | D37: =('Transport og energibehov'!D51*1000)/E18 -> 92.69558769 | E37: =('Transport og energibehov'!D36/D37)*'Transport og energibehov'!N36 -> 0.250821 | F37: =('Transport og energibehov'!D36/D37)*'Transport og energibehov'!M36 -> 0.018879 | G37: =('Transport og energibehov'!H36/D37)*'Transport og energibehov'!L36 -> 0

Sheet Tunnel dobbeltløp
B1: Tunnel dobbeltløp
B2: Bakgrunnsdata
B3: Samlet lengde dobbeltløpstunneler [m] | C3: =Beregninger!C102 -> 0 | D3: (Hentes fra inndataark/beregninger)
B4: Antall dobbeltløpstunneler | C4: ='Prosjektbeskrivelse og inndata'!C7 -> 0
B5: Tunnelprofil | C5: =Beregningsfaktorer!D42 -> 9.5
B7: Materialer og transport
B8: Kategori | C8: Materialtype | D8: Materialmengder | H8: Transport | K8: Kommentar
D9: Volum per areal [m3/m2] | E9: Masse per areal [kg/m2] | F9: Mengde material [kg/m] | G9: Mengde material [m2/m] | H9: Mengde diesel [liter/m] | I9: Mengde bio [liter/m] | J9: Mengde el [kWh/m]
B10: Konstruksjon | C10: Betongportal | D10: =IFERROR((Beregningsfaktorer!D44*2*C4)/(Beregningsfaktorer!D42*C3),0) -> 0 | E10: =D10*Beregningsfaktorer!D4 -> 0 | F10: =E10*Beregningsfaktorer!D42 -> 0 | H10: =(F10/1000)*'Transport og energibehov'!D24*'Transport og energibehov'!D10*'Transport og energibehov'!N24 -> 0 | I10: =(F10/1000)*'Transport og energibehov'!D24*'Transport og energibehov'!D10*'Transport og energibehov'!M24 -> 0 | J10: =(F10/1000)*'Transport og energibehov'!H24*'Transport og energibehov'!D10*'Transport og energibehov'!L24 -> 0
C11: Armering portal | E11: =IFERROR((Beregningsfaktorer!D46*2*C4)/(Beregningsfaktorer!D42*C3),0) -> 0 | F11: =E11*Beregningsfaktorer!D42 -> 0 | H11: =(F11/1000)*'Transport og energibehov'!D26*'Transport og energibehov'!D12*'Transport og energibehov'!N26 -> 0 | I11: =(F11/1000)*'Transport og energibehov'!D26*'Transport og energibehov'!D12*'Transport og energibehov'!M26 -> 0 | J11: =(F11/1000)*'Transport og energibehov'!H26*'Transport og energibehov'!D12*'Transport og energibehov'!L26 -> 0
C12: Sikringsbolter | E12: =Beregningsfaktorer!D32/Beregningsfaktorer!D42 -> 4.631578947 | F12: =Beregningsfaktorer!D32*(Beregningsfaktorer!D42/9.5) -> 44 | H12: =(F12/1000)*'Transport og energibehov'!D25*'Transport og energibehov'!D11*'Transport og energibehov'!N25 -> 0.32736 | I12: =(F12/1000)*'Transport og energibehov'!D25*'Transport og energibehov'!D11*'Transport og energibehov'!M25 -> 0.02464 | J12: =(F12/1000)*'Transport og energibehov'!H25*'Transport og energibehov'!D11*'Transport og energibehov'!L25 -> 0 | K12: Beregning hentet fra metoderapport
C13: Frostsikring hvelv | E13: =(VLOOKUP(C5,Beregningsfaktorer!M42:S52,3,FALSE)*Beregningsfaktorer!D12*Beregningsfaktorer!D25)/C5 -> 801.1810526 | F13: =E13*C5 -> 7611.22 | G13: =(VLOOKUP(C5,Beregningsfaktorer!M42:S52,3,FALSE)) -> 21.04 | H13: =(F13/1000)*'Transport og energibehov'!D28*'Transport og energibehov'!D14*'Transport og energibehov'!N28 -> 9.90980844 | I13: =(F13/1000)*'Transport og energibehov'!D28*'Transport og energibehov'!D14*'Transport og energibehov'!M28 -> 0.74589956 | J13: =(F13/1000)*'Transport og energibehov'!D28*'Transport og energibehov'!D14*'Transport og energibehov'!L28 -> 0
B14: Veioverbygning | C14: Slitelag (Ska) | D14: =Beregningsfaktorer!D19 -> 0.045 | E14: =Beregningsfaktorer!D7*D14 -> 112.5 | F14: =E14*Beregningsfaktorer!D42 -> 1068.75 | H14: =(F14/1000)*'Transport og energibehov'!D20*'Transport og energibehov'!D7*'Transport og energibehov'!N20 -> 0.5963625 | I14: =(F14/1000)*'Transport og energibehov'!D20*'Transport og energibehov'!D7*'Transport og energibehov'!M20 -> 0.0448875 | J14: =(F14/1000)*'Transport og energibehov'!H20*'Transport og energibehov'!D7*'Transport og energibehov'!L20 -> 0
C15: Bindlag (Ska) | D15: =Beregningsfaktorer!D20 -> 0.035 | E15: =Beregningsfaktorer!D7*D15 -> 87.5 | F15: =E15*Beregningsfaktorer!D42 -> 831.25 | H15: =(F15/1000)*'Transport og energibehov'!D20*'Transport og energibehov'!D7*'Transport og energibehov'!N20 -> 0.4638375 | I15: =(F15/1000)*'Transport og energibehov'!D20*'Transport og energibehov'!D7*'Transport og energibehov'!M20 -> 0.0349125 | J15: =(F15/1000)*'Transport og energibehov'!H20*'Transport og energibehov'!D7*'Transport og energibehov'!L20 -> 0
C16: Bærelag (Ag) | D16: =Beregningsfaktorer!D21 -> 0.13 | E16: =Beregningsfaktorer!D8*D16 -> 312 | F16: =E16*Beregningsfaktorer!D42 -> 2964 | H16: =(F16/1000)*'Transport og energibehov'!D21*'Transport og energibehov'!D8*'Transport og energibehov'!N21 -> 1.653912 | I16: =(F16/1000)*'Transport og energibehov'!D21*'Transport og energibehov'!D8*'Transport og energibehov'!M21 -> 0.124488 | J16: =(F16/1000)*'Transport og energibehov'!H21*'Transport og energibehov'!D8*'Transport og energibehov'!L21 -> 0
C17: Forsterkningslag | D17: =Beregningsfaktorer!D22 -> 0.45 | E17: =Beregningsfaktorer!D10*D17 -> 697.5 | F17: =E17*Beregningsfaktorer!D42 -> 6626.25 | H17: =(F17/1000)*'Transport og energibehov'!D22*'Transport og energibehov'!D9*'Transport og energibehov'!N22 -> 1.84872375 | I17: =(F17/1000)*'Transport og energibehov'!D22*'Transport og energibehov'!D9*'Transport og energibehov'!M22 -> 0.13915125 | J17: =(F17/1000)*'Transport og energibehov'!H22*'Transport og energibehov'!D9*'Transport og energibehov'!L22 -> 0
C18: Frostsikringslag | D18: =Beregningsfaktorer!D23 -> 1.74 | E18: =Beregningsfaktorer!D9*D18 -> 2697 | F18: =E18*Beregningsfaktorer!D42 -> 25621.5 | H18: =(F18/1000)*'Transport og energibehov'!D22*'Transport og energibehov'!D9*'Transport og energibehov'!N22 -> 7.1483985 | I18: =(F18/1000)*'Transport og energibehov'!D22*'Transport og energibehov'!D9*'Transport og energibehov'!M22 -> 0.5380515 | J18: =(F18/1000)*'Transport og energibehov'!H22*'Transport og energibehov'!D9*'Transport og energibehov'!L22 -> 0
B21: Anleggsarbeid
B22: Kategori | C22: Maskintype | D22: Anleggsarbeid | H22: Kommentar
D23: Anleggsarbeid [m2/time] | E23: Mengde diesel [liter/m2] | F23: Mengde bio [liter/m2] | G23: Mengde el [kWh/m2]
B24: Slitelag | C24: Veivals | D24: =('Transport og energibehov'!D46*1000)/E14 -> 666.6666667 | E24: =('Transport og energibehov'!D31/D24)*'Transport og energibehov'!N31 -> 0.004185 | F24: =('Transport og energibehov'!D31/D24)*'Transport og energibehov'!M31 -> 0.000315 | G24: =('Transport og energibehov'!H31/D24)*'Transport og energibehov'!L31 -> 0
C25: Traktor | D25: =('Transport og energibehov'!D47*1000)/E14 -> 2666.666667 | E25: =('Transport og energibehov'!D32/D25)*'Transport og energibehov'!N32 -> 0.00174375 | F25: =('Transport og energibehov'!D32/D25)*'Transport og energibehov'!M32 -> 0.00013125 | G25: =('Transport og energibehov'!H32/D25)*'Transport og energibehov'!L32 -> 0
C26: Asfaltutlegger | D26: =('Transport og energibehov'!D48*1000)/E14 -> 33.33333333 | E26: =('Transport og energibehov'!D33/D26)*'Transport og energibehov'!N33 -> 0.0837 | F26: =('Transport og energibehov'!D33/D26)*'Transport og energibehov'!M33 -> 0.0063 | G26: =('Transport og energibehov'!H33/D26)*'Transport og energibehov'!L33 -> 0
B27: Bindlag | C27: Veivals | D27: =('Transport og energibehov'!D46*1000)/E15 -> 857.1428571 | E27: =('Transport og energibehov'!D31/D27)*'Transport og energibehov'!N31 -> 0.003255 | F27: =('Transport og energibehov'!D31/D27)*'Transport og energibehov'!M31 -> 0.000245 | G27: =('Transport og energibehov'!H31/D27)*'Transport og energibehov'!L31 -> 0
C28: Traktor | D28: =('Transport og energibehov'!D47*1000)/E15 -> 3428.571429 | E28: =('Transport og energibehov'!D32/D28)*'Transport og energibehov'!N32 -> 0.00135625 | F28: =('Transport og energibehov'!D32/D28)*'Transport og energibehov'!M32 -> 0.0001020833333 | G28: =('Transport og energibehov'!H32/D28)*'Transport og energibehov'!L32 -> 0
C29: Asfaltutlegger | D29: =('Transport og energibehov'!D48*1000)/E15 -> 42.85714286 | E29: =('Transport og energibehov'!D33/D29)*'Transport og energibehov'!N33 -> 0.0651 | F29: =('Transport og energibehov'!D33/D29)*'Transport og energibehov'!M33 -> 0.0049 | G29: =('Transport og energibehov'!H33/D29)*'Transport og energibehov'!L33 -> 0
B30: Bærelag | C30: Veivals | D30: =('Transport og energibehov'!D46*1000)/E16 -> 240.3846154 | E30: =('Transport og energibehov'!D31/D30)*'Transport og energibehov'!N31 -> 0.0116064 | F30: =('Transport og energibehov'!D31/D30)*'Transport og energibehov'!M31 -> 0.0008736 | G30: =('Transport og energibehov'!H31/D30)*'Transport og energibehov'!L31 -> 0
C31: Traktor | D31: =('Transport og energibehov'!D47*1000)/E16 -> 961.5384615 | E31: =('Transport og energibehov'!D32/D31)*'Transport og energibehov'!N32 -> 0.004836 | F31: =('Transport og energibehov'!D32/D31)*'Transport og energibehov'!M32 -> 0.000364 | G31: =('Transport og energibehov'!H32/D31)*'Transport og energibehov'!L32 -> 0
C32: Asfaltutlegger | D32: =('Transport og energibehov'!D48*1000)/E16 -> 12.01923077 | E32: =('Transport og energibehov'!D33/D32)*'Transport og energibehov'!N33 -> 0.232128 | F32: =('Transport og energibehov'!D33/D32)*'Transport og energibehov'!M33 -> 0.017472 | G32: =('Transport og energibehov'!H33/D32)*'Transport og energibehov'!L33 -> 0
B33: Forsterkningslag | C33: Gravemaskin | D33: =('Transport og energibehov'!D49*1000)/E17 -> 215.0537634 | E33: =('Transport og energibehov'!D34/D33)*'Transport og energibehov'!N34 -> 0.08649 | F33: =('Transport og energibehov'!D34/D33)*'Transport og energibehov'!M34 -> 0.00651 | G33: =('Transport og energibehov'!H34/D33)*'Transport og energibehov'!L34 -> 0
C34: Grovknuser | D34: =('Transport og energibehov'!D50*1000)/E17 -> 179.2114695 | E34: =('Transport og energibehov'!D35/D34)*'Transport og energibehov'!N35 -> 0.129735 | F34: =('Transport og energibehov'!D35/D34)*'Transport og energibehov'!M35 -> 0.009765 | G34: =('Transport og energibehov'!H35/D34)*'Transport og energibehov'!L35 -> 0
B35: Frostsikringslag | C35: Gravemaskin | D35: =('Transport og energibehov'!D49*1000)/E18 -> 55.61735261 | E35: =('Transport og energibehov'!D34/D35)*'Transport og energibehov'!N34 -> 0.334428 | F35: =('Transport og energibehov'!D34/D35)*'Transport og energibehov'!M34 -> 0.025172 | G35: =('Transport og energibehov'!H34/D35)*'Transport og energibehov'!L34 -> 0
C36: Grovknuser | D36: =('Transport og energibehov'!D50*1000)/E18 -> 46.34779385 | E36: =('Transport og energibehov'!D35/D36)*'Transport og energibehov'!N35 -> 0.501642 | F36: =('Transport og energibehov'!D35/D36)*'Transport og energibehov'!M35 -> 0.037758 | G36: =('Transport og energibehov'!H35/D36)*'Transport og energibehov'!L35 -> 0
C37: Finknuser | D37: =('Transport og energibehov'!D51*1000)/E18 -> 92.69558769 | E37: =('Transport og energibehov'!D36/D37)*'Transport og energibehov'!N36 -> 0.250821 | F37: =('Transport og energibehov'!D36/D37)*'Transport og energibehov'!M36 -> 0.018879 | G37: =('Transport og energibehov'!H36/D37)*'Transport og energibehov'!L36 -> 0

Sheet Betongbru
B2: Materialer og transport
B3: Kategori | C3: Materialtype | D3: Materialmengder | F3: Transport | I3: Kommentar
D4: Volum per areal [m3/m2] | E4: Masse per areal [kg/m2] | F4: Mengde diesel [liter/m2] | G4: Mengde bio [liter/m2] | H4: Mengde el [kWh/m2]
B5: Konstruksjon | C5: Betong | D5: =Beregningsfaktorer!D26 -> 1.29 | E5: =Beregningsfaktorer!D4*D5 -> 3096 | F5: =(E5/1000)*'Transport og energibehov'!D24*'Transport og energibehov'!D10*'Transport og energibehov'!N24 -> 2.303424 | G5: =(E5/1000)*'Transport og energibehov'!D24*'Transport og energibehov'!D10*'Transport og energibehov'!M24 -> 0.173376 | H5: =(E5/1000)*'Transport og energibehov'!H24*'Transport og energibehov'!D10*'Transport og energibehov'!L24 -> 0
C6: Armeringsstål | E6: =Beregningsfaktorer!D28 -> 231 | F6: =(E6/1000)*'Transport og energibehov'!D26*'Transport og energibehov'!D12*'Transport og energibehov'!N26 -> 1.71864 | G6: =(E6/1000)*'Transport og energibehov'!D26*'Transport og energibehov'!D12*'Transport og energibehov'!M26 -> 0.12936 | H6: =(E6/1000)*'Transport og energibehov'!H26*'Transport og energibehov'!D12*'Transport og energibehov'!L26 -> 0
B7: Veioverbygning | C7: Slitelag (Ska) | D7: =Beregningsfaktorer!D19 -> 0.045 | E7: =D7*Beregningsfaktorer!D7 -> 112.5 | F7: =(E7/1000)*'Transport og energibehov'!D20*'Transport og energibehov'!D7*'Transport og energibehov'!N20 -> 0.062775 | G7: =(E7/1000)*'Transport og energibehov'!D20*'Transport og energibehov'!D7*'Transport og energibehov'!M20 -> 0.004725 | H7: =(E7/1000)*'Transport og energibehov'!H20*'Transport og energibehov'!D7*'Transport og energibehov'!L20 -> 0
C8: Bindlag (Ska) | D8: =Beregningsfaktorer!D20 -> 0.035 | E8: =D8*Beregningsfaktorer!D7 -> 87.5 | F8: =(E8/1000)*'Transport og energibehov'!D20*'Transport og energibehov'!D7*'Transport og energibehov'!N20 -> 0.048825 | G8: =(E8/1000)*'Transport og energibehov'!D20*'Transport og energibehov'!D7*'Transport og energibehov'!M20 -> 0.003675 | H8: =(E8/1000)*'Transport og energibehov'!H20*'Transport og energibehov'!D7*'Transport og energibehov'!L20 -> 0
C9: Fuktisolasjon (Topeka) | D9: =Beregningsfaktorer!D24 -> 0.012 | E9: =D9*Beregningsfaktorer!D13 -> 30 | F9: =(E9/1000)*'Transport og energibehov'!D27*'Transport og energibehov'!D13*'Transport og energibehov'!N27 -> 0.03906 | G9: =(E9/1000)*'Transport og energibehov'!D27*'Transport og energibehov'!D13*'Transport og energibehov'!M27 -> 0.00294 | H9: =(E9/1000)*'Transport og energibehov'!H27*'Transport og energibehov'!D13*'Transport og energibehov'!L27 -> 0
B12: Anleggsarbeid
B13: Kategori | C13: Maskintype | D13: Anleggsarbeid | H13: Kommentar
D14: Arbeidshastighet [m2/time] | E14: Mengde diesel [liter/m2] | F14: Mengde bio [liter/m2] | G14: Mengde el [kWh/m2]
B15: Konstruksjon | C15: Kran første 400 m2 | D15: ='Transport og energibehov'!D52 -> 1.666666667 | G15: =('Transport og energibehov'!H37/D15)*'Transport og energibehov'!L37 -> 29.16 | H15: Antatt 100 % el
C16: Kran resten av bru | D16: ='Transport og energibehov'!D53 -> 3.333333333 | G16: =('Transport og energibehov'!H37/D16)*'Transport og energibehov'!L37 -> 14.58 | H16: Antatt 100 % el
C17: Gravemaskin | D17: =('Transport og energibehov'!D49*1000)/(E5+E6) -> 45.08566276 | E17: =('Transport og energibehov'!D34/D17)*'Transport og energibehov'!N34 -> 0.412548 | F17: =('Transport og energibehov'!D34/D17)*'Transport og energibehov'!M34 -> 0.031052 | G17: =('Transport og energibehov'!H34/D17)*'Transport og energibehov'!L34 -> 0
B18: Slitelag | C18: Veivals | D18: =('Transport og energibehov'!D46*1000)/E7 -> 666.6666667 | E18: =('Transport og energibehov'!D31/D18)*'Transport og energibehov'!N31 -> 0.004185 | F18: =('Transport og energibehov'!D31/D18)*'Transport og energibehov'!M31 -> 0.000315 | G18: =('Transport og energibehov'!H31/D18)*'Transport og energibehov'!L31 -> 0
C19: Traktor | D19: =('Transport og energibehov'!D47*1000)/E7 -> 2666.666667 | E19: =('Transport og energibehov'!D32/D19)*'Transport og energibehov'!N32 -> 0.00174375 | F19: =('Transport og energibehov'!D32/D19)*'Transport og energibehov'!M32 -> 0.00013125 | G19: =('Transport og energibehov'!H32/D19)*'Transport og energibehov'!L32 -> 0
C20: Asfaltutlegger | D20: =('Transport og energibehov'!D48*1000)/E7 -> 33.33333333 | E20: =('Transport og energibehov'!D33/D20)*'Transport og energibehov'!N33 -> 0.0837 | F20: =('Transport og energibehov'!D33/D20)*'Transport og energibehov'!M33 -> 0.0063 | G20: =('Transport og energibehov'!H33/D20)*'Transport og energibehov'!L33 -> 0
B21: Bindlag | C21: Veivals | D21: =('Transport og energibehov'!D46*1000)/E8 -> 857.1428571 | E21: =('Transport og energibehov'!D31/D21)*'Transport og energibehov'!N31 -> 0.003255 | F21: =('Transport og energibehov'!D31/D21)*'Transport og energibehov'!M31 -> 0.000245 | G21: =('Transport og energibehov'!H31/D21)*'Transport og energibehov'!L31 -> 0
C22: Traktor | D22: =('Transport og energibehov'!D47*1000)/E8 -> 3428.571429 | E22: =('Transport og energibehov'!D32/D22)*'Transport og energibehov'!N32 -> 0.00135625 | F22: =('Transport og energibehov'!D32/D22)*'Transport og energibehov'!M32 -> 0.0001020833333 | G22: =('Transport og energibehov'!H32/D22)*'Transport og energibehov'!L32 -> 0
C23: Asfaltutlegger | D23: =('Transport og energibehov'!D48*1000)/E8 -> 42.85714286 | E23: =('Transport og energibehov'!D33/D23)*'Transport og energibehov'!N33 -> 0.0651 | F23: =('Transport og energibehov'!D33/D23)*'Transport og energibehov'!M33 -> 0.0049 | G23: =('Transport og energibehov'!H33/D23)*'Transport og energibehov'!L33 -> 0
B24: Fuktsikring | C24: Veivals | D24: =('Transport og energibehov'!D46*1000)/E9 -> 2500 | E24: =('Transport og energibehov'!D31/D24)*'Transport og energibehov'!N31 -> 0.001116 | F24: =('Transport og energibehov'!D31/D24)*'Transport og energibehov'!M31 -> 8.4e-05 | G24: =('Transport og energibehov'!H31/D24)*'Transport og energibehov'!L31 -> 0
C25: Traktor | D25: =('Transport og energibehov'!D47*1000)/E9 -> 10000 | E25: =('Transport og energibehov'!D32/D25)*'Transport og energibehov'!N32 -> 0.000465 | F25: =('Transport og energibehov'!D32/D25)*'Transport og energibehov'!M32 -> 3.5e-05 | G25: =('Transport og energibehov'!H32/D25)*'Transport og energibehov'!L32 -> 0
C26: Asfaltutlegger | D26: =('Transport og energibehov'!D48*1000)/E9 -> 125 | E26: =('Transport og energibehov'!D33/D26)*'Transport og energibehov'!N33 -> 0.02232 | F26: =('Transport og energibehov'!D33/D26)*'Transport og energibehov'!M33 -> 0.00168 | G26: =('Transport og energibehov'!H33/D26)*'Transport og energibehov'!L33 -> 0

Sheet Stålbru
B2: Materialer og transport
B3: Kategori | C3: Materialtype | D3: Materialmengder | F3: Transport | I3: Kommentar
D4: Volum per areal [m3/m2] | E4: Masse per areal [kg/m2] | F4: Mengde diesel [liter/m2] | G4: Mengde bio [liter/m2] | H4: Mengde el [kWh/m2]
B5: Konstruksjon | C5: Betong | D5: =Beregningsfaktorer!D27 -> 0.743 | E5: =Beregningsfaktorer!D4*D5 -> 1783.2 | F5: =(E5/1000)*'Transport og energibehov'!D24*'Transport og energibehov'!D10*'Transport og energibehov'!N24 -> 1.3267008 | G5: =(E5/1000)*'Transport og energibehov'!D24*'Transport og energibehov'!D10*'Transport og energibehov'!M24 -> 0.0998592 | H5: =(E5/1000)*'Transport og energibehov'!H24*'Transport og energibehov'!D10*'Transport og energibehov'!L24 -> 0
C6: Armeringsstål | E6: =Beregningsfaktorer!D29 -> 125 | F6: =(E6/1000)*'Transport og energibehov'!D26*'Transport og energibehov'!D12*'Transport og energibehov'!N26 -> 0.93 | G6: =(E6/1000)*'Transport og energibehov'!D26*'Transport og energibehov'!D12*'Transport og energibehov'!M26 -> 0.07 | H6: =(E6/1000)*'Transport og energibehov'!H26*'Transport og energibehov'!D12*'Transport og energibehov'!L26 -> 0
C7: Stålkonstruksjon | E7: =Beregningsfaktorer!D31 -> 219 | F7: =(E7/1000)*'Transport og energibehov'!D25*'Transport og energibehov'!D11*'Transport og energibehov'!N25 -> 1.62936 | G7: =(E7/1000)*'Transport og energibehov'!D25*'Transport og energibehov'!D11*'Transport og energibehov'!M25 -> 0.12264 | H7: =(E7/1000)*'Transport og energibehov'!H25*'Transport og energibehov'!D11*'Transport og energibehov'!L25 -> 0
B8: Veioverbygning | C8: Slitelag (Ska) | D8: =Beregningsfaktorer!D19 -> 0.045 | E8: =D8*Beregningsfaktorer!D7 -> 112.5 | F8: =(E8/1000)*'Transport og energibehov'!D20*'Transport og energibehov'!D7*'Transport og energibehov'!N20 -> 0.062775 | G8: =(E8/1000)*'Transport og energibehov'!D20*'Transport og energibehov'!D7*'Transport og energibehov'!M20 -> 0.004725 | H8: =(E8/1000)*'Transport og energibehov'!H20*'Transport og energibehov'!D7*'Transport og energibehov'!L20 -> 0
C9: Bindlag (Ska) | D9: =Beregningsfaktorer!D20 -> 0.035 | E9: =D9*Beregningsfaktorer!D7 -> 87.5 | F9: =(E9/1000)*'Transport og energibehov'!D20*'Transport og energibehov'!D7*'Transport og energibehov'!N20 -> 0.048825 | G9: =(E9/1000)*'Transport og energibehov'!D20*'Transport og energibehov'!D7*'Transport og energibehov'!M20 -> 0.003675 | H9: =(E9/1000)*'Transport og energibehov'!H20*'Transport og energibehov'!D7*'Transport og energibehov'!L20 -> 0
C10: Fuktisolasjon (Topeka) | D10: =Beregningsfaktorer!D24 -> 0.012 | E10: =D10*Beregningsfaktorer!D13 -> 30 | F10: =(E10/1000)*'Transport og energibehov'!D27*'Transport og energibehov'!D13*'Transport og energibehov'!N27 -> 0.03906 | G10: =(E10/1000)*'Transport og energibehov'!D27*'Transport og energibehov'!D13*'Transport og energibehov'!M27 -> 0.00294 | H10: =(E10/1000)*'Transport og energibehov'!H27*'Transport og energibehov'!D13*'Transport og energibehov'!L27 -> 0
B13: Anleggsareid
B14: Kategori | C14: Maskintype | D14: Anleggsarbeid | H14: Kommentar
D15: Arbeidshastighet [m2/time] | E15: Mengde diesel [liter/m2] | F15: Mengde bio [liter/m2] | G15: Mengde el [kWh/m2]
B16: Konstruksjon | C16: Kran første 400 m2 | D16: ='Transport og energibehov'!D52 -> 1.666666667 | G16: =('Transport og energibehov'!H37/D16)*'Transport og energibehov'!L37 -> 29.16 | H16: Antatt 100 % el
C17: Kran resten av bru | D17: ='Transport og energibehov'!D53 -> 3.333333333 | G17: =('Transport og energibehov'!H37/D17)*'Transport og energibehov'!L37 -> 14.58 | H17: Antatt 100 % el
C18: Gravemaskin | D18: =('Transport og energibehov'!D49*1000)/(E5+E6+E7) -> 70.51523129 | E18: =('Transport og energibehov'!D34/D18)*'Transport og energibehov'!N34 -> 0.2637728 | F18: =('Transport og energibehov'!D34/D18)*'Transport og energibehov'!M34 -> 0.01985386667 | G18: =('Transport og energibehov'!H34/D18)*'Transport og energibehov'!L34 -> 0
B19: Slitelag | C19: Veivals | D19: =('Transport og energibehov'!D46*1000)/E8 -> 666.6666667 | E19: =('Transport og energibehov'!D31/D19)*'Transport og energibehov'!N31 -> 0.004185 | F19: =('Transport og energibehov'!D31/D19)*'Transport og energibehov'!M31 -> 0.000315 | G19: =('Transport og energibehov'!H31/D19)*'Transport og energibehov'!L31 -> 0
C20: Traktor | D20: =('Transport og energibehov'!D47*1000)/E8 -> 2666.666667 | E20: =('Transport og energibehov'!D32/D20)*'Transport og energibehov'!N32 -> 0.00174375 | F20: =('Transport og energibehov'!D32/D20)*'Transport og energibehov'!M32 -> 0.00013125 | G20: =('Transport og energibehov'!H32/D20)*'Transport og energibehov'!L32 -> 0
C21: Asfaltutlegger | D21: =('Transport og energibehov'!D48*1000)/E8 -> 33.33333333 | E21: =('Transport og energibehov'!D33/D21)*'Transport og energibehov'!N33 -> 0.0837 | F21: =('Transport og energibehov'!D33/D21)*'Transport og energibehov'!M33 -> 0.0063 | G21: =('Transport og energibehov'!H33/D21)*'Transport og energibehov'!L33 -> 0
B22: Bindlag | C22: Veivals | D22: =('Transport og energibehov'!D46*1000)/E9 -> 857.1428571 | E22: =('Transport og energibehov'!D31/D22)*'Transport og energibehov'!N31 -> 0.003255 | F22: =('Transport og energibehov'!D31/D22)*'Transport og energibehov'!M31 -> 0.000245 | G22: =('Transport og energibehov'!H31/D22)*'Transport og energibehov'!L31 -> 0
C23: Traktor | D23: =('Transport og energibehov'!D47*1000)/E9 -> 3428.571429 | E23: =('Transport og energibehov'!D32/D23)*'Transport og energibehov'!N32 -> 0.00135625 | F23: =('Transport og energibehov'!D32/D23)*'Transport og energibehov'!M32 -> 0.0001020833333 | G23: =('Transport og energibehov'!H32/D23)*'Transport og energibehov'!L32 -> 0
C24: Asfaltutlegger | D24: =('Transport og energibehov'!D48*1000)/E9 -> 42.85714286 | E24: =('Transport og energibehov'!D33/D24)*'Transport og energibehov'!N33 -> 0.0651 | F24: =('Transport og energibehov'!D33/D24)*'Transport og energibehov'!M33 -> 0.0049 | G24: =('Transport og energibehov'!H33/D24)*'Transport og energibehov'!L33 -> 0
B25: Fuktsikring | C25: Veivals | D25: =('Transport og energibehov'!D46*1000)/E10 -> 2500 | E25: =('Transport og energibehov'!D31/D25)*'Transport og energibehov'!N31 -> 0.001116 | F25: =('Transport og energibehov'!D31/D25)*'Transport og energibehov'!M31 -> 8.4e-05 | G25: =('Transport og energibehov'!H31/D25)*'Transport og energibehov'!L31 -> 0
C26: Traktor | D26: =('Transport og energibehov'!D47*1000)/E10 -> 10000 | E26: =('Transport og energibehov'!D32/D26)*'Transport og energibehov'!N32 -> 0.000465 | F26: =('Transport og energibehov'!D32/D26)*'Transport og energibehov'!M32 -> 3.5e-05 | G26: =('Transport og energibehov'!H32/D26)*'Transport og energibehov'!L32 -> 0
C27: Asfaltutlegger | D27: =('Transport og energibehov'!D48*1000)/E10 -> 125 | E27: =('Transport og energibehov'!D33/D27)*'Transport og energibehov'!N33 -> 0.02232 | F27: =('Transport og energibehov'!D33/D27)*'Transport og energibehov'!M33 -> 0.00168 | G27: =('Transport og energibehov'!H33/D27)*'Transport og energibehov'!L33 -> 0

Sheet Kulvert
B2: Materialer og transport
B3: Kategori | C3: Materialtype | D3: Materialmengder | F3: Transport | I3: Kommentar
D4: Volum [m3/m2] | E4: Masse per areal [kg/m2] | F4: Mengde diesel [liter/m2] | G4: Mengde bio [liter/m2] | H4: Mengde el [kWh/m2]
B5: Konstruksjon | C5: Betong | D5: =(Beregningsfaktorer!D36*2)+(Beregningsfaktorer!D36*Beregningsfaktorer!D37) -> 1.248 | E5: =(D5*Beregningsfaktorer!D4) -> 2995.2 | F5: =(E5/1000)*'Transport og energibehov'!D24*'Transport og energibehov'!D10*'Transport og energibehov'!N24 -> 2.2284288 | G5: =(E5/1000)*'Transport og energibehov'!D24*'Transport og energibehov'!D10*'Transport og energibehov'!M24 -> 0.1677312 | H5: =(E5/1000)*'Transport og energibehov'!H24*'Transport og energibehov'!D10*'Transport og energibehov'!L24 -> 0
C6: Armeringsstål | E6: =E5/Beregningsfaktorer!D38 -> 230.4 | F6: =(E6/1000)*'Transport og energibehov'!D26*'Transport og energibehov'!D12*'Transport og energibehov'!N26 -> 1.714176 | G6: =(E6/1000)*'Transport og energibehov'!D26*'Transport og energibehov'!D12*'Transport og energibehov'!M26 -> 0.129024 | H6: =(E6/1000)*'Transport og energibehov'!H26*'Transport og energibehov'!D12*'Transport og energibehov'!L26 -> 0
B8: Anleggsarbeid
B9: Kategori | C9: Maskintype | D9: Energiforbruk | H9: Kommentar
D10: Arbeidshastighet [timer/stk] | E10: Mengde diesel [liter/stk] | F10: Mengde bio [liter/stk] | G10: Mengde el [kWh/stk]
B11: Konstruksjon | C11: Tårnkran | D11: =Beregningsfaktorer!D39 -> 18 | E11: - | F11: - | G11: =D11*'Transport og energibehov'!H37*'Transport og energibehov'!L37 -> 874.8

Sheet Vegetasjon og arealbeslag
B2: Transport
B3: Kategori | D3: Transport | I3: Kommentar
D4: Vekt [kg/m2] | E4: Vekt [kg/m3] | F4: Mengde diesel [liter/m2] | G4: Mengde bio [liter/m2] | H4: Mengde el [kWh/m2]
B5: Jord | C5: Jordmasser til linja | D5: =Beregningsfaktorer!D14*Beregningsfaktorer!D89 -> 390 | F5: =(D5/1000)*'Transport og energibehov'!D17*'Transport og energibehov'!D4*'Transport og energibehov'!N17 -> 0.003627 | G5: =(D5/1000)*'Transport og energibehov'!D17*'Transport og energibehov'!D4*'Transport og energibehov'!M17 -> 0.000273 | H5: =(D5/1000)*'Transport og energibehov'!H17*'Transport og energibehov'!D4*'Transport og energibehov'!L17 -> 0
C6: Jordmasser til deponi | D6: =Beregningsfaktorer!D14*Beregningsfaktorer!D89 -> 390 | F6: =(D6/1000)*'Transport og energibehov'!D18*'Transport og energibehov'!D5*'Transport og energibehov'!N18 -> 0.03627 | G6: =(D5/1000)*'Transport og energibehov'!D18*'Transport og energibehov'!D5*'Transport og energibehov'!M18 -> 0.00273 | H6: =(D5/1000)*'Transport og energibehov'!H18*'Transport og energibehov'!D5*'Transport og energibehov'!L18 -> 0
B8: Anleggsarbeid
B9: Kategori | C9: Energiforbruk | I9: Kommentar
C10: Volum per areal [m3/m2] | D10: Vekt [kg/m2] | E10: Anleggsarbeid [time/m2] | F10: Mengde diesel [liter/m2] | G10: Mengde bio [liter/m2] | H10: Mengde el [kWh/m2]
B11: Fjerning av vegetasjonsdekke | C11: =Beregningsfaktorer!D89 -> 0.3 | D11: =C11*Beregningsfaktorer!D14 -> 390 | E11: =((D11/1000)/'Transport og energibehov'!D49)*2 -> 0.0052 | F11: =E11*'Transport og energibehov'!D34*'Transport og energibehov'!N34 -> 0.09672 | G11: =E11*'Transport og energibehov'!D34*'Transport og energibehov'!M34 -> 0.00728 | H11: =E11*'Transport og energibehov'!H34*'Transport og energibehov'!L34 -> 0 | I11: For Anleggsarbeid [time/m2]: ganger med to fordi massene også skal losses et sted.
B13: Arealbruksendringer
B14: Vegetasjonstype
C15: Mengde [m2]
B16: Fjernet skog - lav bonitet | C16: ='Prosjektbeskrivelse og inndata'!C21*'Prosjektbeskrivelse og inndata'!C24 -> 0
B17: Fjernet skog - middels bonitet | C17: ='Prosjektbeskrivelse og inndata'!C21*'Prosjektbeskrivelse og inndata'!C25 -> 93145.45455
B18: Fjernet skog - høy bonitet | C18: ='Prosjektbeskrivelse og inndata'!C21*'Prosjektbeskrivelse og inndata'!C26 -> 0
B19: Myr | C19: ='Prosjektbeskrivelse og inndata'!C21*'Prosjektbeskrivelse og inndata'!C27 -> 0
B20: Jordbruksareal | C20: ='Prosjektbeskrivelse og inndata'!C21*'Prosjektbeskrivelse og inndata'!C28 -> 18629.09091
B21: Utbygd areal | C21: ='Prosjektbeskrivelse og inndata'!C21*'Prosjektbeskrivelse og inndata'!C29 -> 74516.36364

Sheet Sprengning
B2: Sprengning og transport
B3: Kategori | D3: Materialer | E3: Transport sprengstein | I3: Kommentar
D4: Vekt tovex [kg/fm3] | E4: Vekt sprengstein [kg/fm3] | F4: Mengde diesel [liter/m3] | G4: Mengde bio [liter/m3] | H4: Mengde el [kWh/m3]
B5: Sprengning i fjell | C5: Sprengstoff | D5: =Beregningsfaktorer!D34 -> 2.2 | E5: =Beregningsfaktorer!D16*D5 -> 5830
B6: Sprengning i dagen | C6: Sprengstoff | D6: =Beregningsfaktorer!D33 -> 1 | E6: =Beregningsfaktorer!D16*D6 -> 2650
C7: Sprengstein til linja | E7: =Beregningsfaktorer!D16 -> 2650 | F7: =(E7/1000)*'Transport og energibehov'!D17*'Transport og energibehov'!D4*'Transport og energibehov'!N17 -> 0.024645 | G7: =(E7/1000)*'Transport og energibehov'!D17*'Transport og energibehov'!D4*'Transport og energibehov'!M17 -> 0.001855 | H7: =(E7/1000)*'Transport og energibehov'!H17*'Transport og energibehov'!D4*'Transport og energibehov'!L17 -> 0
C8: Sprengstein til deponi | E8: =Beregningsfaktorer!D16 -> 2650 | F8: =(E8/1000)*'Transport og energibehov'!D18*'Transport og energibehov'!D5*'Transport og energibehov'!N18 -> 0.24645 | G8: =(E8/1000)*'Transport og energibehov'!D18*'Transport og energibehov'!D5*'Transport og energibehov'!M18 -> 0.01855 | H8: =(E8/1000)*'Transport og energibehov'!H18*'Transport og energibehov'!D5*'Transport og energibehov'!L18 -> 0
C9: Sprengstein til linja via pukkverk | E9: =Beregningsfaktorer!D16 -> 2650 | F9: =(E9/1000)*'Transport og energibehov'!D19*'Transport og energibehov'!D6*'Transport og energibehov'!N19 -> 0.73935 | G9: =(E9/1000)*'Transport og energibehov'!D19*'Transport og energibehov'!D6*'Transport og energibehov'!M19 -> 0.05565 | H9: =(E9/1000)*'Transport og energibehov'!H19*'Transport og energibehov'!D6*'Transport og energibehov'!L19 -> 0
B12: Anleggsarbeid
B13: Kategori | C13: Anleggsarbeid | G13: Kommentar
C14: Vekt [kg/fm3] | D14: Mengde diesel [liter/fm3] | E14: Mengde bio [liter/fm3] | F14: Mengde el [kWh/fm3]
B15: Lasting av sprengstein | C15: =Beregningsfaktorer!D16 -> 2650 | D15: =(C15/1000)/'Transport og energibehov'!D49*'Transport og energibehov'!D34*'Transport og energibehov'!N34 -> 0.3286 | E15: =(C15/1000)/'Transport og energibehov'!D49*'Transport og energibehov'!D34*'Transport og energibehov'!M34 -> 0.02473333333 | F15: =(C15/1000)/'Transport og energibehov'!D49*'Transport og energibehov'!H34*'Transport og energibehov'!L34 -> 0

Sheet Reasfaltering
B1: Reasfaltering
B2: Bakgrunnsdata
B3: Andel som reasfalteres | C3: =Beregningsfaktorer!D59 -> 0.6
B5: Materialer og transport
B6: Kategori | C6: Materialmengder | E6: Transport | H6: Kommentar
C7: Volum/areal [m3/m2] | D7: Masse per areal [kg/m2] | E7: Mengde diesel [liter/m2] | F7: Mengde bio [liter/m2] | G7: Mengde el [kWh/m2]
B8: Slitelag (Ska) | C8: =Beregningsfaktorer!D19 -> 0.045 | D8: =C8*Beregningsfaktorer!D6*Reasfaltering!C3 -> 67.5 | E8: =(D8/1000)*'Transport og energibehov'!D19*'Transport og energibehov'!D6*'Transport og energibehov'!N19 -> 0.0188325 | F8: =(D8/1000)*'Transport og energibehov'!D19*'Transport og energibehov'!D6*'Transport og energibehov'!M19 -> 0.0014175 | G8: =(D8/1000)*'Transport og energibehov'!H19*'Transport og energibehov'!D6*'Transport og energibehov'!L19 -> 0
B9: Slitelag (Agb) | C9: =Beregningsfaktorer!D19 -> 0.045 | D9: =C9*Beregningsfaktorer!D7*C3 -> 67.5 | E9: =(D9/1000)*'Transport og energibehov'!D20*'Transport og energibehov'!D7*'Transport og energibehov'!N20 -> 0.037665 | F9: =(D9/1000)*'Transport og energibehov'!D20*'Transport og energibehov'!D7*'Transport og energibehov'!M20 -> 0.002835 | G9: =(D9/1000)*'Transport og energibehov'!H20*'Transport og energibehov'!D7*'Transport og energibehov'!L20 -> 0
B11: Anleggsarbeid
B12: Kategori | C12: Maskintype | D12: Anleggsarbeid | H12: Kommentar
D13: Arbeidshastighet [m2/time] | E13: Mengde diesel [liter/m2] | F13: Mengde bio [liter/m2] | G13: Mengde el [kWh/m2]
B14: Fjerning | C14: Gravemaskin | D14: =('Transport og energibehov'!D49*1000)/D9 -> 2222.222222 | E14: =('Transport og energibehov'!D34/D14)*'Transport og energibehov'!N34 -> 0.00837 | F14: =('Transport og energibehov'!D34/D14)*'Transport og energibehov'!M34 -> 0.00063 | G14: =('Transport og energibehov'!H34/D14)*'Transport og energibehov'!L34 -> 0
B15: Asfaltering | C15: Veivals | D15: =('Transport og energibehov'!D46*1000)/D9 -> 1111.111111 | E15: =('Transport og energibehov'!D31/D15)*'Transport og energibehov'!N31 -> 0.002511 | F15: =('Transport og energibehov'!D31/D15)*'Transport og energibehov'!M31 -> 0.000189 | G15: =('Transport og energibehov'!H31/D15)*'Transport og energibehov'!L31 -> 0
C16: Traktor | D16: =('Transport og energibehov'!D47*1000)/D9 -> 4444.444444 | E16: =('Transport og energibehov'!D32/D16)*'Transport og energibehov'!N32 -> 0.00104625 | F16: =('Transport og energibehov'!D32/D16)*'Transport og energibehov'!M32 -> 7.875e-05 | G16: =('Transport og energibehov'!H32/D16)*'Transport og energibehov'!L32 -> 0
C17: Asfaltutlegger | D17: =('Transport og energibehov'!D48*1000)/D9 -> 55.55555556 | E17: =('Transport og energibehov'!D33/D17)*'Transport og energibehov'!N33 -> 0.05022 | F17: =('Transport og energibehov'!D33/D17)*'Transport og energibehov'!M33 -> 0.00378 | G17: =('Transport og energibehov'!H33/D17)*'Transport og energibehov'!L33 -> 0

Sheet Beregningsfaktorer arbeidsfane (hidden)
A1: OK? | B1: Faktor | C1: Gammel verdi | D1: Enhet | E1: Fane | F1: Bruksområde | G1: Kategori | H1: Dokumentasjon gammel verdi | I1: VegLCA | J1: Dokumentasjon VegLCA | K1: Kommentar | L1: Vurdering | M1: Foreslått ny verdi | N1: Enhet | O1: Dokumentasjon verdi i oppdatert verktøy | P1: Evt. kommentar ny verdi i verktøy | Q1: Evt. lenker kilder
B2: Massetettheter
A3: OK | B3: Betong massetetthet | C3: 2400 | D3: kg/m3 | E3: Tunnel (begge) | F3: Beregning av dieselforbruk transport m.m. | G3: Massetetthet | H3: Ingen | I3: 2400 | J3: Norsk betongforening Publikasjon 37: Lavkarbonbetong (2015) | K3: Samme i VegLCA, god dokumentasjon | L3: Beholde | M3: =IF(L3="Beholde",C3,IF(L3="Fjerne","-","")) -> 2400 | N3: =IF(L3="Beholde",D3,IF(L3="Fjerne","-",IF(OR(L3="Oppdatere",L3="Legge til",L3="Bake inn i annen faktor"),D3,""))) -> kg/m3 | O3: Norsk betongforening Publikasjon 37: Lavkarbonbetong (2015)
A4: OK | B4: Armeringsstål massetetthet | C4: 7800 | D4: kg/m3 | E4: Tunnel (begge) | F4: Brukes ikke | G4: Massetetthet | H4: Ingen | I4: 7400 | J4: Densities of solids, The engineering toolbox (men denne oppgir 7850?) | K4: 7850 i metoderapport og på engineering toolbox, foreslår å bruke det. VegLCA bør vurdere oppdatering. | L4: Oppdatere | M4: 7850 | N4: =IF(L4="Beholde",D4,IF(L4="Fjerne","-",IF(OR(L4="Oppdatere",L4="Legge til",L4="Bake inn i annen faktor"),D4,""))) -> kg/m3 | O4: Metoderapport s. 8, Engineering Toolbox, https://www.engineeringtoolbox.com/metal-alloys-densities-d_50.html
A5: OK | B5: Sikringsbolter massetetthet | C5: 7800 | D5: kg/m3 | E5: Tunnel (begge) | F5: Brukes ikke | G5: Massetetthet | H5: Ingen | I5: 7400 | J5: Densities of solids, The engineering toolbox (men denne oppgir 7850?) | K5: Samme som armeringsstål - bare ha én for stål. 7850 i metoderapport og på engineering toolbox, foreslår å bruke det. VegLCA bør vurdere oppdatering. | L5: Fjerne | M5: =IF(L5="Beholde",C5,IF(L5="Fjerne","-","")) -> - | N5: - | O5: =IF(OR(L5="Fjerne",L5="Bake inn i annen faktor"),"-","") -> -
A6: OK | B6: Asfaltbetong massetetthet | C6: 2500 | D6: kg/m3 | E6: Tunnel (begge) | F6: Beregning av dieselforbruk transport m.m. | G6: Massetetthet | H6: Ingen | I6: 2500 | J6: Klimamodul EFFEKT 6.74 | K6: Til slitelag, bindlag og skulder. Anbefalt verdi etter samkjøring. Står i metoderapport s. 34. | L6: Beholde | M6: 2500 | N6: kg/m3 | O6: Metoderapport s. 34
A7: OK | B7: Asfaltgrus massetetthet | C7: 2400 | D7: kg/m3 | E7: Tunnel (begge) | F7: Beregning av dieselforbruk transport m.m. for bærelag | G7: Massetetthet | H7: Metoderapport s. 32 | I7: 2400 | J7: Klimamodul EFFEKT 6.74 | K7: Til bærelag. Verdi i metoderapport er for AP, mens Ag har 2,65. Beholder 2400 for å sørge for høyest mulig grad av samsvar | L7: Beholde | M7: 2400 | N7: kg/m3 | O7: Klimamodul EFFEKT 6.74
A8: OK | B8: Pukk/grus frostsikring massetetthet | C8: 1800 | D8: kg/m3 | F8: Beregning av dieselforbruk transport m.m. | G8: Massetetthet | H8: Ingen | I8: 1500 | J8: Forsterkningslag i kult fra metoderapport s. 32 | K8: VegLCA er ikke oppdatert etter anbefalt verdi i samkjøringsprosjekt | L8: Oppdatere | M8: 1550 | N8: kg/m3 | O8: Anbefalt verdi i samkjøringsprosjekt, snitt av minimums- og maksimumsverdi (1,4-1,7) i EPDer
A9: OK | B9: Pukk/grus forsterkningslag massetetthet | C9: 1500 | D9: kg/m3 | E9: Tunnel (begge) | F9: Beregning av dieselforbruk transport m.m. | G9: Massetetthet | H9: Forsterkningslag i kult fra metoderapport s. 32 | I9: 1500 | J9: Forsterkningslag i kult fra metoderapport s. 32 | K9: VegLCA er ikke oppdatert etter anbefalt verdi i samkjøringsprosjekt | L9: Oppdatere | M9: 1550 | N9: kg/m3 | O9: Anbefalt verdi i samkjøringsprosjekt, snitt av minimums- og maksimumsverdi (1,4-1,7) i EPDer | Q9: https://www.epd-norge.no/getfile.php/139362-1537176670/EPDer/Byggevarer/Asfalt/NEPD-1257-403_Crushed-Stone-Bergkrossprodukter_1_1.pdf | R9: https://www.epd-norge.no/getfile.php/138731-1520978061/EPDer/Byggevarer/Asfalt/527_Crushed-stone-construction-aggregate-products--Oslo-and-Baerum_no.pdf
A10: OK | B10: XPS massetetthet | C10: 25 | D10: kg/m3 | E10: Utslippsfaktorer | F10: Beregning av massetetthet XPS-/betongelement brukt til frostsikring i tunnel | G10: Massetetthet | H10: Ingen | I10: 35 | J10: Antakelser basert på produsentdata fra Foamular, PakBoard, Thermals) | K10: Oppdatere til VegLCA sin faktor for å sørge for høyest mulig grad av samsvar, i tillegg til manglende dokumentasjon for vår faktor. 35 kg/m3 samsvarer godt med informasjon på nett. | L10: Oppdatere | M10: 35 | N10: kg/m3 | O10: VegLCA (kommunikasjon med leverandører)
A11: OK | B11: XPS-/betongelement til frostsikring i tunnel massetetthet | C11: 1800 | D11: kg/m3 | E11: Tunnel (begge) | F11: Beregning av dieselforbruk transport m.m. | G11: Massetetthet | H11: Ingen | I11: IR | J11: =IF(I11="IR","-","") -> - | K11: Estimert som gjennomsnittet av massetetthetene til betong og XPS basert på EPD fra Ølen betong der elementene består av 50 mm XPS og 150 mm betong (150 * 2400 + 50 * 25)/200 = 1800 kg/m3. Usikkert hvor massetetthet til XPS er hentet fra. I samkjøringsprosjekt står det at massetetthet til XPS ikke er relevant i NIRAS' verktøy. Foreslår å heller benytte 35 kg/m3 som i VegLCA | L11: Oppdatere | M11: =(50*M10+150*M3)/(M24*1000) -> 1808.75 | N11: kg/m3 | O11: EPD XPS-/betongelement Ølen betong
A12: OK | B12: Topeka massetetthet | C12: IR | D12: kg/m3 | F12: Beregning av dieselforbruk transport m.m. | G12: Massetetthet | H12: - | I12: 2500 | J12: Samme som asfalt, dvs. Klimamodul EFFEKT | L12: Legge til | M12: 2500 | N12: kg/m3 | O12: Metoderapport s. 34, bruker samme som asfaltbetong
A13: OK | B13: Vegetasjonsdekke massetetthet | C13: 2000 | D13: kg/m3 | E13: Fjerning av vegetasjon | G13: Massetetthet | L13: Oppdatere | M13: 1300 | N13: kg/m3 | O13: Metoderapport s. 32
A14: OK | B14: Myr massetetthet | G14: Massetetthet | L14: Oppdatere | M14: 150 | N14: kg/m3 | O14: "Utredning myr", Hadsel kommune (Asplan Viak, 2017)
A15: OK | B15: Massetetthet sprengstein | C15: 2650 | D15: kg/m3 | E15: Masser | G15: Massetetthet | L15: Beholde | M15: 2650 | N15: kg/m3 | O15: Metoderapport s. 32
A16: OK | B16: Masser fra grøfterensk massetetthet | C16: 1600 | D16: kg/m3 | E16: Drift | G16: Massetetthet | L16: Oppdatere | M16: 1300 | N16: kg/m3 | O16: Metoderapport s. 32
B17: Materialtykkelser/-mengder
A18: OK | B18: Slitelag tykkelse | C18: 0.045 | D18: m | E18: Vei, tunnel (begge), bru (begge), asfalt annet | F18: Beregning av materialforbruk og transport m.m. | G18: Materialtykkelse | H18: N200 | I18: IR | J18: - | L18: Beholde | M18: 0.045 | N18: m | O18: N200
A19: OK | B19: Bindlag tykkelse | C19: 0.035 | D19: m | E19: Vei, tunnel (begge), bru (begge), asfalt annet | F19: Beregning av materialforbruk og transport m.m. | G19: Materialtykkelse | H19: N200 | I19: IR | J19: - | L19: Beholde | M19: 0.035 | N19: m | O19: N200
A20: OK | B20: Bærelag tykkelse | C20: 0.13 | D20: m | E20: Vei, tunnel (begge), bru (begge), asfalt annet | F20: Beregning av materialforbruk og transport m.m. | G20: Materialtykkelse | H20: N200 | I20: IR | J20: - | L20: Beholde | M20: 0.13 | N20: m | O20: N200
A21: OK | B21: Forsterkningslag tykkelse | C21: 0.45 | D21: m | E21: Vei, tunnel (begge), bru (begge), asfalt annet | F21: Beregning av materialforbruk og transport m.m. | G21: Materialtykkelse | H21: N200 | I21: IR | J21: - | L21: Beholde | M21: 0.45 | N21: m | O21: N200
A22: OK | B22: Frostsikringslag vei tykkelse | C22: 1,74 eller 1,09 | D22: m | E22: Vei, asfalt annet | F22: Beregning av materialforbruk og transport m.m. | G22: Materialtykkelse | H22: N200 | I22: IR | J22: - | K22: Avhenger av andel av veien plassert på fjell. Dersom fjell: 1,09. Foreslår å heller sette standard tykkelse 1,74 og evt. redusere i hht. N200 basert på klimasone og telefarlighetsklasse | L22: Oppdatere | M22: 1.74 | N22: m | O22: N200
A23: OK | B23: Topeka tykkelse | C23: IR | D23: m | E23: Bru | F23: Beregning av materialforbruk og transport m.m. | G23: Materialtykkelse | H23: - | I23: 0.012 | J23: Ikke kommentert | K23: VegLCA bruker det samme i beregningene, men det er ikke eksplisitt | L23: Legge til | M23: 0.012 | N23: m | O23: SVV Håndbok R762 | P23: R: endret fra 0,12 til 0,012, antar at det var en skrivefeil?
